Workbook

Sheet Contents
C1: Go to Charts by Pressing Shift and Enter on Menu Item
C3: Sheet Tab | D3: Description | E3: Author
B4: 1 | C4: Contents
B5: 2 | C5: Income Statement
B6: 3 | C6: Cap Exp Investment Plan
B7: 4 | C7: Debt Balance
B8: 5 | C8: Expense Detail
B9: 6 | C9: Summary Sheet
B10: 7 | C10: Scenarios
B11: 8 | C11: Operating Assumptions
B12: 9 | C12: Disbursment Analysis
B13: 10 | C13: Disbursement Schedule
B14: 11 | C14: Phase 1 Cash flow
B15: 12 | C15: Financing Assumptions
B16: 13 | C16: Financial Model
B17: 14 | C17: Annual Model - RFW
B18: 15 | C18: Annual Model - USD
B19: 16 | C19: Gas Resources in Lake
B20: 17 | C20: BACK-UP DATA --->
B21: 18 | C21: Info Memo
B22: 19 | C22: Clip of FM
B23: 20 | C23: Full Budget Cap Exp Summary
B24: 21 | C24: 14 MW Equipment Costs
B25: 22 | C25: Monthly Construction
B26: 23 | C26: PPA
B27: 24 | C27: Gas Analysis and Heat Rate
B28: 25 | C28: Conversions (2)
B29: 26 | C29: Phase 1 Expense Budget
B30: 27 | C30: David Draw Down
B31: 28 | C31: Chart1
B32: 29 | C32: Chart2
B33: 30 | C33: Proposed Disbursment
B34: 31 | C34: Gas EPC
B35: 32 | C35: Cat Proposal (3)
B36: 33 | C36: Development
B38: File Name: | D38: =File_name() -> 
B40: Last Save Date | D40: =lastsaved1() -> 
B41: Last Save By | D41: =lastsaveby1() -> 
B43: Colour Codes

Sheet Income Statement
B2: ='Operating Assumptions'!F85 -> 780
B3: Sensitivity | C3: Projected annual sales | E3: =YEAR('Operating Assumptions'!H9) -> 2018 | F3: =E3+1 -> 2019 | G3: =F3+1 -> 2020 | H3: 2021 | I3: 2022 | J3: 2023 | K3: 2024 | L3: 2025 | M3: 2026 | N3: 2027 | O3: 2028 | P3: 2029 | Q3: 2030 | R3: 2031 | S3: 2032 | T3: 2033 | U3: 2034 | V3: 2035 | W3: 2036 | X3: 2037 | Y3: 2038 | Z3: 2039 | AA3: 2040 | AB3: 2041 | AC3: 2042
C4: year | E4: Y1 | F4: Y2 | G4: Y3 | H4: Y4 | I4: Y5 | J4: Y6 | K4: Y7 | L4: Y8 | M4: Y9 | N4: Y10 | O4: Y11 | P4: Y12 | Q4: Y13 | R4: Y14 | S4: Y15 | T4: Y16 | U4: Y17 | V4: Y18 | W4: Y19 | X4: Y20 | Y4: Y21 | Z4: Y22 | AA4: Y23 | AB4: Y24 | AC4: Y25
B5: 1 | C5: Total revenues | E5: =LOOKUP(E$3,'Annual Model - RFW'!$2:$2,'Annual Model - RFW'!74:74)*1000 -> 8732279314 | F5: =LOOKUP(F3,'Annual Model - RFW'!$2:$2,'Annual Model - RFW'!74:74)*1000 -> 1.108504542e+10 | G5: =LOOKUP(G3,'Annual Model - RFW'!$2:$2,'Annual Model - RFW'!74:74)*1000 -> 4.541914175e+10 | H5: =LOOKUP(H3,'Annual Model - RFW'!$2:$2,'Annual Model - RFW'!74:74)*1000 -> 4.846795676e+10 | I5: =LOOKUP(I3,'Annual Model - RFW'!$2:$2,'Annual Model - RFW'!74:74)*1000 -> 5.186071374e+10 | J5: =LOOKUP(J3,'Annual Model - RFW'!$2:$2,'Annual Model - RFW'!74:74)*1000 -> 5.54909637e+10 | K5: =LOOKUP(K3,'Annual Model - RFW'!$2:$2,'Annual Model - RFW'!74:74)*1000 -> 5.953522979e+10 | L5: =LOOKUP(L3,'Annual Model - RFW'!$2:$2,'Annual Model - RFW'!74:74)*1000 -> 6.353160434e+10 | M5: =LOOKUP(M3,'Annual Model - RFW'!$2:$2,'Annual Model - RFW'!74:74)*1000 -> 6.797881664e+10 | N5: =LOOKUP(N3,'Annual Model - RFW'!$2:$2,'Annual Model - RFW'!74:74)*1000 -> 7.273733381e+10 | O5: =LOOKUP(O3,'Annual Model - RFW'!$2:$2,'Annual Model - RFW'!74:74)*1000 -> 7.803854166e+10 | P5: =LOOKUP(P3,'Annual Model - RFW'!$2:$2,'Annual Model - RFW'!74:74)*1000 -> 8.327697347e+10 | Q5: =LOOKUP(Q3,'Annual Model - RFW'!$2:$2,'Annual Model - RFW'!74:74)*1000 -> 8.910636162e+10 | R5: =LOOKUP(R3,'Annual Model - RFW'!$2:$2,'Annual Model - RFW'!74:74)*1000 -> 9.534380693e+10 | S5: =LOOKUP(S3,'Annual Model - RFW'!$2:$2,'Annual Model - RFW'!74:74)*1000 -> 1.02292609e+11 | T5: =LOOKUP(T3,'Annual Model - RFW'!$2:$2,'Annual Model - RFW'!74:74)*1000 -> 1.091591246e+11 | U5: =LOOKUP(U3,'Annual Model - RFW'!$2:$2,'Annual Model - RFW'!74:74)*1000 -> 1.168002633e+11 | V5: =LOOKUP(V3,'Annual Model - RFW'!$2:$2,'Annual Model - RFW'!74:74)*1000 -> 1.249762817e+11 | W5: =LOOKUP(W3,'Annual Model - RFW'!$2:$2,'Annual Model - RFW'!74:74)*1000 -> 1.340847438e+11 | X5: =LOOKUP(X3,'Annual Model - RFW'!$2:$2,'Annual Model - RFW'!74:74)*1000 -> 1.430853449e+11 | Y5: =LOOKUP(Y3,'Annual Model - RFW'!$2:$2,'Annual Model - RFW'!74:74)*1000 -> 1.531013191e+11 | Z5: =LOOKUP(Z3,'Annual Model - RFW'!$2:$2,'Annual Model - RFW'!74:74)*1000 -> 1.638184114e+11 | AA5: =LOOKUP(AA3,'Annual Model - RFW'!$2:$2,'Annual Model - RFW'!74:74)*1000 -> 1.757577471e+11 | AB5: =LOOKUP(AB3,'Annual Model - RFW'!$2:$2,'Annual Model - RFW'!74:74)*1000 -> 1.875556992e+11 | AC5: =LOOKUP(AC3,'Annual Model - RFW'!$2:$2,'Annual Model - RFW'!74:74)*1000 -> 2.006845982e+11
C6: USD | E6: =LOOKUP($E$3,'Annual Model - USD'!$2:$2,'Annual Model - USD'!94:94) -> 9748822.91 | F6: =LOOKUP($E$3,'Annual Model - USD'!$2:$2,'Annual Model - USD'!94:94) -> 9748822.91 | G6: =LOOKUP($E$3,'Annual Model - USD'!$2:$2,'Annual Model - USD'!94:94) -> 9748822.91 | H6: =LOOKUP($E$3,'Annual Model - USD'!$2:$2,'Annual Model - USD'!94:94) -> 9748822.91 | I6: =LOOKUP($E$3,'Annual Model - USD'!$2:$2,'Annual Model - USD'!94:94) -> 9748822.91 | J6: =LOOKUP($E$3,'Annual Model - USD'!$2:$2,'Annual Model - USD'!94:94) -> 9748822.91 | K6: =LOOKUP($E$3,'Annual Model - USD'!$2:$2,'Annual Model - USD'!94:94) -> 9748822.91 | L6: =LOOKUP($E$3,'Annual Model - USD'!$2:$2,'Annual Model - USD'!94:94) -> 9748822.91 | M6: =LOOKUP($E$3,'Annual Model - USD'!$2:$2,'Annual Model - USD'!94:94) -> 9748822.91 | N6: =LOOKUP($E$3,'Annual Model - USD'!$2:$2,'Annual Model - USD'!94:94) -> 9748822.91 | O6: =LOOKUP($E$3,'Annual Model - USD'!$2:$2,'Annual Model - USD'!94:94) -> 9748822.91 | P6: =LOOKUP($E$3,'Annual Model - USD'!$2:$2,'Annual Model - USD'!94:94) -> 9748822.91 | Q6: =LOOKUP($E$3,'Annual Model - USD'!$2:$2,'Annual Model - USD'!94:94) -> 9748822.91 | R6: =LOOKUP($E$3,'Annual Model - USD'!$2:$2,'Annual Model - USD'!94:94) -> 9748822.91 | S6: =LOOKUP($E$3,'Annual Model - USD'!$2:$2,'Annual Model - USD'!94:94) -> 9748822.91 | T6: =LOOKUP($E$3,'Annual Model - USD'!$2:$2,'Annual Model - USD'!94:94) -> 9748822.91 | U6: =LOOKUP($E$3,'Annual Model - USD'!$2:$2,'Annual Model - USD'!94:94) -> 9748822.91 | V6: =LOOKUP($E$3,'Annual Model - USD'!$2:$2,'Annual Model - USD'!94:94) -> 9748822.91 | W6: =LOOKUP($E$3,'Annual Model - USD'!$2:$2,'Annual Model - USD'!94:94) -> 9748822.91 | X6: =LOOKUP($E$3,'Annual Model - USD'!$2:$2,'Annual Model - USD'!94:94) -> 9748822.91 | Y6: =LOOKUP($E$3,'Annual Model - USD'!$2:$2,'Annual Model - USD'!94:94) -> 9748822.91 | Z6: =LOOKUP($E$3,'Annual Model - USD'!$2:$2,'Annual Model - USD'!94:94) -> 9748822.91 | AA6: =LOOKUP($E$3,'Annual Model - USD'!$2:$2,'Annual Model - USD'!94:94) -> 9748822.91 | AB6: =LOOKUP($E$3,'Annual Model - USD'!$2:$2,'Annual Model - USD'!94:94) -> 9748822.91 | AC6: =LOOKUP($E$3,'Annual Model - USD'!$2:$2,'Annual Model - USD'!94:94) -> 9748822.91
B7: 1 | C7: Rura fees | E7: =LOOKUP(E$3,'Annual Model - RFW'!$2:$2,'Annual Model - RFW'!75:75)*1000 -> 87322793.14 | F7: =LOOKUP(F$3,'Annual Model - RFW'!$2:$2,'Annual Model - RFW'!75:75)*1000 -> 110850454.2 | G7: =LOOKUP(G$3,'Annual Model - RFW'!$2:$2,'Annual Model - RFW'!75:75)*1000 -> 454191417.5 | H7: =LOOKUP(H$3,'Annual Model - RFW'!$2:$2,'Annual Model - RFW'!75:75)*1000 -> 484679567.6 | I7: =LOOKUP(I$3,'Annual Model - RFW'!$2:$2,'Annual Model - RFW'!75:75)*1000 -> 518607137.4 | J7: =LOOKUP(J$3,'Annual Model - RFW'!$2:$2,'Annual Model - RFW'!75:75)*1000 -> 554909637 | K7: =LOOKUP(K$3,'Annual Model - RFW'!$2:$2,'Annual Model - RFW'!75:75)*1000 -> 595352297.9 | L7: =LOOKUP(L$3,'Annual Model - RFW'!$2:$2,'Annual Model - RFW'!75:75)*1000 -> 635316043.4 | M7: =LOOKUP(M$3,'Annual Model - RFW'!$2:$2,'Annual Model - RFW'!75:75)*1000 -> 679788166.4 | N7: =LOOKUP(N$3,'Annual Model - RFW'!$2:$2,'Annual Model - RFW'!75:75)*1000 -> 727373338.1 | O7: =LOOKUP(O$3,'Annual Model - RFW'!$2:$2,'Annual Model - RFW'!75:75)*1000 -> 780385416.6 | P7: =LOOKUP(P$3,'Annual Model - RFW'!$2:$2,'Annual Model - RFW'!75:75)*1000 -> 832769734.7 | Q7: =LOOKUP(Q$3,'Annual Model - RFW'!$2:$2,'Annual Model - RFW'!75:75)*1000 -> 891063616.2 | R7: =LOOKUP(R$3,'Annual Model - RFW'!$2:$2,'Annual Model - RFW'!75:75)*1000 -> 953438069.3 | S7: =LOOKUP(S$3,'Annual Model - RFW'!$2:$2,'Annual Model - RFW'!75:75)*1000 -> 1022926090 | T7: =LOOKUP(T$3,'Annual Model - RFW'!$2:$2,'Annual Model - RFW'!75:75)*1000 -> 1091591246 | U7: =LOOKUP(U$3,'Annual Model - RFW'!$2:$2,'Annual Model - RFW'!75:75)*1000 -> 1168002633 | V7: =LOOKUP(V$3,'Annual Model - RFW'!$2:$2,'Annual Model - RFW'!75:75)*1000 -> 1249762817 | W7: =LOOKUP(W$3,'Annual Model - RFW'!$2:$2,'Annual Model - RFW'!75:75)*1000 -> 1340847438 | X7: =LOOKUP(X$3,'Annual Model - RFW'!$2:$2,'Annual Model - RFW'!75:75)*1000 -> 1430853449 | Y7: =LOOKUP(Y$3,'Annual Model - RFW'!$2:$2,'Annual Model - RFW'!75:75)*1000 -> 1531013191 | Z7: =LOOKUP(Z$3,'Annual Model - RFW'!$2:$2,'Annual Model - RFW'!75:75)*1000 -> 1638184114 | AA7: =LOOKUP(AA$3,'Annual Model - RFW'!$2:$2,'Annual Model - RFW'!75:75)*1000 -> 1757577471 | AB7: =LOOKUP(AB$3,'Annual Model - RFW'!$2:$2,'Annual Model - RFW'!75:75)*1000 -> 1875556992 | AC7: =LOOKUP(AC$3,'Annual Model - RFW'!$2:$2,'Annual Model - RFW'!75:75)*1000 -> 2006845982
B8: 1 | C8: Variable Operating Expenses | E8: =LOOKUP(E$3,'Annual Model - RFW'!$2:$2,'Annual Model - RFW'!77:77)*1000 -> 485835507.5 | F8: =LOOKUP(F$3,'Annual Model - RFW'!$2:$2,'Annual Model - RFW'!77:77)*1000 -> 616735731 | G8: =LOOKUP(G$3,'Annual Model - RFW'!$2:$2,'Annual Model - RFW'!77:77)*1000 -> 670969445.3 | H8: =LOOKUP(H$3,'Annual Model - RFW'!$2:$2,'Annual Model - RFW'!77:77)*1000 -> 716009083.6 | I8: =LOOKUP(I$3,'Annual Model - RFW'!$2:$2,'Annual Model - RFW'!77:77)*1000 -> 766129719.5 | J8: =LOOKUP(J$3,'Annual Model - RFW'!$2:$2,'Annual Model - RFW'!77:77)*1000 -> 819758799.8 | K8: =LOOKUP(K$3,'Annual Model - RFW'!$2:$2,'Annual Model - RFW'!77:77)*1000 -> 879504071.8 | L8: =LOOKUP(L$3,'Annual Model - RFW'!$2:$2,'Annual Model - RFW'!77:77)*1000 -> 938541849.9 | M8: =LOOKUP(M$3,'Annual Model - RFW'!$2:$2,'Annual Model - RFW'!77:77)*1000 -> 1004239779 | N8: =LOOKUP(N$3,'Annual Model - RFW'!$2:$2,'Annual Model - RFW'!77:77)*1000 -> 1074536564 | O8: =LOOKUP(O$3,'Annual Model - RFW'!$2:$2,'Annual Model - RFW'!77:77)*1000 -> 1152850428 | P8: =LOOKUP(P$3,'Annual Model - RFW'!$2:$2,'Annual Model - RFW'!77:77)*1000 -> 1230236912 | Q8: =LOOKUP(Q$3,'Annual Model - RFW'!$2:$2,'Annual Model - RFW'!77:77)*1000 -> 1316353496 | R8: =LOOKUP(R$3,'Annual Model - RFW'!$2:$2,'Annual Model - RFW'!77:77)*1000 -> 1408498241 | S8: =LOOKUP(S$3,'Annual Model - RFW'!$2:$2,'Annual Model - RFW'!77:77)*1000 -> 1511151741 | T8: =LOOKUP(T$3,'Annual Model - RFW'!$2:$2,'Annual Model - RFW'!77:77)*1000 -> 1612589636 | U8: =LOOKUP(U$3,'Annual Model - RFW'!$2:$2,'Annual Model - RFW'!77:77)*1000 -> 1725470910 | V8: =LOOKUP(V$3,'Annual Model - RFW'!$2:$2,'Annual Model - RFW'!77:77)*1000 -> 1846253874 | W8: =LOOKUP(W$3,'Annual Model - RFW'!$2:$2,'Annual Model - RFW'!77:77)*1000 -> 1980811673 | X8: =LOOKUP(X$3,'Annual Model - RFW'!$2:$2,'Annual Model - RFW'!77:77)*1000 -> 2113776060 | Y8: =LOOKUP(Y$3,'Annual Model - RFW'!$2:$2,'Annual Model - RFW'!77:77)*1000 -> 2261740385 | Z8: =LOOKUP(Z$3,'Annual Model - RFW'!$2:$2,'Annual Model - RFW'!77:77)*1000 -> 2420062211 | AA8: =LOOKUP(AA$3,'Annual Model - RFW'!$2:$2,'Annual Model - RFW'!77:77)*1000 -> 2596440037 | AB8: =LOOKUP(AB$3,'Annual Model - RFW'!$2:$2,'Annual Model - RFW'!77:77)*1000 -> 2770729226 | AC8: =LOOKUP(AC$3,'Annual Model - RFW'!$2:$2,'Annual Model - RFW'!77:77)*1000 -> 2964680272
C10: Exchange Rate | E10: =E5/E6 -> 895.7265297 | F10: =F5/F6 -> 1137.06501 | G10: 4658.935973 | H10: 4971.672704 | I10: 5319.689794 | J10: 5692.068079 | K10: 6106.914684 | L10: 6516.848744 | M10: 6973.028156 | N10: 7461.140127 | O10: 8004.919402 | P10: 8542.259331 | Q10: 9140.217484 | R10: 9780.032708 | S10: 10492.81641 | T10: 11197.15945 | U10: 11980.96061 | V10: 12819.62785 | W10: 13753.94189 | X10: 14677.19193 | Y10: 15704.59536 | Z10: 16803.91704 | AA10: 18028.61215 | AB10: 19238.80462 | AC10: 20585.52094
C11: Total variable costs | E11: =E7+E8 -> 573158300.6 | F11: =F7+F8 -> 727586185.1 | G11: 1125160863 | H11: 1200688651 | I11: 1284736857 | J11: 1374668437 | K11: 1474856370 | L11: 1573857893 | M11: 1684027946 | N11: 1801909902 | O11: 1933235845 | P11: 2063006647 | Q11: 2207417112 | R11: 2361936310 | S11: 2534077832 | T11: 2704180881 | U11: 2893473543 | V11: 3096016691 | W11: 3321659111 | X11: 3544629510 | Y11: =Y7+Y8 -> 3792753575 | Z11: =Z7+Z8 -> 4058246325 | AA11: =AA7+AA8 -> 4354017509 | AB11: =AB7+AB8 -> 4646286218 | AC11: =AC7+AC8 -> 4971526253
C12: USD | E12: =E11/B2 -> 734818.3342 | F12: =E12*1.005 -> 738492.4258 | G12: =F12*1.005 -> 742184.888 | H12: 745895.8124 | I12: 749625.2915 | J12: 753373.4179 | K12: 757140.285 | L12: 760925.9864 | M12: 764730.6164 | N12: 768554.2694 | O12: 772397.0408 | P12: 776259.026 | Q12: 780140.3211 | R12: 784041.0227 | S12: 787961.2278 | T12: 791901.034 | U12: 795860.5391 | V12: 799839.8418 | W12: 803839.0411 | X12: 807858.2363 | Y12: 811897.5274 | Z12: 815957.0151 | AA12: 820036.8002 | AB12: 824136.9842 | AC12: 828257.6691
C13: Gross profit | E13: =E5-E11 -> 8159121014 | F13: 1.035745923e+10 | G13: 4.429398089e+10 | H13: 4.726726811e+10 | I13: 5.057597688e+10 | J13: 5.411629526e+10 | K13: 5.806037342e+10 | L13: 6.195774644e+10 | M13: 6.62947887e+10 | N13: 7.09354239e+10 | O13: 7.610530581e+10 | P13: 8.121396683e+10 | Q13: 8.689894451e+10 | R13: 9.298187062e+10 | S13: 9.97585312e+10 | T13: 1.064549437e+11 | U13: 1.139067897e+11 | V13: 1.21880265e+11 | W13: 1.307630847e+11 | X13: 1.395407154e+11 | Y13: =Y5-Y11 -> 1.493085655e+11 | Z13: =Z5-Z11 -> 1.597601651e+11 | AA13: =AA5-AA11 -> 1.714037296e+11 | AB13: =AB5-AB11 -> 1.82909413e+11 | AC13: =AC5-AC11 -> 1.957130719e+11
C14: Gross Profit Margin | E14: =E13/E5 -> 0.9343632653 | F14: =F13/F5 -> 0.9343632653 | G14: 0.9752271659 | H14: 0.9752271659 | I14: 0.9752271659 | J14: 0.9752271659 | K14: 0.9752271659 | L14: 0.9752271659 | M14: 0.9752271659 | N14: 0.9752271659 | O14: 0.9752271659 | P14: 0.9752271659 | Q14: 0.9752271659 | R14: 0.9752271659 | S14: 0.9752271659 | T14: 0.9752271659 | U14: 0.9752271659 | V14: 0.9752271659 | W14: 0.9752271659 | X14: 0.9752271659 | Y14: =Y13/Y5 -> 0.9752271659 | Z14: =Z13/Z5 -> 0.9752271659 | AA14: =AA13/AA5 -> 0.9752271659 | AB14: =AB13/AB5 -> 0.9752271659 | AC14: =AC13/AC5 -> 0.9752271659
C15: =C12 -> USD | E15: =E6-E12 -> 9014004.576 | F15: =F6-F12 -> 9010330.485 | G15: 9006638.022 | H15: 9002927.098 | I15: 8999197.619 | J15: 8995449.492 | K15: 8991682.625 | L15: 8987896.924 | M15: 8984092.294 | N15: 8980268.641 | O15: 8976425.87 | P15: 8972563.884 | Q15: 8968682.589 | R15: 8964781.888 | S15: 8960861.683 | T15: 8956921.876 | U15: 8952962.371 | V15: 8948983.069 | W15: 8944983.869 | X15: 8940964.674 | Y15: 8936925.383 | Z15: 8932865.895 | AA15: 8928786.11 | AB15: 8924685.926 | AC15: 8920565.241
C16: Operating Expenses
C18: Total Fixed Cost | E18: =LOOKUP(E$3,'Annual Model - RFW'!$2:$2,'Annual Model - RFW'!76:76)*1000 -> 1580720844 | F18: =LOOKUP(F$3,'Annual Model - RFW'!$2:$2,'Annual Model - RFW'!76:76)*1000 -> 2018351795 | G18: =LOOKUP(G$3,'Annual Model - RFW'!$2:$2,'Annual Model - RFW'!76:76)*1000 -> 2190191704 | H18: =LOOKUP(H$3,'Annual Model - RFW'!$2:$2,'Annual Model - RFW'!76:76)*1000 -> 2343505124 | I18: =LOOKUP(I$3,'Annual Model - RFW'!$2:$2,'Annual Model - RFW'!76:76)*1000 -> 2507550482 | J18: =LOOKUP(J$3,'Annual Model - RFW'!$2:$2,'Annual Model - RFW'!76:76)*1000 -> 2683079016 | K18: =LOOKUP(K$3,'Annual Model - RFW'!$2:$2,'Annual Model - RFW'!76:76)*1000 -> 2870894547 | L18: =LOOKUP(L$3,'Annual Model - RFW'!$2:$2,'Annual Model - RFW'!76:76)*1000 -> 3071857166 | M18: =LOOKUP(M$3,'Annual Model - RFW'!$2:$2,'Annual Model - RFW'!76:76)*1000 -> 3286887167 | N18: =LOOKUP(N$3,'Annual Model - RFW'!$2:$2,'Annual Model - RFW'!76:76)*1000 -> 3516969269 | O18: =LOOKUP(O$3,'Annual Model - RFW'!$2:$2,'Annual Model - RFW'!76:76)*1000 -> 3763157118 | P18: =LOOKUP(P$3,'Annual Model - RFW'!$2:$2,'Annual Model - RFW'!76:76)*1000 -> 4026578116 | Q18: =LOOKUP(Q$3,'Annual Model - RFW'!$2:$2,'Annual Model - RFW'!76:76)*1000 -> 4308438584 | R18: =LOOKUP(R$3,'Annual Model - RFW'!$2:$2,'Annual Model - RFW'!76:76)*1000 -> 4610029285 | S18: =LOOKUP(S$3,'Annual Model - RFW'!$2:$2,'Annual Model - RFW'!76:76)*1000 -> 4932731335 | T18: =LOOKUP(T$3,'Annual Model - RFW'!$2:$2,'Annual Model - RFW'!76:76)*1000 -> 5278022528 | U18: =LOOKUP(U$3,'Annual Model - RFW'!$2:$2,'Annual Model - RFW'!76:76)*1000 -> 5647484105 | V18: =LOOKUP(V$3,'Annual Model - RFW'!$2:$2,'Annual Model - RFW'!76:76)*1000 -> 6042807993 | W18: =LOOKUP(W$3,'Annual Model - RFW'!$2:$2,'Annual Model - RFW'!76:76)*1000 -> 6465804552 | X18: =LOOKUP(X$3,'Annual Model - RFW'!$2:$2,'Annual Model - RFW'!76:76)*1000 -> 6918410871 | Y18: =LOOKUP(Y$3,'Annual Model - RFW'!$2:$2,'Annual Model - RFW'!76:76)*1000 -> 7402699632 | Z18: =LOOKUP(Z$3,'Annual Model - RFW'!$2:$2,'Annual Model - RFW'!76:76)*1000 -> 7920888606 | AA18: =LOOKUP(AA$3,'Annual Model - RFW'!$2:$2,'Annual Model - RFW'!76:76)*1000 -> 8475350808 | AB18: =LOOKUP(AB$3,'Annual Model - RFW'!$2:$2,'Annual Model - RFW'!76:76)*1000 -> 9068625365 | AC18: =LOOKUP(AC$3,'Annual Model - RFW'!$2:$2,'Annual Model - RFW'!76:76)*1000 -> 9703429141
B19: 1 | C19: Salaries | E19: =E18*'Operating Assumptions'!$K$171 -> 671040802.4 | F19: =F18*'Operating Assumptions'!$K$171 -> 856822008 | G19: =G18*'Operating Assumptions'!$K$171 -> 929770746 | H19: =H18*'Operating Assumptions'!$K$171 -> 994854698.2 | I19: =I18*'Operating Assumptions'!$K$171 -> 1064494527 | J19: =J18*'Operating Assumptions'!$K$171 -> 1139009144 | K19: =K18*'Operating Assumptions'!$K$171 -> 1218739784 | L19: =L18*'Operating Assumptions'!$K$171 -> 1304051569 | M19: =M18*'Operating Assumptions'!$K$171 -> 1395335179 | N19: =N18*'Operating Assumptions'!$K$171 -> 1493008641 | O19: =O18*'Operating Assumptions'!$K$171 -> 1597519246 | P19: =P18*'Operating Assumptions'!$K$171 -> 1709345593 | Q19: =Q18*'Operating Assumptions'!$K$171 -> 1828999785 | R19: =R18*'Operating Assumptions'!$K$171 -> 1957029770 | S19: =S18*'Operating Assumptions'!$K$171 -> 2094021854 | T19: =T18*'Operating Assumptions'!$K$171 -> 2240603384 | U19: =U18*'Operating Assumptions'!$K$171 -> 2397445620 | V19: =V18*'Operating Assumptions'!$K$171 -> 2565266814 | W19: =W18*'Operating Assumptions'!$K$171 -> 2744835491 | X19: =X18*'Operating Assumptions'!$K$171 -> 2936973975 | Y19: =Y18*'Operating Assumptions'!$K$171 -> 3142562153 | Z19: =Z18*'Operating Assumptions'!$K$171 -> 3362541504 | AA19: =AA18*'Operating Assumptions'!$K$171 -> 3597919409 | AB19: =AB18*'Operating Assumptions'!$K$171 -> 3849773768 | AC19: =AC18*'Operating Assumptions'!$K$171 -> 4119257932
B20: 1 | C20: Operating costs | E20: =E18*'Operating Assumptions'!$K$173 -> 226130023.4 | F20: =F18*'Operating Assumptions'!$K$173 -> 288735319.8 | G20: =G18*'Operating Assumptions'!$K$173 -> 313317878.4 | H20: =H18*'Operating Assumptions'!$K$173 -> 335250129.9 | I20: =I18*'Operating Assumptions'!$K$173 -> 358717639 | J20: =J18*'Operating Assumptions'!$K$173 -> 383827873.7 | K20: =K18*'Operating Assumptions'!$K$173 -> 410695824.9 | L20: =L18*'Operating Assumptions'!$K$173 -> 439444532.6 | M20: =M18*'Operating Assumptions'!$K$173 -> 470205649.9 | N20: =N18*'Operating Assumptions'!$K$173 -> 503120045.4 | O20: =O18*'Operating Assumptions'!$K$173 -> 538338448.6 | P20: =P18*'Operating Assumptions'!$K$173 -> 576022140 | Q20: =Q18*'Operating Assumptions'!$K$173 -> 616343689.8 | R20: =R18*'Operating Assumptions'!$K$173 -> 659487748 | S20: =S18*'Operating Assumptions'!$K$173 -> 705651890.4 | T20: =T18*'Operating Assumptions'!$K$173 -> 755047522.7 | U20: =U18*'Operating Assumptions'!$K$173 -> 807900849.3 | V20: =V18*'Operating Assumptions'!$K$173 -> 864453908.8 | W20: =W18*'Operating Assumptions'!$K$173 -> 924965682.4 | X20: =X18*'Operating Assumptions'!$K$173 -> 989713280.1 | Y20: =Y18*'Operating Assumptions'!$K$173 -> 1058993210 | Z20: =Z18*'Operating Assumptions'!$K$173 -> 1133122734 | AA20: =AA18*'Operating Assumptions'!$K$173 -> 1212441326 | AB20: =AB18*'Operating Assumptions'!$K$173 -> 1297312219 | AC20: =AC18*'Operating Assumptions'!$K$173 -> 1388124074
B21: 1 | C21: Overheads | E21: =E18*'Operating Assumptions'!$K$174 -> 400363237.2 | F21: =F18*'Operating Assumptions'!$K$174 -> 511205923.1 | G21: =G18*'Operating Assumptions'!$K$174 -> 554729346.4 | H21: =H18*'Operating Assumptions'!$K$174 -> 593560400.6 | I21: =I18*'Operating Assumptions'!$K$174 -> 635109628.6 | J21: =J18*'Operating Assumptions'!$K$174 -> 679567302.7 | K21: =K18*'Operating Assumptions'!$K$174 -> 727137013.8 | L21: =L18*'Operating Assumptions'!$K$174 -> 778036604.8 | M21: =M18*'Operating Assumptions'!$K$174 -> 832499167.1 | N21: =N18*'Operating Assumptions'!$K$174 -> 890774108.8 | O21: =O18*'Operating Assumptions'!$K$174 -> 953128296.5 | P21: =P18*'Operating Assumptions'!$K$174 -> 1019847277 | Q21: =Q18*'Operating Assumptions'!$K$174 -> 1091236587 | R21: =R18*'Operating Assumptions'!$K$174 -> 1167623148 | S21: =S18*'Operating Assumptions'!$K$174 -> 1249356768 | T21: =T18*'Operating Assumptions'!$K$174 -> 1336811742 | U21: =U18*'Operating Assumptions'!$K$174 -> 1430388564 | V21: =V18*'Operating Assumptions'!$K$174 -> 1530515763 | W21: =W18*'Operating Assumptions'!$K$174 -> 1637651867 | X21: =X18*'Operating Assumptions'!$K$174 -> 1752287497 | Y21: =Y18*'Operating Assumptions'!$K$174 -> 1874947622 | Z21: =Z18*'Operating Assumptions'!$K$174 -> 2006193956 | AA21: =AA18*'Operating Assumptions'!$K$174 -> 2146627533 | AB21: =AB18*'Operating Assumptions'!$K$174 -> 2296891460 | AC21: =AC18*'Operating Assumptions'!$K$174 -> 2457673862
B22: 1 | C22: Wärtsilä fixed fee (Service agreement) | E22: 0 | F22: 0 | G22: 0 | H22: 0 | I22: 0 | J22: 0 | K22: 0 | L22: 0 | M22: 0 | N22: 0 | O22: 0 | P22: 0 | Q22: 0 | R22: 0 | S22: 0 | T22: 0 | U22: 0 | V22: 0 | W22: 0 | X22: 0 | Y22: 0 | Z22: 0 | AA22: 0 | AB22: 0 | AC22: 0
B23: 1 | C23: Plant insurance fees | E23: =E18*'Operating Assumptions'!$K$175 -> 283186781.5 | F23: =F18*'Operating Assumptions'!$K$175 -> 361588544.1 | G23: =G18*'Operating Assumptions'!$K$175 -> 392373733.7 | H23: =H18*'Operating Assumptions'!$K$175 -> 419839895 | I23: =I18*'Operating Assumptions'!$K$175 -> 449228687.7 | J23: =J18*'Operating Assumptions'!$K$175 -> 480674695.8 | K23: =K18*'Operating Assumptions'!$K$175 -> 514321924.5 | L23: =L18*'Operating Assumptions'!$K$175 -> 550324459.2 | M23: =M18*'Operating Assumptions'!$K$175 -> 588847171.4 | N23: =N18*'Operating Assumptions'!$K$175 -> 630066473.4 | O23: =O18*'Operating Assumptions'!$K$175 -> 674171126.5 | P23: =P18*'Operating Assumptions'!$K$175 -> 721363105.4 | Q23: =Q18*'Operating Assumptions'!$K$175 -> 771858522.8 | R23: =R18*'Operating Assumptions'!$K$175 -> 825888619.4 | S23: =S18*'Operating Assumptions'!$K$175 -> 883700822.7 | T23: =T18*'Operating Assumptions'!$K$175 -> 945559880.3 | U23: =U18*'Operating Assumptions'!$K$175 -> 1011749072 | V23: =V18*'Operating Assumptions'!$K$175 -> 1082571507 | W23: =W18*'Operating Assumptions'!$K$175 -> 1158351512 | X23: =X18*'Operating Assumptions'!$K$175 -> 1239436118 | Y23: =Y18*'Operating Assumptions'!$K$175 -> 1326196647 | Z23: =Z18*'Operating Assumptions'!$K$175 -> 1419030412 | AA23: =AA18*'Operating Assumptions'!$K$175 -> 1518362541 | AB23: =AB18*'Operating Assumptions'!$K$175 -> 1624647919 | AC23: =AC18*'Operating Assumptions'!$K$175 -> 1738373273
B24: 1 | C24: Office expenses | E24: 0 | F24: =E24*1.05 -> 0 | G24: 0 | H24: =G24*1.05 -> 0 | I24: 0 | J24: 0 | K24: 0 | L24: 0 | M24: 0 | N24: 0 | O24: 0 | P24: 0 | Q24: 0 | R24: 0 | S24: 0 | T24: 0 | U24: 0 | V24: 0 | W24: 0 | X24: 0 | Y24: 0 | Z24: 0 | AA24: 0 | AB24: 0 | AC24: 0
B26: 1 | C26: Total Operating Expenses | E26: =SUM(E19:E25)*$B$26 -> 1580720844 | F26: =SUM(F19:F25)*$B$26 -> 2018351795 | G26: 2190191704 | H26: 2343505124 | I26: 2507550482 | J26: 2683079016 | K26: 2870894547 | L26: 3071857166 | M26: 3286887167 | N26: 3516969269 | O26: 3763157118 | P26: 4026578116 | Q26: 4308438584 | R26: 4610029285 | S26: 4932731335 | T26: 5278022528 | U26: 5647484105 | V26: 6042807993 | W26: 6465804552 | X26: 6918410871 | Y26: =SUM(Y19:Y25)*$B$26 -> 7402699632 | Z26: =SUM(Z19:Z25)*$B$26 -> 7920888606 | AA26: =SUM(AA19:AA25)*$B$26 -> 8475350808 | AB26: =SUM(AB19:AB25)*$B$26 -> 9068625365 | AC26: =SUM(AC19:AC25)*$B$26 -> 9703429141
C27: =C15 -> USD | E27: =E26/E10 -> 1764735.99 | F27: =F26/F10 -> 1775054.001 | G27: 470105.56 | H27: 471371.5611 | I27: 471371.5611 | J27: 471371.5611 | K27: 470105.56 | L27: 471371.5611 | M27: 471371.5611 | N27: 471371.5611 | O27: 470105.56 | P27: 471371.5611 | Q27: 471371.5611 | R27: 471371.5611 | S27: 470105.56 | T27: 471371.5611 | U27: 471371.5611 | V27: 471371.5611 | W27: 470105.56 | X27: 471371.5611 | Y27: 471371.5611 | Z27: 471371.5611 | AA27: 470105.56 | AB27: 471371.5611 | AC27: 471371.5611
C28: EBITDA | E28: =E13-E26 -> 6578400169 | F28: =F13-F26 -> 8339107437 | G28: 4.210378919e+10 | H28: 4.492376299e+10 | I28: 4.80684264e+10 | J28: 5.143321624e+10 | K28: 5.518947887e+10 | L28: 5.888588928e+10 | M28: 6.300790153e+10 | N28: 6.741845463e+10 | O28: 7.23421487e+10 | P28: 7.718738871e+10 | Q28: 8.259050592e+10 | R28: 8.837184134e+10 | S28: 9.482579987e+10 | T28: 1.011769211e+11 | U28: 1.082593056e+11 | V28: 1.15837457e+11 | W28: 1.242972801e+11 | X28: 1.326223045e+11 | Y28: =Y13-Y26 -> 1.419058659e+11 | Z28: =Z13-Z26 -> 1.518392765e+11 | AA28: =AA13-AA26 -> 1.629283788e+11 | AB28: =AB13-AB26 -> 1.738407876e+11 | AC28: =AC13-AC26 -> 1.860096428e+11
C29: Margin | E29: =E28/E5 -> 0.7533428481 | F29: =F28/F5 -> 0.7522844628 | G29: 0.9270053894 | H29: 0.9268755274 | I29: 0.9268755274 | J29: 0.9268755274 | K29: 0.9270053894 | L29: 0.9268755274 | M29: 0.9268755274 | N29: 0.9268755274 | O29: 0.9270053894 | P29: 0.9268755274 | Q29: 0.9268755274 | R29: 0.9268755274 | S29: 0.9270053894 | T29: 0.9268755274 | U29: 0.9268755274 | V29: 0.9268755274 | W29: 0.9270053894 | X29: 0.9268755274 | Y29: =Y28/Y5 -> 0.9268755274 | Z29: =Z28/Z5 -> 0.9268755274 | AA29: =AA28/AA5 -> 0.9270053894 | AB29: =AB28/AB5 -> 0.9268755274 | AC29: =AC28/AC5 -> 0.9268755274
C30: USD EBITDA | E30: =E15-E27 -> 7249268.586 | F30: =F15-F27 -> 7235276.483 | G30: 8536532.462 | H30: 8531555.537 | I30: 8527826.058 | J30: 8524077.931 | K30: 8521577.065 | L30: 8516525.363 | M30: 8512720.733 | N30: 8508897.08 | O30: 8506320.31 | P30: 8501192.323 | Q30: 8497311.028 | R30: 8493410.327 | S30: 8490756.123 | T30: 8485550.315 | U30: 8481590.81 | V30: 8477611.507 | W30: 8474878.309 | X30: 8469593.113 | Y30: 8465553.822 | Z30: 8461494.334 | AA30: 8458680.55 | AB30: 8453314.365 | AC30: 8449193.68
C31: Depreciation | E31: =LOOKUP(E$3,'Annual Model - RFW'!$2:$2,'Annual Model - RFW'!92:92)*1000 -> 1403448804 | F31: =LOOKUP(F$3,'Annual Model - RFW'!$2:$2,'Annual Model - RFW'!92:92)*1000 -> 1684138564 | G31: =LOOKUP(G$3,'Annual Model - RFW'!$2:$2,'Annual Model - RFW'!92:92)*1000 -> 4904127379 | H31: =LOOKUP(H$3,'Annual Model - RFW'!$2:$2,'Annual Model - RFW'!92:92)*1000 -> 4904127379 | I31: =LOOKUP(I$3,'Annual Model - RFW'!$2:$2,'Annual Model - RFW'!92:92)*1000 -> 4904127379 | J31: =LOOKUP(J$3,'Annual Model - RFW'!$2:$2,'Annual Model - RFW'!92:92)*1000 -> 4904127379 | K31: =LOOKUP(K$3,'Annual Model - RFW'!$2:$2,'Annual Model - RFW'!92:92)*1000 -> 4904127379 | L31: =LOOKUP(L$3,'Annual Model - RFW'!$2:$2,'Annual Model - RFW'!92:92)*1000 -> 4904127379 | M31: =LOOKUP(M$3,'Annual Model - RFW'!$2:$2,'Annual Model - RFW'!92:92)*1000 -> 4904127379 | N31: =LOOKUP(N$3,'Annual Model - RFW'!$2:$2,'Annual Model - RFW'!92:92)*1000 -> 4904127379 | O31: =LOOKUP(O$3,'Annual Model - RFW'!$2:$2,'Annual Model - RFW'!92:92)*1000 -> 4904127379 | P31: =LOOKUP(P$3,'Annual Model - RFW'!$2:$2,'Annual Model - RFW'!92:92)*1000 -> 4904127379 | Q31: =LOOKUP(Q$3,'Annual Model - RFW'!$2:$2,'Annual Model - RFW'!92:92)*1000 -> 4904127379 | R31: =LOOKUP(R$3,'Annual Model - RFW'!$2:$2,'Annual Model - RFW'!92:92)*1000 -> 4904127379 | S31: =LOOKUP(S$3,'Annual Model - RFW'!$2:$2,'Annual Model - RFW'!92:92)*1000 -> 4904127379 | T31: =LOOKUP(T$3,'Annual Model - RFW'!$2:$2,'Annual Model - RFW'!92:92)*1000 -> 4904127379 | U31: =LOOKUP(U$3,'Annual Model - RFW'!$2:$2,'Annual Model - RFW'!92:92)*1000 -> 4904127379 | V31: =LOOKUP(V$3,'Annual Model - RFW'!$2:$2,'Annual Model - RFW'!92:92)*1000 -> 4904127379 | W31: =LOOKUP(W$3,'Annual Model - RFW'!$2:$2,'Annual Model - RFW'!92:92)*1000 -> 4904127379 | X31: =LOOKUP(X$3,'Annual Model - RFW'!$2:$2,'Annual Model - RFW'!92:92)*1000 -> 4904127379 | Y31: =LOOKUP(Y$3,'Annual Model - RFW'!$2:$2,'Annual Model - RFW'!92:92)*1000 -> 4904127379 | Z31: =LOOKUP(Z$3,'Annual Model - RFW'!$2:$2,'Annual Model - RFW'!92:92)*1000 -> 4904127379 | AA31: =LOOKUP(AA$3,'Annual Model - RFW'!$2:$2,'Annual Model - RFW'!92:92)*1000 -> 4904127379 | AB31: =LOOKUP(AB$3,'Annual Model - RFW'!$2:$2,'Annual Model - RFW'!92:92)*1000 -> 4904127379 | AC31: =LOOKUP(AC$3,'Annual Model - RFW'!$2:$2,'Annual Model - RFW'!92:92)*1000 -> 4904127379
C32: USD Depretiation | E32: =E31/E10 -> 1566827.326 | F32: =F31/F10 -> 1481127.772 | G32: 1052628.198 | H32: 986413.9639 | I32: 921882.2092 | J32: 861572.1582 | K32: 803045.0125 | L32: 752530.4901 | M32: 703299.5235 | N32: 657289.2743 | O32: 612639.1951 | P32: 574101.9078 | Q32: 536543.8391 | R32: 501442.8403 | S32: 467379.5087 | T32: 437979.5967 | U32: 409326.7259 | V32: 382548.342 | W32: 356561.5894 | X32: 334132.5373 | Y32: 312273.3994 | Z32: 291844.2985 | AA32: 272019.1293 | AB32: 254908.1129 | AC32: 238231.8812
C33: Financial Expenses | E33: =LOOKUP(E$3,'Annual Model - RFW'!$2:$2,'Annual Model - RFW'!160:160)*1000 -> 17208333.33 | F33: =LOOKUP(F$3,'Annual Model - RFW'!$2:$2,'Annual Model - RFW'!160:160)*1000 -> 0 | G33: =LOOKUP(G$3,'Annual Model - RFW'!$2:$2,'Annual Model - RFW'!160:160)*1000 -> 1.382116266e+10 | H33: =LOOKUP(H$3,'Annual Model - RFW'!$2:$2,'Annual Model - RFW'!160:160)*1000 -> 1.437194798e+10 | I33: =LOOKUP(I$3,'Annual Model - RFW'!$2:$2,'Annual Model - RFW'!160:160)*1000 -> 1.487937095e+10 | J33: =LOOKUP(J$3,'Annual Model - RFW'!$2:$2,'Annual Model - RFW'!160:160)*1000 -> 1.532429228e+10 | K33: =LOOKUP(K$3,'Annual Model - RFW'!$2:$2,'Annual Model - RFW'!160:160)*1000 -> 1.568306708e+10 | L33: =LOOKUP(L$3,'Annual Model - RFW'!$2:$2,'Annual Model - RFW'!160:160)*1000 -> 1.592660712e+10 | M33: =LOOKUP(M$3,'Annual Model - RFW'!$2:$2,'Annual Model - RFW'!160:160)*1000 -> 1.601925508e+10 | N33: =LOOKUP(N$3,'Annual Model - RFW'!$2:$2,'Annual Model - RFW'!160:160)*1000 -> 1.591743361e+10 | O33: =LOOKUP(O$3,'Annual Model - RFW'!$2:$2,'Annual Model - RFW'!160:160)*1000 -> 1.556802461e+10 | P33: =LOOKUP(P$3,'Annual Model - RFW'!$2:$2,'Annual Model - RFW'!160:160)*1000 -> 1.490642547e+10 | Q33: =LOOKUP(Q$3,'Annual Model - RFW'!$2:$2,'Annual Model - RFW'!160:160)*1000 -> 1.385421841e+10 | R33: =LOOKUP(R$3,'Annual Model - RFW'!$2:$2,'Annual Model - RFW'!160:160)*1000 -> 1.231637652e+10 | S33: =LOOKUP(S$3,'Annual Model - RFW'!$2:$2,'Annual Model - RFW'!160:160)*1000 -> 1.01779151e+10 | T33: =LOOKUP(T$3,'Annual Model - RFW'!$2:$2,'Annual Model - RFW'!160:160)*1000 -> 7299878839 | U33: =LOOKUP(U$3,'Annual Model - RFW'!$2:$2,'Annual Model - RFW'!160:160)*1000 -> 3514533852 | V33: =LOOKUP(V$3,'Annual Model - RFW'!$2:$2,'Annual Model - RFW'!160:160)*1000 -> 0 | W33: =LOOKUP(W$3,'Annual Model - RFW'!$2:$2,'Annual Model - RFW'!160:160)*1000 -> 0 | X33: =LOOKUP(X$3,'Annual Model - RFW'!$2:$2,'Annual Model - RFW'!160:160)*1000 -> 0 | Y33: =LOOKUP(Y$3,'Annual Model - RFW'!$2:$2,'Annual Model - RFW'!160:160)*1000 -> 0 | Z33: =LOOKUP(Z$3,'Annual Model - RFW'!$2:$2,'Annual Model - RFW'!160:160)*1000 -> 0 | AA33: =LOOKUP(AA$3,'Annual Model - RFW'!$2:$2,'Annual Model - RFW'!160:160)*1000 -> 0 | AB33: =LOOKUP(AB$3,'Annual Model - RFW'!$2:$2,'Annual Model - RFW'!160:160)*1000 -> 0 | AC33: =LOOKUP(AC$3,'Annual Model - RFW'!$2:$2,'Annual Model - RFW'!160:160)*1000 -> 0
C34: USD Fin Exps | E34: =E33/E10 -> 19211.59278 | F34: =F33/F10 -> 0 | G34: 2966592.101 | H34: 2890767.118 | I34: 2797037.332 | J34: 2692218.727 | K34: 2568083.54 | L34: 2443912.349 | M34: 2297316.851 | N34: 2133378.189 | O34: 1944807.166 | P34: 1745021.416 | Q34: 1515742.753 | R34: 1259338.99 | S34: 969988.8667 | T34: 651940.2419 | U34: 293343.2441 | V34: 0 | W34: 0 | X34: 0 | Y34: 0 | Z34: 0 | AA34: 0 | AB34: 0 | AC34: 0
C35: EBT | E35: =E28-E31-E33 -> 5157743032 | F35: =F28-F31-F33 -> 6654968873 | G35: 2.337849915e+10 | H35: 2.564768763e+10 | I35: 2.828492807e+10 | J35: 3.120479659e+10 | K35: 3.460228441e+10 | L35: 3.805515478e+10 | M35: 4.208451906e+10 | N35: 4.659689364e+10 | O35: 5.18699967e+10 | P35: 5.737683586e+10 | Q35: 6.383216013e+10 | R35: 7.115133744e+10 | S35: 7.974375739e+10 | T35: 8.897291493e+10 | U35: 9.984064439e+10 | V35: 1.109333296e+11 | W35: 1.193931527e+11 | X35: 1.277181772e+11 | Y35: =Y28-Y31-Y33 -> 1.370017385e+11 | Z35: =Z28-Z31-Z33 -> 1.469351491e+11 | AA35: =AA28-AA31-AA33 -> 1.580242514e+11 | AB35: =AB28-AB31-AB33 -> 1.689366603e+11 | AC35: =AC28-AC31-AC33 -> 1.811055154e+11
C36: USD EBT | E36: =E30-E32-E34 -> 5663229.667 | F36: =F30-F32-F34 -> 5754148.712 | G36: =G30-G32-G34 -> 4517312.163 | H36: 4654374.455 | I36: 4808906.516 | J36: 4970287.046 | K36: 5150448.513 | L36: 5320082.524 | M36: 5512104.359 | N36: 5718229.616 | O36: 5948873.949 | P36: 6182069 | Q36: 6445024.437 | R36: 6732628.496 | S36: 7053387.747 | T36: 7395630.477 | U36: 7778920.84 | V36: 8095063.166 | W36: 8118316.72 | X36: 8135460.576 | Y36: 8153280.423 | Z36: 8169650.036 | AA36: 8186661.421 | AB36: 8198406.252 | AC36: 8210961.799
C37: Tax at 15% After Holiday | E37: =E35*0 -> 0 | F37: 0 | G37: 0 | H37: 0 | I37: 0 | J37: 0 | K37: 0 | L37: =L35*0.15 -> 5708273217 | M37: 6312677860 | N37: 6989534046 | O37: 7780499506 | P37: 8606525379 | Q37: 9574824020 | R37: 1.067270062e+10 | S37: 1.196156361e+10 | T37: 1.334593724e+10 | U37: 1.497609666e+10 | V37: 1.663999945e+10 | W37: 1.790897291e+10 | X37: 1.915772657e+10 | Y37: 2.055026077e+10 | Z37: 2.204027236e+10 | AA37: 2.370363772e+10 | AB37: 2.534049904e+10 | AC37: 2.716582731e+10
C38: USD TAX | E38: =E36*0 -> 0 | F38: =F36*0 -> 0 | G38: 0 | H38: 0 | I38: 0 | J38: 0 | K38: 0 | L38: =L36*0.15 -> 798012.3786 | M38: 826815.6538 | N38: 857734.4424 | O38: =O36*0.15 -> 892331.0923 | P38: 927310.35 | Q38: 966753.6655 | R38: 1009894.274 | S38: 1058008.162 | T38: 1109344.572 | U38: 1166838.126 | V38: 1214259.475 | W38: 1217747.508 | X38: 1220319.086 | Y38: 1222992.063 | Z38: 1225447.505 | AA38: 1227999.213 | AB38: 1229760.938 | AC38: 1231644.27
C39: Operating Profit After tax | E39: =E35-E37 -> 5157743032 | F39: =F35-F37 -> 6654968873 | G39: 2.337849915e+10 | H39: 2.564768763e+10 | I39: 2.828492807e+10 | J39: 3.120479659e+10 | K39: 3.460228441e+10 | L39: 3.234688156e+10 | M39: 3.577184121e+10 | N39: 3.960735959e+10 | O39: 4.40894972e+10 | P39: 4.877031048e+10 | Q39: 5.425733611e+10 | R39: 6.047863682e+10 | S39: 6.778219378e+10 | T39: 7.562697769e+10 | U39: 8.486454773e+10 | V39: 9.429333019e+10 | W39: 1.014841798e+11 | X39: 1.085604506e+11 | Y39: =Y35-Y37 -> 1.164514777e+11 | Z39: =Z35-Z37 -> 1.248948767e+11 | AA39: =AA35-AA37 -> 1.343206137e+11 | AB39: =AB35-AB37 -> 1.435961612e+11 | AC39: =AC35-AC37 -> 1.539396881e+11
C40: Profit Margin | E40: =E39/E5 -> 0.5906525486 | F40: =F39/F5 -> 0.6003555802 | G40: 0.5147278933 | H40: 0.5291679152 | I40: 0.5454018279 | J40: 0.5623401453 | K40: 0.5812068675 | L40: 0.5091463044 | M40: 0.5262204165 | N40: 0.5445258648 | O40: 0.5649707985 | P40: 0.5856398047 | Q40: 0.6089053029 | R40: 0.6343216069 | S40: 0.6626304131 | T40: 0.692814073 | U40: 0.7265783942 | V40: 0.7544898033 | W40: 0.7568659712 | X40: 0.7587111779 | Y40: =Y39/Y5 -> 0.7606170764 | Z40: =Z39/Z5 -> 0.76239829 | AA40: =AA39/AA5 -> 0.7642372294 | AB40: =AB39/AB5 -> 0.7656187565 | AC40: =AC39/AC5 -> 0.7670727574
C41: Operating Profit After tax | E41: =E36-E38 -> 5663229.667 | F41: =F36-F38 -> 5754148.712 | G41: 4517312.163 | H41: 4654374.455 | I41: 4808906.516 | J41: 4970287.046 | K41: 5150448.513 | L41: 4522070.146 | M41: 4685288.705 | N41: 4860495.174 | O41: 5056542.857 | P41: 5254758.65 | Q41: 5478270.771 | R41: 5722734.221 | S41: 5995379.585 | T41: 6286285.905 | U41: 6612082.714 | V41: 6880803.691 | W41: 6900569.212 | X41: 6915141.489 | Y41: 6930288.359 | Z41: 6944202.53 | AA41: 6958662.208 | AB41: 6968645.314 | AC41: 6979317.529
C42: Operating cashflow | E42: =E39+E31 -> 6561191836 | F42: =F39+F31 -> 8339107437 | G42: 2.828262653e+10 | H42: 3.055181501e+10 | I42: 3.318905545e+10 | J42: 3.610892397e+10 | K42: 3.950641179e+10 | L42: 3.725100894e+10 | M42: 4.067596858e+10 | N42: 4.451148697e+10 | O42: 4.899362458e+10 | P42: 5.367443786e+10 | Q42: 5.916146349e+10 | R42: 6.53827642e+10 | S42: 7.268632116e+10 | T42: 8.053110507e+10 | U42: 8.976867511e+10 | V42: 9.919745757e+10 | W42: 1.063883072e+11 | X42: 1.13464578e+11 | Y42: =Y39+Y31 -> 1.213556051e+11 | Z42: =Z39+Z31 -> 1.297990041e+11 | AA42: =AA39+AA31 -> 1.392247411e+11 | AB42: =AB39+AB31 -> 1.485002886e+11 | AC42: =AC39+AC31 -> 1.588438155e+11
C43: USD Cash Flow | E43: =E41+E32 -> 7230056.993 | F43: =F41+F32 -> 7235276.483 | G43: 5569940.361 | H43: 5640788.419 | I43: 5730788.725 | J43: 5831859.204 | K43: 5953493.526 | L43: 5274600.636 | M43: 5388588.228 | N43: 5517784.448 | O43: 5669182.052 | P43: 5828860.558 | Q43: 6014814.61 | R43: 6224177.062 | S43: 6462759.094 | T43: 6724265.502 | U43: 7021409.44 | V43: 7263352.033 | W43: 7257130.801 | X43: 7249274.027 | Y43: 7242561.759 | Z43: 7236046.829 | AA43: 7230681.337 | AB43: 7223553.427 | AC43: 7217549.41
C44: Pre-Financing Cash Flow | E44: =E42+E33+E37 -> 6578400169 | F44: =F42+F33+F37 -> 8339107437 | G44: 4.210378919e+10 | H44: 4.492376299e+10 | I44: 4.80684264e+10 | J44: 5.143321624e+10 | K44: 5.518947887e+10 | L44: 5.888588928e+10 | M44: 6.300790153e+10 | N44: 6.741845463e+10 | O44: 7.23421487e+10 | P44: 7.718738871e+10 | Q44: 8.259050592e+10 | R44: 8.837184134e+10 | S44: 9.482579987e+10 | T44: 1.011769211e+11 | U44: 1.082593056e+11 | V44: 1.15837457e+11 | W44: 1.242972801e+11 | X44: 1.326223045e+11 | Y44: 1.419058659e+11 | Z44: 1.518392765e+11 | AA44: 1.629283788e+11 | AB44: 1.738407876e+11 | AC44: 1.860096428e+11
C45: USD Pre-financing Cash Flow | E45: =E44/E10 -> 7344206.017 | F45: =F44/F10 -> 7333888.006 | G45: 9037211.378 | H45: 9035945.377 | I45: 9035945.377 | J45: 9035945.377 | K45: 9037211.378 | L45: 9035945.377 | M45: 9035945.377 | N45: 9035945.377 | O45: 9037211.378 | P45: 9035945.377 | Q45: 9035945.377 | R45: 9035945.377 | S45: 9037211.378 | T45: 9035945.377 | U45: 9035945.377 | V45: 9035945.377 | W45: 9037211.378 | X45: 9035945.377 | Y45: 9035945.377 | Z45: 9035945.377 | AA45: 9037211.378 | AB45: 9035945.377 | AC45: 9035945.377
B46: PPA Price | C46: Cashflow
B47: 10
C48: Cash Flow
C49: Particulars/Years | D49: Year 0 | E49: Year 1 | F49: Year 2 | G49: Year 3 | H49: Year 4 | I49: Year 5 | J49: Year 6 | K49: Year 7 | L49: Year 8 | M49: Year 9 | N49: Year 10 | O49: Year 11 | P49: Year 12 | Q49: Year 13 | R49: Year 14 | S49: Year 15 | T49: Year 16 | U49: Year 17 | V49: Year 18 | W49: Year 19 | X49: Year 20 | Y49: Year 21 | Z49: Year 22 | AA49: Year 23 | AB49: Year 24 | AC49: Year 25
C51: Cash inflow from operations | D51: 0 | E51: =E42 -> 6561191836 | F51: =F42 -> 8339107437 | G51: 2.828262653e+10 | H51: 3.055181501e+10 | I51: 3.318905545e+10 | J51: 3.610892397e+10 | K51: 3.950641179e+10 | L51: 3.725100894e+10 | M51: 4.067596858e+10 | N51: 4.451148697e+10 | O51: 4.899362458e+10 | P51: 5.367443786e+10 | Q51: 5.916146349e+10 | R51: 6.53827642e+10 | S51: 7.268632116e+10 | T51: 8.053110507e+10 | U51: 8.976867511e+10 | V51: 9.919745757e+10 | W51: 1.063883072e+11 | X51: 1.13464578e+11 | Y51: =Y42 -> 1.213556051e+11 | Z51: =Z42 -> 1.297990041e+11 | AA51: =AA42 -> 1.392247411e+11 | AB51: =AB42 -> 1.485002886e+11 | AC51: =AC42 -> 1.588438155e+11
B52: Loan (Years) | C52: Promoter's Contribution | D52: ='Summary Sheet'!M13*1000 -> 1.804261535e+10 | F52: 0 | G52: =G56 -> 0
B53: 10 | C53: BRD's loan | D53: ='Summary Sheet'!M12*1000 -> 1.196404934e+11
C54: Total Cash Inflow | D54: =D53+D52 -> 1.376831087e+11 | E54: =E51 -> 6561191836 | F54: =F51+F52+F53 -> 8339107437 | G54: =G51+G52+G53 -> 2.828262653e+10 | H54: 3.055181501e+10 | I54: 3.318905545e+10 | J54: 3.610892397e+10 | K54: 3.950641179e+10 | L54: 3.725100894e+10 | M54: 4.067596858e+10 | N54: 4.451148697e+10 | O54: 4.899362458e+10 | P54: 5.367443786e+10 | Q54: 5.916146349e+10 | R54: 6.53827642e+10 | S54: 7.268632116e+10 | T54: 8.053110507e+10 | U54: 8.976867511e+10 | V54: 9.919745757e+10 | W54: 1.063883072e+11 | X54: 1.13464578e+11 | Y54: =Y51+Y52+Y53 -> 1.213556051e+11 | Z54: =Z51+Z52+Z53 -> 1.297990041e+11 | AA54: =AA51+AA52+AA53 -> 1.392247411e+11 | AB54: =AB51+AB52+AB53 -> 1.485002886e+11 | AC54: =AC51+AC52+AC53 -> 1.588438155e+11
C55: Use of funds
C56: Investments | D56: ='Summary Sheet'!M9*1000 -> 1.376831087e+11 | G56: 0
C57: Reimbursement of the loan (principal) | E57: =LOOKUP(E$3,'Annual Model - RFW'!$2:$2,'Annual Model - RFW'!167:167)*1000 -> 0 | F57: =LOOKUP(F$3,'Annual Model - RFW'!$2:$2,'Annual Model - RFW'!167:167)*1000 -> 0 | G57: =LOOKUP(G$3,'Annual Model - RFW'!$2:$2,'Annual Model - RFW'!167:167)*1000 -> 0 | H57: =LOOKUP(H$3,'Annual Model - RFW'!$2:$2,'Annual Model - RFW'!167:167)*1000 -> 0 | I57: =LOOKUP(I$3,'Annual Model - RFW'!$2:$2,'Annual Model - RFW'!167:167)*1000 -> 0 | J57: =LOOKUP(J$3,'Annual Model - RFW'!$2:$2,'Annual Model - RFW'!167:167)*1000 -> 0 | K57: =LOOKUP(K$3,'Annual Model - RFW'!$2:$2,'Annual Model - RFW'!167:167)*1000 -> 0 | L57: =LOOKUP(L$3,'Annual Model - RFW'!$2:$2,'Annual Model - RFW'!167:167)*1000 -> 0 | M57: =LOOKUP(M$3,'Annual Model - RFW'!$2:$2,'Annual Model - RFW'!167:167)*1000 -> 0 | N57: =LOOKUP(N$3,'Annual Model - RFW'!$2:$2,'Annual Model - RFW'!167:167)*1000 -> 0 | O57: =LOOKUP(O$3,'Annual Model - RFW'!$2:$2,'Annual Model - RFW'!167:167)*1000 -> 0 | P57: =LOOKUP(P$3,'Annual Model - RFW'!$2:$2,'Annual Model - RFW'!167:167)*1000 -> 0 | Q57: =LOOKUP(Q$3,'Annual Model - RFW'!$2:$2,'Annual Model - RFW'!167:167)*1000 -> 0 | R57: =LOOKUP(R$3,'Annual Model - RFW'!$2:$2,'Annual Model - RFW'!167:167)*1000 -> 0 | S57: =LOOKUP(S$3,'Annual Model - RFW'!$2:$2,'Annual Model - RFW'!167:167)*1000 -> 0 | T57: =LOOKUP(T$3,'Annual Model - RFW'!$2:$2,'Annual Model - RFW'!167:167)*1000 -> 0 | U57: =LOOKUP(U$3,'Annual Model - RFW'!$2:$2,'Annual Model - RFW'!167:167)*1000 -> 0 | V57: =LOOKUP(V$3,'Annual Model - RFW'!$2:$2,'Annual Model - RFW'!167:167)*1000 -> 0 | W57: =LOOKUP(W$3,'Annual Model - RFW'!$2:$2,'Annual Model - RFW'!167:167)*1000 -> 0 | X57: =LOOKUP(X$3,'Annual Model - RFW'!$2:$2,'Annual Model - RFW'!167:167)*1000 -> 0 | Y57: =LOOKUP(Y$3,'Annual Model - RFW'!$2:$2,'Annual Model - RFW'!167:167)*1000 -> 0 | Z57: =LOOKUP(Z$3,'Annual Model - RFW'!$2:$2,'Annual Model - RFW'!167:167)*1000 -> 0 | AA57: =LOOKUP(AA$3,'Annual Model - RFW'!$2:$2,'Annual Model - RFW'!167:167)*1000 -> 0 | AB57: =LOOKUP(AB$3,'Annual Model - RFW'!$2:$2,'Annual Model - RFW'!167:167)*1000 -> 0 | AC57: =LOOKUP(AC$3,'Annual Model - RFW'!$2:$2,'Annual Model - RFW'!167:167)*1000 -> 0
C58: Cash Sweep
C59: Total Cash Outflow | D59: =D56 -> 1.376831087e+11 | E59: =E56+E57 -> 0 | F59: 0 | G59: 0 | H59: 0 | I59: 0 | J59: 0 | K59: 0 | L59: 0 | M59: 0 | N59: 0 | O59: 0 | P59: 0 | Q59: 0 | R59: 0 | S59: 0 | T59: 0 | U59: 0 | V59: 0 | W59: 0 | X59: 0 | Y59: =Y56+Y57 -> 0 | Z59: =Z56+Z57 -> 0 | AA59: =AA56+AA57 -> 0 | AB59: =AB56+AB57 -> 0 | AC59: =AC56+AC57 -> 0
D60: =D54-D59 -> 0 | E60: =E54-E59 -> 6561191836 | F60: =F54-F59 -> 8339107437 | G60: 2.828262653e+10 | H60: 3.055181501e+10 | I60: 3.318905545e+10 | J60: 3.610892397e+10 | K60: 3.950641179e+10 | L60: 3.725100894e+10 | M60: 4.067596858e+10 | N60: 4.451148697e+10 | O60: 4.899362458e+10 | P60: 5.367443786e+10 | Q60: 5.916146349e+10 | R60: 6.53827642e+10 | S60: 7.268632116e+10 | T60: 8.053110507e+10 | U60: 8.976867511e+10 | V60: 9.919745757e+10 | W60: 1.063883072e+11 | X60: 1.13464578e+11 | Y60: =Y54-Y59 -> 1.213556051e+11 | Z60: =Z54-Z59 -> 1.297990041e+11 | AA60: =AA54-AA59 -> 1.392247411e+11 | AB60: =AB54-AB59 -> 1.485002886e+11 | AC60: =AC54-AC59 -> 1.588438155e+11
C61: CFADS | E61: =E51+E33 -> 6578400169 | F61: =F51+F33 -> 8339107437 | G61: 4.210378919e+10 | H61: 4.492376299e+10 | I61: 4.80684264e+10 | J61: 5.143321624e+10 | K61: 5.518947887e+10 | L61: 5.317761606e+10 | M61: 5.669522367e+10 | N61: 6.042892059e+10 | O61: 6.456164919e+10 | P61: 6.858086333e+10 | Q61: 7.30156819e+10 | R61: 7.769914072e+10 | S61: 8.286423626e+10 | T61: 8.783098391e+10 | U61: 9.328320897e+10 | V61: 9.919745757e+10 | W61: 1.063883072e+11 | X61: 1.13464578e+11 | Y61: 1.213556051e+11 | Z61: 1.297990041e+11 | AA61: 1.392247411e+11 | AB61: 1.485002886e+11 | AC61: 1.588438155e+11
C62: Debt Service | D62: 0 | E62: =E57+E33 -> 17208333.33 | F62: =F57+F33 -> 0 | G62: 1.382116266e+10 | H62: 1.437194798e+10 | I62: 1.487937095e+10 | J62: 1.532429228e+10 | K62: 1.568306708e+10 | L62: 1.592660712e+10 | M62: 1.601925508e+10 | N62: 1.591743361e+10
C63: DSCR | D63: =MIN(E63:AC63) -> 3.046327594 | E63: =IF(E62>0.1,E61/E62) -> 382.279913 | F63: =IF(F62>0.1,F61/F62) -> FALSE | G63: 3.046327594 | H63: 3.125794991 | I63: 3.230541571 | J63: 3.35631919 | K63: 3.519048831 | L63: 3.338916799 | M63: 3.539192264 | N63: 3.796398468 | O63: FALSE | P63: FALSE | Q63: FALSE | R63: FALSE | S63: FALSE | T63: FALSE | U63: FALSE | V63: FALSE | W63: FALSE | X63: FALSE | Y63: FALSE | Z63: FALSE | AA63: FALSE | AB63: FALSE | AC63: FALSE
B64: Rate | C64: Cummulative Cashflows | E64: =E60 -> 6561191836 | F64: =E64+F60 -> 1.490029927e+10 | G64: =F64+G60 -> 4.31829258e+10 | H64: 7.373474081e+10 | I64: 1.069237963e+11 | J64: 1.430327202e+11 | K64: 1.82539132e+11 | L64: 2.19790141e+11 | M64: 2.604661095e+11 | N64: 3.049775965e+11 | O64: 3.539712211e+11 | P64: 4.07645659e+11 | Q64: 4.668071224e+11 | R64: 5.321898867e+11 | S64: 6.048762078e+11 | T64: 6.854073129e+11 | U64: 7.75175988e+11 | V64: 8.743734456e+11 | W64: 9.807617528e+11 | X64: 1.094226331e+12 | Y64: =X64+Y60 -> 1.215581936e+12 | Z64: =Y64+Z60 -> 1.34538094e+12 | AA64: =Z64+AA60 -> 1.484605681e+12 | AB64: =AA64+AB60 -> 1.63310597e+12 | AC64: =AB64+AC60 -> 1.791949785e+12
C65: Cash Sweep | E65: =LOOKUP(E$3,'Annual Model - RFW'!$2:$2,'Annual Model - RFW'!171:171)*1000 -> 608413939.9 | F65: =LOOKUP(F$3,'Annual Model - RFW'!$2:$2,'Annual Model - RFW'!171:171)*1000 -> 0 | G65: =LOOKUP(G$3,'Annual Model - RFW'!$2:$2,'Annual Model - RFW'!171:171)*1000 -> 0 | H65: =LOOKUP(H$3,'Annual Model - RFW'!$2:$2,'Annual Model - RFW'!171:171)*1000 -> 0 | I65: =LOOKUP(I$3,'Annual Model - RFW'!$2:$2,'Annual Model - RFW'!171:171)*1000 -> 0 | J65: =LOOKUP(J$3,'Annual Model - RFW'!$2:$2,'Annual Model - RFW'!171:171)*1000 -> 0 | K65: =LOOKUP(K$3,'Annual Model - RFW'!$2:$2,'Annual Model - RFW'!171:171)*1000 -> 0 | L65: =LOOKUP(L$3,'Annual Model - RFW'!$2:$2,'Annual Model - RFW'!171:171)*1000 -> 0 | M65: =LOOKUP(M$3,'Annual Model - RFW'!$2:$2,'Annual Model - RFW'!171:171)*1000 -> 0 | N65: =LOOKUP(N$3,'Annual Model - RFW'!$2:$2,'Annual Model - RFW'!171:171)*1000 -> 0 | O65: =LOOKUP(O$3,'Annual Model - RFW'!$2:$2,'Annual Model - RFW'!171:171)*1000 -> 0 | P65: =LOOKUP(P$3,'Annual Model - RFW'!$2:$2,'Annual Model - RFW'!171:171)*1000 -> 0 | Q65: =LOOKUP(Q$3,'Annual Model - RFW'!$2:$2,'Annual Model - RFW'!171:171)*1000 -> 0 | R65: =LOOKUP(R$3,'Annual Model - RFW'!$2:$2,'Annual Model - RFW'!171:171)*1000 -> 0 | S65: =LOOKUP(S$3,'Annual Model - RFW'!$2:$2,'Annual Model - RFW'!171:171)*1000 -> 0 | T65: =LOOKUP(T$3,'Annual Model - RFW'!$2:$2,'Annual Model - RFW'!171:171)*1000 -> 0 | U65: =LOOKUP(U$3,'Annual Model - RFW'!$2:$2,'Annual Model - RFW'!171:171)*1000 -> 0 | V65: =LOOKUP(V$3,'Annual Model - RFW'!$2:$2,'Annual Model - RFW'!171:171)*1000 -> 0 | W65: =LOOKUP(W$3,'Annual Model - RFW'!$2:$2,'Annual Model - RFW'!171:171)*1000 -> 0 | X65: =LOOKUP(X$3,'Annual Model - RFW'!$2:$2,'Annual Model - RFW'!171:171)*1000 -> 0 | Y65: =LOOKUP(Y$3,'Annual Model - RFW'!$2:$2,'Annual Model - RFW'!171:171)*1000 -> 0 | Z65: =LOOKUP(Z$3,'Annual Model - RFW'!$2:$2,'Annual Model - RFW'!171:171)*1000 -> 0 | AA65: =LOOKUP(AA$3,'Annual Model - RFW'!$2:$2,'Annual Model - RFW'!171:171)*1000 -> 0 | AB65: =LOOKUP(AB$3,'Annual Model - RFW'!$2:$2,'Annual Model - RFW'!171:171)*1000 -> 0 | AC65: =LOOKUP(AC$3,'Annual Model - RFW'!$2:$2,'Annual Model - RFW'!171:171)*1000 -> 0
C66: Equity Cash Flow | E66: =E61-E62-E65 -> 5952777896 | F66: =F61-F62-F65 -> 8339107437 | G66: 2.828262653e+10 | H66: 3.055181501e+10 | I66: 3.318905545e+10 | J66: 3.610892397e+10 | K66: 3.950641179e+10 | L66: 3.725100894e+10 | M66: 4.067596858e+10 | N66: 4.451148697e+10 | O66: 6.456164919e+10 | P66: 6.858086333e+10 | Q66: 7.30156819e+10 | R66: 7.769914072e+10 | S66: 8.286423626e+10 | T66: 8.783098391e+10 | U66: 9.328320897e+10 | V66: 9.919745757e+10 | W66: 1.063883072e+11 | X66: 1.13464578e+11 | Y66: 1.213556051e+11 | Z66: 1.297990041e+11 | AA66: 1.392247411e+11 | AB66: 1.485002886e+11 | AC66: 1.588438155e+11
C67: USD Equity Cash Flow | E67: =E66/E10 -> 6645753.697 | F67: =F66/F10 -> 7333888.006 | G67: 6070619.277 | H67: 6145178.259 | I67: 6238908.044 | J67: 6343726.65 | K67: 6469127.838 | L67: 5716107.648 | M67: 5833329.176 | N67: 5965775.501 | O67: 8065246.625 | P67: 8028422.069 | Q67: 7988396.559 | R67: 7944670.845 | S67: 7897234.928 | T67: 7844041.546 | U67: 7785954.066 | V67: 7737935.822 | W67: 7735113.91 | X67: 7730673.451 | Y67: 7727394.58 | Z67: 7724330.215 | AA67: 7722432.541 | AB67: 7718789.787 | AC67: 7716288.353
B68: 0.14 | C68: PLCR
C69: PV of CFADS Project life | D69: =NPV(B68,E61:AC61) -> 3.384186083e+11
C70: PV of DS | D70: =D53 -> 1.196404934e+11
C71: PLCR ratio | D71: =D69/D70 -> 2.828629328
C72: LLCR
C73: PV of CFADS | D73: =NPV(B68,E61:N61) -> 1.900342764e+11
C74: PV of Loan at COD | D74: =D53 -> 1.196404934e+11
C75: Ratio | D75: =D73/D74 -> 1.588377572
C77: Equity IRR Calculation | I77: Project IRR Calculation
C79: Period | E79: Investments | F79: Gross Cashflow | G79: Net Cashflows | H79: Equity USD IRR | I79: Period | J79: Investments | K79: Gross Cashflow | L79: Net Cashflows | M79: Project USD IRR
C80: 0 | E80: =D52 -> 1.804261535e+10 | F80: 0 | G80: =F80-E80 -> -1.804261535e+10 | H80: =-'Summary Sheet'!L13 -> -9376803.234 | I80: 0 | J80: ='Summary Sheet'!M5*1000 -> 1.147920981e+11 | K80: 0 | L80: =K80-J80 -> -1.147920981e+11 | M80: =-'Summary Sheet'!L5 -> -132455708.4
C81: 1 | E81: 0 | F81: =TRANSPOSE(E66:AC66) -> 5952777896 | G81: =F81-E81 -> 5952777896 | H81: =TRANSPOSE(E67:AC67) -> 6645753.697 | I81: 1 | J81: 0 | K81: =TRANSPOSE(E44:AC44) -> 6578400169 | L81: 6578400169 | M81: =TRANSPOSE(E45:AC45) -> 7344206.017
C82: 2 | E82: 0 | F82: 8339107437 | G82: =F82-E82 -> 8339107437 | H82: 7333888.006 | I82: 2 | J82: 0 | K82: 8339107437 | L82: 8339107437 | M82: 7333888.006
C83: 3 | E83: 0 | F83: 2.828262653e+10 | G83: =F83-E83 -> 2.828262653e+10 | H83: 6070619.277 | I83: 3 | J83: 0 | K83: 4.210378919e+10 | L83: 4.210378919e+10 | M83: 9037211.378
C84: 4 | E84: 0 | F84: 3.055181501e+10 | G84: =F84-E84 -> 3.055181501e+10 | H84: 6145178.259 | I84: 4 | J84: 0 | K84: 4.492376299e+10 | L84: 4.492376299e+10 | M84: 9035945.377
C85: 5 | E85: 0 | F85: 3.318905545e+10 | G85: 3.318905545e+10 | H85: 6238908.044 | I85: 5 | J85: 0 | K85: 4.80684264e+10 | L85: 4.80684264e+10 | M85: 9035945.377
C86: 6 | E86: 0 | F86: 3.610892397e+10 | G86: 3.610892397e+10 | H86: 6343726.65 | I86: 6 | J86: 0 | K86: 5.143321624e+10 | L86: 5.143321624e+10 | M86: 9035945.377
C87: 7 | E87: 0 | F87: 3.950641179e+10 | G87: 3.950641179e+10 | H87: 6469127.838 | I87: 7 | J87: 0 | K87: 5.518947887e+10 | L87: 5.518947887e+10 | M87: 9037211.378
C88: 8 | E88: 0 | F88: 3.725100894e+10 | G88: 3.725100894e+10 | H88: 5716107.648 | I88: 8 | J88: 0 | K88: 5.888588928e+10 | L88: 5.888588928e+10 | M88: 9035945.377
C89: 9 | E89: 0 | F89: 4.067596858e+10 | G89: 4.067596858e+10 | H89: 5833329.176 | I89: 9 | J89: 0 | K89: 6.300790153e+10 | L89: 6.300790153e+10 | M89: 9035945.377
C90: 10 | E90: 0 | F90: 4.451148697e+10 | G90: 4.451148697e+10 | H90: 5965775.501 | I90: 10 | J90: 0 | K90: 6.741845463e+10 | L90: 6.741845463e+10 | M90: 9035945.377
C91: 11 | E91: 0 | F91: 6.456164919e+10 | G91: 6.456164919e+10 | H91: 8065246.625 | I91: 11 | J91: 0 | K91: 7.23421487e+10 | L91: 7.23421487e+10 | M91: 9037211.378
C92: 12 | E92: 0 | F92: 6.858086333e+10 | G92: 6.858086333e+10 | H92: 8028422.069 | I92: 12 | J92: 0 | K92: 7.718738871e+10 | L92: 7.718738871e+10 | M92: 9035945.377
C93: 13 | E93: 0 | F93: 7.30156819e+10 | G93: 7.30156819e+10 | H93: 7988396.559 | I93: 13 | J93: 0 | K93: 8.259050592e+10 | L93: 8.259050592e+10 | M93: 9035945.377
C94: 14 | E94: 0 | F94: 7.769914072e+10 | G94: 7.769914072e+10 | H94: 7944670.845 | I94: 14 | J94: 0 | K94: 8.837184134e+10 | L94: 8.837184134e+10 | M94: 9035945.377
C95: 15 | E95: 0 | F95: 8.286423626e+10 | G95: 8.286423626e+10 | H95: 7897234.928 | I95: 15 | J95: 0 | K95: 9.482579987e+10 | L95: 9.482579987e+10 | M95: 9037211.378
C96: 16 | F96: 8.783098391e+10 | G96: 8.783098391e+10 | H96: 7844041.546 | I96: 16 | J96: 0 | K96: 1.011769211e+11 | L96: 1.011769211e+11 | M96: 9035945.377
C97: 17 | F97: 9.328320897e+10 | G97: 9.328320897e+10 | H97: 7785954.066 | I97: 17 | J97: 0 | K97: 1.082593056e+11 | L97: 1.082593056e+11 | M97: 9035945.377
C98: 18 | F98: 9.919745757e+10 | G98: 9.919745757e+10 | H98: 7737935.822 | I98: 18 | J98: 0 | K98: 1.15837457e+11 | L98: 1.15837457e+11 | M98: 9035945.377
C99: 19 | F99: 1.063883072e+11 | G99: 1.063883072e+11 | H99: 7735113.91 | I99: 19 | J99: 0 | K99: 1.242972801e+11 | L99: 1.242972801e+11 | M99: 9037211.378
C100: 20 | F100: 1.13464578e+11 | G100: 1.13464578e+11 | H100: 7730673.451 | I100: 20 | J100: 0 | K100: 1.326223045e+11 | L100: 1.326223045e+11 | M100: 9035945.377
C101: 21 | F101: 1.213556051e+11 | G101: 1.213556051e+11 | H101: 7727394.58 | I101: 21 | K101: 1.419058659e+11 | L101: 1.419058659e+11 | M101: 9035945.377
C102: 22 | F102: 1.297990041e+11 | G102: 1.297990041e+11 | H102: 7724330.215 | I102: 22 | K102: 1.518392765e+11 | L102: 1.518392765e+11 | M102: 9035945.377
C103: 23 | F103: 1.392247411e+11 | G103: 1.392247411e+11 | H103: 7722432.541 | I103: 23 | K103: 1.629283788e+11 | L103: 1.629283788e+11 | M103: 9037211.378
C104: 24 | F104: 1.485002886e+11 | G104: 1.485002886e+11 | H104: 7718789.787 | I104: 24 | K104: 1.738407876e+11 | L104: 1.738407876e+11 | M104: 9035945.377
C105: 25 | F105: 1.588438155e+11 | G105: 1.588438155e+11 | H105: 7716288.353 | I105: 25 | K105: 1.860096428e+11 | L105: 1.860096428e+11 | M105: 9035945.377
F106: IRR | G106: =IRR(G80:G105,20) -> 0.7992821213 | H106: =IRR(H80:H105,20) -> 0.70905075 | K106: IRR | L106: =IRR(L80:L105,20) -> 0.3034242272 | M106: =IRR(M80:M105,20) -> 0.04381664453
E109: ='Summary Sheet'!H2 -> 54.854
E110: ='Summary Sheet'!G25 -> 0.93
E111: =E109*E110*8760 -> 446884.5672 | F111: ='Annual Model - USD'!J45 -> 99477.7848 | G111: =F111*1000 -> 99477784.8
E112: =E111*98 -> 43794687.59 | F112: ='Annual Model - RFW'!J81 -> 8732279.314
F114: ='Annual Model - USD'!J94 -> 9748822.91

Sheet Cap Exp Investment Plan
A2: Exchange Rate | C2: Disbursment | F2: Cost Estimate | I2: Cost over Run
B4: Exchange Rate - 2018 | C4: ='Disbursment Analysis'!M8 -> 918.5554933 | D4: Cost Over-run | E4: ='Disbursment Analysis'!L8 -> 1 | G4: Total Cost | H4: ='Summary Sheet'!M9 -> 137683108.7
B6: Financing Plan/ Investment plan
C8: 1$ to RWF | D8: ='Operating Assumptions'!F85 -> 780 | E8: To Be Realised
B9: Item | C9: Realised | D9: US$ | E9: Promoter (Equity + Grant) | F9: US$ | G9: BRD Financing | H9: US$ | I9: Total
B10: Preliminary
B11: Project Development | C11: ='Disbursment Analysis'!F21*1000 -> 3173831063 | D11: ='Disbursment Analysis'!G21 -> 4046136.738 | E11: 0 | F11: =E11/763 -> 0 | G11: 0 | H11: 0 | I11: =C11+E11+G11 -> 3173831063
B12: Early Works | C12: =D12*$D$8 -> 0 | D12: 0 | I12: 0
B13: Service Commission | C13: =D13*$D$8 -> 0 | D13: 0 | E13: ='Disbursment Analysis'!F26*1000 -> 105000000 | F13: ='Disbursment Analysis'!G26 -> 133858.529 | I13: 105000000
B14: Commitment Fees, Management Fee, VAT | D14: 0 | E14: =('Disbursment Analysis'!F24+'Disbursment Analysis'!F25+'Disbursment Analysis'!F27)*1000 -> 469275818.6 | F14: =SUM('Disbursment Analysis'!G24:G27) -> 708047.8115 | I14: 469275818.6
B15: Grace Period Interests (IDC) | C15: 0 | D15: 0 | E15: ='Disbursment Analysis'!F23*1000 -> 4829782836 | F15: ='Disbursment Analysis'!G23 -> 5758447.185 | I15: 4829782836 | K15: Grace Period (1year 5 months)
B16: Notification fees | C16: 0 | D16: 0 | E16: 0 | F16: =E16/763 -> 0 | I16: 0 | J16: FRW | K16: =(G37*0.14)*17/12 -> 6941666667
B17: Mortgage registration fees | C17: 0 | D17: 0 | E17: 0 | F17: =E17/763 -> 0 | I17: 0 | J17: USD | K17: =(H37*0.14)*17/12 -> 8542957.939
B18: Sub Total | C18: =SUM(C11:C17) -> 3173831063 | D18: 4046136.738 | E18: 5404058655 | F18: 6600353.526 | G18: 0 | H18: 0 | I18: 8577889718
B19: Equipment
B20: Gas Plant | C20: =$D$8*D20 -> 0 | D20: 0 | E20: 0 | F20: 0 | G20: ='Disbursment Analysis'!J42*1000 -> 1.03687739e+10 | H20: ='Disbursment Analysis'!J38 -> 12760624.15 | I20: =C20+E20+G20 -> 1.03687739e+10
B21: Power Plant | C21: =$D$8*D21 -> 0 | E21: =$D$8*F21 -> 0 | G21: ='Disbursment Analysis'!K42*1000 -> 8238646002 | H21: ='Disbursment Analysis'!K38 -> 10139122.15 | I21: =C21+E21+G21 -> 8238646002
B22: Balance of plant | C22: =$D$8*D22 -> 0 | E22: ='Disbursment Analysis'!L44*1000 -> 165707417.5 | F22: ='Disbursment Analysis'!M44*1000 -> 203932508.7 | G22: =$D$8*H22 -> 0 | I22: =C22+E22+G22 -> 165707417.5
B23: Sub Total | C23: =$D$8*D23 -> 0 | D23: =SUM(D20:D22) -> 0 | E23: 165707417.5 | F23: 203932508.7 | G23: 1.86074199e+10 | H23: 22899746.3 | I23: 1.877312732e+10
B24: Construction works | L24: Bank Loan | M24: =G37 -> 35000000000 | O24: Gas | P24: Equip Pct | Q24: ='Operating Assumptions'!H108/('Operating Assumptions'!H108+'Operating Assumptions'!H109) -> 0.675
B25: Early Works | C25: 0 | D25: 0 | E25: ='Disbursment Analysis'!L45*1000 -> 473449764.2 | F25: ='Disbursment Analysis'!M45*1000 -> 582664310.5 | I25: =C25+E25+G25 -> 473449764.2 | L25: Interest risk | M25: =M24*0.3 -> 10500000000 | O25: Power | P25: Equip Pct | Q25: ='Operating Assumptions'!H110/('Operating Assumptions'!H110+'Operating Assumptions'!H111) -> 0.7040816327
B26: Gas Plant | C26: 0 | D26: 0 | E26: =F26*$D$8 -> 0 | F26: 0 | G26: ='Disbursment Analysis'!J43*1000 -> 4992372617 | H26: ='Disbursment Analysis'!J39 -> 6144004.219 | I26: =C26+E26+G26 -> 4992372617 | L26: Total | M26: =SUM(M24:M25) -> 45500000000
B27: Power Plant | D27: 0 | E27: =F27*$D$8 -> 0 | G27: ='Disbursment Analysis'!K43*1000 -> 3462619334 | H27: ='Disbursment Analysis'!K39 -> 4261370.18 | I27: =C27+E27+G27 -> 3462619334
B28: General Site Construction works | D28: 0 | E28: =F28*$D$8 -> 0 | G28: ='Disbursment Analysis'!L42*1000 -> 7937588150 | H28: ='Disbursment Analysis'!L38 -> 9768616.813 | I28: =C28+E28+G28 -> 7937588150 | L28: Equip | M28: =I23*1.5 -> 2.815969097e+10 | N28: =M28*0.5 -> 1.407984549e+10
B29: Sub Total | C29: =SUM(C25:C28) -> 0 | D29: 0 | E29: 473449764.2 | F29: 582664310.5 | G29: 1.63925801e+10 | H29: 20173991.21 | I29: 1.686602987e+10 | L29: Construction | M29: =(I29+I34+I36)*1.5 -> 3.023475859e+10 | N29: =M29*0.5 -> 1.51173793e+10
B30: Other | K30: =(H29+F29+H23+F23+F34)*0.1 -> 83208861.36 | N30: =N29+N28 -> 2.919722478e+10
B31: Owners Cost | C31: =D31*$D$8 -> 0 | D31: 0 | E31: ='Disbursment Analysis'!L46*1000 -> 1420349293 | F31: ='Disbursment Analysis'!M46 -> 1747992.931 | G31: =H31*$D$8 -> 0 | H31: 0 | I31: =C31+E31+G31 -> 1420349293 | M31: Risck coverage | N31: =N30/M26 -> 0.641697248
B32: Commissioning | C32: =D32*$D$8 -> 0 | D32: 0 | E32: ='Disbursment Analysis'!L47*1000 -> 71017464.63 | F32: ='Disbursment Analysis'!M47 -> 87399.64657 | G32: =H32*$D$8 -> 0 | H32: 0 | I32: =C32+E32+G32 -> 71017464.63
B33: Plant readiness | C33: =D33*$D$8 -> 0 | D33: 0 | E33: ='Disbursment Analysis'!L48*1000 -> 473449764.2 | F33: ='Disbursment Analysis'!M48 -> 582664.3105 | G33: =H33*$D$8 -> 0 | H33: 0 | I33: =C33+E33+G33 -> 473449764.2
B34: Sub Total | C34: =SUM(C31:C33) -> 0 | D34: =SUM(D31:D33) -> 0 | E34: =SUM(E31:E33) -> 1964816521 | F34: =SUM(F31:F33) -> 2418056.889 | G34: 0 | H34: 0 | I34: =SUM(I31:I33) -> 1964816521
B35: Contigency costs (10% of Pjt cost) | E35: ='Disbursment Analysis'!L49*1000 -> 1325659340 | F35: ='Disbursment Analysis'!M49 -> 1631460.069 | I35: =C35+E35+G35 -> 1325659340
B36: Sub Total | E36: =SUM(E35) -> 1325659340 | F36: =SUM(F35) -> 1631460.069 | I36: =C36+E36+G36 -> 1325659340
B37: Total | C37: =C18+C23+C29+C34 -> 3173831063 | D37: =D18+D23+D29+D34+D36 -> 4046136.738 | E37: =E18+E23+E29+E34+E36 -> 9333691698 | F37: =F18+F29+F34+F36 -> 593314181 | G37: =(G18+G23+G29+G34) -> 35000000000 | H37: =H18+H23+H29+H36 -> 43073737.51 | I37: =C37+E37+G37 -> 4.750752276e+10 | K37: =I37-'Summary Sheet'!M9*1000 -> -9.017558595e+10
B38: Percentage | C38: =C37/I37 -> 0.06680691559 | E38: =E37/I37 -> 0.1964676572 | G38: =G37/I37 -> 0.7367254272 | I38: =I37/I37 -> 1
H40: =H37-4500000000 -> -4456926262
I41: =15/45 -> 0.3333333333
B44: Investment Plan | C44: Dollar Rate | E44: 780
C45: Euro Rate
B46: 1. Investments already realized | C46: : | E46: =E47 -> 1431348690
B47: 1.1 Pre-operating expenses | C47: : | E47: =+SUM(E48:E51) -> 1431348690 | F47: =E47/$E$44 -> 1835062.423
B48: 1.1.2 Service commission | C48: : | E48: =E13/2 -> 52500000 | F48: =E48/$E$44 -> 67307.69231
B49: 1.1.3 Engineering Consulting (Studies) | C49: : | E49: 1254715377 | F49: =E49/$E$44 -> 1608609.458
B50: 1.1.4 Environmental and social costs as well as Land expropriation | C50: : | E50: 124133313 | F50: =E50/$E$44 -> 159145.2731
B51: 1.1.6 Misc and travel expenses | E51: 0 | F51: =E51/$E$44 -> 0
B52: 2. Investments to be realized | C52: : | E52: =E53+E59 -> 1.085920288e+10 | F52: =SUM(F47:F51) -> 3670124.846
B53: 2.1 Pre-operating expenses | C53: : | E53: =SUM(E54:E58) -> 2694406735
B54: 2.1.1 Service commission fee balance | C54: : | E54: =E48 -> 52500000
B55: 2.1.2 Grace period interests | C55: : | E55: 2511166935
B56: 2.1.4 Notification of the contract fees | C56: : | E56: =28900+6400 -> 35300
B57: 2.1.6 Mortgage registration fees | C57: : | E57: =20000 -> 20000
B58: 2.1.7 Construction supervision consultancy | E58: =130684500 -> 130684500
B59: 2.2. Technology and Site Development | C59: : | E59: =SUM(E60:E64) -> 8164796145
B60: 2.2.1 Equipment and Machinery | C60: : | E60: =1250000*E44 -> 975000000
B61: 2.2.2 Civil Works/Site development | C61: : | E61: =7061639*E44 -> 5508078420
B62: 2.2.3 Working Capital | C62: : | E62: 154200000
B63: 2.2.4 EPCM | C63: : | E63: =1214346*E44 -> 947189880
B64: 2.2.5 Contigency costs | E64: 580327845
B65: Total Investments | C65: : | E65: =E46+E52 -> 1.229055157e+10

Sheet Debt Balance
H1: Add: | I1: Add:
E2: Balance at | G2: Add: | H2: Commitment | I2: Management | J2: Balance at | K2: Service
E3: Start of | F3: Draw | G3: Interest | H3: Fee | I3: Fee | J3: End of | K3: Fee | L3: VAT | M3: Interest | N3: Commitment | O3: Mngmt Fee
E4: Month | F4: Downs | G4: Capitalised | H4: Capitalised | I4: Capitalised | J4: Month | K4: Paid | L4: Paid | M4: Paid | N4: Fee Paid | O4: Paid
D5: ='Disbursment Analysis'!F4 -> 2016-09-01 | E5: =LOOKUP($D5,'Disbursment Analysis'!$231:$231,'Disbursment Analysis'!$251:$251) -> 0 | F5: =LOOKUP($D5,'Disbursment Analysis'!$231:$231,'Disbursment Analysis'!$252:$252) -> 4239939.6 | G5: =LOOKUP($D5,'Disbursment Analysis'!$231:$231,'Disbursment Analysis'!$255:$255) -> 0 | H5: =LOOKUP($D5,'Disbursment Analysis'!$231:$231,'Disbursment Analysis'!$255:$255) -> 0 | I5: =LOOKUP($D5,'Disbursment Analysis'!$231:$231,'Disbursment Analysis'!$254:$254) -> 0 | J5: =LOOKUP($D5,'Disbursment Analysis'!$231:$231,'Disbursment Analysis'!$258:$258) -> 4239939.6 | K5: =LOOKUP($D5,'Disbursment Analysis'!$231:$231,'Disbursment Analysis'!$262:$262) -> 105000 | L5: =LOOKUP($D5,'Disbursment Analysis'!$231:$231,'Disbursment Analysis'!$265:$265) -> 24150 | M5: =LOOKUP($D5,'Disbursment Analysis'!$231:$231,'Disbursment Analysis'!$260:$260)-G5 -> 0 | N5: =LOOKUP($D5,'Disbursment Analysis'!$231:$231,'Disbursment Analysis'!$264:$264)-H5 -> 29166.66667 | O5: =LOOKUP($D5,'Disbursment Analysis'!$231:$231,'Disbursment Analysis'!$261:$261)-I5 -> 0
D6: =EDATE(D5,1) -> 2016-10-01 | E6: =LOOKUP($D6,'Disbursment Analysis'!$231:$231,'Disbursment Analysis'!$251:$251) -> 4239939.6 | F6: =LOOKUP($D6,'Disbursment Analysis'!$231:$231,'Disbursment Analysis'!$252:$252) -> 2451681.18 | G6: =LOOKUP($D6,'Disbursment Analysis'!$231:$231,'Disbursment Analysis'!$255:$255) -> 0 | H6: =LOOKUP($D6,'Disbursment Analysis'!$231:$231,'Disbursment Analysis'!$255:$255) -> 0 | I6: =LOOKUP($D6,'Disbursment Analysis'!$231:$231,'Disbursment Analysis'!$254:$254) -> 0 | J6: =LOOKUP($D6,'Disbursment Analysis'!$231:$231,'Disbursment Analysis'!$258:$258) -> 6691620.78 | K6: =LOOKUP($D6,'Disbursment Analysis'!$231:$231,'Disbursment Analysis'!$272:$272) -> 0 | L6: =LOOKUP($D6,'Disbursment Analysis'!$231:$231,'Disbursment Analysis'!$265:$265) -> 4932.00453 | M6: =LOOKUP($D6,'Disbursment Analysis'!$231:$231,'Disbursment Analysis'!$260:$260)-G6 -> 49465.962 | N6: =LOOKUP($D6,'Disbursment Analysis'!$231:$231,'Disbursment Analysis'!$264:$264)-H6 -> 25633.38367 | O6: =LOOKUP($D6,'Disbursment Analysis'!$231:$231,'Disbursment Analysis'!$261:$261)-I6 -> 1766.6415
D7: 2016-11-01 | E7: =LOOKUP($D7,'Disbursment Analysis'!$231:$231,'Disbursment Analysis'!$251:$251) -> 6691620.78 | F7: =LOOKUP($D7,'Disbursment Analysis'!$231:$231,'Disbursment Analysis'!$252:$252) -> 573300 | G7: =LOOKUP($D7,'Disbursment Analysis'!$231:$231,'Disbursment Analysis'!$255:$255) -> 0 | H7: =LOOKUP($D7,'Disbursment Analysis'!$231:$231,'Disbursment Analysis'!$255:$255) -> 0 | I7: =LOOKUP($D7,'Disbursment Analysis'!$231:$231,'Disbursment Analysis'!$254:$254) -> 0 | J7: =LOOKUP($D7,'Disbursment Analysis'!$231:$231,'Disbursment Analysis'!$258:$258) -> 7264920.78 | K7: =LOOKUP($D7,'Disbursment Analysis'!$231:$231,'Disbursment Analysis'!$272:$272) -> 0 | L7: =LOOKUP($D7,'Disbursment Analysis'!$231:$231,'Disbursment Analysis'!$265:$265) -> 4748.128441 | M7: =LOOKUP($D7,'Disbursment Analysis'!$231:$231,'Disbursment Analysis'!$260:$260)-G7 -> 78068.9091 | N7: =LOOKUP($D7,'Disbursment Analysis'!$231:$231,'Disbursment Analysis'!$264:$264)-H7 -> 23590.31602 | O7: =LOOKUP($D7,'Disbursment Analysis'!$231:$231,'Disbursment Analysis'!$261:$261)-I7 -> 2788.175325
D8: 2016-12-01 | E8: =LOOKUP($D8,'Disbursment Analysis'!$231:$231,'Disbursment Analysis'!$251:$251) -> 7264920.78 | F8: =LOOKUP($D8,'Disbursment Analysis'!$231:$231,'Disbursment Analysis'!$252:$252) -> 862754.88 | G8: =LOOKUP($D8,'Disbursment Analysis'!$231:$231,'Disbursment Analysis'!$255:$255) -> 0 | H8: =LOOKUP($D8,'Disbursment Analysis'!$231:$231,'Disbursment Analysis'!$255:$255) -> 0 | I8: =LOOKUP($D8,'Disbursment Analysis'!$231:$231,'Disbursment Analysis'!$254:$254) -> 0 | J8: =LOOKUP($D8,'Disbursment Analysis'!$231:$231,'Disbursment Analysis'!$258:$258) -> 8127675.66 | K8: =LOOKUP($D8,'Disbursment Analysis'!$231:$231,'Disbursment Analysis'!$272:$272) -> 0 | L8: =LOOKUP($D8,'Disbursment Analysis'!$231:$231,'Disbursment Analysis'!$265:$265) -> 4705.130941 | M8: =LOOKUP($D8,'Disbursment Analysis'!$231:$231,'Disbursment Analysis'!$260:$260)-G8 -> 84757.4091 | N8: =LOOKUP($D8,'Disbursment Analysis'!$231:$231,'Disbursment Analysis'!$264:$264)-H8 -> 23112.56602 | O8: =LOOKUP($D8,'Disbursment Analysis'!$231:$231,'Disbursment Analysis'!$261:$261)-I8 -> 3027.050325
D9: 2017-01-01 | E9: =LOOKUP($D9,'Disbursment Analysis'!$231:$231,'Disbursment Analysis'!$251:$251) -> 8127675.66 | F9: =LOOKUP($D9,'Disbursment Analysis'!$231:$231,'Disbursment Analysis'!$252:$252) -> 1209000 | G9: =LOOKUP($D9,'Disbursment Analysis'!$231:$231,'Disbursment Analysis'!$255:$255) -> 0 | H9: =LOOKUP($D9,'Disbursment Analysis'!$231:$231,'Disbursment Analysis'!$255:$255) -> 0 | I9: =LOOKUP($D9,'Disbursment Analysis'!$231:$231,'Disbursment Analysis'!$254:$254) -> 0 | J9: =LOOKUP($D9,'Disbursment Analysis'!$231:$231,'Disbursment Analysis'!$258:$258) -> 9336675.66 | K9: =LOOKUP($D9,'Disbursment Analysis'!$231:$231,'Disbursment Analysis'!$272:$272) -> 0 | L9: =LOOKUP($D9,'Disbursment Analysis'!$231:$231,'Disbursment Analysis'!$265:$265) -> 4640.424325 | M9: =LOOKUP($D9,'Disbursment Analysis'!$231:$231,'Disbursment Analysis'!$260:$260)-G9 -> 94822.8827 | N9: =LOOKUP($D9,'Disbursment Analysis'!$231:$231,'Disbursment Analysis'!$264:$264)-H9 -> 22393.60362 | O9: =LOOKUP($D9,'Disbursment Analysis'!$231:$231,'Disbursment Analysis'!$261:$261)-I9 -> 3386.531525
D10: 2017-02-01 | E10: =LOOKUP($D10,'Disbursment Analysis'!$231:$231,'Disbursment Analysis'!$251:$251) -> 9336675.66 | F10: =LOOKUP($D10,'Disbursment Analysis'!$231:$231,'Disbursment Analysis'!$252:$252) -> 6715800 | G10: =LOOKUP($D10,'Disbursment Analysis'!$231:$231,'Disbursment Analysis'!$255:$255) -> 0 | H10: =LOOKUP($D10,'Disbursment Analysis'!$231:$231,'Disbursment Analysis'!$255:$255) -> 0 | I10: =LOOKUP($D10,'Disbursment Analysis'!$231:$231,'Disbursment Analysis'!$254:$254) -> 0 | J10: =LOOKUP($D10,'Disbursment Analysis'!$231:$231,'Disbursment Analysis'!$258:$258) -> 16052475.66 | K10: =LOOKUP($D10,'Disbursment Analysis'!$231:$231,'Disbursment Analysis'!$272:$272) -> 0 | L10: =LOOKUP($D10,'Disbursment Analysis'!$231:$231,'Disbursment Analysis'!$265:$265) -> 4549.749325 | M10: =LOOKUP($D10,'Disbursment Analysis'!$231:$231,'Disbursment Analysis'!$260:$260)-G10 -> 108927.8827 | N10: =LOOKUP($D10,'Disbursment Analysis'!$231:$231,'Disbursment Analysis'!$264:$264)-H10 -> 21386.10362 | O10: =LOOKUP($D10,'Disbursment Analysis'!$231:$231,'Disbursment Analysis'!$261:$261)-I10 -> 3890.281525
D11: 2017-03-01 | E11: =LOOKUP($D11,'Disbursment Analysis'!$231:$231,'Disbursment Analysis'!$251:$251) -> 16052475.66 | F11: =LOOKUP($D11,'Disbursment Analysis'!$231:$231,'Disbursment Analysis'!$252:$252) -> 2803135.92 | G11: =LOOKUP($D11,'Disbursment Analysis'!$231:$231,'Disbursment Analysis'!$255:$255) -> 0 | H11: =LOOKUP($D11,'Disbursment Analysis'!$231:$231,'Disbursment Analysis'!$255:$255) -> 0 | I11: =LOOKUP($D11,'Disbursment Analysis'!$231:$231,'Disbursment Analysis'!$254:$254) -> 0 | J11: =LOOKUP($D11,'Disbursment Analysis'!$231:$231,'Disbursment Analysis'!$258:$258) -> 18855611.58 | K11: =LOOKUP($D11,'Disbursment Analysis'!$231:$231,'Disbursment Analysis'!$272:$272) -> 0 | L11: =LOOKUP($D11,'Disbursment Analysis'!$231:$231,'Disbursment Analysis'!$265:$265) -> 4046.064325 | M11: =LOOKUP($D11,'Disbursment Analysis'!$231:$231,'Disbursment Analysis'!$260:$260)-G11 -> 187278.8827 | N11: =LOOKUP($D11,'Disbursment Analysis'!$231:$231,'Disbursment Analysis'!$264:$264)-H11 -> 15789.60362 | O11: =LOOKUP($D11,'Disbursment Analysis'!$231:$231,'Disbursment Analysis'!$261:$261)-I11 -> 6688.531525
D12: 2017-04-01 | E12: =LOOKUP($D12,'Disbursment Analysis'!$231:$231,'Disbursment Analysis'!$251:$251) -> 18855611.58 | F12: =LOOKUP($D12,'Disbursment Analysis'!$231:$231,'Disbursment Analysis'!$252:$252) -> 5214523.86 | G12: =LOOKUP($D12,'Disbursment Analysis'!$231:$231,'Disbursment Analysis'!$255:$255) -> 0 | H12: =LOOKUP($D12,'Disbursment Analysis'!$231:$231,'Disbursment Analysis'!$255:$255) -> 0 | I12: =LOOKUP($D12,'Disbursment Analysis'!$231:$231,'Disbursment Analysis'!$254:$254) -> 0 | J12: =LOOKUP($D12,'Disbursment Analysis'!$231:$231,'Disbursment Analysis'!$258:$258) -> 24070135.44 | K12: =LOOKUP($D12,'Disbursment Analysis'!$231:$231,'Disbursment Analysis'!$272:$272) -> 0 | L12: =LOOKUP($D12,'Disbursment Analysis'!$231:$231,'Disbursment Analysis'!$265:$265) -> 3835.829131 | M12: =LOOKUP($D12,'Disbursment Analysis'!$231:$231,'Disbursment Analysis'!$260:$260)-G12 -> 219982.1351 | N12: =LOOKUP($D12,'Disbursment Analysis'!$231:$231,'Disbursment Analysis'!$264:$264)-H12 -> 13453.65702 | O12: =LOOKUP($D12,'Disbursment Analysis'!$231:$231,'Disbursment Analysis'!$261:$261)-I12 -> 7856.504825
D13: 2017-05-01 | E13: =LOOKUP($D13,'Disbursment Analysis'!$231:$231,'Disbursment Analysis'!$251:$251) -> 24070135.44 | F13: =LOOKUP($D13,'Disbursment Analysis'!$231:$231,'Disbursment Analysis'!$252:$252) -> 2094793.74 | G13: =LOOKUP($D13,'Disbursment Analysis'!$231:$231,'Disbursment Analysis'!$255:$255) -> 0 | H13: =LOOKUP($D13,'Disbursment Analysis'!$231:$231,'Disbursment Analysis'!$255:$255) -> 0 | I13: =LOOKUP($D13,'Disbursment Analysis'!$231:$231,'Disbursment Analysis'!$254:$254) -> 0 | J13: =LOOKUP($D13,'Disbursment Analysis'!$231:$231,'Disbursment Analysis'!$258:$258) -> 26164929.18 | K13: =LOOKUP($D13,'Disbursment Analysis'!$231:$231,'Disbursment Analysis'!$272:$272) -> 0 | L13: =LOOKUP($D13,'Disbursment Analysis'!$231:$231,'Disbursment Analysis'!$265:$265) -> 3444.739842 | M13: =LOOKUP($D13,'Disbursment Analysis'!$231:$231,'Disbursment Analysis'!$260:$260)-G13 -> 280818.2468 | N13: =LOOKUP($D13,'Disbursment Analysis'!$231:$231,'Disbursment Analysis'!$264:$264)-H13 -> 9108.220467 | O13: =LOOKUP($D13,'Disbursment Analysis'!$231:$231,'Disbursment Analysis'!$261:$261)-I13 -> 10029.2231
D14: 2017-06-01 | E14: =LOOKUP($D14,'Disbursment Analysis'!$231:$231,'Disbursment Analysis'!$251:$251) -> 26164929.18 | F14: =LOOKUP($D14,'Disbursment Analysis'!$231:$231,'Disbursment Analysis'!$252:$252) -> 662355.72 | G14: =LOOKUP($D14,'Disbursment Analysis'!$231:$231,'Disbursment Analysis'!$255:$255) -> 0 | H14: =LOOKUP($D14,'Disbursment Analysis'!$231:$231,'Disbursment Analysis'!$255:$255) -> 0 | I14: =LOOKUP($D14,'Disbursment Analysis'!$231:$231,'Disbursment Analysis'!$254:$254) -> 0 | J14: =LOOKUP($D14,'Disbursment Analysis'!$231:$231,'Disbursment Analysis'!$258:$258) -> 26827284.9 | K14: =LOOKUP($D14,'Disbursment Analysis'!$231:$231,'Disbursment Analysis'!$272:$272) -> 0 | L14: =LOOKUP($D14,'Disbursment Analysis'!$231:$231,'Disbursment Analysis'!$265:$265) -> 3287.630311 | M14: =LOOKUP($D14,'Disbursment Analysis'!$231:$231,'Disbursment Analysis'!$260:$260)-G14 -> 305257.5071 | N14: =LOOKUP($D14,'Disbursment Analysis'!$231:$231,'Disbursment Analysis'!$264:$264)-H14 -> 7362.559017 | O14: =LOOKUP($D14,'Disbursment Analysis'!$231:$231,'Disbursment Analysis'!$261:$261)-I14 -> 10902.05382
D15: 2017-07-01 | E15: =LOOKUP($D15,'Disbursment Analysis'!$231:$231,'Disbursment Analysis'!$251:$251) -> 26827284.9 | F15: =LOOKUP($D15,'Disbursment Analysis'!$231:$231,'Disbursment Analysis'!$252:$252) -> 2947606.74 | G15: =LOOKUP($D15,'Disbursment Analysis'!$231:$231,'Disbursment Analysis'!$255:$255) -> 0 | H15: =LOOKUP($D15,'Disbursment Analysis'!$231:$231,'Disbursment Analysis'!$255:$255) -> 0 | I15: =LOOKUP($D15,'Disbursment Analysis'!$231:$231,'Disbursment Analysis'!$254:$254) -> 0 | J15: =LOOKUP($D15,'Disbursment Analysis'!$231:$231,'Disbursment Analysis'!$258:$258) -> 29774891.64 | K15: =LOOKUP($D15,'Disbursment Analysis'!$231:$231,'Disbursment Analysis'!$272:$272) -> 0 | L15: =LOOKUP($D15,'Disbursment Analysis'!$231:$231,'Disbursment Analysis'!$265:$265) -> 3237.953632 | M15: =LOOKUP($D15,'Disbursment Analysis'!$231:$231,'Disbursment Analysis'!$260:$260)-G15 -> 312984.9905 | N15: =LOOKUP($D15,'Disbursment Analysis'!$231:$231,'Disbursment Analysis'!$264:$264)-H15 -> 6810.595917 | O15: =LOOKUP($D15,'Disbursment Analysis'!$231:$231,'Disbursment Analysis'!$261:$261)-I15 -> 11178.03537
D16: 2017-08-01 | E16: =LOOKUP($D16,'Disbursment Analysis'!$231:$231,'Disbursment Analysis'!$251:$251) -> 29774891.64 | F16: =LOOKUP($D16,'Disbursment Analysis'!$231:$231,'Disbursment Analysis'!$252:$252) -> 1319489.34 | G16: =LOOKUP($D16,'Disbursment Analysis'!$231:$231,'Disbursment Analysis'!$255:$255) -> 0 | H16: =LOOKUP($D16,'Disbursment Analysis'!$231:$231,'Disbursment Analysis'!$255:$255) -> 0 | I16: =LOOKUP($D16,'Disbursment Analysis'!$231:$231,'Disbursment Analysis'!$254:$254) -> 0 | J16: =LOOKUP($D16,'Disbursment Analysis'!$231:$231,'Disbursment Analysis'!$258:$258) -> 31094380.98 | K16: =LOOKUP($D16,'Disbursment Analysis'!$231:$231,'Disbursment Analysis'!$272:$272) -> 0 | L16: =LOOKUP($D16,'Disbursment Analysis'!$231:$231,'Disbursment Analysis'!$265:$265) -> 3016.883127 | M16: =LOOKUP($D16,'Disbursment Analysis'!$231:$231,'Disbursment Analysis'!$260:$260)-G16 -> 347373.7358 | N16: =LOOKUP($D16,'Disbursment Analysis'!$231:$231,'Disbursment Analysis'!$264:$264)-H16 -> 4354.256967 | O16: =LOOKUP($D16,'Disbursment Analysis'!$231:$231,'Disbursment Analysis'!$261:$261)-I16 -> 12406.20485
D17: 2017-09-01 | E17: =LOOKUP($D17,'Disbursment Analysis'!$231:$231,'Disbursment Analysis'!$251:$251) -> 31094380.98 | F17: =LOOKUP($D17,'Disbursment Analysis'!$231:$231,'Disbursment Analysis'!$252:$252) -> 1275378 | G17: =LOOKUP($D17,'Disbursment Analysis'!$231:$231,'Disbursment Analysis'!$255:$255) -> 0 | H17: =LOOKUP($D17,'Disbursment Analysis'!$231:$231,'Disbursment Analysis'!$255:$255) -> 0 | I17: =LOOKUP($D17,'Disbursment Analysis'!$231:$231,'Disbursment Analysis'!$254:$254) -> 0 | J17: =LOOKUP($D17,'Disbursment Analysis'!$231:$231,'Disbursment Analysis'!$258:$258) -> 32369758.98 | K17: =LOOKUP($D17,'Disbursment Analysis'!$231:$231,'Disbursment Analysis'!$272:$272) -> 0 | L17: =LOOKUP($D17,'Disbursment Analysis'!$231:$231,'Disbursment Analysis'!$265:$265) -> 2917.921426 | M17: =LOOKUP($D17,'Disbursment Analysis'!$231:$231,'Disbursment Analysis'!$260:$260)-G17 -> 362767.7781 | N17: =LOOKUP($D17,'Disbursment Analysis'!$231:$231,'Disbursment Analysis'!$264:$264)-H17 -> 3254.682517 | O17: =LOOKUP($D17,'Disbursment Analysis'!$231:$231,'Disbursment Analysis'!$261:$261)-I17 -> 12955.99207
D18: 2017-10-01 | E18: =LOOKUP($D18,'Disbursment Analysis'!$231:$231,'Disbursment Analysis'!$251:$251) -> 32369758.98 | F18: =LOOKUP($D18,'Disbursment Analysis'!$231:$231,'Disbursment Analysis'!$252:$252) -> 881400 | G18: =LOOKUP($D18,'Disbursment Analysis'!$231:$231,'Disbursment Analysis'!$255:$255) -> 0 | H18: =LOOKUP($D18,'Disbursment Analysis'!$231:$231,'Disbursment Analysis'!$255:$255) -> 0 | I18: =LOOKUP($D18,'Disbursment Analysis'!$231:$231,'Disbursment Analysis'!$254:$254) -> 0 | J18: =LOOKUP($D18,'Disbursment Analysis'!$231:$231,'Disbursment Analysis'!$258:$258) -> 33251158.98 | K18: =LOOKUP($D18,'Disbursment Analysis'!$231:$231,'Disbursment Analysis'!$272:$272) -> 0 | L18: =LOOKUP($D18,'Disbursment Analysis'!$231:$231,'Disbursment Analysis'!$265:$265) -> 2822.268076 | M18: =LOOKUP($D18,'Disbursment Analysis'!$231:$231,'Disbursment Analysis'!$260:$260)-G18 -> 377647.1881 | N18: =LOOKUP($D18,'Disbursment Analysis'!$231:$231,'Disbursment Analysis'!$264:$264)-H18 -> 2191.867517 | O18: =LOOKUP($D18,'Disbursment Analysis'!$231:$231,'Disbursment Analysis'!$261:$261)-I18 -> 13487.39957
D19: 2017-11-01 | E19: =LOOKUP($D19,'Disbursment Analysis'!$231:$231,'Disbursment Analysis'!$251:$251) -> 33251158.98 | F19: =LOOKUP($D19,'Disbursment Analysis'!$231:$231,'Disbursment Analysis'!$252:$252) -> 1608767.16 | G19: =LOOKUP($D19,'Disbursment Analysis'!$231:$231,'Disbursment Analysis'!$255:$255) -> 0 | H19: =LOOKUP($D19,'Disbursment Analysis'!$231:$231,'Disbursment Analysis'!$255:$255) -> 0 | I19: =LOOKUP($D19,'Disbursment Analysis'!$231:$231,'Disbursment Analysis'!$254:$254) -> 0 | J19: =LOOKUP($D19,'Disbursment Analysis'!$231:$231,'Disbursment Analysis'!$258:$258) -> 34859926.14 | K19: =LOOKUP($D19,'Disbursment Analysis'!$231:$231,'Disbursment Analysis'!$272:$272) -> 0 | L19: =LOOKUP($D19,'Disbursment Analysis'!$231:$231,'Disbursment Analysis'!$265:$265) -> 2756.163076 | M19: =LOOKUP($D19,'Disbursment Analysis'!$231:$231,'Disbursment Analysis'!$260:$260)-G19 -> 387930.1881 | N19: =LOOKUP($D19,'Disbursment Analysis'!$231:$231,'Disbursment Analysis'!$264:$264)-H19 -> 1457.367517 | O19: =LOOKUP($D19,'Disbursment Analysis'!$231:$231,'Disbursment Analysis'!$261:$261)-I19 -> 13854.64957
D20: 2017-12-01 | E20: =LOOKUP($D20,'Disbursment Analysis'!$231:$231,'Disbursment Analysis'!$251:$251) -> 34859926.14 | F20: =LOOKUP($D20,'Disbursment Analysis'!$231:$231,'Disbursment Analysis'!$252:$252) -> 140073.86 | G20: =LOOKUP($D20,'Disbursment Analysis'!$231:$231,'Disbursment Analysis'!$255:$255) -> 0 | H20: =LOOKUP($D20,'Disbursment Analysis'!$231:$231,'Disbursment Analysis'!$255:$255) -> 0 | I20: =LOOKUP($D20,'Disbursment Analysis'!$231:$231,'Disbursment Analysis'!$254:$254) -> 0 | J20: =LOOKUP($D20,'Disbursment Analysis'!$231:$231,'Disbursment Analysis'!$258:$258) -> 35000000 | K20: =LOOKUP($D20,'Disbursment Analysis'!$231:$231,'Disbursment Analysis'!$272:$272) -> 0 | L20: =LOOKUP($D20,'Disbursment Analysis'!$231:$231,'Disbursment Analysis'!$265:$265) -> 2635.505539 | M20: =LOOKUP($D20,'Disbursment Analysis'!$231:$231,'Disbursment Analysis'!$260:$260)-G20 -> 406699.1383 | N20: =LOOKUP($D20,'Disbursment Analysis'!$231:$231,'Disbursment Analysis'!$264:$264)-H20 -> 116.7282167 | O20: =LOOKUP($D20,'Disbursment Analysis'!$231:$231,'Disbursment Analysis'!$261:$261)-I20 -> 14524.96922
D21: 2018-01-01 | E21: =LOOKUP($D21,'Disbursment Analysis'!$231:$231,'Disbursment Analysis'!$251:$251) -> 35000000 | F21: =LOOKUP($D21,'Disbursment Analysis'!$231:$231,'Disbursment Analysis'!$252:$252) -> 0 | G21: =LOOKUP($D21,'Disbursment Analysis'!$231:$231,'Disbursment Analysis'!$255:$255) -> 0 | H21: =LOOKUP($D21,'Disbursment Analysis'!$231:$231,'Disbursment Analysis'!$255:$255) -> 0 | I21: =LOOKUP($D21,'Disbursment Analysis'!$231:$231,'Disbursment Analysis'!$254:$254) -> 0 | J21: =LOOKUP($D21,'Disbursment Analysis'!$231:$231,'Disbursment Analysis'!$258:$258) -> 35000000 | K21: =LOOKUP($D21,'Disbursment Analysis'!$231:$231,'Disbursment Analysis'!$272:$272) -> 0 | L21: =LOOKUP($D21,'Disbursment Analysis'!$231:$231,'Disbursment Analysis'!$265:$265) -> 2625 | M21: =LOOKUP($D21,'Disbursment Analysis'!$231:$231,'Disbursment Analysis'!$260:$260)-G21 -> 408333.3333 | N21: =LOOKUP($D21,'Disbursment Analysis'!$231:$231,'Disbursment Analysis'!$264:$264)-H21 -> 0 | O21: =LOOKUP($D21,'Disbursment Analysis'!$231:$231,'Disbursment Analysis'!$261:$261)-I21 -> 14583.33333
D22: 2018-02-01 | E22: =LOOKUP($D22,'Disbursment Analysis'!$231:$231,'Disbursment Analysis'!$251:$251) -> 35000000 | F22: =LOOKUP($D22,'Disbursment Analysis'!$231:$231,'Disbursment Analysis'!$252:$252) -> 0 | G22: =LOOKUP($D22,'Disbursment Analysis'!$231:$231,'Disbursment Analysis'!$255:$255) -> 0 | H22: =LOOKUP($D22,'Disbursment Analysis'!$231:$231,'Disbursment Analysis'!$255:$255) -> 0 | I22: =LOOKUP($D22,'Disbursment Analysis'!$231:$231,'Disbursment Analysis'!$254:$254) -> 0 | J22: =LOOKUP($D22,'Disbursment Analysis'!$231:$231,'Disbursment Analysis'!$258:$258) -> 35000000 | K22: =LOOKUP($D22,'Disbursment Analysis'!$231:$231,'Disbursment Analysis'!$272:$272) -> 0 | L22: =LOOKUP($D22,'Disbursment Analysis'!$231:$231,'Disbursment Analysis'!$265:$265) -> 2625 | M22: =LOOKUP($D22,'Disbursment Analysis'!$231:$231,'Disbursment Analysis'!$260:$260)-G22 -> 408333.3333 | N22: =LOOKUP($D22,'Disbursment Analysis'!$231:$231,'Disbursment Analysis'!$264:$264)-H22 -> 0 | O22: =LOOKUP($D22,'Disbursment Analysis'!$231:$231,'Disbursment Analysis'!$261:$261)-I22 -> 14583.33333
D23: 2018-03-01 | E23: =LOOKUP($D23,'Disbursment Analysis'!$231:$231,'Disbursment Analysis'!$251:$251) -> 35000000 | F23: =LOOKUP($D23,'Disbursment Analysis'!$231:$231,'Disbursment Analysis'!$252:$252) -> 0 | G23: =LOOKUP($D23,'Disbursment Analysis'!$231:$231,'Disbursment Analysis'!$255:$255) -> 0 | H23: =LOOKUP($D23,'Disbursment Analysis'!$231:$231,'Disbursment Analysis'!$255:$255) -> 0 | I23: =LOOKUP($D23,'Disbursment Analysis'!$231:$231,'Disbursment Analysis'!$254:$254) -> 0 | J23: =LOOKUP($D23,'Disbursment Analysis'!$231:$231,'Disbursment Analysis'!$258:$258) -> 35000000 | K23: =LOOKUP($D23,'Disbursment Analysis'!$231:$231,'Disbursment Analysis'!$272:$272) -> 0 | L23: =LOOKUP($D23,'Disbursment Analysis'!$231:$231,'Disbursment Analysis'!$265:$265) -> 2625 | M23: =LOOKUP($D23,'Disbursment Analysis'!$231:$231,'Disbursment Analysis'!$260:$260)-G23 -> 408333.3333 | N23: =LOOKUP($D23,'Disbursment Analysis'!$231:$231,'Disbursment Analysis'!$264:$264)-H23 -> 0 | O23: =LOOKUP($D23,'Disbursment Analysis'!$231:$231,'Disbursment Analysis'!$261:$261)-I23 -> 14583.33333
D24: 2018-04-01 | E24: =LOOKUP($D24,'Disbursment Analysis'!$231:$231,'Disbursment Analysis'!$251:$251) -> 35000000 | F24: =LOOKUP($D24,'Disbursment Analysis'!$231:$231,'Disbursment Analysis'!$252:$252) -> 0 | G24: =LOOKUP($D24,'Disbursment Analysis'!$231:$231,'Disbursment Analysis'!$255:$255) -> 0 | H24: =LOOKUP($D24,'Disbursment Analysis'!$231:$231,'Disbursment Analysis'!$255:$255) -> 0 | I24: =LOOKUP($D24,'Disbursment Analysis'!$231:$231,'Disbursment Analysis'!$254:$254) -> 0 | J24: =LOOKUP($D24,'Disbursment Analysis'!$231:$231,'Disbursment Analysis'!$258:$258) -> 35000000 | K24: =LOOKUP($D24,'Disbursment Analysis'!$231:$231,'Disbursment Analysis'!$272:$272) -> 0 | L24: =LOOKUP($D24,'Disbursment Analysis'!$231:$231,'Disbursment Analysis'!$265:$265) -> 0 | M24: =LOOKUP($D24,'Disbursment Analysis'!$231:$231,'Disbursment Analysis'!$260:$260)-G24 -> 0 | N24: =LOOKUP($D24,'Disbursment Analysis'!$231:$231,'Disbursment Analysis'!$264:$264)-H24 -> 0 | O24: =LOOKUP($D24,'Disbursment Analysis'!$231:$231,'Disbursment Analysis'!$261:$261)-I24 -> 0
D25: 2018-05-01 | E25: =LOOKUP($D25,'Disbursment Analysis'!$231:$231,'Disbursment Analysis'!$251:$251) -> 35000000 | F25: =LOOKUP($D25,'Disbursment Analysis'!$231:$231,'Disbursment Analysis'!$252:$252) -> 0 | G25: =LOOKUP($D25,'Disbursment Analysis'!$231:$231,'Disbursment Analysis'!$255:$255) -> 0 | H25: =LOOKUP($D25,'Disbursment Analysis'!$231:$231,'Disbursment Analysis'!$255:$255) -> 0 | I25: =LOOKUP($D25,'Disbursment Analysis'!$231:$231,'Disbursment Analysis'!$254:$254) -> 0 | J25: =LOOKUP($D25,'Disbursment Analysis'!$231:$231,'Disbursment Analysis'!$258:$258) -> 35000000 | K25: =LOOKUP($D25,'Disbursment Analysis'!$231:$231,'Disbursment Analysis'!$272:$272) -> 0 | L25: =LOOKUP($D25,'Disbursment Analysis'!$231:$231,'Disbursment Analysis'!$265:$265) -> 0 | M25: =LOOKUP($D25,'Disbursment Analysis'!$231:$231,'Disbursment Analysis'!$260:$260)-G25 -> 0 | N25: =LOOKUP($D25,'Disbursment Analysis'!$231:$231,'Disbursment Analysis'!$264:$264)-H25 -> 0 | O25: =LOOKUP($D25,'Disbursment Analysis'!$231:$231,'Disbursment Analysis'!$261:$261)-I25 -> 0
D26: 2018-06-01 | E26: =LOOKUP($D26,'Disbursment Analysis'!$231:$231,'Disbursment Analysis'!$251:$251) -> 35000000 | F26: =LOOKUP($D26,'Disbursment Analysis'!$231:$231,'Disbursment Analysis'!$252:$252) -> 0 | G26: =LOOKUP($D26,'Disbursment Analysis'!$231:$231,'Disbursment Analysis'!$255:$255) -> 0 | H26: =LOOKUP($D26,'Disbursment Analysis'!$231:$231,'Disbursment Analysis'!$255:$255) -> 0 | I26: =LOOKUP($D26,'Disbursment Analysis'!$231:$231,'Disbursment Analysis'!$254:$254) -> 0 | J26: =LOOKUP($D26,'Disbursment Analysis'!$231:$231,'Disbursment Analysis'!$258:$258) -> 35000000 | K26: =LOOKUP($D26,'Disbursment Analysis'!$231:$231,'Disbursment Analysis'!$272:$272) -> 0 | L26: =LOOKUP($D26,'Disbursment Analysis'!$231:$231,'Disbursment Analysis'!$265:$265) -> 0 | M26: =LOOKUP($D26,'Disbursment Analysis'!$231:$231,'Disbursment Analysis'!$260:$260)-G26 -> 0 | N26: =LOOKUP($D26,'Disbursment Analysis'!$231:$231,'Disbursment Analysis'!$264:$264)-H26 -> 0 | O26: =LOOKUP($D26,'Disbursment Analysis'!$231:$231,'Disbursment Analysis'!$261:$261)-I26 -> 0
D27: 2018-07-01 | E27: =LOOKUP($D27,'Disbursment Analysis'!$231:$231,'Disbursment Analysis'!$251:$251) -> 35000000 | F27: =LOOKUP($D27,'Disbursment Analysis'!$231:$231,'Disbursment Analysis'!$252:$252) -> 0 | G27: =LOOKUP($D27,'Disbursment Analysis'!$231:$231,'Disbursment Analysis'!$255:$255) -> 0 | H27: =LOOKUP($D27,'Disbursment Analysis'!$231:$231,'Disbursment Analysis'!$255:$255) -> 0 | I27: =LOOKUP($D27,'Disbursment Analysis'!$231:$231,'Disbursment Analysis'!$254:$254) -> 0 | J27: =LOOKUP($D27,'Disbursment Analysis'!$231:$231,'Disbursment Analysis'!$258:$258) -> 35000000 | K27: =LOOKUP($D27,'Disbursment Analysis'!$231:$231,'Disbursment Analysis'!$272:$272) -> 0 | L27: =LOOKUP($D27,'Disbursment Analysis'!$231:$231,'Disbursment Analysis'!$265:$265) -> 0 | M27: =LOOKUP($D27,'Disbursment Analysis'!$231:$231,'Disbursment Analysis'!$260:$260)-G27 -> 0 | N27: =LOOKUP($D27,'Disbursment Analysis'!$231:$231,'Disbursment Analysis'!$264:$264)-H27 -> 0 | O27: =LOOKUP($D27,'Disbursment Analysis'!$231:$231,'Disbursment Analysis'!$261:$261)-I27 -> 0
D28: 2018-08-01 | E28: =LOOKUP($D28,'Disbursment Analysis'!$231:$231,'Disbursment Analysis'!$251:$251) -> 35000000 | F28: =LOOKUP($D28,'Disbursment Analysis'!$231:$231,'Disbursment Analysis'!$252:$252) -> 0 | G28: =LOOKUP($D28,'Disbursment Analysis'!$231:$231,'Disbursment Analysis'!$255:$255) -> 0 | H28: =LOOKUP($D28,'Disbursment Analysis'!$231:$231,'Disbursment Analysis'!$255:$255) -> 0 | I28: =LOOKUP($D28,'Disbursment Analysis'!$231:$231,'Disbursment Analysis'!$254:$254) -> 0 | J28: =LOOKUP($D28,'Disbursment Analysis'!$231:$231,'Disbursment Analysis'!$258:$258) -> 35000000 | K28: =LOOKUP($D28,'Disbursment Analysis'!$231:$231,'Disbursment Analysis'!$272:$272) -> 0 | L28: =LOOKUP($D28,'Disbursment Analysis'!$231:$231,'Disbursment Analysis'!$265:$265) -> 0 | M28: =LOOKUP($D28,'Disbursment Analysis'!$231:$231,'Disbursment Analysis'!$260:$260)-G28 -> 0 | N28: =LOOKUP($D28,'Disbursment Analysis'!$231:$231,'Disbursment Analysis'!$264:$264)-H28 -> 0 | O28: =LOOKUP($D28,'Disbursment Analysis'!$231:$231,'Disbursment Analysis'!$261:$261)-I28 -> 0
D29: 2018-09-01 | E29: =LOOKUP($D29,'Disbursment Analysis'!$231:$231,'Disbursment Analysis'!$251:$251) -> 35000000 | F29: =LOOKUP($D29,'Disbursment Analysis'!$231:$231,'Disbursment Analysis'!$252:$252) -> 0 | G29: =LOOKUP($D29,'Disbursment Analysis'!$231:$231,'Disbursment Analysis'!$255:$255) -> 0 | H29: =LOOKUP($D29,'Disbursment Analysis'!$231:$231,'Disbursment Analysis'!$255:$255) -> 0 | I29: =LOOKUP($D29,'Disbursment Analysis'!$231:$231,'Disbursment Analysis'!$254:$254) -> 0 | J29: =LOOKUP($D29,'Disbursment Analysis'!$231:$231,'Disbursment Analysis'!$258:$258) -> 35000000 | K29: =LOOKUP($D29,'Disbursment Analysis'!$231:$231,'Disbursment Analysis'!$272:$272) -> 0 | L29: =LOOKUP($D29,'Disbursment Analysis'!$231:$231,'Disbursment Analysis'!$265:$265) -> 0 | M29: =LOOKUP($D29,'Disbursment Analysis'!$231:$231,'Disbursment Analysis'!$260:$260)-G29 -> 0 | N29: =LOOKUP($D29,'Disbursment Analysis'!$231:$231,'Disbursment Analysis'!$264:$264)-H29 -> 0 | O29: =LOOKUP($D29,'Disbursment Analysis'!$231:$231,'Disbursment Analysis'!$261:$261)-I29 -> 0
D30: 2018-10-01 | E30: =LOOKUP($D30,'Disbursment Analysis'!$231:$231,'Disbursment Analysis'!$251:$251) -> 35000000 | F30: =LOOKUP($D30,'Disbursment Analysis'!$231:$231,'Disbursment Analysis'!$252:$252) -> 0 | G30: =LOOKUP($D30,'Disbursment Analysis'!$231:$231,'Disbursment Analysis'!$255:$255) -> 0 | H30: =LOOKUP($D30,'Disbursment Analysis'!$231:$231,'Disbursment Analysis'!$255:$255) -> 0 | I30: =LOOKUP($D30,'Disbursment Analysis'!$231:$231,'Disbursment Analysis'!$254:$254) -> 0 | J30: =LOOKUP($D30,'Disbursment Analysis'!$231:$231,'Disbursment Analysis'!$258:$258) -> 35000000 | K30: =LOOKUP($D30,'Disbursment Analysis'!$231:$231,'Disbursment Analysis'!$272:$272) -> 0 | L30: =LOOKUP($D30,'Disbursment Analysis'!$231:$231,'Disbursment Analysis'!$265:$265) -> 0 | M30: =LOOKUP($D30,'Disbursment Analysis'!$231:$231,'Disbursment Analysis'!$260:$260)-G30 -> 0 | N30: =LOOKUP($D30,'Disbursment Analysis'!$231:$231,'Disbursment Analysis'!$264:$264)-H30 -> 0 | O30: =LOOKUP($D30,'Disbursment Analysis'!$231:$231,'Disbursment Analysis'!$261:$261)-I30 -> 0
D31: 2018-11-01 | E31: =LOOKUP($D31,'Disbursment Analysis'!$231:$231,'Disbursment Analysis'!$251:$251) -> 35000000 | F31: =LOOKUP($D31,'Disbursment Analysis'!$231:$231,'Disbursment Analysis'!$252:$252) -> 0 | G31: =LOOKUP($D31,'Disbursment Analysis'!$231:$231,'Disbursment Analysis'!$255:$255) -> 0 | H31: =LOOKUP($D31,'Disbursment Analysis'!$231:$231,'Disbursment Analysis'!$255:$255) -> 0 | I31: =LOOKUP($D31,'Disbursment Analysis'!$231:$231,'Disbursment Analysis'!$254:$254) -> 0 | J31: =LOOKUP($D31,'Disbursment Analysis'!$231:$231,'Disbursment Analysis'!$258:$258) -> 35000000 | K31: =LOOKUP($D31,'Disbursment Analysis'!$231:$231,'Disbursment Analysis'!$272:$272) -> 0 | L31: =LOOKUP($D31,'Disbursment Analysis'!$231:$231,'Disbursment Analysis'!$265:$265) -> 0 | M31: =LOOKUP($D31,'Disbursment Analysis'!$231:$231,'Disbursment Analysis'!$260:$260)-G31 -> 0 | N31: =LOOKUP($D31,'Disbursment Analysis'!$231:$231,'Disbursment Analysis'!$264:$264)-H31 -> 0 | O31: =LOOKUP($D31,'Disbursment Analysis'!$231:$231,'Disbursment Analysis'!$261:$261)-I31 -> 0
D32: 2018-12-01 | E32: =LOOKUP($D32,'Disbursment Analysis'!$231:$231,'Disbursment Analysis'!$251:$251) -> 35000000 | F32: =LOOKUP($D32,'Disbursment Analysis'!$231:$231,'Disbursment Analysis'!$252:$252) -> 0 | G32: =LOOKUP($D32,'Disbursment Analysis'!$231:$231,'Disbursment Analysis'!$255:$255) -> 0 | H32: =LOOKUP($D32,'Disbursment Analysis'!$231:$231,'Disbursment Analysis'!$255:$255) -> 0 | I32: =LOOKUP($D32,'Disbursment Analysis'!$231:$231,'Disbursment Analysis'!$254:$254) -> 0 | J32: =LOOKUP($D32,'Disbursment Analysis'!$231:$231,'Disbursment Analysis'!$258:$258) -> 35000000 | K32: =LOOKUP($D32,'Disbursment Analysis'!$231:$231,'Disbursment Analysis'!$272:$272) -> 0 | L32: =LOOKUP($D32,'Disbursment Analysis'!$231:$231,'Disbursment Analysis'!$265:$265) -> 0 | M32: =LOOKUP($D32,'Disbursment Analysis'!$231:$231,'Disbursment Analysis'!$260:$260)-G32 -> 0 | N32: =LOOKUP($D32,'Disbursment Analysis'!$231:$231,'Disbursment Analysis'!$264:$264)-H32 -> 0 | O32: =LOOKUP($D32,'Disbursment Analysis'!$231:$231,'Disbursment Analysis'!$261:$261)-I32 -> 0
D35: Total | F35: =SUM(F5:F24) -> 35000000 | G35: =SUM(G5:G24) -> 0 | H35: =SUM(H5:H24) -> 0 | I35: =SUM(I5:I24) -> 0 | K35: =SUM(K5:K32) -> 105000 | L35: =SUM(L5:L32) -> 87601.39605 | M35: =SUM(M5:M32) -> 4829782.836 | N35: =SUM(N5:N32) -> 209182.1784 | O35: =SUM(O5:O32) -> 172492.2442

Sheet Expense Detail
B2: Operating Expenses (RWF) | D2: RWF Annual | E2: USD | F2: USD Monthly | G2: Check | H2: USD to RWF | I2: 790
B4: Gas Plant Salaries
B5: =B25 -> Plant Manager | D5: =E5*$I$2 -> 227156600 | E5: =F25 -> 287540 | F5: =E25 -> 23961.66667
B6: Divers | D6: =E6*$I$2 -> 46060160 | E6: =F31 -> 58304 | F6: =E31 -> 4858.666667
B7: Boat Pilots | D7: 14662400 | E7: =F32 -> 18560 | F7: =E32 -> 1546.666667
B8: Other | D8: =D9-D7 -> 422375080 | E8: =E9-E7 -> 534652 | F8: 44554.33333
B9: Salaries | D9: =F34*I2 -> 437037480 | E9: =D9/$I$2 -> 553212 | F9: =E9/12 -> 46101 | G9: =F9=E34 -> TRUE
B10: Gas Operating Cost | D10: =G56*I2 -> 239344325 | E10: =D10/$I$2 -> 302967.5 | F10: =E10/12 -> 25247.29167 | G10: =F10=F56 -> TRUE
B11: Overheads Other than Insurance | D11: =E11*I2 -> 423759160 | E11: =H75-H71 -> 536404 | F11: 44700.33333 | G11: =G75=F11+F12 -> TRUE
B12: Insurance Cost | D12: =E12*I2 -> 299735294.1 | E12: =H71 -> 379411.7647 | F12: =E12/12 -> 31617.64706
B13: Total Fixed Operating Expenses | D13: =SUM(D9:D12) -> 1399876259
D14: 1399876259
B16: Variable Operating Expenses | D16: RWF KWh | E16: USD KWh | F16: USD/MWH
B17: Lubricration oil | D17: =E17*I2 -> 1.975 | E17: =F17/1000 -> 0.0025 | F17: 2.5
B18: Run hour based maintenance | D18: =E18*I2 -> 2.332396 | E18: =F18/1000 -> 0.0029524 | F18: 2.9524
B19: Total Variable Opex | D19: =SUM(D17:D18) -> 4.307396 | E19: =SUM(E17:E18) -> 0.0054524 | F19: =SUM(F17:F18) -> 5.4524 | G19: =E19*1000 -> 5.4524
B20: Production - kWh | D20: 112828800 | E20: =D20 -> 112828800
B21: Total Expense | D21: 475433140.9 | E21: =E20*E19 -> 615187.7491
D22: =D21/D20 -> 4.213756957
B23: Gas Plant Salaries
B24: Salaries | C24: Number | D24: Monthly | E24: Monthly | F24: Annual | H24: Total Monthly (Including other Staff benefits eg. Air tickets, housing etc)
B25: Plant Manager | C25: 1 | D25: 14000 | E25: 23961.66667 | F25: =E25*12 -> 287540
B26: Day shift admin staff | C26: 1 | D26: 700 | E26: 800.6666667 | F26: =E26*12 -> 9608
B27: Shift supervisors | C27: 4 | D27: 1000 | E27: 4858.666667 | F27: 58304
B28: Skilled operators | C28: 8 | D28: 700 | E28: 6405.333333 | F28: 76864
B29: Semi skilled | C29: 4 | D29: 500 | E29: 2098.666667 | F29: 25184
B30: Unskilled | C30: 4 | D30: 350 | E30: 1270.666667 | F30: 15248 | K30: 98400
B31: Divers | C31: 6 | D31: 1000 | E31: 4858.666667 | F31: 58304
B32: Boat pilots | C32: 4 | D32: 400 | E32: 1546.666667 | F32: 18560
B33: Security | C33: 2 | D33: 150 | E33: =D33*C33 -> 300 | F33: 3600
B34: Total | E34: =SUM(E25:E33) -> 46101 | F34: =SUM(F25:F33) -> 553212
B37: Operating Expenses | C37: Number | E37: Unit Cost | F37: Monthly | G37: Annual
B38: Freight costs | C38: 1 | D38: containers per year | E38: 10000 | F38: 833.3333333 | G38: =F38*12 -> 10000
B39: Crew boat running costs | C39: =6*15 -> 90 | D39: km per day (15 km round trip) | E39: 2.85 | F39: 5130 | G39: =F39*12 -> 61560
B40: Work boat running costs | C40: =3/12+1/3 -> 0.5833333333 | D40: days overhaul per gas train | E40: 997.5 | F40: 2161.25 | G40: 25935
B41: Offshore 50 kW diesel backup gensets | C41: 50 | D41: hours operation per year | E41: 21 | F41: 87.5 | G41: 1050
B42: Training | C42: =3*2/12*$R$81 -> 0 | D42: days training per month | E42: 2500 | F42: 5000 | G42: 60000
B43: PPE | C43: 1 | D43: lot per shift per month | E43: 250 | F43: 1000 | G43: 12000
B44: Site vehicles | C44: 2 | D44: vehicles | E44: 55 | F44: 3300 | G44: 39600
B45: Site vehicles - fuel | C45: 20 | D45: km/day average travel | E45: 0.15 | F45: 180 | G45: 2160
B46: Maintenance
B47: Compressors - lube oil | C47: =$R$26*24*$R$30*$R$31*$R$28 -> 0 | D47: MWh per month | E47: 2.5 | F47: 2916 | G47: 34992
B48: Compressors - bearings | C48: 1 | D48: set per year per compressor | E48: 5000 | F48: 833.3333333 | G48: 10000
B49: Compressors - 8,000 hour overhauls | C49: 1 | D49: major overhaul per year | E49: 10720.5 | F49: 893.375 | G49: 10720.5
B50: Washwater pumps - bearings | C50: 1 | D50: set per year per pump | E50: 1800 | F50: 300 | G50: 3600
B51: Washwater pumps - 3 month overhauls | C51: 4 | D51: minor overhauls per year | E51: 1200 | F51: 800 | G51: 9600
B52: Instrument and meter calibration | C52: 1 | D52: calibration visit per 6 months | E52: 875 | F52: 145.8333333 | G52: 1750
B53: Remainder of plant | C53: 1 | D53: lot per year | E53: 5000 | F53: 416.6666667 | G53: 5000
B54: Management prescriptions compliance | C54: 1 | D54: lot per month | E54: 1250 | F54: 1250 | G54: 15000
B55: Contingency | C55: 0 | F55: =C55*SUM(F38:F54) -> 0 | G55: 0
E56: Total | F56: =SUM(F38:F55) -> 25247.29167 | G56: =SUM(G38:G55) -> 302967.5
B60: Overheads | E60: Unit Cost | G60: Monthly | H60: Annual
B61: Site lease | E61: 20000 | F61: per year | G61: =E61/12 -> 1666.666667 | H61: =G61*12 -> 20000
B62: Management, admin and finance staff | G62: 22000 | H62: =G62*12 -> 264000
B63: Insurance - workers | C63: 31 | D63: persons | E63: 100 | F63: pp (avg) | G63: =C63*E63 -> 3100 | H63: 37200
B64: Security services | C64: 8 | D64: guards per month | E64: 200 | F64: pp | G64: =(C64*E64)*2 -> 3200 | H64: 38400
B65: Cleaning/gardening/ building maintenance | C65: 1 | D65: lot per month | E65: 1000 | F65: per lot | G65: =C65*E65 -> 1000 | H65: 12000
B66: Worker transport from Gisenyi to site | C66: 2 | D66: trips per shift per person | E66: 2 | F66: pp / trip | G66: =30*3*C66*7*E66 -> 2520 | H66: 30240
B67: Meals and water | C67: 1 | D67: meals per shift per person+2L water | E67: 4.285714286 | F67: per meal | G67: =30*7*3*C67*E67 -> 2700 | H67: 32400
B68: Internet subscription on site | G68: 0 | H68: 0
B69: Telecoms | C69: 31 | D69: persons | E69: 26 | F69: pp /month | G69: =E69*C69 -> 806 | H69: 9672
B70: Kigali office lease and operation | G70: 4000 | H70: 48000
B71: Insurances - general | G71: =(1290000/12)/0.85/4 -> 31617.64706 | H71: 379411.7647
B72: Tax filing and audits | G72: =2000+4*250+5000/12 -> 3416.666667 | H72: 41000
B73: Bank fees | C73: 0.0026 | G73: 291 | H73: 3492
B74: Contingency | C74: 0 | G74: =C74*SUM(G61:G73) -> 0 | H74: 0
E75: Total | G75: =SUM(G61:G74) -> 76317.98039 | H75: =SUM(H61:H74) -> 915815.7647
C79: Annual (USD | D79: Annual RWF
B80: Wärtsilä fixed fee | C80: 0 | D80: =C80*I2 -> 0
B83: Depreciation | D83: Cost (FRW) | E83: Percentage | F83: Depreciation
B84: Amortised Start up costs | D84: 3023517384 | E84: 0.1 | F84: =E84*D84 -> 302351738.4
B85: Equipment | D85: 2.081756044e+10 | E85: 0.1 | F85: =E85*D85 -> 2081756044
B86: Constructions | D86: 2.072839679e+10 | E86: 0.05 | F86: =E86*D86 -> 1036419840
B87: Total | F87: =SUM(F84:F86) -> 3420527622

Sheet Summary Sheet
F2: PPA | G2: Net MW | H2: ='Financial Model'!BQ75 -> 54.854 | M2: Capital Budget
B4: Outputs: Cost to Rwanda | C4: USD/MWH | D4: RWF/kWh | F4: Outputs: Benefits to Investor | G4: USD | H4: RWF | I4: Real | J4: Uses of Funds | L4: USD | M4: RWF 000
J5: Construction | L5: ='Financial Model'!I263+'Financial Model'!I264+'Financial Model'!I265+'Financial Model'!I266 -> 132455708.4 | M5: ='Financial Model'!J263+'Financial Model'!J264+'Financial Model'!J265+'Financial Model'!J266 -> 114792098.1 | N5: =M5/$M$9 -> 0.8337413297
B6: Levelized Cost of Electricity | C6: ='Financial Model'!G740 -> 98 | D6: ='Financial Model'!G751 -> 148.5985072 | F6: Pre Tax Project IRR | G6: ='Financial Model'!G190 -> 0.1989158094 | H6: ='Financial Model'!G210 -> 0.2827561438 | I6: ='Financial Model'!G201 -> 0.1989158094 | J6: IDC | L6: ='Financial Model'!I267+'Financial Model'!I268 -> 24403152.68 | M6: ='Financial Model'!J267+'Financial Model'!J268 -> 22316734.76 | N6: =M6/$M$9 -> 0.1620876734
B7: Real Levelised Cost of Electricity | C7: ='Financial Model'!G764 -> 98 | D7: ='Financial Model'!G765 -> 76.44 | F7: After Tax Project IRR | G7: ='Financial Model'!G259 -> 0.1910947144 | H7: ='Financial Model'!G246 -> 0.2743874967 | I7: =I6 -> 0.1989158094 | J7: Fees | L7: ='Financial Model'!I269+'Financial Model'!I270 -> 708047.8115 | M7: ='Financial Model'!J269+'Financial Model'!J270 -> 574275.8186 | N7: =M7/$M$9 -> 0.004170996892
J8: DSRA | L8: ='Financial Model'!I271+'Financial Model'!I272 -> 0 | M8: ='Financial Model'!J271+'Financial Model'!J272 -> 0 | N8: =M8/$M$9 -> 0
B9: PPA Components | F9: Debt IRR (All in Interest rate) | G9: ='Financial Model'!G684 -> 0.08420457542 | H9: ='Financial Model'!G594 -> 0.1712399185 | J9: Total | L9: =SUM(L5:L8) -> 157566908.9 | M9: =SUM(M5:M8) -> 137683108.7 | N9: =M9/$M$9 -> 1
B10: Pre-COD Price | C10: =Scenarios!$K$3 -> 98 | D10: =C10*790/1000 -> 77.42 | F10: Payback after COD with Sweep | H10: ='Financial Model'!J596 -> 0.08055555556
J11: Sources of Funds
B12: Capital recovery payment | C12: ='Operating Assumptions'!G191 -> 77 | D12: =C12*790/1000 -> 60.83 | F12: Equity IRR | G12: ='Financial Model'!G680 -> 0.6477166951 | H12: ='Financial Model'!G590 -> 0.5998444498 | J12: Debt Incl Cap Int | L12: ='Financial Model'!I276+'Financial Model'!I277+'Financial Model'!I278+'Financial Model'!I279 -> 148190105.7 | M12: ='Financial Model'!J276+'Financial Model'!J277+'Financial Model'!J278+'Financial Model'!J279 -> 119640493.4 | N12: =M12/$M$14 -> 0.8689554912
B13: Fixed O&M Costs | C13: ='Operating Assumptions'!G192 -> 14 | D13: =C13*790/1000 -> 11.06 | F13: Payback after COD | J13: Equity | L13: ='Financial Model'!I282 -> 9376803.234 | M13: ='Financial Model'!J282 -> 18042615.35 | N13: =M13/$M$14 -> 0.1310445088
B14: Energy Payments | C14: ='Operating Assumptions'!G193 -> 7 | D14: =C14*790/1000 -> 5.53 | J14: Total | L14: =SUM(L12:L13) -> 157566908.9 | M14: =SUM(M12:M13) -> 137683108.7 | N14: =M14/$M$14 -> 1
B15: Total | C15: =SUM(C12:C14) -> 98 | D15: =C15*790/1000 -> 77.42 | F15: Outputs: Lender Perspective
F16: DSCR | G16: ='Financial Model'!G691 -> 1.476599826 | H16: ='Annual Model - RFW'!F182 -> 1.705886149
C17: USD/m3 | D17: RWF/m3 | F17: LLCR | G17: ='Financial Model'!G628 -> 3.336322641 | H17: ='Financial Model'!G715 -> 1.911240525
B18: Levelized Cost of Gas | C18: ='Financial Model'!G814 -> 184.415749 | D18: ='Financial Model'!G816 -> 279.1492448 | F18: PLCR | G18: ='Financial Model'!G721 -> 2.470355954 | H18: ='Financial Model'!G634 -> 4.323208935
B19: Real Levelised Cost of Gas | C19: ='Financial Model'!G815 -> 184.415749
C20: USD/MMBTU | D20: RWF/MMBTU | F20: Operating Characteristics
B21: Levelized Cost of Gas | C21: ='Financial Model'!G801 -> 5.198966296 | D21: ='Financial Model'!G808*1000 -> 7869.650632 | F21: O&M Cost per kW-yr | G21: ='Financial Model'!H149/'Financial Model'!J149 -> 570.726421 | H21: ='Financial Model'!H150/'Financial Model'!J150 -> 631.5649564
B22: Real Levelised Cost of Gas | C22: ='Financial Model'!G804 -> 5.198966296 | F22: O&M Cost per MWH | G22: ='Financial Model'!H149/'Financial Model'!I149 -> 23.9652073 | H22: ='Financial Model'!H150/'Financial Model'!I150 -> 26.51986056
B24: Cost/kW - Phase 1 | C24: ='Operating Assumptions'!L96 -> 3567.180778 | D24: ='Operating Assumptions'!M96 -> 2782.401006 | G24: Phase 1 | H24: Phase 2
B25: Cost/kW - Phase 2 | C25: ='Operating Assumptions'!L100 -> 1998.057047 | D25: ='Operating Assumptions'!M100 -> 1558.484497 | F25: Availability - Overall | G25: =AVERAGE('Financial Model'!66:66) -> 0.93 | H25: =IFERROR(AVERAGE('Financial Model'!67:67),NA()) -> 0.93
B26: Cost/kW - Total | C26: ='Operating Assumptions'!L104 -> 2414.695526 | D26: ='Operating Assumptions'!M104 -> 1883.462511 | F26: Reduction from Gas Quality/HR | G26: =AVERAGE('Financial Model'!59:59) -> 0 | H26: =IFERROR(AVERAGE('Financial Model'!60:60),NA()) -> 0
F27: Reduction from Barge/Separator | G27: =AVERAGE('Financial Model'!L64:ED64) -> 0.02 | H27: =G27 -> 0.02
B28: Expat Plant Manager Payment/Year | C28: ='Operating Assumptions'!H167*12 -> 304100 | F28: Reduction from Electricity Outage | G28: =AVERAGE('Financial Model'!L62:ED62) -> 0.05 | H28: =G28 -> 0.05
F32: Graph of Debt Service

Sheet Scenarios
E2: Overall Availability | F2: ='Summary Sheet'!G25 -> 0.93
B3: CodeNumber | C3: 1 | J3: PPA Price | K3: 98
C5: Construction Period (Months) for First Phase (1) | D5: Capital Cost with Over-run Relative to Company Estimate (2) | E5: Paracitic Load On-Site Electiricy Usage for Natural Gas Facilities (3) | F5: Electricity Plant Availability Not Including Gas Outage (4) | G5: Electricity Efficiency Determing Required Methane (Heat Rate) | H5: Natural Gas Heat Content in KJ/M3 driving use | I5: Natural Gas Availabilty from Barges and Separator | J5: Operating Expense Sensitivity Relative to Company Estimate | K5: USD Inflation Index Code (1-low; 2 - moderate; 3 - high) | L5: Rwanda Inflation Rate Code (1-low; 2- moderate; 3 - high) | M5: Real Exchange Rate Appreciation Relative to PPP
B6: Company Case | C6: 19 | D6: 1 | E6: 4.2 | F6: 0.95 | G6: 8300 | H6: 26 | I6: 0.98 | J6: 1 | K6: 4 | L6: 3 | M6: 0
B7: Bank Base Case | C7: 22 | D7: 1.15 | E7: 4.5 | F7: 0.93 | G7: 8500 | H7: 24 | I7: 0.96 | J7: 1.1 | K7: =K6 -> 4 | L7: =L6 -> 3 | M7: 0
B8: Downside Case | C8: 25 | D8: 1.2 | E8: 5 | F8: 0.92 | G8: 8800 | H8: 22 | I8: 0.92 | J8: 1.15 | K8: =K7 -> 4 | L8: =L7 -> 3 | M8: 0.01
B9: Exposure to Methane Resource Problems | C9: =C$7 -> 22 | D9: =D$7 -> 1.15 | E9: =E$8 -> 5 | F9: 0.93 | G9: =G8 -> 8800 | H9: =H8 -> 22 | I9: =I8 -> 0.92 | J9: =J$7 -> 1.1 | K9: 4 | L9: =L8 -> 3 | M9: =M$7 -> 0
B10: Exposure to Cost Over-runs and Delays | C10: =C8 -> 25 | D10: =D8 -> 1.2 | E10: 4.5 | F10: 0.93 | G10: 8500 | H10: =H$7 -> 24 | I10: 0.96 | J10: 1.1 | K10: 4 | L10: =L9 -> 3 | M10: =M$7 -> 0
B11: Standard Electricity Availability Exposure | C11: =C$7 -> 22 | D11: 1.15 | E11: 4.5 | F11: =F8 -> 0.92 | G11: =G8 -> 8800 | H11: =H$7 -> 24 | I11: 0.96 | J11: 1.1 | K11: 4 | L11: 3 | M11: =M$7 -> 0
B12: Exposure to Different Inflation Rates | C12: 22 | D12: 1.15 | E12: 4.5 | F12: 0.93 | G12: 8500 | H12: =H$7 -> 24 | I12: 0.96 | J12: =J$7 -> 1.1 | K12: 3 | L12: 3 | M12: =M$7 -> 0
B13: Operating Cost Increase | C13: 22 | D13: 1.15 | E13: 4.5 | F13: 0.93 | G13: 8500 | H13: =H$7 -> 24 | I13: 0.96 | J13: =J8 -> 1.15 | K13: =K$7 -> 4 | L13: 3 | M13: =M$7 -> 0
B14: Low RWF Inflation Rate
B15: High RWF Inflation Rate
C18: Months in Phase 1
B19: =INDEX(B6:B18,$C$3) -> Company Case | C19: =INDEX(C6:C18,$C$3)-7 -> 12 | D19: =INDEX(D6:D18,$C$3) -> 1 | E19: 4.2 | F19: 0.95 | G19: =INDEX(G6:G18,$C$3) -> 8300 | H19: =INDEX(H6:H18,$C$3) -> 26 | I19: =INDEX(I6:I18,$C$3) -> 0.98 | J19: =INDEX(J6:J18,$C$3) -> 1 | K19: =INDEX(K6:K18,$C$3) -> 4 | L19: =INDEX(L6:L18,$C$3) -> 3 | M19: =INDEX(M6:M18,$C$3) -> 0
B21: (1) Construction Period Months are varied for the first phase of the project; the amount in the final row is adjusted for other timing assumptions. If construction months change, the grace period also is assumed to change
B22: (2) Assumes equity will be contributed for cost-over-runs. Uncertainty because EPC contracts not signed yet
L45: RWF Inflation
L46: ="Low "&TEXT(M46,"##.00%") -> Low 2.00% | M46: ='Operating Assumptions'!F78 -> 0.02
L47: ="Moderate "&TEXT(M47,"##.00%") -> Moderate 4.50% | M47: ='Operating Assumptions'!F79 -> 0.045
L48: ="High "&TEXT(M48,"##.00%") -> High 7.00% | M48: ='Operating Assumptions'!F80 -> 0.07
L49: ="Zero "&TEXT(M49,"##.00%") -> Zero .00% | M49: ='Operating Assumptions'!F81 -> 0
L51: =INDEX(L46:L49,L6) -> High 7.00%

Sheet Operating Assumptions
B2: Include Phase 2 | F2: Switch | G2: TRUE | K2: Project IRR | L2: ='Summary Sheet'!G6 -> 0.1989158094
B4: Financial Close Phase 1 | H4: 2016-09-01
B5: Fast Track Design Work | F5: Months | G5: 2 | H5: =EDATE(H4,G5) -> 2016-11-01
B6: Civil and Building | F6: Months | G6: 3 | H6: =EDATE(H5,G6) -> 2017-02-01
B7: Gas Power Plant and 220 kV Connection | F7: Months | G7: =Scenarios!C19 -> 12 | H7: =EDATE(H6,G7) -> 2018-02-01 | J7: Note that cells coloured in red come from the scenario page and are subject to sensitivity
B8: Start-up | F8: Months | G8: 2 | H8: =EDATE(H7,G8) -> 2018-04-01
B9: COD - Phase 1 | G9: =SUM(G5:G8) -> 19 | H9: =H8 -> 2018-04-01 | J9: Company projects 16 months, included potential for delay
B10: Phase 1 - Operation | F10: Years | G10: 25 | H10: =EDATE(H9,G10*12) -> 2043-04-01
B12: Construction Start - Phase 2 | H12: =H9 -> 2018-04-01
B13: Construction Months - Phase 2 | F13: Months | G13: 22 | H13: =EDATE(H12,G13) -> 2020-02-01
B14: Project COD | H14: =H13 -> 2020-02-01
B15: PPA Term | F15: Year | G15: 25 | H15: =EDATE(H14,G15*12) -> 2045-02-01
B17: Total Pre-COD Periods | F17: Months | G17: =IF(G2,G13+G9,G9) -> 41 | J17: Company expects entire project to take 3 years
B19: Months/Period Pre-COD | F19: Months | G19: 1
B20: Months/Period Post-COD | F20: Months | G20: 6
A22: Capacity Assumptions - Electricity
B23: Number of Generating Units - Total | F23: Number | G23: ='Cat Proposal (3)'!C2 -> 18 | J23: Current strategy is different with smaller engines. For purposes of model, use the Watsilla medium speed engines
B24: Number of Generating Units - Phase 1 | F24: Number | G24: 5
B25: Number of Generating Units - Phase 2 | F25: Number | G25: =G23-G24 -> 13
B27: Gross Capacity per Unit | F27: kWe | G27: ='Cat Proposal (3)'!D1 -> 3753 | J27: The capacity per unit is taken from the PPA
B29: Total Gross Capacity | F29: MW | G29: =$G$27*G23/1000 -> 67.554 | J29: This is the gross capacity before paracitic load
B30: Phase 1 Gross Capacity | F30: MW | G30: =$G$27*G24/1000 -> 18.765
B31: Phase 2 Gross Capacity | F31: MW | G31: =$G$27*G25/1000 -> 48.789
B33: Paracitic Load - Phase 1 | F33: MW | G33: =Scenarios!E19 -> 4.2 | J33: Paracitic load is very high because of the gas plant. Need to verify this with Symbion
B34: Paracitic Load - Phase 2 | F34: MW | G34: 8.5 | J34: Implied difference between phase 1 and phase 2
B35: Paracitic Load - Entire Project | F35: MW | G35: =G33+G34 -> 12.7 | J35: Losses are far higher for phase 1
B37: Paracitic Load Percent - Phase 1 | F37: % | G37: =G33/G30 -> 0.2238209432 | J37: Higher percentage of paractic load assumed by the company
B38: Paracitic Load Percent - Phase 2 | F38: % | G38: =G34/G31 -> 0.1742195987
B39: Paracitic Load Percent - Entire Project | F39: % | G39: =G35/G29 -> 0.1879977499
B41: Phase 1 Net Capacity | F41: MW | G41: =G30-G33 -> 14.565
B42: Phase 2 Net Capacity | F42: MW | G42: =G31-G34 -> 40.289
B43: Total Net Capacity | F43: MW | G43: =SUM(G41:G42) -> 54.854
B45: Electricity Plant Availability | F45: % | G45: =Scenarios!F19 -> 0.95 | J45: Expecting higher availability; Have actual statistics from KB1 which are about 92%
B47: Plant Efficiency
C48: Heat Rate | F48: KJ/kWh | G48: =Scenarios!G19 -> 8300 | H48: ='Gas Analysis and Heat Rate'!J17 -> 8751 | J48: Heat Rate from PPA agreement.
C49: Heat Rate | F49: BTU/kWh | G49: ='Gas Analysis and Heat Rate'!J19 -> 8313.45 | H49: ='Gas Analysis and Heat Rate'!J19 -> 8313.45
C50: Efficiency | F50: % | G50: =H50/G49 -> 0.4104192604 | H50: ='Conversions (2)'!F12 -> 3412
C52: Heat Rate Degradation | F52: % | G52: 0
B54: Heat Content of Methane
C55: Reference Energy per m3 | F55: MJ/m3 | G55: ='Gas Analysis and Heat Rate'!F28 -> 35.301 | H55: ='Gas Analysis and Heat Rate'!F28 -> 35.301
C56: Methane Energy per m3 | F56: MJ/m3 | G56: =Scenarios!H19 -> 26 | H56: ='Gas Analysis and Heat Rate'!J22 -> 24 | J56: Expected heat content as much as 29 MJ/m3 -- inputs drive gas usage
C57: Energy per mcf | F57: MJ/mcf | G57: ='Gas Analysis and Heat Rate'!J5 -> 24000
B59: Gas Plant | H59: Gross MW/Barge | J59: Heat Rate - MJ/MWH | L59: MJ/hr per Barge | N59: Heat Cont- MJ/m3 | P59: m3/Barge
C60: Phase 1 Barges | F60: # | G60: 1 | H60: =G30/G60 -> 18.765 | I60: x | J60: =G48 -> 8300 | K60: = | L60: =H60*J60 -> 155749.5 | M60: / | N60: =G56 -> 26 | O60: = | P60: =L60/N60 -> 5990.365385
C61: Phase 2 Barges | F61: # | G61: 3 | H61: =G31/G61 -> 16.263 | I61: x | J61: =J60 -> 8300 | K61: = | L61: =H61*J61 -> 134982.9 | M61: / | N61: =N60 -> 26 | O61: = | P61: =L61/N61 -> 5191.65
C63: Capacity of Barge - Phase 1 | F63: m3/hour | G63: 7200
C64: Capacity of Barge - Phase 2 | F64: m3/hour | G64: 7200
C65: Capacity of Barge - Total | F65: m3/hour | G65: 7200
C67: Availability of Barge and Separator | F67: % | G67: =Scenarios!I19 -> 0.98
A69: General Macro Variables
B70: Year | F70: 2016 | G70: =F70+1 -> 2017 | H70: 2018 | I70: 2019 | J70: 2020 | K70: 2021 | L70: 2022 | M70: 2023 | N70: 2024 | O70: 2025 | P70: 2026 | Q70: 2027
B71: USD Inflation Scenraio | F71: =Scenarios!K19 -> 4
C72: Low USD Inflation | F72: 0.005 | G72: 0.005 | H72: 0.005 | I72: 0.005 | J72: 0.005 | K72: 0.005 | L72: 0.005 | M72: 0.005 | N72: 0.005 | O72: 0.005 | P72: 0.005 | Q72: 0.005
C73: Moderate USD Inflation | F73: 0.02 | G73: 0.02 | H73: 0.02 | I73: 0.02 | J73: 0.02 | K73: 0.02 | L73: 0.02 | M73: 0.02 | N73: 0.02 | O73: 0.02 | P73: 0.02 | Q73: 0.02
C74: High USD Inflation | F74: 0.01 | G74: 0.02 | H74: 0.025 | I74: 0.03 | J74: 0.03 | K74: 0.03 | L74: 0.03 | M74: 0.03 | N74: 0.03 | O74: 0.03 | P74: 0.03 | Q74: 0.03
C75: Zero Rate | F75: 0 | G75: 0 | H75: 0 | I75: 0 | J75: 0 | K75: 0 | L75: 0 | M75: 0 | N75: 0 | O75: 0 | P75: 0 | Q75: 0
C76: USD Inflation | F76: =INDEX(F72:F75,$F$71) -> 0 | G76: =INDEX(G72:G75,$F$71) -> 0 | H76: 0 | I76: 0 | J76: 0 | K76: 0 | L76: 0 | M76: 0 | N76: 0 | O76: 0 | P76: 0 | Q76: 0
B77: RWF Inflation Scenario | F77: =Scenarios!L19 -> 3
C78: Low RWF Inflation | F78: 0.02 | G78: 0.02 | H78: 0.02 | I78: 0.02 | J78: 0.02 | K78: 0.02 | L78: 0.02 | M78: 0.02 | N78: 0.02 | O78: 0.02 | P78: 0.02 | Q78: 0.02
C79: Moderate RWF Inflation | F79: 0.045 | G79: 0.045 | H79: 0.045 | I79: 0.045 | J79: 0.045 | K79: 0.045 | L79: 0.045 | M79: 0.045 | N79: 0.045 | O79: 0.045 | P79: 0.045 | Q79: 0.045
C80: High RWF Inflation | F80: 0.07 | G80: 0.07 | H80: 0.07 | I80: 0.07 | J80: 0.07 | K80: 0.07 | L80: 0.07 | M80: 0.07 | N80: 0.07 | O80: 0.07 | P80: 0.07 | Q80: 0.07
C81: Zero Rate | F81: 0 | G81: 0 | H81: 0 | I81: 0 | J81: 0 | K81: 0 | L81: 0 | M81: 0 | N81: 0 | O81: 0 | P81: 0 | Q81: 0
C82: RWF Inflation | F82: =INDEX(F78:F81,$F$77) -> 0.07 | G82: =INDEX(G78:G81,$F$77) -> 0.07 | H82: 0.07 | I82: 0.07 | J82: 0.07 | K82: 0.07 | L82: 0.07 | M82: 0.07 | N82: 0.07 | O82: 0.07 | P82: 0.07 | Q82: 0.07
B84: Real RWF Appreciation | F84: =Scenarios!$M$19 -> 0 | G84: =Scenarios!$M$19 -> 0 | H84: =Scenarios!$M$19 -> 0 | I84: =Scenarios!$M$19 -> 0 | J84: =Scenarios!$M$19 -> 0 | K84: =Scenarios!$M$19 -> 0 | L84: =Scenarios!$M$19 -> 0 | M84: =Scenarios!$M$19 -> 0 | N84: =Scenarios!$M$19 -> 0 | O84: =Scenarios!$M$19 -> 0 | P84: =Scenarios!$M$19 -> 0 | Q84: =Scenarios!$M$19 -> 0
B85: Exchange Rate | F85: 780
B87: LCOE Discount Rate - USD | F87: 0.1
A89: Capital Expenditures
B90: Code Number | G90: 5 | M90: Use data from budget sheet
B91: Cost Over-run Percentage | G91: =Scenarios!D19 -> 1
K92: =F85 -> 780
G93: Budget | H93: Info Memo | I93: Investment Plan | J93: Recent Quote | K93: Latest | L93: =INDEX(G93:K93,$G$90) -> Latest | M93: RWF | O93: Reconciled the different cost estimates | V93: =TRANSPOSE(G93:K93) -> Budget
B94: Total Expenditure - Phase 1 | G94: ='Full Budget Cap Exp Summary'!G14 -> 58330410.98 | H94: ='Info Memo'!O39*1000 -> 60000000 | I94: ='Cap Exp Investment Plan'!H37 -> 43073737.51 | J94: =J119 -> 56562764.39 | K94: =K119 -> 51955988.02 | L94: 51955988.02 | O94: Company may use alternative configuration with lower costs | V94: Info Memo
B95: kW of Net Capacity - Phase 1 | G95: =G41*1000 -> 14565 | H95: =G95 -> 14565 | I95: =$H$95 -> 14565 | J95: =$H$95 -> 14565 | K95: 14565 | L95: =INDEX(G95:K95,$G$90) -> 14565 | O95: Issue of EPC costs after the experience with Kivwatt | V95: Investment Plan
B96: Cost per Net MW - Phase 1 | G96: =G94/G95 -> 4004.834259 | H96: =H94/H95 -> 4119.46447 | I96: =I94/I95 -> 2957.345521 | J96: =J94/J95 -> 3883.471637 | K96: =K94/K95 -> 3567.180778 | L96: 3567.180778 | M96: =L96*K$92/1000 -> 2782.401006 | V96: Recent Quote
V97: Latest
B98: Total Expenditure - Phase 2 | G98: =G102-G94 -> 96961174.44 | H98: 96500000 | I98: 113426262.5 | J98: 101805581.2 | K98: 80499720.38 | L98: 80499720.38
B99: kW of Net Capacity - Phase 2 | G99: =G42*1000 -> 40289 | H99: =G99 -> 40289 | I99: =H99 -> 40289 | J99: =I99 -> 40289 | K99: =J99 -> 40289 | L99: 40289
B100: Cost per Net MW - Phase 2 | G100: =G98/G99 -> 2406.641377 | H100: =H98/H99 -> 2395.194718 | I100: =I98/I99 -> 2815.315905 | J100: =J98/J99 -> 2526.882802 | K100: 1998.057047 | L100: 1998.057047 | M100: =L100*K$92/1000 -> 1558.484497
B102: Total Expenditure - Total | G102: ='Full Budget Cap Exp Summary'!F15 -> 155291585.4 | H102: ='Info Memo'!N39*1000 -> 156500000 | I102: =I136 -> 156500000 | J102: =J136 -> 158368345.6 | K102: =K136 -> 132455708.4 | L102: =INDEX(G102:K102,$G$90)*G91 -> 132455708.4
B103: kW of Net Capacity - Total | G103: =G99+G95 -> 54854 | H103: =G103 -> 54854 | I103: =H103 -> 54854 | J103: =I103 -> 54854 | K103: =J103 -> 54854 | L103: 54854
B104: Cost per Net MW - Total | G104: =G102/G103 -> 2830.998385 | H104: =H102/H103 -> 2853.028038 | I104: =I102/I103 -> 2853.028038 | J104: =J102/J103 -> 2887.088373 | K104: =K102/K103 -> 2414.695526 | L104: =INDEX(G104:K104,$G$90)*G91 -> 2414.695526 | M104: =L104*K$92/1000 -> 1883.462511
B106: Number | G106: 1 | H106: 2 | I106: 3 | J106: 4 | K106: 5
B107: Phase 1 Components | F107: Symbion | G107: =G93 -> Budget | H107: =H93 -> Info Memo | I107: Inv Plan | J107: Recent Quote | K107: =K93 -> Latest | L107: Latest | M107: Gas Percent
C108: Gas Equipment | G108: ='Full Budget Cap Exp Summary'!G8 -> 21678904.58 | H108: ='Info Memo'!R45*1000 -> 13500000 | I108: 12945025.7 | J108: ='Gas EPC'!F3 -> 29110000 | K108: ='Phase 1 Cash flow '!F43 -> 19776091 | L108: =INDEX(G108:K108,$G$90)*$G$91 -> 19776091 | M108: 1 | O108: Discrepency in Costs related to Trains 2-4. Why are they included in costs
C109: Gas Plant Construction | H109: ='Info Memo'!R46*1000 -> 6500000 | I109: 6500000 | L109: =INDEX(G109:K109,$G$90)*$G$91 -> 0 | M109: 1 | O109: Original costing done in april 2014
C110: Power Plant Equipment | G110: ='Full Budget Cap Exp Summary'!G9 -> 19904200 | H110: ='Info Memo'!R47*1000 -> 17250000 | I110: 17250000 | J110: ='Cat Proposal (3)'!D24 -> 10705458 | K110: ='Phase 1 Cash flow '!F67 -> 15064324 | L110: 15064324 | M110: 0 | O110: 15.8M USD
C111: Power Plant Construction | H111: ='Info Memo'!R48*1000 -> 7250000 | I111: 7250000 | L111: 0 | M111: 0
C112: General Site Construction | H112: ='Info Memo'!R49*1000 -> 500000 | I112: 500000 | K112: ='Phase 1 Cash flow '!F13 -> 4071281 | L112: 4071281 | M112: 0.5
C113: Owners Cost | G113: ='Full Budget Cap Exp Summary'!G5 -> 9019237.287 | H113: ='Info Memo'!O19*1000 -> 6000000 | I113: 6000000 | J113: =G113 -> 9019237.287 | K113: =J113-K112 -> 4947956.287 | L113: 4947956.287 | M113: 0.5 | O113: To be paid by Symbion; Includes USD 2.5 million of unidentified expenses
C114: Project Development | F114: TRUE | G114: ='Full Budget Cap Exp Summary'!G6 -> 3677870.106 | H114: ='Info Memo'!O22*1000 -> 4000000 | I114: 3677870.106 | J114: =G114 -> 3677870.106 | K114: =Development!J54 -> 4046136.738 | L114: 4046136.738 | M114: 0.5
C115: Early Works | F115: TRUE | G115: ='Full Budget Cap Exp Summary'!G7 -> 3179393.641 | H115: ='Info Memo'!O25*1000 -> 2000000 | I115: 2000000 | J115: 3179393.641 | K115: =J115 -> 3179393.641 | L115: 3179393.641 | M115: 0.5
C116: Balance of Plant | F116: TRUE | G116: ='Full Budget Cap Exp Summary'!G10 -> 306508.3333 | H116: ='Info Memo'!O28*1000 -> 700000 | I116: 700000 | J116: 306508.3333 | K116: 306508.3333 | L116: 306508.3333 | M116: 0.5
C117: Commissioning | F117: TRUE | G117: ='Full Budget Cap Exp Summary'!G11 -> 0 | H117: ='Info Memo'!O31*1000 -> 300000 | I117: 300000 | J117: 0 | K117: 0 | L117: 0 | M117: 0.5
C118: Operational Readiness | F118: TRUE | G118: ='Full Budget Cap Exp Summary'!G12 -> 564297.0256 | H118: ='Info Memo'!O36*1000 -> 2000000 | I118: 2000000 | J118: 564297.0256 | K118: 564297.0256 | L118: 564297.0256 | M118: 0.5
C119: Total Project Cost | G119: =SUM(G108:G118) -> 58330410.98 | H119: =SUM(H108:H118) -> 60000000 | I119: =SUM(I108:I118) -> 59122895.81 | J119: =SUM(J108:J118) -> 56562764.39 | K119: =SUM(K108:K118) -> 51955988.02 | L119: =INDEX(G119:K119,$G$90)*G91 -> 51955988.02 | M119: =SUMPRODUCT(M108:M118,L108:L118)/L119 -> 0.5453438302 | O119: 50M USD or less
C120: EPC Cost | G120: =SUM(G108:G112) -> 41583104.58 | H120: =SUM(H108:H112) -> 45000000 | I120: =SUM(I108:I112) -> 44445025.7 | J120: =SUM(J108:J112) -> 39815458 | K120: =SUM(K108:K112) -> 38911696 | L120: =INDEX(G120:K120,$G$90)*$G$91 -> 38911696
C121: Less: Development Incurred | G121: =G114 -> 3677870.106 | H121: =H114 -> 4000000 | I121: =I114 -> 3677870.106 | J121: =G121 -> 3677870.106 | K121: =K114 -> 4046136.738 | L121: =INDEX(G121:K121,$G$90)*$G$91 -> 4046136.738
C122: Net Future Expenditure | G122: =G119-G121 -> 54652540.87 | H122: =H119-H121 -> 56000000 | I122: =I119-I121 -> 55445025.7 | J122: =J119-J121 -> 52884894.29 | K122: =K119-K121 -> 47909851.29 | L122: 47909851.29
B124: Total | M124: Gas Percent
C125: Gas Equipment | G125: ='Full Budget Cap Exp Summary'!F8 -> 75595528.99 | H125: ='Info Memo'!S45*1000 -> 48750000 | I125: =H125 -> 48750000 | J125: =J108/G108*G125 -> 101508166.2 | K125: =G125 -> 75595528.99 | L125: =INDEX(G125:K125,$G$90)*$G$91 -> 75595528.99 | M125: 1
C126: Gas Plant Construction | H126: ='Info Memo'!S46*1000 -> 27000000 | I126: 27000000 | L126: =INDEX(G126:K126,$G$90)*$G$91 -> 0 | M126: 1
C127: Power Plant Equipment | G127: ='Full Budget Cap Exp Summary'!F9 -> 49412176.5 | H127: ='Info Memo'!S47*1000 -> 35000000 | I127: 35000000 | J127: =J110/G110*G127 -> 26576299.48 | K127: =J127 -> 26576299.48 | L127: 26576299.48 | M127: 0
C128: Power Plant Construction | H128: ='Info Memo'!S48*1000 -> 15000000 | I128: 15000000 | L128: 0 | M128: 0
C129: General Site Construction | H129: ='Info Memo'!S49*1000 -> 1500000 | I129: 1500000 | L129: 0 | M129: 0.5
C130: Owners Cost | G130: ='Full Budget Cap Exp Summary'!F5 -> 13187329.29 | H130: ='Info Memo'!S51*1000 -> 13000000 | I130: 13000000 | J130: =G130 -> 13187329.29 | K130: =J130 -> 13187329.29 | L130: 13187329.29 | M130: 0.5
C131: Project Development | G131: ='Full Budget Cap Exp Summary'!F6 -> 7829377.298 | H131: ='Info Memo'!S52*1000 -> 8250000 | I131: 8250000 | J131: =G131 -> 7829377.298 | K131: 7829377.298 | L131: 7829377.298 | M131: 0.5
C132: Early Works | G132: ='Full Budget Cap Exp Summary'!F7 -> 4073364.464 | H132: ='Info Memo'!S53*1000 -> 2750000 | I132: 2750000 | J132: 4073364.464 | K132: 4073364.464 | L132: 4073364.464 | M132: 0.5
C133: Balance of Plant | G133: ='Full Budget Cap Exp Summary'!F10 -> 721850 | H133: ='Info Memo'!S54*1000 -> 750000 | I133: 750000 | J133: 721850 | K133: 721850 | L133: 721850 | M133: 0.5
C134: Commissioning | G134: ='Full Budget Cap Exp Summary'!F11 -> 320000 | H134: ='Info Memo'!S55*1000 -> 300000 | I134: 300000 | J134: 320000 | K134: 320000 | L134: 320000 | M134: 0.5
C135: Operational Readiness | G135: ='Full Budget Cap Exp Summary'!F12 -> 4151958.871 | H135: ='Info Memo'!S56*1000 -> 4200000 | I135: 4200000 | J135: 4151958.871 | K135: 4151958.871 | L135: 4151958.871 | M135: 0.5
C136: Total Project Cost | G136: =SUM(G125:G135) -> 155291585.4 | H136: ='Info Memo'!S57*1000 -> 156500000 | I136: 156500000 | J136: =SUM(J125:J135) -> 158368345.6 | K136: =SUM(K125:K135) -> 132455708.4 | L136: =SUM(L125:L135) -> 132455708.4 | M136: =SUMPRODUCT(M125:M135,L125:L135)/L136 -> 0.6850400791
C137: EPC Cost | G137: =SUM(G125:G129) -> 125007705.5 | H137: =SUM(H125:H129) -> 127250000 | I137: 127250000 | J137: 127250000 | K137: =J137 -> 127250000 | L137: =INDEX(G137:K137,$G$90)*$G$91 -> 127250000
B139: Phase 2 | M139: Gas Percent
C140: Gas Equipment | G140: =G125-G108 -> 53916624.41 | H140: 35250000 | I140: 35804974.3 | J140: =J125-J108 -> 72398166.18 | K140: 55819437.99 | L140: =INDEX(G140:K140,$G$90)*$G$91 -> 55819437.99 | M140: 1
C141: Gas Plant Construction | G141: 0 | H141: 20500000 | I141: 20500000 | J141: =J126-J109 -> 0 | K141: 0 | L141: =INDEX(G141:K141,$G$90)*$G$91 -> 0 | M141: 1
C142: Power Plant Equipment | G142: 29507976.5 | H142: 17750000 | I142: 17750000 | J142: =J127-J110 -> 15870841.48 | K142: 11511975.48 | L142: 11511975.48 | M142: 0
C143: Power Plant Construction | G143: 0 | H143: 7750000 | I143: 7750000 | J143: =J128-J111 -> 0 | K143: 0 | L143: 0 | M143: 0
C144: General Site Construction | G144: 0 | H144: 1000000 | I144: 1000000 | J144: =J129-J112 -> 0 | K144: -4071281 | L144: -4071281 | M144: 0.5
C145: Owners Cost | G145: 4168092.002 | H145: 7000000 | I145: 7000000 | J145: =J130-J113 -> 4168092.002 | K145: 8239373.002 | L145: 8239373.002 | M145: 0.5
C146: Project Development | G146: 4151507.192 | H146: 4250000 | I146: 4572129.894 | J146: =J131-J114 -> 4151507.192 | K146: 3783240.56 | L146: 3783240.56 | M146: 0.5
C147: Early Works | G147: 893970.8235 | H147: 750000 | I147: 750000 | J147: =J132-J115 -> 893970.8235 | K147: 893970.8235 | L147: 893970.8235 | M147: 0.5
C148: Balance of Plant | G148: 415341.6667 | H148: 50000 | I148: 50000 | J148: =J133-J116 -> 415341.6667 | K148: 415341.6667 | L148: 415341.6667 | M148: 0.5
C149: Commissioning | G149: 320000 | H149: 0 | I149: 0 | J149: =J134-J117 -> 320000 | K149: 320000 | L149: 320000 | M149: 0.5
C150: Operational Readiness | G150: 3587661.845 | H150: 2200000 | I150: 2200000 | J150: =J135-J118 -> 3587661.845 | K150: 3587661.845 | L150: 3587661.845 | M150: 0.5
C151: Total Project Cost | G151: 96961174.44 | H151: 96500000 | I151: 97377104.19 | J151: =J136-J119 -> 101805581.2 | K151: 80499720.38 | L151: =INDEX(G151:K151,$G$90)*G91 -> 80499720.38 | M151: =SUMPRODUCT(M140:M150,L140:L150)/L151 -> 0.7752025864
C152: EPC Cost | G152: 83424600.91 | H152: 82250000 | I152: 82804974.3 | J152: =J137-J120 -> 87434542 | K152: 88338304 | L152: =INDEX(G152:K152,$G$90)*$G$91 -> 88338304
C153: Less: Development | G153: =G146 -> 4151507.192 | H153: =H146 -> 4250000 | I153: =I146 -> 4572129.894 | J153: =J146 -> 4151507.192 | K153: =K146 -> 3783240.56 | L153: =INDEX(G153:K153,$G$90)*$G$91 -> 3783240.56
C154: Net Future Expenditure | G154: =G151-G153 -> 92809667.25 | H154: =H151-H153 -> 92250000 | I154: =I151-I153 -> 92804974.3 | J154: =J151-J153 -> 97654074 | K154: =K151-K153 -> 76716479.82 | L154: 76716479.82
C156: Month | G156: 0 | J156: 0 | K156: 1 | L156: 2 | M156: 3 | N156: 4 | O156: 5 | P156: 6 | Q156: 7 | R156: 8 | S156: 9 | T156: 10 | U156: 11 | V156: 12 | W156: 13 | X156: 14 | Y156: 15 | Z156: 16 | AA156: 17 | AB156: 18 | AC156: 19 | AD156: 20 | AE156: 21
C157: S-Curve | G157: 0 | J157: 0 | K157: ='Disbursment Analysis'!H280 -> 0.1206369094 | L157: ='Disbursment Analysis'!I280 -> 0.06975647493 | M157: ='Disbursment Analysis'!J280 -> 0.01631182203 | N157: ='Disbursment Analysis'!K280 -> 0.02454753891 | O157: ='Disbursment Analysis'!L280 -> 0.03439908047 | P157: ='Disbursment Analysis'!M280 -> 0.1910813437 | Q157: ='Disbursment Analysis'!N280 -> 0.07975624323 | R157: ='Disbursment Analysis'!O280 -> 0.1483662745 | S157: ='Disbursment Analysis'!P280 -> 0.05960213269 | T157: ='Disbursment Analysis'!Q280 -> 0.01884568049 | U157: ='Disbursment Analysis'!R280 -> 0.08386680019 | V157: ='Disbursment Analysis'!S280 -> 0.03754277914 | W157: ='Disbursment Analysis'!T280 -> 0.03628770095 | X157: ='Disbursment Analysis'!U280 -> 0.02507803931 | Y157: ='Disbursment Analysis'!V280 -> 0.04577345822 | Z157: ='Disbursment Analysis'!W280 -> 0.008147721813 | AA157: ='Disbursment Analysis'!X280 -> 0 | AB157: ='Disbursment Analysis'!Y280 -> 0 | AC157: ='Disbursment Analysis'!Z280 -> 0 | AD157: ='Disbursment Analysis'!AA280 -> 0 | AE157: ='Disbursment Analysis'!AB280 -> 0
A159: Operating Expenses
B161: Phase 1 Expense
C162: Operating Expense Sensitivity | G162: =Scenarios!J19 -> 1
C163: Operating Expense Code | G163: 1 | L163: Operating Expense code determines which is the source
G165: Base Cost | H165: Budget | I165: =INDEX(G165:H165,$G$163) -> Base Cost | J165: Gas Pct | K165: Percent | L165: Note the difference in salaries from two sources
B166: ='Expense Detail'!B4 -> Gas Plant Salaries
C167: ='Expense Detail'!B5 -> Plant Manager | F167: Month USD | G167: 23961.66667 | H167: ='Phase 1 Expense Budget'!H6 -> 25341.66667 | I167: =INDEX(G167:H167,$G$163)*$G$162 -> 23961.66667 | J167: 0.5
C168: ='Expense Detail'!B6 -> Divers | F168: Month USD | G168: 4858.666667 | H168: ='Phase 1 Expense Budget'!H7 -> 7288 | I168: 4858.666667 | J168: 1
C169: ='Expense Detail'!B7 -> Boat Pilots | F169: Month USD | G169: 1546.666667 | H169: ='Phase 1 Expense Budget'!H8 -> 3754.666667 | I169: 1546.666667 | J169: 1
C170: ='Expense Detail'!B8 -> Other | F170: Month USD | G170: 44554.33333 | H170: ='Phase 1 Expense Budget'!H9 -> 18056 | I170: 44554.33333 | J170: 0.75
C171: Total Gas Plant Salaries | F171: Month USD | G171: 74921.33333 | H171: =SUM(H167:H170) -> 54440.33333 | I171: 74921.33333 | J171: =SUMPRODUCT(J167:J170,I167:I170)/I171 -> 0.6914174423 | K171: =I171/I176 -> 0.4245156915
I172: 0
C173: Gas Operating Costs | F173: Month USD | G173: 25247.29167 | H173: ='Phase 1 Expense Budget'!H11 -> 40601.55417 | I173: 25247.29167 | J173: 0.8 | K173: =I173/I176 -> 0.1430550019
C174: Overhead Cost except Insurance | F174: Month USD | G174: 44700.33333 | H174: ='Phase 1 Expense Budget'!H12 -> 71126.06726 | I174: 44700.33333 | J174: 0.6 | K174: =I174/I176 -> 0.2532789003
C175: General Insurance Expense | F175: Month USD | G175: 31617.64706 | H175: ='Phase 1 Expense Budget'!H13 -> 126470.5882 | I175: 31617.64706 | J175: 0.5 | K175: =I175/I176 -> 0.1791504063
C176: Total Fixed Expense | F176: Month USD | G176: 176486.6054 | H176: =H171+H173+H174+H175 -> 292638.543 | I176: 176486.6054 | J176: =SUMPRODUCT(J173:J175,I173:I175)/SUM(I173:I175) -> 0.6185860146
C178: Variable Power Cost/MWH | F178: $/MWH | G178: 5.4524 | H178: ='Phase 1 Expense Budget'!K14 -> 4.650408406 | I178: =INDEX(G178:H178,$G$163)*$G$162 -> 5.4524
I179: =INDEX(G179:H179,$G$163) -> 0
C180: RURA Fee Percent | F180: % | G180: 0.01
B182: Total Expense with Phase 2 | G182: Fin Model | H182: Applied
C183: Fixed | F183: Month USD | G183: ='Clip of FM'!R39*1000/12 -> 639166.6667 | H183: =G183*$G$162 -> 639166.6667 | J183: =(J171*I171+J176*I176)/(I171+I176) -> 0.6402902921
C184: Vairable | F184: Month USD | G184: ='Clip of FM'!R40*1000/12 -> 251250 | H184: =G184*G162 -> 251250
C186: Variable Cost per MWH | F186: $/MWH | G186: ='Clip of FM'!R51 -> 6.801938383 | H186: =G186*$G$162 -> 6.801938383
A188: PPA Parameters
B189: Pre-COD Overall Charge for Phase 1 | F189: $/MWH | G189: =Scenarios!K3 -> 98
B191: Capital Recovery (No Inflation) | F191: $/MWH | G191: =PPA!P8 -> 77
B192: Fixed O&M per Available MWH (Inflation) | F192: $/MWH | G192: =PPA!P9 -> 14
B193: Variable O&M per Available MWH (Inflation) | F193: $/MWH | G193: =PPA!P10 -> 7
C194: Total | F194: $/MWH | G194: =SUM(G191:G193) -> 98
B196: Capital Recovery Adjustments | F196: Scenario | G196: 1
C197: Year | G197: 0 | H197: 11
C198: Original Case | F198: $/MWH | G198: =G191 -> 77 | H198: =G198 -> 77
C199: Step Down Case | F199: $/MWH | G199: =PPA!Q32 -> 100.1 | H199: =PPA!AA31 -> 28.59733632
C200: Capital Recovery | F200: $/MWH | G200: =INDEX(G198:G199,$G$196) -> 77 | H200: =INDEX(H198:H199,$G$196) -> 77
A202: Income Taxes and Depreciation
C203: Depreciation Life | F203: Years | G203: 25
C204: Tax Holiday | F204: Years | G204: 8
C205: Tax Depreciation Rate | F205: Percent | G205: 0.15
A207: Other Expenditures | G207: Amount
B208: Cash Collateral | F208: Date | G208: 10000

Sheet Disbursment Analysis
D1: Exchange Rate | J1: =J246 -> 0
A3: Part 1: Summary
D4: Initial Disbursment | F4: ='Operating Assumptions'!H4 -> 2016-09-01 | L4: Disbursment Scenarios | Z4: start row | AA4: =ROW(I8) -> 8
Z5: start col | AA5: =COLUMN(I8) -> 9
D6: Code for Data Used | F6: 2 | I6: Sc | J6: Scenario | M6: 2018 | N6: Disbursment | O6: Dispersed | P6: Disbursment | Q6: Cost | R6: Total Proect | S6: Total Debt | T6: Equity | U6: Equity | V6: BRD | W6: RWF | X6: USD | Z6: end row | AA6: =ROW(X8) -> 8
D7: Cost Over-run Percent | F7: =Scenarios!D19 -> 1 | I7: Num | J7: Name | L7: Cost Over-run | M7: RWF/USD | N7: Period | O7: Months | P7: Method | Q7: Scenario | R7: Cost RWF 000 | S7: RWF 000 | T7: RWF 000 | U7: USD | V7: IRR | W7: Debt to Cap | X7: Debt to Cap | Z7: end col | AA7: =COLUMN(X8) -> 24
D8: Loan Date | F8: ='Financing Assumptions'!J7 -> 2016-09-01 | L8: =F7 -> 1 | M8: ='Annual Model - RFW'!J70 -> 918.5554933 | N8: =F10 -> 18 | O8: =F11 -> 6 | P8: =INDEX(D15:D18,F14) -> Proposed | Q8: ='Operating Assumptions'!L107 -> Latest | R8: =F30 -> 47507522.76 | S8: =F61 -> 35000000 | T8: =F66 -> 12507522.76 | U8: =G66 -> 15348745.51 | V8: ='Financial Model'!G448 -> 0.1661720574 | W8: =H61 -> 0.7367254272 | X8: =I61 -> 0.7372801579 | Z8: Addr | AA8: =ADDRESS(AA4,AA5)&":"&ADDRESS(AA6,AA7) -> $I$8:$X$8
D9: Loan Tenor (Months) | F9: ='Financing Assumptions'!J16 -> 24
D10: Disbursment Period (Months) | F10: ='Financing Assumptions'!J15 -> 18 | I10: 1 | J10: Budget No Over-Run No Devaluation | L10: 1 | M10: 780 | N10: 18 | O10: 1 | P10: Proposed | Q10: Inv Plan | R10: 51580813.42 | S10: 35000000 | T10: 8680000 | U10: 21257453.1 | V10: 0.1518979371 | W10: 0.6785468798 | X10: 0.6785468798 | Z10: col name | AA10: =MID(ADDRESS(ROW(AA4),AA5),2,1) -> I
D11: Months Between Disbursment | F11: ='Financing Assumptions'!J17 -> 6 | I11: 2 | J11: Budget; No Over-run; Devaluation | L11: 1 | M11: 836.2999341 | N11: 18 | O11: 1 | P11: Proposed | Q11: Inv Plan | R11: 53572947.15 | S11: 35000000 | T11: 10660668.33 | U11: 23091582.61 | V11: 0.1526725709 | W11: 0.6533148139 | X11: 0.6493373312 | Z11: base row | AA11: =AA4 -> 8
D12: Total Disbursment Periods | F12: =F10/F11 -> 3 | I12: 3 | J12: Budget; Over-Run; Devaluation | L12: 1.2 | M12: 837.3699 | N12: 18 | O12: 1 | P12: Proposed | Q12: Inv Plan | R12: 65333909.2 | S12: 35000000 | T12: 19245201.92 | U12: 37754923.28 | V12: 0.1517106473 | W12: 0.5357095638 | X12: 0.5337960338
I13: 4 | J13: Budget; Cost Over-run; High Devaluation | L13: 1.2 | M13: 879.6460243 | N13: 18 | O13: 1 | P13: Proposed | Q13: Inv Plan | R13: 66652471.23 | S13: 35000000 | T13: 31652471.23 | U13: 38583508.06 | V13: 0.152196461 | W13: 0.5251118129 | X13: 0.5219226775 | Z13: start col | AA13: =MID(ADDRESS(AA4,AA5),2,1) -> I
D14: Disbursment Timing Option | F14: 2 | I14: 5 | J14: Budget; No Over-run; No Deval; 6 Mos | L14: 1 | M14: 780 | N14: 18 | O14: 6 | P14: Proposed | Q14: Inv Plan | R14: 51580813.42 | S14: 35000000 | T14: 16580813.42 | U14: 21257453.1 | V14: 0.1518979371 | W14: 0.6785468798 | X14: 0.6785468798 | Z14: end col | AA14: =MID(ADDRESS(AA4,AA7),2,1) -> X
C15: 1 | D15: Equal Disbursment | F15: =$F$14=C15 -> FALSE | I15: 6 | J15: No Gas EPC; No Over-run; No Deval | L15: 1 | M15: 780 | N15: 18 | O15: 1 | P15: Proposed | Q15: No Gas EPC | R15: 41793969.64 | S15: 35000000 | T15: 6793969.643 | U15: 8710217.491 | V15: 0.1518979371 | W15: 0.8374413892 | X15: 0.8374413892 | Z15: sc num col | AA15: =AA5 -> 9
C16: 2 | D16: Proposed | F16: =$F$14=C16 -> TRUE | I16: 7 | J16: No Gas EPC; No Over-run; Devaluation | L16: 1 | M16: 836.2999341 | N16: 18 | O16: 1 | P16: Proposed | Q16: No Gas EPC | R16: 43352789.33 | S16: 35000000 | T16: 8352789.333 | U16: 10386493.19 | V16: 0.1526725709 | W16: 0.807329829 | X16: 0.8051462142
C17: 3 | D17: Total S-curve | F17: =$F$14=C17 -> FALSE | I17: 8 | J17: No Gas EPC; Over-run; Devaluation | L17: 1.2 | M17: 837.3699 | N17: 18 | O17: 1 | P17: Proposed | Q17: No Gas EPC | R17: 53189514.73 | S17: 35000000 | T17: 18189514.73 | U17: 22633550.92 | V17: 0.1517106473 | W17: 0.6580244278 | X17: 0.6566877889
C18: 4 | D18: Equipment and Constr S-Curve | F18: =$F$14=C18 -> FALSE | I18: 9 | J18: No Gas EPC; Over-run; High Devaluation | L18: 1.2 | M18: 879.6460243 | N18: 18 | O18: 1 | P18: Proposed | Q18: No Gas EPC | R18: 54221247.61 | S18: 35000000 | T18: 19221247.61 | U18: 23436264.05 | V18: 0.152196461 | W18: 0.6455034058 | X18: 0.6430059807
I19: 10 | J19: No Gas; Over-run; High Deval; 6 Mos | L19: 1.2 | M19: 879.6460243 | N19: 18 | O19: 6 | P19: Proposed | Q19: No Gas EPC | R19: 54221247.61 | S19: 35000000 | T19: 19221247.61 | U19: 23436264.05 | V19: 0.152196461 | W19: 0.6455034058 | X19: 0.6430059807
F20: RWF 000's | G20: USD | I20: 11 | J20: Current Quote; No Over-run; No Deval | L20: 1 | M20: 780 | N20: 18 | O20: 1 | P20: Proposed | Q20: Recent Quote | R20: 48899769.64 | S20: 35000000 | T20: 13899769.64 | U20: 17820217.49 | V20: 0.1518979371 | W20: 0.715749793 | X20: 0.715749793
D21: Amount Already Invested by Equity in Development | F21: =G21*H292/1000 -> 3173831.063 | G21: =CHOOSE(F6,F213,G213) -> 4046136.738 | I21: 12 | J21: Current Quote; Cost Over-run; No Deval | L21: 1.2 | M21: 763.9971538 | N21: 18 | O21: 6 | P21: Proposed | Q21: Recent Quote | R21: 59781703.58 | S21: 35000000 | T21: 24781703.58 | U21: 32041839.6 | V21: 0.1508829296 | W21: 0.5854634094 | X21: 0.5860469938
D22: Remaining Capital Expenditures for Project | F22: =G295 -> 38929633.04 | G22: =G285 -> 47909851.29 | I22: 13 | J22: Current Quote; Cost-Over-run; Devaluation | L22: 1.2 | M22: 837.3699 | N22: 18 | O22: 6 | P22: Proposed | Q22: Recent Quote | R22: 62014046.69 | S22: 35000000 | T22: 27014046.69 | U22: 33630240.55 | V22: 0.1517106473 | W22: 0.5643882615 | X22: 0.5624424996
D23: Payment of IDC | F23: =G260-F253 -> 4829782.836 | G23: =G270-F270 -> 5758447.185 | I23: 14 | J23: Current Quote; Cost-Over run; High Devalation | L23: 1.2 | M23: 879.6460243 | N23: 18 | O23: 6 | P23: Proposed | Q23: Recent Quote | R23: 63259076.8 | S23: 35000000 | T23: 28259076.8 | U23: 34458825.33 | V23: 0.152196461 | W23: 0.5532802844 | X23: 0.5500336752
D24: Payment of Management Fee | F24: =G261-F254 -> 172492.2442 | G24: =G271-F271 -> 205658.828 | I24: 15 | J24: Budget; Equal Disbursment; 6 Mos | L24: 1 | M24: 780 | N24: 18 | O24: 6 | P24: Equal Disbursment | Q24: Budget | R24: 50969037.23 | S24: 35000000 | T24: 15969037.23 | U24: 20473124.65 | V24: 0.1515136659 | W24: 0.6866914092 | X24: 0.6866914092
D25: Payment of Commitment Fee | F25: =G264-F256 -> 209182.1784 | G25: =G274-F274 -> 260523.1612 | I25: 16 | J25: No Gas EPC; Equal Disbursement 6 Mos | L25: 1 | M25: 780 | N25: 18 | O25: 6 | P25: Equal Disbursment | Q25: No Gas EPC | R25: 42484472.89 | S25: 35000000 | T25: 7484472.893 | U25: 9595478.068 | V25: 0.1515136659 | W25: 0.823830393 | X25: 0.823830393
D26: Payment of Debt Service Fee | F26: =G262-F253 -> 105000 | G26: =G272-F272 -> 133858.529 | I26: 17 | J26: Current Quote; Equal Disbursment 6 Mos | L26: 1 | M26: 780 | N26: 18 | O26: 6 | P26: Equal Disbursment | Q26: Recent Quote | R26: 49590272.89 | S26: 35000000 | T26: 14590272.89 | U26: 18705478.07 | V26: 0.1515136659 | W26: 0.7057835732 | X26: 0.7057835732
D27: Payment of VAT on Fees | F27: =G265-F257 -> 87601.39605 | G27: =G275-F275 -> 108007.2933
D28: Total Cash Requirements | F28: =SUM(F21:F27) -> 47507522.76 | G28: =SUM(G21:G27) -> 58422483.02
D29: Funding of IDC, Fees and VAT at Loan Maturity | F29: =F49 -> 0 | G29: =G49 -> 0
D30: Total Funding Requirements | F30: =SUM(F28:F29) -> 47507522.76 | G30: =SUM(G28:G29) -> 58422483.02
I31: Total | J31: Gas | K31: Power | L31: Other
D32: Debt Funding | F32: =F305 -> 31618091.18 | G32: =G335+G336 -> 38911696 | I32: =G32 -> 38911696 | J32: ='Phase 1 Cash flow '!F43 -> 19776091 | K32: ='Phase 1 Cash flow '!F67 -> 15064324 | L32: ='Phase 1 Cash flow '!F13+'Phase 1 Cash flow '!F27 -> 10218929 | M32: =SUM(J32:L32) -> 45059344
D33: Funding of Civil and Equipment Works from BRD Loan | F33: =F309 -> 31618091.18 | G33: =G335+G336 -> 38911696 | J33: ='Cap Exp Investment Plan'!Q24 -> 0.675 | K33: ='Cap Exp Investment Plan'!Q25 -> 0.7040816327
D34: Funding of Supervisory from BRD Loan | F34: =F310 -> 3381908.821 | G34: =G337 -> 4162041.51 | J34: =J32*J33 -> 13348861.43 | K34: =K32*K33 -> 10606513.84
D35: Funding of Interest and Fees from BRD Loan | F35: =F311 -> 0 | G35: =G344 -> 0 | J35: =J32-J34 -> 6427229.575 | K35: =K32-K34 -> 4457810.163
D36: Net Amount to Be Funded from BRD and Symbion | F36: =SUM(F33:F35) -> 35000000 | G36: =SUM(G33:G35) -> 43073737.51
I37: Total USD | J37: =G34+G33 -> 43073737.51
D38: Development Funding by Equity | F38: =F318 -> 3173831.063 | G38: =G342 -> 4046136.738 | I38: Equip | J38: =J34/M32*J37 -> 12760624.15 | K38: =J37*K34/M32 -> 10139122.15 | L38: =L32/M32*J37 -> 9768616.813
D39: Funding of Civil and Equipment by Equity | F39: =F315 -> 0 | G39: =G339 -> 0 | I39: Other | J39: =J35/M32*J37 -> 6144004.219 | K39: =K35/M32*J37 -> 4261370.18
D40: Funding of Supervisory by Equity | F40: =F316 -> 3929633.043 | G40: =G340 -> 4836113.777
D41: Funding of Interest and Fees by Equity | F41: 5404058.655 | G41: 6466494.997 | I41: Total RWF | J41: =F33+F34 -> 35000000
D42: Total Equity Funding | F42: =SUM(F38:F41) -> 12507522.76 | G42: =SUM(G38:G41) -> 15348745.51 | J42: =J34/M32*J41 -> 10368773.9 | K42: =K34/M32*J41 -> 8238646.002 | L42: =J41*L32/M32 -> 7937588.15
J43: =J35/M32*J41 -> 4992372.617 | K43: =J41*K35/M32 -> 3462619.334 | L43: RWF | M43: USD
D44: =E260 -> Interest Capitalised and Paid at Maturity | F44: =F255 -> 0 | G44: =F270 -> 0 | I44: ='Cap Exp Investment Plan'!B22 -> Balance of plant | J44: 700000 | K44: =J44/$J$50 -> 0.0421686747 | L44: =($F$39+$F$40)*K44 -> 165707.4175 | M44: =($G$39+$G$40)*K44 -> 203932.5087
D45: =E261 -> Managment Fee Capitalised or Paid | F45: =F254 -> 0 | G45: =F271 -> 0 | I45: ='Cap Exp Investment Plan'!B25 -> Early Works | J45: 2000000 | K45: 0.1204819277 | L45: 473449.7642 | M45: 582664.3105
D46: =E262 -> Service Fee Capitalised or Paid | F46: =F253 -> 0 | G46: =F272 -> 0 | I46: ='Cap Exp Investment Plan'!B31 -> Owners Cost | J46: 6000000 | K46: 0.3614457831 | L46: 1420349.293 | M46: 1747992.931
D47: =E264 -> Commitment Fee Capitalised and Paid at Maturity | F47: =F256 -> 0 | G47: =F274 -> 0 | I47: ='Cap Exp Investment Plan'!B32 -> Commissioning | J47: 300000 | K47: 0.01807228916 | L47: 71017.46463 | M47: 87399.64657
D48: =E265 -> VAT Capitalised and Paid at Maturity | F48: =F257 -> 0 | G48: =F275 -> 0 | I48: ='Cap Exp Investment Plan'!B33 -> Plant readiness | J48: 2000000 | K48: 0.1204819277 | L48: 473449.7642 | M48: 582664.3105
D49: Total Payment at Maturity fro IDC, Fees and VAT | F49: =SUM(F44:F48) -> 0 | G49: =SUM(G44:G48) -> 0 | I49: ='Cap Exp Investment Plan'!B35 -> Contigency costs (10% of Pjt cost) | J49: 5600000 | K49: 0.3373493976 | L49: 1325659.34 | M49: 1631460.069
I50: Total | J50: =SUM(J44:J49) -> 16600000
D51: Uses of Funds | F51: =F20 -> RWF 000's | G51: =G20 -> USD | H51: RWF | I51: USD
D52: Prospective Construction | F52: =G295 -> 38929633.04 | G52: =G285 -> 47909851.29 | K52: ='Summary Sheet'!M5 -> 114792098.1 | L52: =F52+F53 -> 42103464.11 | M52: =L52-K52 -> -72688634.03
D53: Development Fees | F53: =G53*H292/1000 -> 3173831.063 | G53: =G21 -> 4046136.738
D54: Interest During Constrction Paid | F54: ='Debt Balance'!M35 -> 4829782.836 | G54: =G23 -> 5758447.185
D55: Fees and VAT Paid | F55: ='Debt Balance'!L35+'Debt Balance'!N35+'Debt Balance'!O35+'Debt Balance'!K35 -> 574275.8186 | G55: =G24+G25+G26+G27 -> 708047.8115
D56: Total Uses | F56: =SUM(F52:F55) -> 47507522.76 | G56: =SUM(G52:G55) -> 58422483.02 | K56: ='Summary Sheet'!M9 -> 137683108.7 | L56: =K56-F56 -> 90175585.95
D58: Sources of Funds
D59: Debt Drawn | F59: =F36 -> 35000000 | G59: =G36 -> 43073737.51
D60: Debt Items Capitalised | F60: =F49 -> 0 | G60: =G49 -> 0
D61: Total Debt | F61: =SUM(F59:F60) -> 35000000 | G61: =SUM(G59:G60) -> 43073737.51 | H61: =F61/F68 -> 0.7367254272 | I61: =G61/G68 -> 0.7372801579
D63: Equity Funded for Development | F63: =F38 -> 3173831.063 | G63: =G38 -> 4046136.738
D64: Equity Funded for Construction and Supervision | F64: =F39+F40 -> 3929633.043 | G64: =G39+G40 -> 4836113.777
D65: Equity Funded for Fees and IDC | F65: =F41 -> 5404058.655 | G65: =G41 -> 6466494.997
D66: Total Equity Funded | F66: =SUM(F63:F65) -> 12507522.76 | G66: =SUM(G63:G65) -> 15348745.51 | H66: =F66/$F$68 -> 0.2632745728 | I66: =G66/$G$68 -> 0.2627198421 | K66: ='Summary Sheet'!M13 -> 18042615.35 | L66: =K66-F66 -> 5535092.591
D68: Total Sources | F68: =F66+F61 -> 47507522.76 | G68: =G66+G61 -> 58422483.02
F69: =F68-F56 -> 0 | G69: =G68-G56 -> 0
L105: =F26 -> 105000 | M105: =F27 -> 87601.39605
A106: Part 2: Disbursment Schedule and IDC Summary | M106: ='Debt Balance'!L35-M105 -> 0
D107: Disbursment Number | F107: 1
D108: Column Number for Disbursment | F108: =MATCH(F107,$234:$234,0) -> 8
D109: Date of Disbursment | F109: =INDEX($283:$283,F108) -> 2016-09-01
D110: Civil works (Construction) | F110: =INDEX($331:$331,F108) -> 1415299.077
D111: Electromechanical equipment | F111: =INDEX($330:$330,F108) -> 2266869.044
D112: Supervision (Owners etc.) | F112: =INDEX($332:$332,F108) -> 393849.1029
D113: Total Disbursment | F113: =SUM(F110:F112) -> 4076017.223
D114: Accumulated Disbursment | F114: =F113 -> 4076017.223
D116: Disbursment Number | F116: 2
D117: Column Number for Disbursment | F117: =MATCH(F116,$234:$234,0) -> 14
D118: Date of Disbursment | F118: =INDEX($283:$283,F117) -> 2017-03-01
D119: Civil works (Construction) | F119: =INDEX($331:$331,F117) -> 967886.871
D120: Electromechanical equipment | F120: =INDEX($330:$330,F117) -> 1550253.81
D121: Supervision (Owners etc.) | F121: =INDEX($332:$332,F117) -> 269343.3368
D122: Total Disbursment | F122: =SUM(F119:F121) -> 2787484.018
D123: Accumulated Disbursment | F123: =F122+F114 -> 6863501.241
D125: Disbursment Number | F125: 3
D126: Column Number for Disbursment | F126: =MATCH(F125,$234:$234,0) -> 20
D127: Date of Disbursment | F127: =INDEX($283:$283,F126) -> 2017-09-01
D128: Civil works (Construction) | F128: =INDEX($331:$331,F126) -> 455523.9884
D129: Electromechanical equipment | F129: =INDEX($330:$330,F126) -> 729607.7875
D130: Supervision (Owners etc.) | F130: =INDEX($332:$332,F126) -> 126763.1112
D131: Total Disbursment | F131: =SUM(F128:F130) -> 1311894.887
D132: Accumulated Disbursment | F132: =F131+F123 -> 8175396.128
D134: Disbursment Number | F134: 4
D135: Column Number for Disbursment | F135: =MATCH(F134,$234:$234,0) -> 26
D136: Date of Disbursment | F136: =INDEX($283:$283,F135) -> 2018-03-01
D137: Civil works (Construction) | F137: =INDEX($331:$331,F135) -> 0
D138: Electromechanical equipment | F138: =INDEX($330:$330,F135) -> 0
D139: Supervision (Owners etc.) | F139: =INDEX($332:$332,F135) -> 0
D140: Total Disbursment | F140: =SUM(F137:F139) -> 0
D141: Accumulated Disbursment | F141: =F140+F132 -> 8175396.128
D144: Disbursment Number | F144: 5
D145: Column Number for Disbursment | F145: =MATCH(F144,$234:$234,0) -> 
D146: Date of Disbursment | F146: =INDEX($283:$283,F145) -> 
D147: Civil works (Construction) | F147: =INDEX($331:$331,F145) -> 
D148: Electromechanical equipment | F148: =INDEX($330:$330,F145) -> 
D149: Supervision (Owners etc.) | F149: =INDEX($332:$332,F145) -> 
D150: Total Disbursment | F150: =SUM(F147:F149) -> 
D151: Accumulated Disbursment | F151: =F150+F141 -> 
D153: Disbursment Number | F153: 6
D154: Column Number for Disbursment | F154: =MATCH(F153,$234:$234,0) -> 
D155: Date of Disbursment | F155: =INDEX($283:$283,F154) -> 
D156: Civil works (Construction) | F156: =INDEX($331:$331,F154) -> 
D157: Electromechanical equipment | F157: =INDEX($330:$330,F154) -> 
D158: Supervision (Owners etc.) | F158: =INDEX($332:$332,F154) -> 
D159: Total Disbursment | F159: =SUM(F156:F158) -> 
D160: Accumulated Disbursment | F160: =F159+F151 -> 
D162: Disbursment Number | F162: 7
D163: Column Number for Disbursment | F163: =MATCH(F162,$234:$234,0) -> 
D164: Date of Disbursment | F164: =INDEX($283:$283,F163) -> 
D165: Civil works (Construction) | F165: =INDEX($331:$331,F163) -> 
D166: Electromechanical equipment | F166: =INDEX($330:$330,F163) -> 
D167: Supervision (Owners etc.) | F167: =INDEX($332:$332,F163) -> 
D168: Total Disbursment | F168: =SUM(F165:F167) -> 
D169: Accumulated Disbursment | F169: =F168+F160 -> 
D171: Disbursment Number | F171: 8
D172: Column Number for Disbursment | F172: =MATCH(F171,$234:$234,0) -> 
D173: Date of Disbursment | F173: =INDEX($283:$283,F172) -> 
D174: Civil works (Construction) | F174: =INDEX($331:$331,F172) -> 
D175: Electromechanical equipment | F175: =INDEX($330:$330,F172) -> 
D176: Supervision (Owners etc.) | F176: =INDEX($332:$332,F172) -> 
D177: Total Disbursment | F177: =SUM(F174:F176) -> 
D178: Accumulated Disbursment | F178: =F177+F169 -> 
D180: Disbursment Number | F180: 9
D181: Column Number for Disbursment | F181: =MATCH(F180,$234:$234,0) -> 
D182: Date of Disbursment | F182: =INDEX($283:$283,F181) -> 
D183: Civil works (Construction) | F183: =INDEX($331:$331,F181) -> 
D184: Electromechanical equipment | F184: =INDEX($330:$330,F181) -> 
D185: Supervision (Owners etc.) | F185: =INDEX($332:$332,F181) -> 
D186: Total Disbursment | F186: =SUM(F183:F185) -> 
D187: Accumulated Disbursment | F187: =F186+F178 -> 
A190: Part 3: Total Capital Expenditures and Month by Month Spending
D192: Cost Over-Run | F192: =Scenarios!D19 -> 1
F194: USD | G194: USD | I194: Ratio | J194: RWF
E195: Total Construction Cost | F195: =F219+F220 -> 58330410.98 | G195: =G219+G220 -> 51955988.02
F196: ='Full Budget Cap Exp Summary'!G14*$F$192 -> 58330410.98 | G196: ='Operating Assumptions'!L94 -> 51955988.02
F197: =F195-F196 -> 0 | G197: =G195-G196 -> 0 | J197: S-curves | L197: 1 | M197: 2 | N197: 3 | O197: 4 | P197: 5 | Q197: 6 | R197: 7 | S197: 8 | T197: 9 | U197: 10 | V197: 11 | W197: 12 | X197: 13 | Y197: 14 | Z197: 15 | AA197: 16 | AB197: 17 | AC197: 18 | AD197: 19
F198: Budget | G198: Inv Plan
E199: Gas Plant Equipment | F199: =F201*H199 -> 14633260.59 | G199: =('Operating Assumptions'!L108+'Operating Assumptions'!L109)*H199 -> 13348861.43 | H199: ='Operating Assumptions'!H108/('Operating Assumptions'!H108+'Operating Assumptions'!H109) -> 0.675
E200: Gas Plant Construction | F200: =F201*H200 -> 7045643.99 | G200: =('Operating Assumptions'!L108+'Operating Assumptions'!L109)*H200 -> 6427229.575 | H200: =1-H199 -> 0.325
D201: FALSE | E201: Total Gas Plant | F201: ='Full Budget Cap Exp Summary'!G8*F192 -> 21678904.58 | G201: =SUM(G199:G200) -> 19776091 | H201: =(G199+G200)/G201 -> 1 | J201: S-Curve for Gas Plant | L201: ='Full Budget Cap Exp Summary'!N8 -> 0 | M201: ='Full Budget Cap Exp Summary'!O8 -> 0 | N201: ='Full Budget Cap Exp Summary'!P8 -> 0 | O201: ='Full Budget Cap Exp Summary'!Q8 -> 0 | P201: ='Full Budget Cap Exp Summary'!R8 -> 0 | Q201: ='Full Budget Cap Exp Summary'!S8 -> 0 | R201: ='Full Budget Cap Exp Summary'!T8 -> 0 | S201: ='Full Budget Cap Exp Summary'!U8 -> 0 | T201: ='Full Budget Cap Exp Summary'!V8 -> 3271302.918 | U201: ='Full Budget Cap Exp Summary'!W8 -> 388010.8909 | V201: ='Full Budget Cap Exp Summary'!X8 -> 643632.947 | W201: ='Full Budget Cap Exp Summary'!Y8 -> 3154478.846 | X201: ='Full Budget Cap Exp Summary'!Z8 -> 967240.5584 | Y201: ='Full Budget Cap Exp Summary'!AA8 -> 1222862.614 | Z201: ='Full Budget Cap Exp Summary'!AB8 -> 5338646.629 | AA201: ='Full Budget Cap Exp Summary'!AC8 -> 648845.4911 | AB201: ='Full Budget Cap Exp Summary'!AD8 -> 890192.302 | AC201: ='Full Budget Cap Exp Summary'!AE8 -> 4519121.141 | AD201: ='Full Budget Cap Exp Summary'!AF8 -> 634570.2459
E202: Power Plant Equipment | F202: =F204*H202 -> 14014181.63 | G202: =('Operating Assumptions'!L110+'Operating Assumptions'!L111)*'Disbursment Analysis'!H202 -> 10606513.84 | H202: ='Operating Assumptions'!I110/('Operating Assumptions'!I110+'Operating Assumptions'!I111) -> 0.7040816327
E203: Power Plant Construction | F203: =H203*F204 -> 5890018.367 | G203: =('Operating Assumptions'!L110+'Operating Assumptions'!L111)*'Disbursment Analysis'!H203 -> 4457810.163 | H203: =1-H202 -> 0.2959183673
D204: FALSE | E204: Total Power Plant (EPC) | F204: ='Full Budget Cap Exp Summary'!G9*F192 -> 19904200 | G204: =SUM(G202:G203) -> 15064324 | H204: =(G202+G203)/G204 -> 1 | J204: S-Curve for Power Plant | L204: ='Full Budget Cap Exp Summary'!N9 -> 0 | M204: ='Full Budget Cap Exp Summary'!O9 -> 0 | N204: ='Full Budget Cap Exp Summary'!P9 -> 0 | O204: ='Full Budget Cap Exp Summary'!Q9 -> 0 | P204: ='Full Budget Cap Exp Summary'!R9 -> 0 | Q204: ='Full Budget Cap Exp Summary'!S9 -> 0 | R204: ='Full Budget Cap Exp Summary'!T9 -> 0 | S204: ='Full Budget Cap Exp Summary'!U9 -> 0 | T204: ='Full Budget Cap Exp Summary'!V9 -> 4143530.779 | U204: ='Full Budget Cap Exp Summary'!W9 -> 2669145.594 | V204: ='Full Budget Cap Exp Summary'!X9 -> 6228006.386 | W204: ='Full Budget Cap Exp Summary'!Y9 -> 0 | X204: ='Full Budget Cap Exp Summary'!Z9 -> 0 | Y204: ='Full Budget Cap Exp Summary'!AA9 -> 2669145.594 | Z204: ='Full Budget Cap Exp Summary'!AB9 -> 762613.0268 | AA204: ='Full Budget Cap Exp Summary'!AC9 -> 762613.0268 | AB204: ='Full Budget Cap Exp Summary'!AD9 -> 2669145.594 | AC204: ='Full Budget Cap Exp Summary'!AE9 -> 0 | AD204: ='Full Budget Cap Exp Summary'!AF9 -> 0
D205: FALSE | E205: General Site Construction | G205: ='Operating Assumptions'!L112 -> 4071281
E206: Total Gas Plant and Power Plant | F206: =F204+F201 -> 41583104.58 | G206: =G204+G201+G205 -> 38911696 | J206: S-Curve for Civil and Equip | L206: =L204+L201 -> 0 | M206: =M204+M201 -> 0 | N206: 0 | O206: 0 | P206: 0 | Q206: 0 | R206: 0 | S206: 0 | T206: 7414833.697 | U206: 3057156.485 | V206: 6871639.333 | W206: 3154478.846 | X206: 967240.5584 | Y206: 3892008.208 | Z206: 6101259.656 | AA206: 1411458.518 | AB206: 3559337.896 | AC206: 4519121.141 | AD206: 634570.2459
D209: TRUE | E209: Balance of Plant | F209: ='Full Budget Cap Exp Summary'!G10*F192 -> 306508.3333 | G209: ='Operating Assumptions'!L116 -> 306508.3333 | J209: ="S-Curve for "&E209 -> S-Curve for Balance of Plant | K209: =SUM(L209:AD209) -> 306508.3333 | L209: ='Full Budget Cap Exp Summary'!N10 -> 0 | M209: ='Full Budget Cap Exp Summary'!O10 -> 0 | N209: ='Full Budget Cap Exp Summary'!P10 -> 0 | O209: ='Full Budget Cap Exp Summary'!Q10 -> 0 | P209: ='Full Budget Cap Exp Summary'!R10 -> 10993.57978 | Q209: ='Full Budget Cap Exp Summary'!S10 -> 10993.57978 | R209: ='Full Budget Cap Exp Summary'!T10 -> 10993.57978 | S209: ='Full Budget Cap Exp Summary'!U10 -> 18322.63297 | T209: ='Full Budget Cap Exp Summary'!V10 -> 18322.63297 | U209: ='Full Budget Cap Exp Summary'!W10 -> 18322.63297 | V209: ='Full Budget Cap Exp Summary'!X10 -> 7329.053187 | W209: ='Full Budget Cap Exp Summary'!Y10 -> 7329.053187 | X209: ='Full Budget Cap Exp Summary'!Z10 -> 7329.053187 | Y209: ='Full Budget Cap Exp Summary'!AA10 -> 6596.147868 | Z209: ='Full Budget Cap Exp Summary'!AB10 -> 6596.147868 | AA209: ='Full Budget Cap Exp Summary'!AC10 -> 6596.147868 | AB209: ='Full Budget Cap Exp Summary'!AD10 -> 6596.147868 | AC209: ='Full Budget Cap Exp Summary'!AE10 -> 23452.9702 | AD209: ='Full Budget Cap Exp Summary'!AF10 -> 146734.9739
D210: TRUE | E210: Early Works | F210: ='Full Budget Cap Exp Summary'!G7*F192 -> 3179393.641 | G210: ='Operating Assumptions'!L115 -> 3179393.641 | J210: ="S-Curve for "&E210 -> S-Curve for Early Works | K210: =SUM(L210:AD210) -> 3179393.641 | L210: ='Full Budget Cap Exp Summary'!N7 -> 0 | M210: ='Full Budget Cap Exp Summary'!O7 -> 2941.176471 | N210: ='Full Budget Cap Exp Summary'!P7 -> 2941.176471 | O210: ='Full Budget Cap Exp Summary'!Q7 -> 2941.176471 | P210: ='Full Budget Cap Exp Summary'!R7 -> 202941.1765 | Q210: ='Full Budget Cap Exp Summary'!S7 -> 84955.46218 | R210: ='Full Budget Cap Exp Summary'!T7 -> 990221.4562 | S210: ='Full Budget Cap Exp Summary'!U7 -> 455421.4562 | T210: ='Full Budget Cap Exp Summary'!V7 -> 395705.8431 | U210: ='Full Budget Cap Exp Summary'!W7 -> 387462.5098 | V210: ='Full Budget Cap Exp Summary'!X7 -> 214162.5098 | W210: ='Full Budget Cap Exp Summary'!Y7 -> 55111.27171 | X210: ='Full Budget Cap Exp Summary'!Z7 -> 55111.27171 | Y210: ='Full Budget Cap Exp Summary'!AA7 -> 50111.27171 | Z210: ='Full Budget Cap Exp Summary'!AB7 -> 55873.17647 | AA210: ='Full Budget Cap Exp Summary'!AC7 -> 55873.17647 | AB210: ='Full Budget Cap Exp Summary'!AD7 -> 55873.17647 | AC210: ='Full Budget Cap Exp Summary'!AE7 -> 55873.17647 | AD210: ='Full Budget Cap Exp Summary'!AF7 -> 55873.17647
D211: TRUE | E211: Operational Readiness | F211: ='Full Budget Cap Exp Summary'!G12*F192 -> 564297.0256 | G211: =('Operating Assumptions'!L118+'Operating Assumptions'!L117) -> 564297.0256 | J211: ="S-Curve for "&E211 -> S-Curve for Operational Readiness | K211: =SUM(L211:AD211) -> 564297.0256 | L211: ='Full Budget Cap Exp Summary'!N12 -> 0 | M211: ='Full Budget Cap Exp Summary'!O12 -> 0 | N211: ='Full Budget Cap Exp Summary'!P12 -> 0 | O211: ='Full Budget Cap Exp Summary'!Q12 -> 0 | P211: ='Full Budget Cap Exp Summary'!R12 -> 0 | Q211: ='Full Budget Cap Exp Summary'!S12 -> 0 | R211: ='Full Budget Cap Exp Summary'!T12 -> 0 | S211: ='Full Budget Cap Exp Summary'!U12 -> 0 | T211: ='Full Budget Cap Exp Summary'!V12 -> 0 | U211: ='Full Budget Cap Exp Summary'!W12 -> 0 | V211: ='Full Budget Cap Exp Summary'!X12 -> 0 | W211: ='Full Budget Cap Exp Summary'!Y12 -> 70273.79493 | X211: ='Full Budget Cap Exp Summary'!Z12 -> 70273.79493 | Y211: ='Full Budget Cap Exp Summary'!AA12 -> 70273.79493 | Z211: ='Full Budget Cap Exp Summary'!AB12 -> 70273.79493 | AA211: ='Full Budget Cap Exp Summary'!AC12 -> 70273.79493 | AB211: ='Full Budget Cap Exp Summary'!AD12 -> 70273.79493 | AC211: ='Full Budget Cap Exp Summary'!AE12 -> 70273.79493 | AD211: ='Full Budget Cap Exp Summary'!AF12 -> 72380.46112
D212: TRUE | E212: Owners Cost | F212: ='Full Budget Cap Exp Summary'!G5*F192 -> 9019237.287 | G212: ='Operating Assumptions'!L113 -> 4947956.287 | J212: ="S-Curve for "&E212 -> S-Curve for Owners Cost | K212: =SUM(L212:AD212) -> 9019237.287 | L212: ='Full Budget Cap Exp Summary'!N5 -> 697547.1762 | M212: ='Full Budget Cap Exp Summary'!O5 -> 271158.5038 | N212: ='Full Budget Cap Exp Summary'!P5 -> 467440.4482 | O212: ='Full Budget Cap Exp Summary'!Q5 -> 380914.9483 | P212: ='Full Budget Cap Exp Summary'!R5 -> 339919.814 | Q212: ='Full Budget Cap Exp Summary'!S5 -> 471516.7494 | R212: ='Full Budget Cap Exp Summary'!T5 -> 427183.2526 | S212: ='Full Budget Cap Exp Summary'!U5 -> 433823.9588 | T212: ='Full Budget Cap Exp Summary'!V5 -> 1010391.249 | U212: ='Full Budget Cap Exp Summary'!W5 -> 392577.4393 | V212: ='Full Budget Cap Exp Summary'!X5 -> 395877.0402 | W212: ='Full Budget Cap Exp Summary'!Y5 -> 528848.2428 | X212: ='Full Budget Cap Exp Summary'!Z5 -> 448288.3107 | Y212: ='Full Budget Cap Exp Summary'!AA5 -> 454929.0168 | Z212: ='Full Budget Cap Exp Summary'!AB5 -> 457944.8702 | AA212: ='Full Budget Cap Exp Summary'!AC5 -> 465879.2645 | AB212: ='Full Budget Cap Exp Summary'!AD5 -> 468763.8212 | AC212: ='Full Budget Cap Exp Summary'!AE5 -> 457944.8702 | AD212: ='Full Budget Cap Exp Summary'!AF5 -> 448288.3107
D213: TRUE | E213: Development Cost | F213: ='Full Budget Cap Exp Summary'!G6*F192 -> 3677870.106 | G213: ='Operating Assumptions'!L121 -> 4046136.738 | J213: ="S-Curve for "&E213 -> S-Curve for Development Cost | K213: =SUM(L213:AD213) -> 3677870.106 | L213: ='Full Budget Cap Exp Summary'!N6 -> 27396.72083 | M213: ='Full Budget Cap Exp Summary'!O6 -> 138010.9812 | N213: ='Full Budget Cap Exp Summary'!P6 -> 275141.4019 | O213: ='Full Budget Cap Exp Summary'!Q6 -> 338082.957 | P213: ='Full Budget Cap Exp Summary'!R6 -> 365168.1772 | Q213: ='Full Budget Cap Exp Summary'!S6 -> 504183.3943 | R213: ='Full Budget Cap Exp Summary'!T6 -> 267259.7854 | S213: ='Full Budget Cap Exp Summary'!U6 -> 381987.6633 | T213: ='Full Budget Cap Exp Summary'!V6 -> 809438.1509 | U213: ='Full Budget Cap Exp Summary'!W6 -> 536083.2593 | V213: ='Full Budget Cap Exp Summary'!X6 -> 3901.957209 | W213: ='Full Budget Cap Exp Summary'!Y6 -> 3901.957209 | X213: ='Full Budget Cap Exp Summary'!Z6 -> 3901.957209 | Y213: ='Full Budget Cap Exp Summary'!AA6 -> 3901.957209 | Z213: ='Full Budget Cap Exp Summary'!AB6 -> 3901.957209 | AA213: ='Full Budget Cap Exp Summary'!AC6 -> 3901.957209 | AB213: ='Full Budget Cap Exp Summary'!AD6 -> 3901.957209 | AC213: ='Full Budget Cap Exp Summary'!AE6 -> 3901.957209 | AD213: ='Full Budget Cap Exp Summary'!AF6 -> 3901.957209
J214: Total Supervision | L214: =SUM(L209:L213) -> 724943.897 | M214: =SUM(M209:M213) -> 412110.6615 | N214: 745523.0265 | O214: 721939.0818 | P214: 919022.7474 | Q214: 1071649.186 | R214: 1695658.074 | S214: 1289555.711 | T214: 2233857.876 | U214: 1334445.841 | V214: 621270.5604 | W214: 665464.3199 | X214: 584904.3877 | Y214: 585812.1885 | Z214: 594589.9466 | AA214: 602524.341 | AB214: 605408.8977 | AC214: 611446.769 | AD214: 727178.8793
E216: Total Cost | F216: =F219+F220 -> 58330410.98 | G216: =G219+G220 -> 51955988.02 | H216: =G216-'Operating Assumptions'!L119 -> 0 | K216: =SUM(L216:AD216) -> 58330410.98 | L216: =L219+L206 -> 724943.897 | M216: 412110.6615 | N216: 745523.0265 | O216: 721939.0818 | P216: 919022.7474 | Q216: 1071649.186 | R216: 1695658.074 | S216: 1289555.711 | T216: 9648691.573 | U216: 4391602.326 | V216: 7492909.893 | W216: 3819943.166 | X216: 1552144.946 | Y216: 4477820.397 | Z216: 6695849.602 | AA216: 2013982.859 | AB216: 4164746.794 | AC216: 5130567.91 | AD216: 1361749.125
E217: Total to be Funded | F217: =F216-F213 -> 54652540.87 | G217: =G216-G213 -> 47909851.29
E219: Funded by Symbion | F219: =SUMIF($D$199:$D$213,TRUE,F199:F213) -> 16747306.39 | G219: =SUMIF($D$199:$D$213,TRUE,G199:G213) -> 13044292.02 | K219: =SUM(L219:AD219) -> 16747306.39 | L219: =SUM(L209:L213) -> 724943.897 | M219: 412110.6615 | N219: 745523.0265 | O219: 721939.0818 | P219: 919022.7474 | Q219: 1071649.186 | R219: 1695658.074 | S219: 1289555.711 | T219: 2233857.876 | U219: 1334445.841 | V219: 621270.5604 | W219: 665464.3199 | X219: 584904.3877 | Y219: 585812.1885 | Z219: 594589.9466 | AA219: 602524.341 | AB219: 605408.8977 | AC219: 611446.769 | AD219: 727178.8793
E220: Funded by Loan | F220: =SUMIF($D$199:$D$213,FALSE,F199:F213) -> 41583104.58 | G220: =SUMIF($D$199:$D$213,FALSE,G199:G213) -> 38911696 | K220: =SUM(L220:AD220) -> 41583104.58 | L220: =L206 -> 0 | M220: 0 | N220: 0 | O220: 0 | P220: 0 | Q220: 0 | R220: 0 | S220: 0 | T220: 7414833.697 | U220: 3057156.485 | V220: 6871639.333 | W220: 3154478.846 | X220: 967240.5584 | Y220: 3892008.208 | Z220: 6101259.656 | AA220: 1411458.518 | AB220: 3559337.896 | AC220: 4519121.141 | AD220: 634570.2459
E222: Exchange Rate | F222: ='Financial Model'!$G$94 -> 780 | G222: ='Financial Model'!$G$94 -> 780
E224: RWF Loan (000's) | F224: =F222*F220/1000 -> 32434821.57 | G224: =G222*G220/1000 -> 30351122.88
E225: RWF Loan Input | F225: ='Financing Assumptions'!$I$12 -> 35000000 | G225: ='Financing Assumptions'!$I$12 -> 35000000
E227: Total Construction RWF 000's
A229: Part 4: Calculation of Alternative Disbursment Possibilities
H230: 1 | I230: 2 | J230: 3 | K230: 4 | L230: 5 | M230: 6 | N230: 7 | O230: 8 | P230: 9 | Q230: 10 | R230: 11 | S230: 12 | T230: 13 | U230: 14 | V230: 15 | W230: 16 | X230: 17 | Y230: 18 | Z230: 19 | AA230: 20 | AB230: 20 | AC230: 20 | AD230: 20 | AE230: 20 | AF230: 20 | AG230: 20 | AH230: 20 | AI230: 20
H231: =F4 -> 2016-09-01 | I231: =EDATE(H231,1) -> 2016-10-01 | J231: =EDATE(I231,1) -> 2016-11-01 | K231: 2016-12-01 | L231: 2017-01-01 | M231: 2017-02-01 | N231: 2017-03-01 | O231: 2017-04-01 | P231: 2017-05-01 | Q231: 2017-06-01 | R231: 2017-07-01 | S231: 2017-08-01 | T231: 2017-09-01 | U231: 2017-10-01 | V231: 2017-11-01 | W231: 2017-12-01 | X231: 2018-01-01 | Y231: 2018-02-01 | Z231: 2018-03-01 | AA231: 2018-04-01 | AB231: =EDATE(AA231,1) -> 2018-05-01 | AC231: =EDATE(AB231,1) -> 2018-06-01 | AD231: =EDATE(AC231,1) -> 2018-07-01 | AE231: =EDATE(AD231,1) -> 2018-08-01 | AF231: =EDATE(AE231,1) -> 2018-09-01 | AG231: =EDATE(AF231,1) -> 2018-10-01 | AH231: =EDATE(AG231,1) -> 2018-11-01 | AI231: =EDATE(AH231,1) -> 2018-12-01
E232: Disbursment Period | F232: =F10 -> 18 | H232: =H230<=$F$232+1 -> TRUE | I232: TRUE | J232: TRUE | K232: TRUE | L232: TRUE | M232: TRUE | N232: TRUE | O232: TRUE | P232: TRUE | Q232: TRUE | R232: TRUE | S232: TRUE | T232: TRUE | U232: TRUE | V232: TRUE | W232: TRUE | X232: TRUE | Y232: TRUE | Z232: TRUE | AA232: FALSE | AB232: =AB230<=$F$232+1 -> FALSE | AC232: FALSE | AD232: FALSE | AE232: FALSE | AF232: FALSE | AG232: FALSE | AH232: FALSE | AI232: FALSE
E233: Disbursment Installment | F233: =F11 -> 6 | G233: =F12 -> 3 | H233: =IF($F$233=1,TRUE,AND(MOD(H230,$F$233)=1,H232)) -> TRUE | I233: =IF($F$233=1,TRUE,AND(MOD(I230,$F$233)=1,I232)) -> FALSE | J233: FALSE | K233: FALSE | L233: FALSE | M233: FALSE | N233: TRUE | O233: FALSE | P233: FALSE | Q233: FALSE | R233: FALSE | S233: FALSE | T233: TRUE | U233: FALSE | V233: FALSE | W233: FALSE | X233: FALSE | Y233: FALSE | Z233: TRUE | AA233: FALSE | AB233: FALSE | AC233: FALSE | AD233: FALSE | AE233: FALSE | AF233: FALSE | AG233: FALSE | AH233: FALSE | AI233: FALSE
E234: Disbursment Number | H234: =G234+H233 -> 1 | I234: =H234+I233 -> 1 | J234: 1 | K234: 1 | L234: 1 | M234: 1 | N234: 2 | O234: 2 | P234: 2 | Q234: 2 | R234: 2 | S234: 2 | T234: 3 | U234: 3 | V234: 3 | W234: 3 | X234: 3 | Y234: 3 | Z234: 4 | AA234: 4 | AB234: =AA234+AB233 -> 4 | AC234: =AB234+AC233 -> 4 | AD234: =AC234+AD233 -> 4 | AE234: =AD234+AE233 -> 4 | AF234: =AE234+AF233 -> 4 | AG234: =AF234+AG233 -> 4 | AH234: =AG234+AH233 -> 4 | AI234: =AH234+AI233 -> 4
E235: Percent Disbursed - Equal | F235: =1/F12 -> 0.3333333333 | G235: =SUM(H235:AI235) -> 1 | H235: =$F$235*H233*(H234<=$G$233) -> 0.3333333333 | I235: 0 | J235: 0 | K235: 0 | L235: 0 | M235: 0 | N235: 0.3333333333 | O235: 0 | P235: 0 | Q235: 0 | R235: 0 | S235: 0 | T235: 0.3333333333 | U235: 0 | V235: 0 | W235: 0 | X235: 0 | Y235: 0 | Z235: 0 | AA235: 0 | AB235: =$F$235*AB233*(AB234<=$G$233) -> 0 | AC235: 0 | AD235: 0 | AE235: 0 | AF235: 0 | AG235: 0 | AH235: 0 | AI235: 0
E236: =D16 -> Proposed | G236: =SUM(H236:AI236) -> 1 | H236: =TRANSPOSE('Disbursement Schedule'!I7:I47) -> 0.1211411314 | I236: 0.07004803371 | J236: 0.01638 | K236: 0.02465013943 | L236: 0.03454285714 | M236: 0.19188 | N236: 0.08008959771 | O236: 0.148986396 | P236: 0.05985124971 | Q236: 0.01892444914 | R236: 0.08421733543 | S236: 0.03769969543 | T236: 0.03643937143 | U236: 0.02518285714 | V236: 0.045964776 | W236: 0.004002110286 | X236: 0 | Y236: 0 | Z236: 0 | AA236: 0 | AB236: 0 | AC236: 0 | AD236: 0 | AE236: 0 | AF236: 0 | AG236: 0 | AH236: 0 | AI236: 0
E237: % Disbursed - Total S-Curve | F237: =F233 -> 6 | G237: =SUM(H237:AI237) -> 1 | H237: =SUM(OFFSET(H280,0,0,1,$F237))*H233 -> 0.4567331695 | I237: 0 | J237: 0 | K237: 0 | L237: 0 | M237: 0 | N237: 0.4279799102 | O237: 0 | P237: 0 | Q237: 0 | R237: 0 | S237: 0 | T237: 0.1152869203 | U237: 0 | V237: 0 | W237: 0 | X237: 0 | Y237: 0 | Z237: 0 | AA237: =SUM(OFFSET(AE223,0,0,1,$F237))*AA233 -> 0 | AB237: =SUM(OFFSET(AF223,0,0,1,$F237))*AB233 -> 0 | AC237: 0 | AD237: 0 | AE237: 0 | AF237: 0 | AG237: 0 | AH237: 0 | AI237: 0
E238: % Disbursed - Equip and Civil | F238: =F237 -> 6 | G238: =SUM(H238:AI238) -> 1 | H238: =SUM(OFFSET(H278,0,0,1,$F238))*H233 -> 0.4567331695 | I238: 0 | J238: 0 | K238: 0 | L238: 0 | M238: 0 | N238: 0.4279799102 | O238: 0 | P238: 0 | Q238: 0 | R238: 0 | S238: 0 | T238: 0.1152869203 | U238: 0 | V238: 0 | W238: 0 | X238: 0 | Y238: 0 | Z238: 0 | AA238: =SUM(OFFSET(AE222,0,0,1,$F238))*AA233 -> 0 | AB238: =SUM(OFFSET(AF222,0,0,1,$F238))*AB233 -> 0 | AC238: 0 | AD238: 0 | AE238: 0 | AF238: 0 | AG238: 0 | AH238: 0 | AI238: 0
E239: =CHOOSE($F$14,E235,E237,E238) -> % Disbursed - Total S-Curve | F239: =CHOOSE($F$14,F235,F236,F237,F238) -> 0 | H239: =CHOOSE($F$14,H235,H236,H237,H238) -> 0.1211411314 | I239: 0.07004803371 | J239: 0.01638 | K239: 0.02465013943 | L239: 0.03454285714 | M239: 0.19188 | N239: 0.08008959771 | O239: 0.148986396 | P239: 0.05985124971 | Q239: 0.01892444914 | R239: 0.08421733543 | S239: 0.03769969543 | T239: 0.03643937143 | U239: 0.02518285714 | V239: 0.045964776 | W239: 0.004002110286 | X239: 0 | Y239: 0 | Z239: 0 | AA239: 0 | AB239: 0 | AC239: 0 | AD239: 0 | AE239: 0 | AF239: 0 | AG239: 0 | AH239: 0 | AI239: 0
A241: Loan Balance
E244: Total Draws | F244: ='Financing Assumptions'!$J$12 -> 35000000 | H244: =$F$244 -> 35000000
I245: Fin Model | J245: Difference
E246: Total Loan Balance at Re-financing | F246: ='Financing Assumptions'!J14 -> 19 | H246: =LOOKUP(F246,248:248,258:258) -> 35000000 | I246: =Computed -> 35000000 | J246: =H246-I246 -> 0
E248: RWF Loan Balance | H248: =H230 -> 1 | I248: 2 | J248: 3 | K248: 4 | L248: 5 | M248: 6 | N248: 7 | O248: 8 | P248: 9 | Q248: 10 | R248: 11 | S248: 12 | T248: 13 | U248: 14 | V248: 15 | W248: 16 | X248: 17 | Y248: 18 | Z248: 19 | AA248: 20 | AB248: 21 | AC248: 22 | AD248: 23 | AE248: 24 | AF248: 25 | AG248: 26 | AH248: 27 | AI248: 28
G249: ='Financing Assumptions'!J14 -> 19 | H249: =H248<=$G$249 -> TRUE | I249: =I248<=$G$249 -> TRUE | J249: TRUE | K249: TRUE | L249: TRUE | M249: TRUE | N249: TRUE | O249: TRUE | P249: TRUE | Q249: TRUE | R249: TRUE | S249: TRUE | T249: TRUE | U249: TRUE | V249: TRUE | W249: TRUE | X249: TRUE | Y249: TRUE | Z249: TRUE | AA249: FALSE | AB249: FALSE | AC249: FALSE | AD249: FALSE | AE249: FALSE | AF249: FALSE | AG249: FALSE | AH249: FALSE | AI249: FALSE
E251: Opening Balance | H251: =G258 -> 0 | I251: =H258 -> 4239939.6 | J251: 6691620.78 | K251: 7264920.78 | L251: 8127675.66 | M251: 9336675.66 | N251: 16052475.66 | O251: 18855611.58 | P251: 24070135.44 | Q251: 26164929.18 | R251: 26827284.9 | S251: 29774891.64 | T251: 31094380.98 | U251: 32369758.98 | V251: 33251158.98 | W251: 34859926.14 | X251: 35000000 | Y251: 35000000 | Z251: 35000000 | AA251: =Z258 -> 35000000 | AB251: =AA258 -> 35000000 | AC251: =AB258 -> 35000000 | AD251: =AC258 -> 35000000 | AE251: =AD258 -> 35000000 | AF251: =AE258 -> 35000000 | AG251: =AF258 -> 35000000 | AH251: =AG258 -> 35000000 | AI251: =AH258 -> 35000000
E252: Add: Draws | F252: =SUM(H252:Z252) -> 35000000 | H252: =H301 -> 4239939.6 | I252: =I301 -> 2451681.18 | J252: 573300 | K252: 862754.88 | L252: 1209000 | M252: 6715800 | N252: 2803135.92 | O252: 5214523.86 | P252: 2094793.74 | Q252: 662355.72 | R252: 2947606.74 | S252: 1319489.34 | T252: 1275378 | U252: 881400 | V252: 1608767.16 | W252: 140073.86 | X252: 0 | Y252: 0 | Z252: 0 | AA252: 0 | AB252: 0 | AC252: 0 | AD252: 0 | AE252: 0 | AF252: 0 | AG252: 0 | AH252: 0 | AI252: 0
E253: Add: Service Fees Capitalised | F253: =SUM(H253:Z253) -> 0 | G253: ='Financing Assumptions'!J46 -> FALSE | H253: =$F$262*I246*$G$253 -> 0
E254: Add: Mgmt Fees Capitalised | F254: 0 | G254: ='Financing Assumptions'!J44 -> FALSE | H254: =H261*$G$254 -> 0 | I254: =I261*$G$254 -> 0 | J254: 0 | K254: 0 | L254: 0 | M254: 0 | N254: 0 | O254: 0 | P254: 0 | Q254: 0 | R254: 0 | S254: 0 | T254: 0 | U254: 0 | V254: 0 | W254: 0 | X254: 0 | Y254: 0 | Z254: 0 | AA254: =AA261*$G$254 -> 0 | AB254: 0 | AC254: 0 | AD254: 0 | AE254: 0 | AF254: 0 | AG254: 0 | AH254: 0 | AI254: 0
E255: Add: IDC Capitalised | F255: 0 | G255: ='Financing Assumptions'!J43 -> FALSE | H255: =H260*$G$255 -> 0 | I255: =I260*$G$255 -> 0 | J255: 0 | K255: 0 | L255: 0 | M255: 0 | N255: 0 | O255: 0 | P255: 0 | Q255: 0 | R255: 0 | S255: 0 | T255: 0 | U255: 0 | V255: 0 | W255: 0 | X255: 0 | Y255: 0 | Z255: 0 | AA255: =AA260*$G$255 -> 0 | AB255: 0 | AC255: 0 | AD255: 0 | AE255: 0 | AF255: 0 | AG255: 0 | AH255: 0 | AI255: 0
E256: Add: Commitment Fee Capitalised | F256: 0 | G256: ='Financing Assumptions'!J45 -> FALSE | H256: =H264*$G$256 -> 0 | I256: =I264*$G$256 -> 0 | J256: 0 | K256: 0 | L256: 0 | M256: 0 | N256: 0 | O256: 0 | P256: 0 | Q256: 0 | R256: 0 | S256: 0 | T256: 0 | U256: 0 | V256: 0 | W256: 0 | X256: 0 | Y256: 0 | Z256: 0 | AA256: =AA264*$G$256 -> 0 | AB256: 0 | AC256: 0 | AD256: 0 | AE256: 0 | AF256: 0 | AG256: 0 | AH256: 0 | AI256: 0
E257: Add: VAT Capitalised | F257: 0 | G257: ='Financing Assumptions'!J47 -> FALSE
E258: Closing Balance | H258: =SUM(H251:H257) -> 4239939.6 | I258: =SUM(I251:I257) -> 6691620.78 | J258: 7264920.78 | K258: 8127675.66 | L258: 9336675.66 | M258: 16052475.66 | N258: 18855611.58 | O258: 24070135.44 | P258: 26164929.18 | Q258: 26827284.9 | R258: 29774891.64 | S258: 31094380.98 | T258: 32369758.98 | U258: 33251158.98 | V258: 34859926.14 | W258: 35000000 | X258: 35000000 | Y258: 35000000 | Z258: 35000000 | AA258: =SUM(AA251:AA257) -> 35000000 | AB258: 35000000 | AC258: 35000000 | AD258: 35000000 | AE258: 35000000 | AF258: 35000000 | AG258: 35000000 | AH258: 35000000 | AI258: 35000000
E260: Interest Capitalised and Paid at Maturity | F260: =('Financing Assumptions'!$J$30+'Financing Assumptions'!$J$31)/12 -> 0.01166666667 | G260: =SUM(H260:AI260) -> 4829782.836 | H260: =H251*$F$260*H249 -> 0 | I260: =I251*$F$260*I249 -> 49465.962 | J260: 78068.9091 | K260: 84757.4091 | L260: 94822.8827 | M260: 108927.8827 | N260: 187278.8827 | O260: 219982.1351 | P260: 280818.2468 | Q260: 305257.5071 | R260: 312984.9905 | S260: 347373.7358 | T260: 362767.7781 | U260: 377647.1881 | V260: 387930.1881 | W260: 406699.1383 | X260: 408333.3333 | Y260: 408333.3333 | Z260: 408333.3333 | AA260: 0 | AB260: 0 | AC260: 0 | AD260: 0 | AE260: 0 | AF260: 0 | AG260: 0 | AH260: 0 | AI260: 0
E261: Managment Fee Capitalised or Paid | F261: ='Financing Assumptions'!$J$32/12 -> 0.0004166666667 | G261: =SUM(H261:AI261) -> 172492.2442 | H261: =H251*$F$261*H249 -> 0 | I261: =I251*$F$261*I249 -> 1766.6415 | J261: 2788.175325 | K261: 3027.050325 | L261: 3386.531525 | M261: 3890.281525 | N261: 6688.531525 | O261: 7856.504825 | P261: 10029.2231 | Q261: 10902.05382 | R261: 11178.03537 | S261: 12406.20485 | T261: 12955.99207 | U261: 13487.39957 | V261: 13854.64957 | W261: 14524.96922 | X261: 14583.33333 | Y261: 14583.33333 | Z261: 14583.33333 | AA261: 0 | AB261: 0 | AC261: 0 | AD261: 0 | AE261: 0 | AF261: 0 | AG261: 0 | AH261: 0 | AI261: 0
E262: Service Fee Capitalised or Paid | F262: ='Financing Assumptions'!$J$35 -> 0.003 | G262: 105000 | H262: =$F$262*I246*H249 -> 105000 | I262: 0 | J262: =$F$262*K246*J249 -> 0 | K262: 0 | L262: 0 | M262: 0 | N262: 0 | O262: 0 | P262: 0 | Q262: 0 | R262: 0 | S262: 0 | T262: 0 | U262: 0 | V262: 0 | W262: 0 | X262: 0 | Y262: 0 | Z262: 0 | AA262: 0 | AB262: 0 | AC262: 0 | AD262: 0 | AE262: 0 | AF262: 0 | AG262: 0 | AH262: 0 | AI262: 0
E263: Undrawn Balance | G263: =$I$246 -> 35000000 | H263: =($G$263-H251)*H249 -> 35000000 | I263: =($G$263-I251)*I249 -> 30760060.4 | J263: 28308379.22 | K263: 27735079.22 | L263: 26872324.34 | M263: 25663324.34 | N263: 18947524.34 | O263: 16144388.42 | P263: 10929864.56 | Q263: 8835070.82 | R263: 8172715.1 | S263: 5225108.36 | T263: 3905619.02 | U263: 2630241.02 | V263: 1748841.02 | W263: 140073.86 | X263: 0 | Y263: 0 | Z263: 0 | AA263: 0 | AB263: 0 | AC263: 0 | AD263: 0 | AE263: 0 | AF263: 0 | AG263: 0 | AH263: 0 | AI263: 0
E264: Commitment Fee Capitalised and Paid at Maturity | F264: ='Financing Assumptions'!J36/12 -> 0.0008333333333 | G264: 209182.1784 | H264: =H263*$F$264*H249 -> 29166.66667 | I264: =I263*$F$264*I249 -> 25633.38367 | J264: 23590.31602 | K264: 23112.56602 | L264: 22393.60362 | M264: 21386.10362 | N264: 15789.60362 | O264: 13453.65702 | P264: 9108.220467 | Q264: 7362.559017 | R264: 6810.595917 | S264: 4354.256967 | T264: 3254.682517 | U264: 2191.867517 | V264: 1457.367517 | W264: 116.7282167 | X264: 0 | Y264: 0 | Z264: 0 | AA264: 0 | AB264: 0 | AC264: 0 | AD264: 0 | AE264: 0 | AF264: 0 | AG264: 0 | AH264: 0 | AI264: 0
E265: VAT Capitalised and Paid at Maturity | F265: ='Financing Assumptions'!$J$37 -> 0.18 | G265: 87601.39605 | H265: =$F$265*(H261+H262+H264)*H249 -> 24150 | I265: =$F$265*(I261+I262+I264)*I249 -> 4932.00453 | J265: 4748.128441 | K265: 4705.130941 | L265: 4640.424325 | M265: 4549.749325 | N265: 4046.064325 | O265: 3835.829131 | P265: 3444.739842 | Q265: 3287.630311 | R265: 3237.953632 | S265: 3016.883127 | T265: 2917.921426 | U265: 2822.268076 | V265: 2756.163076 | W265: 2635.505539 | X265: 2625 | Y265: 2625 | Z265: 2625 | AA265: 0 | AB265: 0 | AC265: 0 | AD265: 0 | AE265: 0 | AF265: 0 | AG265: 0 | AH265: 0 | AI265: 0
E266: Total Fees and Interest Paid | G266: 5404058.655 | H266: =H260-H255+H261-H254+H262-H253+H264-H256+H265-H257 -> 158316.6667 | I266: =I260-I255+I261-I254+I262-I253+I264-I256+I265-I257 -> 81797.9917 | J266: =J260-J255+J261-J254+J262-J253+J264-J256+J265-J257 -> 109195.5289 | K266: 115602.1564 | L266: 125243.4422 | M266: 138754.0172 | N266: 213803.0822 | O266: 245128.1261 | P266: 303400.4302 | Q266: 326809.7503 | R266: 334211.5754 | S266: 367151.0807 | T266: 381896.3741 | U266: 396148.7233 | V266: 405998.3683 | W266: 423976.3413 | X266: 425541.6667 | Y266: 425541.6667 | Z266: 425541.6667 | AA266: 0 | AB266: 0 | AC266: 0 | AD266: 0 | AE266: 0 | AF266: 0 | AG266: 0 | AH266: 0 | AI266: 0
... 66 more rows

Sheet Disbursement Schedule
B4: Loan disbursement schedule to achieve 14 MW ( Net)
C6: Month | D6: USD | E6: RWF | F6: 780 | H6: Total loan disbursement
B7: M0 | C7: 2016-08-01 | D7: ='[2]Phase 1 Cash flow '!G5 -> 5435820 | E7: =D7*$F$6 -> 4239939600 | H7: =SUM(D7:D23) -> 45059344 | I7: =E7/$H$10 -> 0.1211411314
B8: M1 | C8: =EOMONTH(C7,1) -> 2016-09-30 | D8: ='[2]Phase 1 Cash flow '!H5 -> 3143181 | E8: =D8*$F$6 -> 2451681180 | H8: =SUM(E7:E23) -> 35000000000 | I8: =E8/$H$10 -> 0.07004803371
B9: M2 | C9: 2016-10-31 | D9: ='[2]Phase 1 Cash flow '!I5 -> 735000 | E9: 573300000 | I9: 0.01638
B10: M3 | C10: 2016-11-30 | D10: ='[2]Phase 1 Cash flow '!J5 -> 1106096 | E10: 862754880 | H10: 35000000000 | I10: 0.02465013943
B11: M4 | C11: 2016-12-31 | D11: ='[2]Phase 1 Cash flow '!K5 -> 1550000 | E11: 1209000000 | I11: 0.03454285714
B12: M5 | C12: 2017-01-31 | D12: ='[2]Phase 1 Cash flow '!L5 -> 8610000 | E12: 6715800000 | H12: -146288320 | I12: 0.19188
B13: M6 | C13: 2017-02-28 | D13: ='[2]Phase 1 Cash flow '!M5 -> 3593764 | E13: 2803135920 | I13: 0.08008959771
B14: M7 | C14: 2017-03-31 | D14: ='[2]Phase 1 Cash flow '!N5 -> 6685287 | E14: 5214523860 | I14: 0.148986396
B15: M8 | C15: 2017-04-30 | D15: ='[2]Phase 1 Cash flow '!O5 -> 2685633 | E15: 2094793740 | I15: 0.05985124971
B16: M9 | C16: 2017-05-31 | D16: ='[2]Phase 1 Cash flow '!P5 -> 849174 | E16: 662355720 | I16: 0.01892444914
B17: M10 | C17: 2017-06-30 | D17: ='[2]Phase 1 Cash flow '!Q5 -> 3778983 | E17: 2947606740 | I17: 0.08421733543
B18: M11 | C18: 2017-07-31 | D18: ='[2]Phase 1 Cash flow '!R5 -> 1691653 | E18: 1319489340 | I18: 0.03769969543
B19: M12 | C19: 2017-08-31 | D19: ='[2]Phase 1 Cash flow '!S5 -> 1635100 | E19: 1275378000 | I19: 0.03643937143
B20: M13 | C20: 2017-09-30 | D20: ='[2]Phase 1 Cash flow '!T5 -> 1130000 | E20: 881400000 | I20: 0.02518285714
B21: M14 | C21: 2017-10-31 | D21: ='[2]Phase 1 Cash flow '!U5 -> 2062522 | E21: 1608767160 | I21: 0.045964776
B22: M15 | C22: 2017-11-30 | D22: ='[2]Phase 1 Cash flow '!V5 -> 367131 | E22: =D22*$F$6+H12 -> 140073860 | I22: 0.004002110286
I23: 0
I24: 0
I25: 0
I26: 0

Sheet Phase 1 Cash flow
B1: Area | E1: WBS Name | F1: Forecast to Complete
G2: 2016-08-01 | H2: 2016-09-01 | I2: 2016-10-01 | J2: 2016-11-01 | K2: 2016-12-01 | L2: 2017-01-01 | M2: 2017-02-01 | N2: 2017-03-01 | O2: 2017-04-01 | P2: 2017-05-01 | Q2: 2017-06-01 | R2: 2017-07-01 | S2: 2017-08-01 | T2: 2017-09-01 | U2: 2017-10-01 | V2: 2017-11-01
G3: Forecast O/S | H3: Forecast O/S | I3: Forecast O/S | J3: Forecast O/S | K3: Forecast O/S | L3: Forecast O/S | M3: Forecast O/S | N3: Forecast O/S | O3: Forecast O/S | P3: Forecast O/S | Q3: Forecast O/S | R3: Forecast O/S | S3: Forecast O/S | T3: Forecast O/S | U3: Forecast O/S | V3: Forecast O/S
B5: Lake Kivu 14MW Phase 1 | E5: Total | F5: =(F13+F27+F43+F67) -> 45059344 | G5: 5435820 | H5: 3143181 | I5: 735000 | J5: 1106096 | K5: 1550000 | L5: 8610000 | M5: 3593764 | N5: 6685287 | O5: 2685633 | P5: 849174 | Q5: 3778983 | R5: 1691653 | S5: 1635100 | T5: 1130000 | U5: 2062522 | V5: 367131
B7: S-Curve Applied | G7: =G5/$F$5 -> 0.1206369094 | H7: =H5/$F$5 -> 0.06975647493 | I7: 0.01631182203 | J7: 0.02454753891 | K7: 0.03439908047 | L7: 0.1910813437 | M7: 0.07975624323 | N7: 0.1483662745 | O7: 0.05960213269 | P7: 0.01884568049 | Q7: 0.08386680019 | R7: 0.03754277914 | S7: 0.03628770095 | T7: 0.02507803931 | U7: 0.04577345822 | V7: 0.008147721813
F8: =F5*780 -> 35146288320
C9: Project Development | E9: Antares FEED costs | F9: =SUMIF($G$3:$BC$3,"Forecast O/S",G9:BC9)+SUMIF($G$3:$BC$3,"Forecast RW",G9:BC9) -> 3430100 | G9: 686020 | H9: 400000 | I9: 350000 | J9: 500000 | K9: 500000 | L9: 600000 | M9: 394080
E10: ESIA and permitting | F10: =SUMIF($G$3:$BC$3,"Forecast O/S",G10:BC10)+SUMIF($G$3:$BC$3,"Forecast RW",G10:BC10) -> 150000 | G10: 150000
E11: Earthworks and BoP civils design | F11: =SUMIF($G$3:$BC$3,"Forecast O/S",G11:BC11)+SUMIF($G$3:$BC$3,"Forecast RW",G11:BC11) -> 200000 | G11: 50000 | H11: 70000 | I11: 80000
E12: Power plant design HAZOP and risk analysis | F12: =SUMIF($G$3:$BC$3,"Forecast O/S",G12:BC12)+SUMIF($G$3:$BC$3,"Forecast RW",G12:BC12) -> 291181 | G12: 50000 | H12: 241181
D13: Total | F13: =SUM(F9:F12) -> 4071281 | G13: 936020 | H13: 711181 | I13: 430000 | J13: 500000 | K13: 500000 | L13: 600000 | M13: 394080 | N13: 0 | O13: 0 | P13: 0 | Q13: 0 | R13: 0 | S13: 0 | T13: 0 | U13: 0 | V13: 0
C14: Early Works and Construction Services | E14: Bulk earthworks & Site preparation | F14: =SUMIF($G$3:$BC$3,"Forecast O/S",G14:BC14)+SUMIF($G$3:$BC$3,"Forecast RW",G14:BC14) -> 630480 | J14: =630480*0.2 -> 126096 | K14: 200000 | L14: 200000 | M14: 104384
E15: Power plant foundations | F15: 477068 | G15: 95000 | N15: 20000 | O15: 80000 | P15: 200000 | Q15: 82068
E16: Fencing and security gatehouse | F16: 235000 | I16: 50000 | J16: 30000 | K16: 50000 | L16: 50000 | M16: 55000
E17: Construction water, power and lighting | F17: 25000 | I17: 25000
E18: Security system | F18: 20000 | I18: 20000
E19: Fuel storage | F19: 20000 | I19: 20000
E20: First aid station | F20: 30000 | I20: 30000
E21: Local emergency services capacity upgrades | F21: 30000 | I21: 30000
E22: Owner's site office establishment | F22: 1579000 | G22: =1579000*0.2 -> 315800 | I22: 100000 | J22: 250000 | K22: 300000 | L22: 250000 | M22: 363200
E23: Ablutions and waste water storage | F23: 30000 | I23: 30000
E24: Communications setup | F24: 50000 | J24: 50000
E25: Kitraco and laydown areas | F25: 1207100 | G25: 400000 | J25: 150000 | K25: 300000 | L25: 250000 | M25: 107100
E26: Common logistics and storage | F26: 1814000 | L26: 360000 | N26: 360000 | O26: 240000 | P26: 300000 | Q26: 554000
D27: Total | F27: =SUM(F14:F26) -> 6147648 | G27: 810800 | H27: 0 | I27: 305000 | J27: 606096 | K27: 850000 | L27: 1110000 | M27: 629684 | N27: 380000 | O27: 320000 | P27: 500000 | Q27: 636068 | R27: 0 | S27: 0 | T27: 0 | U27: 0 | V27: 0
C28: Gas Plant | E28: Riser - materials | F28: =SUMIF($G$3:$BC$3,"Forecast O/S",G28:BC28)+SUMIF($G$3:$BC$3,"Forecast RW",G28:BC28) -> 1089204 | G28: 200000 | L28: 500000 | M28: 100000 | N28: 150000 | P28: 139204
E29: Barge - materials | F29: 1100000 | G29: 200000 | L29: 500000 | M29: 0 | N29: 200000 | P29: 200000
E30: Train 1 mooring system | F30: 1252287 | G30: 250000 | K30: 200000 | L30: 400000 | M30: 200000 | N30: 202287
E31: Export pipeline Barge 1 to shore | F31: 1068600 | G31: 200000 | L31: 400000 | M31: 150000 | N31: 200000 | S31: 118600
E32: Onshore Gas Plant | F32: 3645000 | G32: 730000 | L32: 1500000 | M32: 400000 | N32: 300000 | R32: 500000 | S32: 215000
E33: Process Equipmeent | F33: 5867000 | G33: 1200000 | L33: 3000000 | M33: 700000 | N33: 967000
E34: Instrument and Shutdown system | F34: 170000 | G34: 34000 | N34: 136000
E35: Control and Monitoring system | F35: 500000 | G35: 100000 | N35: 300000 | S35: 100000
E36: Life support untilities | F36: 316500 | G36: 65000 | S36: 251500
E37: Electrical Equipments | F37: 350000 | G37: 70000 | M37: 200000 | S37: 80000
E38: Safety / Fire protectction eqpt | F38: 70000 | G38: 0 | M38: 70000
E39: Equment aux & spares | F39: 1793375 | G39: 360000 | L39: 600000 | S39: 400000 | T39: 100000 | U39: 333375
E40: Marine Construction vessels / Eqpts | F40: 1400000 | G40: 280000 | M40: 700000 | T40: 420000
E41: Offshore pipe line - Fabrication | F41: 572025 | U41: 572025
E42: Riser - Fabrication | F42: 582100 | U42: 582100
D43: Total | F43: =SUM(F28:F42) -> 19776091 | G43: 3689000 | H43: 0 | I43: 0 | J43: 0 | K43: 200000 | L43: 6900000 | M43: 2520000 | N43: 2455287 | O43: 0 | P43: 339204 | Q43: 0 | R43: 500000 | S43: 1165100 | T43: 520000 | U43: 1487500 | V43: 0
C44: Power Plant | E44: Generating sets CAT CG260-16C | F44: =SUMIF($G$3:$BC$3,"Forecast O/S",G44:BC44)+SUMIF($G$3:$BC$3,"Forecast RW",G44:BC44) -> 5785866 | H44: 1160000 | N44: 3500000 | O44: 1125866
E45: Fuel gas auxiliary system | F45: 105010 | H45: 20000 | O45: 85010
E46: Lube oil auxiliary system | F46: 212468 | H46: 45000 | O46: 167468
E47: Intake and exhaust air systems | F47: 806451 | H47: 160000 | O47: 400000 | Q47: 246451
E48: Other mechanical auxiliary systems (expand) | F48: 21420 | H48: 4000 | O48: 17420
E49: Step-up transformers & Station Transformer | F49: 569242 | H49: 120000 | N49: 350000 | O49: 99242
E50: Auxiliary transformers | F50: 11970 | H50: 2000 | O50: 0 | P50: 9970
E51: MV switchboard | F51: 542787 | H51: 100000 | Q51: 442787
E52: Other electrical auxiliary systems (expand) | F52: 443791 | H52: 80000 | Q52: 363791
E53: Control system | F53: 460155 | H53: 80000 | Q53: 380155
E54: Buildings | F54: 460627 | H54: 90000 | O54: 370627
E55: Fire protection system | F55: 163763 | H55: 30000 | Q55: 133763
E56: Other items | F56: 909476 | H56: 200000 | Q56: 709476
E57: First fills | F57: 37608 | H57: 6000 | Q57: 31608
E58: First year’s recommended spare parts | F58: 174824 | H58: 35000 | Q58: 139824
E59: Management | F59: 595060 | H59: 100000 | O59: 100000 | Q59: 395060
E60: Transport and logistics | F60: 984008 | H60: 200000 | Q60: 300000 | R60: 484008
E61: Installation and commissioning | F61: 1350022 | R61: 200000 | S61: 300000 | T61: 400000 | U61: 300022 | V61: 150000
E62: Construction plant | F62: 247413 | H62: 0 | R62: 247413 | S62: 0 | T62: 0 | U62: 0 | V62: 0
E63: Construction and commissioning consumables | F63: 98564 | R63: 10000 | S63: 20000 | T63: 30000 | U63: 25000 | V63: 13564
E64: Training | F64: 144024 | H64: 0 | R64: 50000 | S64: 0 | T64: 30000 | U64: 30000 | V64: 34024
E65: Others | F65: 789543 | R65: 100000 | S65: 150000 | T65: 150000 | U65: 220000 | V65: 169543
E66: Construction all risks | F66: 150232 | M66: 50000 | R66: 100232
D67: Total | F67: =SUM(F44:F66) -> 15064324 | G67: 0 | H67: 2432000 | I67: 0 | J67: 0 | K67: 0 | L67: 0 | M67: 50000 | N67: 3850000 | O67: 2365633 | P67: 9970 | Q67: 3142915 | R67: 1191653 | S67: 470000 | T67: 610000 | U67: 575022 | V67: 367131

Sheet Financing Assumptions
A3: Bridge Financing
B4: Currency Applied | F4: USD | G4: FALSE | H4: USD 000's | I4: RWF 000's | J4: =IF($G$4,H4,I4) -> RWF 000's
B5: Bridge Financing
C7: Financial Close | F7: Date | H7: ='Operating Assumptions'!H4 -> 2016-09-01 | I7: =H7 -> 2016-09-01 | J7: =IF($G$4,H7,I7) -> 2016-09-01
C9: USD Currency | F9: Switch | H9: TRUE | I9: FALSE | J9: =IF($G$4,H9,I9) -> FALSE
C10: RWF Currency | F10: Switch | H10: =NOT(H9) -> FALSE | I10: =NOT(I9) -> TRUE | J10: =IF($G$4,H10,I10) -> TRUE
C12: Facility Amount | F12: USD 000 | H12: 45000 | I12: 35000000 | J12: =IF($G$4,H12,I12) -> 35000000
C14: Construction Period Estimated | F14: Months | H14: ='Operating Assumptions'!G9 -> 19 | I14: =H14 -> 19 | J14: =IF($G$4,H14,I14) -> 19
C15: Loan Disbursment Period | H15: 18 | I15: =H15 -> 18 | J15: =IF($G$4,H15,I15) -> 18
C16: Grace Period | F16: Months | H16: 24 | I16: 24 | J16: =IF($G$4,H16,I16) -> 24
C17: Months Between Disbursment | F17: Months | H17: 6 | I17: =H17 -> 6 | J17: =IF($G$4,H17,I17) -> 6
C19: Maturity | F19: Years | H19: 10 | I19: 10 | J19: =IF($G$4,H19,I19) -> 10
C20: Maturity | F20: Months | H20: =H19*12+H16 -> 144 | I20: =I19*12+I16 -> 144 | J20: =IF($G$4,H20,I20) -> 144
C22: Re-finance | F22: Switch | H22: ='Operating Assumptions'!G2 -> TRUE | I22: =H22 -> TRUE | J22: =IF($G$4,H22,I22) -> TRUE
C23: Re-finance Date | F23: Date | H23: =EDATE(H7,H14) -> 2018-04-01 | I23: =EDATE(I7,I14) -> 2018-04-01 | J23: =IF($G$4,H23,I23) -> 2018-04-01
C24: Final Maturity Date | F24: Date | H24: =EDATE(H23,H19*12) -> 2028-04-01 | I24: =EDATE(I23,I19*12) -> 2028-04-01 | J24: =IF($G$4,H24,I24) -> 2028-04-01
C26: Initial Drawdown | F26: USD 000 | H26: 0 | I26: =H26*790 -> 0 | J26: =IF($G$4,H26,I26) -> 0
C27: Subsequent Drawdowns | F27: Pro Rata | H27: TRUE | I27: TRUE | J27: =IF($G$4,H27,I27) -> TRUE
C28: Indlude Development Cost in Percent | F28: Include Dev | H28: FALSE | I28: FALSE | J28: =IF($G$4,H28,I28) -> FALSE
C30: Credit Spread | F30: Percent p.a. | H30: 0.08 | I30: 0.08 | J30: =IF($G$4,H30,I30) -> 0.08
C31: Base Rate - LIBOR/RWF | F31: Percent p.a. | H31: 0.01 | I31: 0.06 | J31: =IF($G$4,H31,I31) -> 0.06
C32: Managment Fee | F32: Percent p.a. | H32: 0.005 | I32: 0.005 | J32: =IF($G$4,H32,I32) -> 0.005
C33: Total Rate Including Mgmt Fee | F33: Percent p.a. | H33: =SUM(H30:H32) -> 0.095 | I33: =SUM(I30:I32) -> 0.145 | J33: =IF($G$4,H33,I33) -> 0.145
C35: Service Commission | F35: Percent | H35: 0.003 | I35: 0.003 | J35: =IF($G$4,H35,I35) -> 0.003
C36: Commitment Fee | F36: Percent p.a. | H36: 0.01 | I36: 0.01 | J36: =IF($G$4,H36,I36) -> 0.01
C37: VAT on Management Fee and Service Commission | F37: Percent | H37: 0.18 | I37: 0.18 | J37: =IF($G$4,H37,I37) -> 0.18
C39: Cash Sweep Percent | F39: Percent | H39: 1 | I39: 1 | J39: =IF($G$4,H39,I39) -> 1
C41: DSRA Months | F41: Month | H41: 12 | I41: 12 | J41: =IF($G$4,H41,I41) -> 12
C43: Capitalise Interest During Grace Period | F43: Switch | H43: FALSE | I43: FALSE | J43: =IF($G$4,H43,I43) -> FALSE
C44: Capitalise Management Fee During Grace Period | F44: Switch | H44: FALSE | I44: FALSE | J44: =IF($G$4,H44,I44) -> FALSE
C45: Capitalise Commitment Fee During Grace Period | F45: Switch | H45: FALSE | I45: FALSE | J45: =IF($G$4,H45,I45) -> FALSE
C46: Capitalise Service Fee During Grace Period | F46: Switch | H46: FALSE | I46: FALSE | J46: =IF($G$4,H46,I46) -> FALSE
C47: Capitalise VAT During Grace Period | F47: Switch | H47: FALSE | I47: FALSE | J47: =IF($G$4,H47,I47) -> FALSE
F49: Start | G49: End | H49: Percent | I49: Percent | J49: Percent
C50: Perpayment Fee | F50: 0 | G50: =H16 -> 24 | H50: 0.03 | I50: 0.03 | J50: =IF($G$4,H50,I50) -> 0.03
F51: =G50 -> 24 | G51: =H20 -> 144 | H51: 0 | I51: 0 | J51: =IF($G$4,H51,I51) -> 0
A53: Re-Financing - Phase 2
B55: Currency Applied | F55: USD | G55: TRUE
B56: Exchange Rate at Re-financing | F56: =LOOKUP(J23,'Financial Model'!4:4,'Financial Model'!101:101) -> 873.1071917
C58: USD Currency | F58: Switch | H58: TRUE | I58: FALSE | J58: =IF($G$55,H58,I58) -> TRUE
C59: RWF Currency | F59: Switch | H59: =NOT(H58) -> FALSE | I59: =NOT(I58) -> TRUE | J59: =IF($G$55,H59,I59) -> FALSE
C61: Facility Amount | F61: USD 000 | H61: 117000 | I61: =H61*F56 -> 102153541.4 | J61: =IF($G$55,H61,I61) -> 117000
C63: Financial Close | F63: Date | H63: =J23 -> 2018-04-01 | I63: =H63 -> 2018-04-01 | J63: =IF($G$55,H63,I63) -> 2018-04-01
C64: Grace Period | F64: Months | H64: ='Operating Assumptions'!$G$13 -> 22 | I64: ='Operating Assumptions'!$G$13 -> 22 | J64: =IF($G$55,H64,I64) -> 22
C65: Maturity | F65: Months | H65: =15*12 -> 180 | I65: =15*12 -> 180 | J65: =IF($G$55,H65,I65) -> 180
C67: Final Maturity Date | F67: Date | H67: =EDATE(H63,H65+H64) -> 2035-02-01 | I67: =EDATE(I63,I65+I64) -> 2035-02-01 | J67: =IF($G$55,H67,I67) -> 2035-02-01
C69: Drawdowns after Re-finance | F69: Pro Rata | H69: TRUE | I69: TRUE | J69: =IF($G$4,H69,I69) -> TRUE
C71: Credit Spread | F71: Percent | H71: 0.05 | I71: 0.04 | J71: =IF($G$4,H71,I71) -> 0.04
C72: Base Rate - LIBOR/RWF | F72: Percent | H72: 0.025 | I72: 0.07 | J72: =IF($G$4,H72,I72) -> 0.07
C73: Managment Fee | F73: Percent | H73: 0.005 | I73: 0.005 | J73: =IF($G$4,H73,I73) -> 0.005
C74: Total Rate | F74: Percent | H74: =SUM(H71:H73) -> 0.08 | I74: =SUM(I71:I73) -> 0.115 | J74: =IF($G$4,H74,I74) -> 0.115
C76: Service Commission | F76: Percent | H76: 0.003 | I76: 0.003 | J76: =IF($G$4,H76,I76) -> 0.003
C77: DSRA Requirement | F77: Months | H77: 6 | I77: 6 | J77: =IF($G$4,H77,I77) -> 6
C79: Cash Sweep Percent | F79: Percent | H79: 0 | I79: 0 | J79: =IF($G$4,H79,I79) -> 0
F81: Start | G81: End | H81: Percent | I81: Percent | J81: Percent
C82: Perpayment Fee | F82: 0 | G82: =H64 -> 22 | H82: 0.03 | I82: 0.03 | J82: =IF($G$4,H82,I82) -> 0.03
F83: =G82 -> 22 | G83: =H65 -> 180 | H83: 0 | I83: 0 | J83: =IF($G$4,H83,I83) -> 0

Sheet Financial Model
A1: Timing | I1: USD IRR | J1: =G190 -> 0.1989158094
B2: Period | G2: =Scenarios!L19 -> 3 | J2: =Difference -> 0 | L2: 1 | M2: 2 | N2: 3 | O2: 4 | P2: 5 | Q2: 6 | R2: 7 | S2: 8 | T2: 9 | U2: 10 | V2: 11 | W2: 12 | X2: 13 | Y2: 14 | Z2: 15 | AA2: 16 | AB2: 17 | AC2: 18 | AD2: 19 | AE2: 20 | AF2: 21 | AG2: 22 | AH2: 23 | AI2: 24 | AJ2: 25 | AK2: 26 | AL2: 27 | AM2: 28 | AN2: 29 | AO2: 30 | AP2: 31 | AQ2: 32 | AR2: 33 | AS2: 34 | AT2: 35 | AU2: 36 | AV2: 37 | AW2: 38 | AX2: 39 | AY2: 40 | AZ2: 41 | BA2: 42 | BB2: 43 | BC2: 44 | BD2: 45 | BE2: 46 | BF2: 47 | BG2: 48 | BH2: 49 | BI2: 50 | BJ2: 51 | BK2: 52 | BL2: 53 | BM2: 54 | BN2: 55 | BO2: 56 | BP2: 57 | BQ2: 58 | BR2: 59 | BS2: 60 | BT2: 61 | BU2: 62 | BV2: 63 | BW2: 64 | BX2: 65 | BY2: 66 | BZ2: 67 | CA2: 68 | CB2: 69 | CC2: 70 | CD2: 71 | CE2: 72 | CF2: 73 | CG2: 74 | CH2: 75 | CI2: 76 | CJ2: 77 | CK2: 78 | CL2: 79 | CM2: 80 | CN2: 81 | CO2: 82 | CP2: 83 | CQ2: 84 | CR2: 85 | CS2: 86 | CT2: 87 | CU2: 88 | CV2: 89 | CW2: 90 | CX2: 91 | CY2: 92 | CZ2: 93 | DA2: 94 | DB2: 95 | DC2: 96 | DD2: 97 | DE2: 98 | DF2: 99 | DG2: 100 | DH2: 101 | DI2: 102 | DJ2: 103 | DK2: 104 | DL2: 104 | DM2: 104 | DN2: 104 | DO2: 104 | DP2: 104 | DQ2: 104 | DR2: 104 | DS2: 104 | DT2: 104 | DU2: 104 | DV2: 104 | DW2: 104 | DX2: 104 | DY2: 104 | DZ2: 104 | EA2: 104 | EB2: 104 | EC2: 104 | ED2: 104
B3: Months in Year per Column | G3: ='Operating Assumptions'!G17 -> 41 | L3: =IF(L2<=$G$3,'Operating Assumptions'!$G$19,'Operating Assumptions'!$G$20) -> 1 | M3: =IF(M2<=$G$3,'Operating Assumptions'!$G$19,'Operating Assumptions'!$G$20) -> 1 | N3: =IF(N2<=$G$3,'Operating Assumptions'!$G$19,'Operating Assumptions'!$G$20) -> 1 | O3: =IF(O2<=$G$3,'Operating Assumptions'!$G$19,'Operating Assumptions'!$G$20) -> 1 | P3: =IF(P2<=$G$3,'Operating Assumptions'!$G$19,'Operating Assumptions'!$G$20) -> 1 | Q3: =IF(Q2<=$G$3,'Operating Assumptions'!$G$19,'Operating Assumptions'!$G$20) -> 1 | R3: =IF(R2<=$G$3,'Operating Assumptions'!$G$19,'Operating Assumptions'!$G$20) -> 1 | S3: =IF(S2<=$G$3,'Operating Assumptions'!$G$19,'Operating Assumptions'!$G$20) -> 1 | T3: =IF(T2<=$G$3,'Operating Assumptions'!$G$19,'Operating Assumptions'!$G$20) -> 1 | U3: =IF(U2<=$G$3,'Operating Assumptions'!$G$19,'Operating Assumptions'!$G$20) -> 1 | V3: =IF(V2<=$G$3,'Operating Assumptions'!$G$19,'Operating Assumptions'!$G$20) -> 1 | W3: =IF(W2<=$G$3,'Operating Assumptions'!$G$19,'Operating Assumptions'!$G$20) -> 1 | X3: =IF(X2<=$G$3,'Operating Assumptions'!$G$19,'Operating Assumptions'!$G$20) -> 1 | Y3: =IF(Y2<=$G$3,'Operating Assumptions'!$G$19,'Operating Assumptions'!$G$20) -> 1 | Z3: =IF(Z2<=$G$3,'Operating Assumptions'!$G$19,'Operating Assumptions'!$G$20) -> 1 | AA3: =IF(AA2<=$G$3,'Operating Assumptions'!$G$19,'Operating Assumptions'!$G$20) -> 1 | AB3: =IF(AB2<=$G$3,'Operating Assumptions'!$G$19,'Operating Assumptions'!$G$20) -> 1 | AC3: =IF(AC2<=$G$3,'Operating Assumptions'!$G$19,'Operating Assumptions'!$G$20) -> 1 | AD3: =IF(AD2<=$G$3,'Operating Assumptions'!$G$19,'Operating Assumptions'!$G$20) -> 1 | AE3: =IF(AE2<=$G$3,'Operating Assumptions'!$G$19,'Operating Assumptions'!$G$20) -> 1 | AF3: =IF(AF2<=$G$3,'Operating Assumptions'!$G$19,'Operating Assumptions'!$G$20) -> 1 | AG3: =IF(AG2<=$G$3,'Operating Assumptions'!$G$19,'Operating Assumptions'!$G$20) -> 1 | AH3: =IF(AH2<=$G$3,'Operating Assumptions'!$G$19,'Operating Assumptions'!$G$20) -> 1 | AI3: =IF(AI2<=$G$3,'Operating Assumptions'!$G$19,'Operating Assumptions'!$G$20) -> 1 | AJ3: =IF(AJ2<=$G$3,'Operating Assumptions'!$G$19,'Operating Assumptions'!$G$20) -> 1 | AK3: =IF(AK2<=$G$3,'Operating Assumptions'!$G$19,'Operating Assumptions'!$G$20) -> 1 | AL3: =IF(AL2<=$G$3,'Operating Assumptions'!$G$19,'Operating Assumptions'!$G$20) -> 1 | AM3: =IF(AM2<=$G$3,'Operating Assumptions'!$G$19,'Operating Assumptions'!$G$20) -> 1 | AN3: =IF(AN2<=$G$3,'Operating Assumptions'!$G$19,'Operating Assumptions'!$G$20) -> 1 | AO3: =IF(AO2<=$G$3,'Operating Assumptions'!$G$19,'Operating Assumptions'!$G$20) -> 1 | AP3: =IF(AP2<=$G$3,'Operating Assumptions'!$G$19,'Operating Assumptions'!$G$20) -> 1 | AQ3: =IF(AQ2<=$G$3,'Operating Assumptions'!$G$19,'Operating Assumptions'!$G$20) -> 1 | AR3: =IF(AR2<=$G$3,'Operating Assumptions'!$G$19,'Operating Assumptions'!$G$20) -> 1 | AS3: =IF(AS2<=$G$3,'Operating Assumptions'!$G$19,'Operating Assumptions'!$G$20) -> 1 | AT3: =IF(AT2<=$G$3,'Operating Assumptions'!$G$19,'Operating Assumptions'!$G$20) -> 1 | AU3: =IF(AU2<=$G$3,'Operating Assumptions'!$G$19,'Operating Assumptions'!$G$20) -> 1 | AV3: =IF(AV2<=$G$3,'Operating Assumptions'!$G$19,'Operating Assumptions'!$G$20) -> 1 | AW3: =IF(AW2<=$G$3,'Operating Assumptions'!$G$19,'Operating Assumptions'!$G$20) -> 1 | AX3: =IF(AX2<=$G$3,'Operating Assumptions'!$G$19,'Operating Assumptions'!$G$20) -> 1 | AY3: =IF(AY2<=$G$3,'Operating Assumptions'!$G$19,'Operating Assumptions'!$G$20) -> 1 | AZ3: =IF(AZ2<=$G$3,'Operating Assumptions'!$G$19,'Operating Assumptions'!$G$20) -> 1 | BA3: =IF(BA2<=$G$3,'Operating Assumptions'!$G$19,'Operating Assumptions'!$G$20) -> 6 | BB3: =IF(BB2<=$G$3,'Operating Assumptions'!$G$19,'Operating Assumptions'!$G$20) -> 6 | BC3: =IF(BC2<=$G$3,'Operating Assumptions'!$G$19,'Operating Assumptions'!$G$20) -> 6 | BD3: =IF(BD2<=$G$3,'Operating Assumptions'!$G$19,'Operating Assumptions'!$G$20) -> 6 | BE3: =IF(BE2<=$G$3,'Operating Assumptions'!$G$19,'Operating Assumptions'!$G$20) -> 6 | BF3: =IF(BF2<=$G$3,'Operating Assumptions'!$G$19,'Operating Assumptions'!$G$20) -> 6 | BG3: =IF(BG2<=$G$3,'Operating Assumptions'!$G$19,'Operating Assumptions'!$G$20) -> 6 | BH3: =IF(BH2<=$G$3,'Operating Assumptions'!$G$19,'Operating Assumptions'!$G$20) -> 6 | BI3: =IF(BI2<=$G$3,'Operating Assumptions'!$G$19,'Operating Assumptions'!$G$20) -> 6 | BJ3: =IF(BJ2<=$G$3,'Operating Assumptions'!$G$19,'Operating Assumptions'!$G$20) -> 6 | BK3: =IF(BK2<=$G$3,'Operating Assumptions'!$G$19,'Operating Assumptions'!$G$20) -> 6 | BL3: =IF(BL2<=$G$3,'Operating Assumptions'!$G$19,'Operating Assumptions'!$G$20) -> 6 | BM3: =IF(BM2<=$G$3,'Operating Assumptions'!$G$19,'Operating Assumptions'!$G$20) -> 6 | BN3: =IF(BN2<=$G$3,'Operating Assumptions'!$G$19,'Operating Assumptions'!$G$20) -> 6 | BO3: =IF(BO2<=$G$3,'Operating Assumptions'!$G$19,'Operating Assumptions'!$G$20) -> 6 | BP3: =IF(BP2<=$G$3,'Operating Assumptions'!$G$19,'Operating Assumptions'!$G$20) -> 6 | BQ3: =IF(BQ2<=$G$3,'Operating Assumptions'!$G$19,'Operating Assumptions'!$G$20) -> 6 | BR3: =IF(BR2<=$G$3,'Operating Assumptions'!$G$19,'Operating Assumptions'!$G$20) -> 6 | BS3: =IF(BS2<=$G$3,'Operating Assumptions'!$G$19,'Operating Assumptions'!$G$20) -> 6 | BT3: =IF(BT2<=$G$3,'Operating Assumptions'!$G$19,'Operating Assumptions'!$G$20) -> 6 | BU3: =IF(BU2<=$G$3,'Operating Assumptions'!$G$19,'Operating Assumptions'!$G$20) -> 6 | BV3: =IF(BV2<=$G$3,'Operating Assumptions'!$G$19,'Operating Assumptions'!$G$20) -> 6 | BW3: =IF(BW2<=$G$3,'Operating Assumptions'!$G$19,'Operating Assumptions'!$G$20) -> 6 | BX3: =IF(BX2<=$G$3,'Operating Assumptions'!$G$19,'Operating Assumptions'!$G$20) -> 6 | BY3: =IF(BY2<=$G$3,'Operating Assumptions'!$G$19,'Operating Assumptions'!$G$20) -> 6 | BZ3: =IF(BZ2<=$G$3,'Operating Assumptions'!$G$19,'Operating Assumptions'!$G$20) -> 6 | CA3: =IF(CA2<=$G$3,'Operating Assumptions'!$G$19,'Operating Assumptions'!$G$20) -> 6 | CB3: =IF(CB2<=$G$3,'Operating Assumptions'!$G$19,'Operating Assumptions'!$G$20) -> 6 | CC3: =IF(CC2<=$G$3,'Operating Assumptions'!$G$19,'Operating Assumptions'!$G$20) -> 6 | CD3: =IF(CD2<=$G$3,'Operating Assumptions'!$G$19,'Operating Assumptions'!$G$20) -> 6 | CE3: =IF(CE2<=$G$3,'Operating Assumptions'!$G$19,'Operating Assumptions'!$G$20) -> 6 | CF3: =IF(CF2<=$G$3,'Operating Assumptions'!$G$19,'Operating Assumptions'!$G$20) -> 6 | CG3: =IF(CG2<=$G$3,'Operating Assumptions'!$G$19,'Operating Assumptions'!$G$20) -> 6 | CH3: =IF(CH2<=$G$3,'Operating Assumptions'!$G$19,'Operating Assumptions'!$G$20) -> 6 | CI3: =IF(CI2<=$G$3,'Operating Assumptions'!$G$19,'Operating Assumptions'!$G$20) -> 6 | CJ3: =IF(CJ2<=$G$3,'Operating Assumptions'!$G$19,'Operating Assumptions'!$G$20) -> 6 | CK3: =IF(CK2<=$G$3,'Operating Assumptions'!$G$19,'Operating Assumptions'!$G$20) -> 6 | CL3: =IF(CL2<=$G$3,'Operating Assumptions'!$G$19,'Operating Assumptions'!$G$20) -> 6 | CM3: =IF(CM2<=$G$3,'Operating Assumptions'!$G$19,'Operating Assumptions'!$G$20) -> 6 | CN3: =IF(CN2<=$G$3,'Operating Assumptions'!$G$19,'Operating Assumptions'!$G$20) -> 6 | CO3: =IF(CO2<=$G$3,'Operating Assumptions'!$G$19,'Operating Assumptions'!$G$20) -> 6 | CP3: =IF(CP2<=$G$3,'Operating Assumptions'!$G$19,'Operating Assumptions'!$G$20) -> 6 | CQ3: =IF(CQ2<=$G$3,'Operating Assumptions'!$G$19,'Operating Assumptions'!$G$20) -> 6 | CR3: =IF(CR2<=$G$3,'Operating Assumptions'!$G$19,'Operating Assumptions'!$G$20) -> 6 | CS3: =IF(CS2<=$G$3,'Operating Assumptions'!$G$19,'Operating Assumptions'!$G$20) -> 6 | CT3: =IF(CT2<=$G$3,'Operating Assumptions'!$G$19,'Operating Assumptions'!$G$20) -> 6 | CU3: =IF(CU2<=$G$3,'Operating Assumptions'!$G$19,'Operating Assumptions'!$G$20) -> 6 | CV3: =IF(CV2<=$G$3,'Operating Assumptions'!$G$19,'Operating Assumptions'!$G$20) -> 6 | CW3: =IF(CW2<=$G$3,'Operating Assumptions'!$G$19,'Operating Assumptions'!$G$20) -> 6 | CX3: =IF(CX2<=$G$3,'Operating Assumptions'!$G$19,'Operating Assumptions'!$G$20) -> 6 | CY3: =IF(CY2<=$G$3,'Operating Assumptions'!$G$19,'Operating Assumptions'!$G$20) -> 6 | CZ3: =IF(CZ2<=$G$3,'Operating Assumptions'!$G$19,'Operating Assumptions'!$G$20) -> 6 | DA3: =IF(DA2<=$G$3,'Operating Assumptions'!$G$19,'Operating Assumptions'!$G$20) -> 6 | DB3: =IF(DB2<=$G$3,'Operating Assumptions'!$G$19,'Operating Assumptions'!$G$20) -> 6 | DC3: =IF(DC2<=$G$3,'Operating Assumptions'!$G$19,'Operating Assumptions'!$G$20) -> 6 | DD3: =IF(DD2<=$G$3,'Operating Assumptions'!$G$19,'Operating Assumptions'!$G$20) -> 6 | DE3: =IF(DE2<=$G$3,'Operating Assumptions'!$G$19,'Operating Assumptions'!$G$20) -> 6 | DF3: =IF(DF2<=$G$3,'Operating Assumptions'!$G$19,'Operating Assumptions'!$G$20) -> 6 | DG3: =IF(DG2<=$G$3,'Operating Assumptions'!$G$19,'Operating Assumptions'!$G$20) -> 6 | DH3: =IF(DH2<=$G$3,'Operating Assumptions'!$G$19,'Operating Assumptions'!$G$20) -> 6 | DI3: =IF(DI2<=$G$3,'Operating Assumptions'!$G$19,'Operating Assumptions'!$G$20) -> 6 | DJ3: =IF(DJ2<=$G$3,'Operating Assumptions'!$G$19,'Operating Assumptions'!$G$20) -> 6 | DK3: =IF(DK2<=$G$3,'Operating Assumptions'!$G$19,'Operating Assumptions'!$G$20) -> 6 | DL3: =IF(DL2<=$G$3,'Operating Assumptions'!$G$19,'Operating Assumptions'!$G$20) -> 6 | DM3: =IF(DM2<=$G$3,'Operating Assumptions'!$G$19,'Operating Assumptions'!$G$20) -> 6 | DN3: =IF(DN2<=$G$3,'Operating Assumptions'!$G$19,'Operating Assumptions'!$G$20) -> 6 | DO3: =IF(DO2<=$G$3,'Operating Assumptions'!$G$19,'Operating Assumptions'!$G$20) -> 6 | DP3: =IF(DP2<=$G$3,'Operating Assumptions'!$G$19,'Operating Assumptions'!$G$20) -> 6 | DQ3: =IF(DQ2<=$G$3,'Operating Assumptions'!$G$19,'Operating Assumptions'!$G$20) -> 6 | DR3: =IF(DR2<=$G$3,'Operating Assumptions'!$G$19,'Operating Assumptions'!$G$20) -> 6 | DS3: =IF(DS2<=$G$3,'Operating Assumptions'!$G$19,'Operating Assumptions'!$G$20) -> 6 | DT3: =IF(DT2<=$G$3,'Operating Assumptions'!$G$19,'Operating Assumptions'!$G$20) -> 6 | DU3: =IF(DU2<=$G$3,'Operating Assumptions'!$G$19,'Operating Assumptions'!$G$20) -> 6 | DV3: =IF(DV2<=$G$3,'Operating Assumptions'!$G$19,'Operating Assumptions'!$G$20) -> 6 | DW3: =IF(DW2<=$G$3,'Operating Assumptions'!$G$19,'Operating Assumptions'!$G$20) -> 6 | DX3: =IF(DX2<=$G$3,'Operating Assumptions'!$G$19,'Operating Assumptions'!$G$20) -> 6 | DY3: =IF(DY2<=$G$3,'Operating Assumptions'!$G$19,'Operating Assumptions'!$G$20) -> 6 | DZ3: =IF(DZ2<=$G$3,'Operating Assumptions'!$G$19,'Operating Assumptions'!$G$20) -> 6 | EA3: =IF(EA2<=$G$3,'Operating Assumptions'!$G$19,'Operating Assumptions'!$G$20) -> 6 | EB3: =IF(EB2<=$G$3,'Operating Assumptions'!$G$19,'Operating Assumptions'!$G$20) -> 6 | EC3: =IF(EC2<=$G$3,'Operating Assumptions'!$G$19,'Operating Assumptions'!$G$20) -> 6 | ED3: =IF(ED2<=$G$3,'Operating Assumptions'!$G$19,'Operating Assumptions'!$G$20) -> 6
B4: Start of Period | F4: ='Operating Assumptions'!G2 -> TRUE | L4: =K5+1 -> 2016-09-01 | M4: 2016-10-01 | N4: 2016-11-01 | O4: 2016-12-01 | P4: 2017-01-01 | Q4: 2017-02-01 | R4: 2017-03-01 | S4: 2017-04-01 | T4: 2017-05-01 | U4: 2017-06-01 | V4: 2017-07-01 | W4: 2017-08-01 | X4: 2017-09-01 | Y4: 2017-10-01 | Z4: 2017-11-01 | AA4: 2017-12-01 | AB4: 2018-01-01 | AC4: 2018-02-01 | AD4: 2018-03-01 | AE4: 2018-04-01 | AF4: 2018-05-01 | AG4: 2018-06-01 | AH4: 2018-07-01 | AI4: 2018-08-01 | AJ4: 2018-09-01 | AK4: 2018-10-01 | AL4: 2018-11-01 | AM4: 2018-12-01 | AN4: 2019-01-01 | AO4: 2019-02-01 | AP4: 2019-03-01 | AQ4: 2019-04-01 | AR4: =AQ5+1 -> 2019-05-01 | AS4: 2019-06-01 | AT4: 2019-07-01 | AU4: 2019-08-01 | AV4: 2019-09-01 | AW4: 2019-10-01 | AX4: 2019-11-01 | AY4: 2019-12-01 | AZ4: 2020-01-01 | BA4: 2020-02-01 | BB4: 2020-08-01 | BC4: 2021-02-01 | BD4: 2021-08-01 | BE4: 2022-02-01 | BF4: 2022-08-01 | BG4: 2023-02-01 | BH4: 2023-08-01 | BI4: 2024-02-01 | BJ4: 2024-08-01 | BK4: 2025-02-01 | BL4: 2025-08-01 | BM4: 2026-02-01 | BN4: 2026-08-01 | BO4: 2027-02-01 | BP4: 2027-08-01 | BQ4: 2028-02-01 | BR4: 2028-08-01 | BS4: 2029-02-01 | BT4: 2029-08-01 | BU4: 2030-02-01 | BV4: 2030-08-01 | BW4: 2031-02-01 | BX4: =BW5+1 -> 2031-08-01 | BY4: 2032-02-01 | BZ4: 2032-08-01 | CA4: 2033-02-01 | CB4: 2033-08-01 | CC4: 2034-02-01 | CD4: 2034-08-01 | CE4: 2035-02-01 | CF4: 2035-08-01 | CG4: 2036-02-01 | CH4: 2036-08-01 | CI4: 2037-02-01 | CJ4: 2037-08-01 | CK4: 2038-02-01 | CL4: 2038-08-01 | CM4: 2039-02-01 | CN4: 2039-08-01 | CO4: 2040-02-01 | CP4: 2040-08-01 | CQ4: 2041-02-01 | CR4: 2041-08-01 | CS4: 2042-02-01 | CT4: 2042-08-01 | CU4: 2043-02-01 | CV4: 2043-08-01 | CW4: 2044-02-01 | CX4: 2044-08-01 | CY4: 2045-02-01 | CZ4: 2045-08-01 | DA4: 2046-02-01 | DB4: 2046-08-01 | DC4: 2047-02-01 | DD4: =DC5+1 -> 2047-08-01 | DE4: 2048-02-01 | DF4: 2048-08-01 | DG4: 2049-02-01 | DH4: 2049-08-01 | DI4: 2050-02-01 | DJ4: 2050-08-01 | DK4: 2051-02-01 | DL4: 2051-08-01 | DM4: 2052-02-01 | DN4: 2052-08-01 | DO4: 2053-02-01 | DP4: 2053-08-01 | DQ4: 2054-02-01 | DR4: 2054-08-01 | DS4: 2055-02-01 | DT4: 2055-08-01 | DU4: 2056-02-01 | DV4: 2056-08-01 | DW4: 2057-02-01 | DX4: 2057-08-01 | DY4: 2058-02-01 | DZ4: 2058-08-01 | EA4: 2059-02-01 | EB4: 2059-08-01 | EC4: 2060-02-01 | ED4: 2060-08-01
B5: End of Period | K5: ='Operating Assumptions'!H4-1 -> 2016-08-31 | L5: =EDATE(L4,L3)-1 -> 2016-09-30 | M5: 2016-10-31 | N5: 2016-11-30 | O5: 2016-12-31 | P5: 2017-01-31 | Q5: 2017-02-28 | R5: 2017-03-31 | S5: 2017-04-30 | T5: 2017-05-31 | U5: 2017-06-30 | V5: 2017-07-31 | W5: 2017-08-31 | X5: 2017-09-30 | Y5: 2017-10-31 | Z5: 2017-11-30 | AA5: 2017-12-31 | AB5: 2018-01-31 | AC5: 2018-02-28 | AD5: 2018-03-31 | AE5: 2018-04-30 | AF5: 2018-05-31 | AG5: 2018-06-30 | AH5: 2018-07-31 | AI5: 2018-08-31 | AJ5: 2018-09-30 | AK5: 2018-10-31 | AL5: 2018-11-30 | AM5: 2018-12-31 | AN5: 2019-01-31 | AO5: 2019-02-28 | AP5: 2019-03-31 | AQ5: 2019-04-30 | AR5: =EDATE(AR4,AR3)-1 -> 2019-05-31 | AS5: 2019-06-30 | AT5: 2019-07-31 | AU5: 2019-08-31 | AV5: 2019-09-30 | AW5: 2019-10-31 | AX5: 2019-11-30 | AY5: 2019-12-31 | AZ5: 2020-01-31 | BA5: 2020-07-31 | BB5: 2021-01-31 | BC5: 2021-07-31 | BD5: 2022-01-31 | BE5: 2022-07-31 | BF5: 2023-01-31 | BG5: 2023-07-31 | BH5: 2024-01-31 | BI5: 2024-07-31 | BJ5: 2025-01-31 | BK5: 2025-07-31 | BL5: 2026-01-31 | BM5: 2026-07-31 | BN5: 2027-01-31 | BO5: 2027-07-31 | BP5: 2028-01-31 | BQ5: 2028-07-31 | BR5: 2029-01-31 | BS5: 2029-07-31 | BT5: 2030-01-31 | BU5: 2030-07-31 | BV5: 2031-01-31 | BW5: 2031-07-31 | BX5: =EDATE(BX4,BX3)-1 -> 2032-01-31 | BY5: 2032-07-31 | BZ5: 2033-01-31 | CA5: 2033-07-31 | CB5: 2034-01-31 | CC5: 2034-07-31 | CD5: 2035-01-31 | CE5: 2035-07-31 | CF5: 2036-01-31 | CG5: 2036-07-31 | CH5: 2037-01-31 | CI5: 2037-07-31 | CJ5: 2038-01-31 | CK5: 2038-07-31 | CL5: 2039-01-31 | CM5: 2039-07-31 | CN5: 2040-01-31 | CO5: 2040-07-31 | CP5: 2041-01-31 | CQ5: 2041-07-31 | CR5: 2042-01-31 | CS5: 2042-07-31 | CT5: 2043-01-31 | CU5: 2043-07-31 | CV5: 2044-01-31 | CW5: 2044-07-31 | CX5: 2045-01-31 | CY5: 2045-07-31 | CZ5: 2046-01-31 | DA5: 2046-07-31 | DB5: 2047-01-31 | DC5: 2047-07-31 | DD5: =EDATE(DD4,DD3)-1 -> 2048-01-31 | DE5: 2048-07-31 | DF5: 2049-01-31 | DG5: 2049-07-31 | DH5: 2050-01-31 | DI5: 2050-07-31 | DJ5: 2051-01-31 | DK5: 2051-07-31 | DL5: =EDATE(DL4,DL3)-1 -> 2052-01-31 | DM5: =EDATE(DM4,DM3)-1 -> 2052-07-31 | DN5: =EDATE(DN4,DN3)-1 -> 2053-01-31 | DO5: =EDATE(DO4,DO3)-1 -> 2053-07-31 | DP5: =EDATE(DP4,DP3)-1 -> 2054-01-31 | DQ5: =EDATE(DQ4,DQ3)-1 -> 2054-07-31 | DR5: =EDATE(DR4,DR3)-1 -> 2055-01-31 | DS5: =EDATE(DS4,DS3)-1 -> 2055-07-31 | DT5: =EDATE(DT4,DT3)-1 -> 2056-01-31 | DU5: =EDATE(DU4,DU3)-1 -> 2056-07-31 | DV5: =EDATE(DV4,DV3)-1 -> 2057-01-31 | DW5: =EDATE(DW4,DW3)-1 -> 2057-07-31 | DX5: =EDATE(DX4,DX3)-1 -> 2058-01-31 | DY5: =EDATE(DY4,DY3)-1 -> 2058-07-31 | DZ5: =EDATE(DZ4,DZ3)-1 -> 2059-01-31 | EA5: =EDATE(EA4,EA3)-1 -> 2059-07-31 | EB5: =EDATE(EB4,EB3)-1 -> 2060-01-31 | EC5: =EDATE(EC4,EC3)-1 -> 2060-07-31 | ED5: =EDATE(ED4,ED3)-1 -> 2061-01-31
B6: Year | J6: Fiscal Mo End | L6: =YEAR(L5) -> 2016 | M6: =IF(MONTH(L5)=$G$12,L6+1,L6) -> 2016 | N6: 2016 | O6: 2016 | P6: 2016 | Q6: 2017 | R6: 2017 | S6: 2017 | T6: 2017 | U6: 2017 | V6: 2017 | W6: 2017 | X6: 2017 | Y6: 2017 | Z6: 2017 | AA6: 2017 | AB6: 2017 | AC6: 2018 | AD6: 2018 | AE6: 2018 | AF6: 2018 | AG6: 2018 | AH6: 2018 | AI6: 2018 | AJ6: 2018 | AK6: 2018 | AL6: 2018 | AM6: 2018 | AN6: 2018 | AO6: 2019 | AP6: 2019 | AQ6: 2019 | AR6: 2019 | AS6: =IF(MONTH(AR5)=$G$12,AR6+1,AR6) -> 2019 | AT6: 2019 | AU6: 2019 | AV6: 2019 | AW6: 2019 | AX6: 2019 | AY6: 2019 | AZ6: 2019 | BA6: 2020 | BB6: 2020 | BC6: 2021 | BD6: 2021 | BE6: 2022 | BF6: 2022 | BG6: 2023 | BH6: 2023 | BI6: 2024 | BJ6: 2024 | BK6: 2025 | BL6: 2025 | BM6: 2026 | BN6: 2026 | BO6: 2027 | BP6: 2027 | BQ6: 2028 | BR6: 2028 | BS6: 2029 | BT6: 2029 | BU6: 2030 | BV6: 2030 | BW6: 2031 | BX6: 2031 | BY6: =IF(MONTH(BX5)=$G$12,BX6+1,BX6) -> 2032 | BZ6: 2032 | CA6: 2033 | CB6: 2033 | CC6: 2034 | CD6: 2034 | CE6: 2035 | CF6: 2035 | CG6: 2036 | CH6: 2036 | CI6: 2037 | CJ6: 2037 | CK6: 2038 | CL6: 2038 | CM6: 2039 | CN6: 2039 | CO6: 2040 | CP6: 2040 | CQ6: 2041 | CR6: 2041 | CS6: 2042 | CT6: 2042 | CU6: 2043 | CV6: 2043 | CW6: 2044 | CX6: 2044 | CY6: 2045 | CZ6: 2045 | DA6: 2046 | DB6: 2046 | DC6: 2047 | DD6: 2047 | DE6: =IF(MONTH(DD5)=$G$12,DD6+1,DD6) -> 2048 | DF6: 2048 | DG6: 2049 | DH6: 2049 | DI6: 2050 | DJ6: 2050 | DK6: 2051 | DL6: 2051 | DM6: 2052 | DN6: 2052 | DO6: 2053 | DP6: 2053 | DQ6: 2054 | DR6: 2054 | DS6: 2055 | DT6: 2055 | DU6: 2056 | DV6: 2056 | DW6: 2057 | DX6: 2057 | DY6: 2058 | DZ6: 2058 | EA6: 2059 | EB6: 2059 | EC6: 2060 | ED6: 2060
B7: Phase 1 Construction | G7: ='Operating Assumptions'!H4 -> 2016-09-01 | H7: ='Operating Assumptions'!H9 -> 2018-04-01 | J7: =IF(MONTH(H7)>1,MONTH(H7)-1,12) -> 3 | L7: =AND(L$4>=$G7,L$4<$H7) -> TRUE | M7: TRUE | N7: TRUE | O7: TRUE | P7: TRUE | Q7: TRUE | R7: TRUE | S7: TRUE | T7: TRUE | U7: TRUE | V7: =AND(V$4>=$G7,V$4<$H7) -> TRUE | W7: TRUE | X7: TRUE | Y7: TRUE | Z7: TRUE | AA7: TRUE | AB7: TRUE | AC7: TRUE | AD7: TRUE | AE7: FALSE | AF7: =AND(AF$4>=$G7,AF$4<$H7) -> FALSE | AG7: FALSE | AH7: FALSE | AI7: FALSE | AJ7: FALSE | AK7: FALSE | AL7: FALSE | AM7: FALSE | AN7: FALSE | AO7: FALSE | AP7: =AND(AP$4>=$G7,AP$4<$H7) -> FALSE | AQ7: FALSE | AR7: FALSE | AS7: FALSE | AT7: FALSE | AU7: FALSE | AV7: FALSE | AW7: FALSE | AX7: FALSE | AY7: FALSE | AZ7: =AND(AZ$4>=$G7,AZ$4<$H7) -> FALSE | BA7: FALSE | BB7: FALSE | BC7: FALSE | BD7: FALSE | BE7: FALSE | BF7: FALSE | BG7: FALSE | BH7: FALSE | BI7: FALSE | BJ7: =AND(BJ$4>=$G7,BJ$4<$H7) -> FALSE | BK7: FALSE | BL7: FALSE | BM7: FALSE | BN7: FALSE | BO7: FALSE | BP7: FALSE | BQ7: FALSE | BR7: FALSE | BS7: FALSE | BT7: =AND(BT$4>=$G7,BT$4<$H7) -> FALSE | BU7: FALSE | BV7: FALSE | BW7: FALSE | BX7: FALSE | BY7: FALSE | BZ7: FALSE | CA7: FALSE | CB7: FALSE | CC7: FALSE | CD7: =AND(CD$4>=$G7,CD$4<$H7) -> FALSE | CE7: FALSE | CF7: FALSE | CG7: FALSE | CH7: FALSE | CI7: FALSE | CJ7: FALSE | CK7: FALSE | CL7: FALSE | CM7: FALSE | CN7: =AND(CN$4>=$G7,CN$4<$H7) -> FALSE | CO7: FALSE | CP7: FALSE | CQ7: FALSE | CR7: FALSE | CS7: FALSE | CT7: FALSE | CU7: FALSE | CV7: FALSE | CW7: FALSE | CX7: =AND(CX$4>=$G7,CX$4<$H7) -> FALSE | CY7: FALSE | CZ7: FALSE | DA7: FALSE | DB7: FALSE | DC7: FALSE | DD7: FALSE | DE7: FALSE | DF7: FALSE | DG7: FALSE | DH7: FALSE | DI7: FALSE | DJ7: FALSE | DK7: FALSE | DL7: FALSE | DM7: FALSE | DN7: =AND(DN$4>=$G7,DN$4<$H7) -> FALSE | DO7: FALSE | DP7: FALSE | DQ7: FALSE | DR7: FALSE | DS7: FALSE | DT7: FALSE | DU7: FALSE | DV7: FALSE | DW7: FALSE | DX7: FALSE | DY7: FALSE | DZ7: FALSE | EA7: FALSE | EB7: FALSE | EC7: FALSE | ED7: FALSE
B8: Phase 1 Operation | G8: =H7 -> 2018-04-01 | H8: ='Operating Assumptions'!H10 -> 2043-04-01 | K8: =COUNTIF(L8:ED8,TRUE)/2 -> 34.5 | L8: FALSE | M8: FALSE | N8: FALSE | O8: FALSE | P8: FALSE | Q8: FALSE | R8: FALSE | S8: FALSE | T8: FALSE | U8: FALSE | V8: FALSE | W8: FALSE | X8: FALSE | Y8: FALSE | Z8: FALSE | AA8: FALSE | AB8: FALSE | AC8: FALSE | AD8: FALSE | AE8: TRUE | AF8: TRUE | AG8: TRUE | AH8: TRUE | AI8: TRUE | AJ8: TRUE | AK8: TRUE | AL8: TRUE | AM8: TRUE | AN8: TRUE | AO8: TRUE | AP8: TRUE | AQ8: TRUE | AR8: TRUE | AS8: TRUE | AT8: TRUE | AU8: TRUE | AV8: TRUE | AW8: TRUE | AX8: TRUE | AY8: TRUE | AZ8: TRUE | BA8: TRUE | BB8: TRUE | BC8: TRUE | BD8: TRUE | BE8: TRUE | BF8: TRUE | BG8: TRUE | BH8: TRUE | BI8: TRUE | BJ8: TRUE | BK8: TRUE | BL8: TRUE | BM8: TRUE | BN8: TRUE | BO8: TRUE | BP8: TRUE | BQ8: TRUE | BR8: TRUE | BS8: TRUE | BT8: TRUE | BU8: TRUE | BV8: TRUE | BW8: TRUE | BX8: TRUE | BY8: TRUE | BZ8: TRUE | CA8: TRUE | CB8: TRUE | CC8: TRUE | CD8: TRUE | CE8: TRUE | CF8: TRUE | CG8: TRUE | CH8: TRUE | CI8: TRUE | CJ8: TRUE | CK8: TRUE | CL8: TRUE | CM8: TRUE | CN8: TRUE | CO8: TRUE | CP8: TRUE | CQ8: TRUE | CR8: TRUE | CS8: TRUE | CT8: TRUE | CU8: TRUE | CV8: FALSE | CW8: FALSE | CX8: FALSE | CY8: FALSE | CZ8: FALSE | DA8: FALSE | DB8: FALSE | DC8: FALSE | DD8: FALSE | DE8: FALSE | DF8: FALSE | DG8: FALSE | DH8: FALSE | DI8: FALSE | DJ8: FALSE | DK8: FALSE | DL8: FALSE | DM8: FALSE | DN8: FALSE | DO8: FALSE | DP8: FALSE | DQ8: FALSE | DR8: FALSE | DS8: FALSE | DT8: FALSE | DU8: FALSE | DV8: FALSE | DW8: FALSE | DX8: FALSE | DY8: FALSE | DZ8: FALSE | EA8: FALSE | EB8: FALSE | EC8: FALSE | ED8: FALSE
B9: Phase 2 Construction | G9: ='Operating Assumptions'!H12 -> 2018-04-01 | H9: ='Operating Assumptions'!H14 -> 2020-02-01 | I9: ='Operating Assumptions'!G2 -> TRUE | J9: =IF(MONTH(H9)>1,MONTH(H9)-1,12) -> 1 | L9: =IF($I9,AND(L$4>=$G9,L$4<$H9)) -> FALSE | M9: FALSE | N9: FALSE | O9: FALSE | P9: FALSE | Q9: FALSE | R9: FALSE | S9: FALSE | T9: FALSE | U9: FALSE | V9: =IF($I9,AND(V$4>=$G9,V$4<$H9)) -> FALSE | W9: FALSE | X9: FALSE | Y9: FALSE | Z9: FALSE | AA9: FALSE | AB9: FALSE | AC9: FALSE | AD9: FALSE | AE9: TRUE | AF9: =IF($I9,AND(AF$4>=$G9,AF$4<$H9)) -> TRUE | AG9: TRUE | AH9: TRUE | AI9: TRUE | AJ9: TRUE | AK9: TRUE | AL9: TRUE | AM9: TRUE | AN9: TRUE | AO9: TRUE | AP9: =IF($I9,AND(AP$4>=$G9,AP$4<$H9)) -> TRUE | AQ9: TRUE | AR9: TRUE | AS9: TRUE | AT9: TRUE | AU9: TRUE | AV9: TRUE | AW9: TRUE | AX9: TRUE | AY9: TRUE | AZ9: =IF($I9,AND(AZ$4>=$G9,AZ$4<$H9)) -> TRUE | BA9: FALSE | BB9: FALSE | BC9: FALSE | BD9: FALSE | BE9: FALSE | BF9: FALSE | BG9: FALSE | BH9: FALSE | BI9: FALSE | BJ9: =IF($I9,AND(BJ$4>=$G9,BJ$4<$H9)) -> FALSE | BK9: FALSE | BL9: FALSE | BM9: FALSE | BN9: FALSE | BO9: FALSE | BP9: FALSE | BQ9: FALSE | BR9: FALSE | BS9: FALSE | BT9: =IF($I9,AND(BT$4>=$G9,BT$4<$H9)) -> FALSE | BU9: FALSE | BV9: FALSE | BW9: FALSE | BX9: FALSE | BY9: FALSE | BZ9: FALSE | CA9: FALSE | CB9: FALSE | CC9: FALSE | CD9: =IF($I9,AND(CD$4>=$G9,CD$4<$H9)) -> FALSE | CE9: FALSE | CF9: FALSE | CG9: FALSE | CH9: FALSE | CI9: FALSE | CJ9: FALSE | CK9: FALSE | CL9: FALSE | CM9: FALSE | CN9: =IF($I9,AND(CN$4>=$G9,CN$4<$H9)) -> FALSE | CO9: FALSE | CP9: FALSE | CQ9: FALSE | CR9: FALSE | CS9: FALSE | CT9: FALSE | CU9: FALSE | CV9: FALSE | CW9: FALSE | CX9: =IF($I9,AND(CX$4>=$G9,CX$4<$H9)) -> FALSE | CY9: FALSE | CZ9: FALSE | DA9: FALSE | DB9: FALSE | DC9: FALSE | DD9: FALSE | DE9: FALSE | DF9: FALSE | DG9: FALSE | DH9: FALSE | DI9: FALSE | DJ9: FALSE | DK9: FALSE | DL9: FALSE | DM9: FALSE | DN9: =IF($I9,AND(DN$4>=$G9,DN$4<$H9)) -> FALSE | DO9: FALSE | DP9: FALSE | DQ9: FALSE | DR9: FALSE | DS9: FALSE | DT9: FALSE | DU9: FALSE | DV9: FALSE | DW9: FALSE | DX9: FALSE | DY9: FALSE | DZ9: FALSE | EA9: FALSE | EB9: FALSE | EC9: FALSE | ED9: FALSE
B10: Phase 2 Operation | G10: =H9 -> 2020-02-01 | H10: ='Operating Assumptions'!H15 -> 2045-02-01 | I10: =I9 -> TRUE | L10: FALSE | M10: FALSE | N10: FALSE | O10: FALSE | P10: FALSE | Q10: FALSE | R10: FALSE | S10: FALSE | T10: FALSE | U10: FALSE | V10: FALSE | W10: FALSE | X10: FALSE | Y10: FALSE | Z10: FALSE | AA10: FALSE | AB10: FALSE | AC10: FALSE | AD10: FALSE | AE10: FALSE | AF10: FALSE | AG10: FALSE | AH10: FALSE | AI10: FALSE | AJ10: FALSE | AK10: FALSE | AL10: FALSE | AM10: FALSE | AN10: FALSE | AO10: FALSE | AP10: FALSE | AQ10: FALSE | AR10: FALSE | AS10: FALSE | AT10: FALSE | AU10: FALSE | AV10: FALSE | AW10: FALSE | AX10: FALSE | AY10: FALSE | AZ10: FALSE | BA10: TRUE | BB10: TRUE | BC10: TRUE | BD10: TRUE | BE10: TRUE | BF10: TRUE | BG10: TRUE | BH10: TRUE | BI10: TRUE | BJ10: TRUE | BK10: TRUE | BL10: TRUE | BM10: TRUE | BN10: TRUE | BO10: TRUE | BP10: TRUE | BQ10: TRUE | BR10: TRUE | BS10: TRUE | BT10: TRUE | BU10: TRUE | BV10: TRUE | BW10: TRUE | BX10: TRUE | BY10: TRUE | BZ10: TRUE | CA10: TRUE | CB10: TRUE | CC10: TRUE | CD10: TRUE | CE10: TRUE | CF10: TRUE | CG10: TRUE | CH10: TRUE | CI10: TRUE | CJ10: TRUE | CK10: TRUE | CL10: TRUE | CM10: TRUE | CN10: TRUE | CO10: TRUE | CP10: TRUE | CQ10: TRUE | CR10: TRUE | CS10: TRUE | CT10: TRUE | CU10: TRUE | CV10: TRUE | CW10: TRUE | CX10: TRUE | CY10: FALSE | CZ10: FALSE | DA10: FALSE | DB10: FALSE | DC10: FALSE | DD10: FALSE | DE10: FALSE | DF10: FALSE | DG10: FALSE | DH10: FALSE | DI10: FALSE | DJ10: FALSE | DK10: FALSE | DL10: FALSE | DM10: FALSE | DN10: FALSE | DO10: FALSE | DP10: FALSE | DQ10: FALSE | DR10: FALSE | DS10: FALSE | DT10: FALSE | DU10: FALSE | DV10: FALSE | DW10: FALSE | DX10: FALSE | DY10: FALSE | DZ10: FALSE | EA10: FALSE | EB10: FALSE | EC10: FALSE | ED10: FALSE
B11: Final Month of Fiscal Year | G11: =IF(F4,J9,J7) -> 1 | L11: =MONTH(L5)=$G$11 -> FALSE | M11: =MONTH(M5)=$G$11 -> FALSE | N11: FALSE | O11: FALSE | P11: TRUE | Q11: FALSE | R11: FALSE | S11: FALSE | T11: FALSE | U11: FALSE | V11: FALSE | W11: FALSE | X11: FALSE | Y11: FALSE | Z11: FALSE | AA11: FALSE | AB11: TRUE | AC11: FALSE | AD11: FALSE | AE11: FALSE | AF11: FALSE | AG11: FALSE | AH11: FALSE | AI11: FALSE | AJ11: FALSE | AK11: FALSE | AL11: FALSE | AM11: FALSE | AN11: TRUE | AO11: FALSE | AP11: FALSE | AQ11: FALSE | AR11: FALSE | AS11: FALSE | AT11: FALSE | AU11: FALSE | AV11: FALSE | AW11: FALSE | AX11: FALSE | AY11: FALSE | AZ11: TRUE | BA11: FALSE | BB11: TRUE | BC11: FALSE | BD11: TRUE | BE11: FALSE | BF11: TRUE | BG11: FALSE | BH11: TRUE | BI11: FALSE | BJ11: TRUE | BK11: FALSE | BL11: TRUE | BM11: FALSE | BN11: TRUE | BO11: FALSE | BP11: TRUE | BQ11: FALSE | BR11: TRUE | BS11: FALSE | BT11: TRUE | BU11: FALSE | BV11: TRUE | BW11: FALSE | BX11: TRUE | BY11: =MONTH(BY5)=$G$11 -> FALSE | BZ11: TRUE | CA11: FALSE | CB11: TRUE | CC11: FALSE | CD11: TRUE | CE11: FALSE | CF11: TRUE | CG11: FALSE | CH11: TRUE | CI11: FALSE | CJ11: TRUE | CK11: FALSE | CL11: TRUE | CM11: FALSE | CN11: TRUE | CO11: FALSE | CP11: TRUE | CQ11: FALSE | CR11: TRUE | CS11: FALSE | CT11: TRUE | CU11: FALSE | CV11: TRUE | CW11: FALSE | CX11: TRUE | CY11: FALSE | CZ11: TRUE | DA11: FALSE | DB11: TRUE | DC11: FALSE | DD11: TRUE | DE11: FALSE | DF11: TRUE | DG11: FALSE | DH11: TRUE | DI11: FALSE | DJ11: TRUE | DK11: FALSE | DL11: TRUE | DM11: FALSE | DN11: TRUE | DO11: FALSE | DP11: TRUE | DQ11: FALSE | DR11: TRUE | DS11: FALSE | DT11: TRUE | DU11: FALSE | DV11: TRUE | DW11: FALSE | DX11: TRUE | DY11: FALSE | DZ11: TRUE | EA11: FALSE | EB11: TRUE | EC11: FALSE | ED11: TRUE
B12: Start Month of New Year for Test | G12: =G11 -> 1
A14: Capacity, Generation and Gas Usage
B15: Phase 1 Gross Capacity | F15: MW | G15: ='Operating Assumptions'!G30 -> 18.765 | L15: =$G$15*L8 -> 0 | M15: 0 | N15: 0 | O15: 0 | P15: 0 | Q15: 0 | R15: 0 | S15: 0 | T15: 0 | U15: 0 | V15: 0 | W15: 0 | X15: 0 | Y15: 0 | Z15: 0 | AA15: 0 | AB15: 0 | AC15: 0 | AD15: 0 | AE15: 18.765 | AF15: 18.765 | AG15: 18.765 | AH15: 18.765 | AI15: 18.765 | AJ15: 18.765 | AK15: 18.765 | AL15: 18.765 | AM15: 18.765 | AN15: 18.765 | AO15: 18.765 | AP15: 18.765 | AQ15: 18.765 | AR15: =$G$15*AR8 -> 18.765 | AS15: 18.765 | AT15: 18.765 | AU15: 18.765 | AV15: 18.765 | AW15: 18.765 | AX15: 18.765 | AY15: 18.765 | AZ15: 18.765 | BA15: 18.765 | BB15: 18.765 | BC15: 18.765 | BD15: 18.765 | BE15: 18.765 | BF15: 18.765 | BG15: 18.765 | BH15: 18.765 | BI15: 18.765 | BJ15: 18.765 | BK15: 18.765 | BL15: 18.765 | BM15: 18.765 | BN15: 18.765 | BO15: 18.765 | BP15: 18.765 | BQ15: 18.765 | BR15: 18.765 | BS15: 18.765 | BT15: 18.765 | BU15: 18.765 | BV15: 18.765 | BW15: 18.765 | BX15: =$G$15*BX8 -> 18.765 | BY15: 18.765 | BZ15: 18.765 | CA15: 18.765 | CB15: 18.765 | CC15: 18.765 | CD15: 18.765 | CE15: 18.765 | CF15: 18.765 | CG15: 18.765 | CH15: 18.765 | CI15: 18.765 | CJ15: 18.765 | CK15: 18.765 | CL15: 18.765 | CM15: 18.765 | CN15: 18.765 | CO15: 18.765 | CP15: 18.765 | CQ15: 18.765 | CR15: 18.765 | CS15: 18.765 | CT15: 18.765 | CU15: 18.765 | CV15: 0 | CW15: 0 | CX15: 0 | CY15: 0 | CZ15: 0 | DA15: 0 | DB15: 0 | DC15: 0 | DD15: =$G$15*DD8 -> 0 | DE15: 0 | DF15: 0 | DG15: 0 | DH15: 0 | DI15: 0 | DJ15: 0 | DK15: 0 | DL15: =$G$15*DL8 -> 0 | DM15: 0 | DN15: 0 | DO15: 0 | DP15: 0 | DQ15: 0 | DR15: 0 | DS15: 0 | DT15: 0 | DU15: 0 | DV15: 0 | DW15: 0 | DX15: 0 | DY15: 0 | DZ15: 0 | EA15: 0 | EB15: 0 | EC15: 0 | ED15: 0
B16: Phase 2 Gross Capacity | F16: MW | G16: ='Operating Assumptions'!G31 -> 48.789 | L16: =$G$16*L10 -> 0 | M16: 0 | N16: 0 | O16: 0 | P16: 0 | Q16: 0 | R16: 0 | S16: 0 | T16: 0 | U16: 0 | V16: 0 | W16: 0 | X16: 0 | Y16: 0 | Z16: 0 | AA16: 0 | AB16: 0 | AC16: 0 | AD16: 0 | AE16: 0 | AF16: 0 | AG16: 0 | AH16: 0 | AI16: 0 | AJ16: 0 | AK16: 0 | AL16: 0 | AM16: 0 | AN16: 0 | AO16: 0 | AP16: 0 | AQ16: 0 | AR16: =$G$16*AR10 -> 0 | AS16: 0 | AT16: 0 | AU16: 0 | AV16: 0 | AW16: 0 | AX16: 0 | AY16: 0 | AZ16: 0 | BA16: 48.789 | BB16: 48.789 | BC16: 48.789 | BD16: 48.789 | BE16: 48.789 | BF16: 48.789 | BG16: 48.789 | BH16: 48.789 | BI16: 48.789 | BJ16: 48.789 | BK16: 48.789 | BL16: 48.789 | BM16: 48.789 | BN16: 48.789 | BO16: 48.789 | BP16: 48.789 | BQ16: 48.789 | BR16: 48.789 | BS16: 48.789 | BT16: 48.789 | BU16: 48.789 | BV16: 48.789 | BW16: 48.789 | BX16: =$G$16*BX10 -> 48.789 | BY16: 48.789 | BZ16: 48.789 | CA16: 48.789 | CB16: 48.789 | CC16: 48.789 | CD16: 48.789 | CE16: 48.789 | CF16: 48.789 | CG16: 48.789 | CH16: 48.789 | CI16: 48.789 | CJ16: 48.789 | CK16: 48.789 | CL16: 48.789 | CM16: 48.789 | CN16: 48.789 | CO16: 48.789 | CP16: 48.789 | CQ16: 48.789 | CR16: 48.789 | CS16: 48.789 | CT16: 48.789 | CU16: 48.789 | CV16: 48.789 | CW16: 48.789 | CX16: 48.789 | CY16: 0 | CZ16: 0 | DA16: 0 | DB16: 0 | DC16: 0 | DD16: =$G$16*DD10 -> 0 | DE16: 0 | DF16: 0 | DG16: 0 | DH16: 0 | DI16: 0 | DJ16: 0 | DK16: 0 | DL16: =$G$16*DL10 -> 0 | DM16: 0 | DN16: 0 | DO16: 0 | DP16: 0 | DQ16: 0 | DR16: 0 | DS16: 0 | DT16: 0 | DU16: 0 | DV16: 0 | DW16: 0 | DX16: 0 | DY16: 0 | DZ16: 0 | EA16: 0 | EB16: 0 | EC16: 0 | ED16: 0
C17: Total Capacity | G17: =G15+G16 -> 67.554 | L17: =SUM(L15:L16) -> 0 | M17: 0 | N17: 0 | O17: 0 | P17: 0 | Q17: 0 | R17: 0 | S17: 0 | T17: 0 | U17: 0 | V17: 0 | W17: 0 | X17: 0 | Y17: 0 | Z17: 0 | AA17: 0 | AB17: 0 | AC17: 0 | AD17: 0 | AE17: 18.765 | AF17: 18.765 | AG17: 18.765 | AH17: 18.765 | AI17: 18.765 | AJ17: 18.765 | AK17: 18.765 | AL17: 18.765 | AM17: 18.765 | AN17: 18.765 | AO17: 18.765 | AP17: 18.765 | AQ17: 18.765 | AR17: =SUM(AR15:AR16) -> 18.765 | AS17: 18.765 | AT17: 18.765 | AU17: 18.765 | AV17: 18.765 | AW17: 18.765 | AX17: 18.765 | AY17: 18.765 | AZ17: 18.765 | BA17: 67.554 | BB17: 67.554 | BC17: 67.554 | BD17: 67.554 | BE17: 67.554 | BF17: 67.554 | BG17: 67.554 | BH17: 67.554 | BI17: 67.554 | BJ17: 67.554 | BK17: 67.554 | BL17: 67.554 | BM17: 67.554 | BN17: 67.554 | BO17: 67.554 | BP17: 67.554 | BQ17: 67.554 | BR17: 67.554 | BS17: 67.554 | BT17: 67.554 | BU17: 67.554 | BV17: 67.554 | BW17: 67.554 | BX17: =SUM(BX15:BX16) -> 67.554 | BY17: 67.554 | BZ17: 67.554 | CA17: 67.554 | CB17: 67.554 | CC17: 67.554 | CD17: 67.554 | CE17: 67.554 | CF17: 67.554 | CG17: 67.554 | CH17: 67.554 | CI17: 67.554 | CJ17: 67.554 | CK17: 67.554 | CL17: 67.554 | CM17: 67.554 | CN17: 67.554 | CO17: 67.554 | CP17: 67.554 | CQ17: 67.554 | CR17: 67.554 | CS17: 67.554 | CT17: 67.554 | CU17: 67.554 | CV17: 48.789 | CW17: 48.789 | CX17: 48.789 | CY17: 0 | CZ17: 0 | DA17: 0 | DB17: 0 | DC17: 0 | DD17: =SUM(DD15:DD16) -> 0 | DE17: 0 | DF17: 0 | DG17: 0 | DH17: 0 | DI17: 0 | DJ17: 0 | DK17: 0 | DL17: =SUM(DL15:DL16) -> 0 | DM17: 0 | DN17: 0 | DO17: 0 | DP17: 0 | DQ17: 0 | DR17: 0 | DS17: 0 | DT17: 0 | DU17: 0 | DV17: 0 | DW17: 0 | DX17: 0 | DY17: 0 | DZ17: 0 | EA17: 0 | EB17: 0 | EC17: 0 | ED17: 0
B19: Days in Period | F19: Days | L19: =L5-L4+1 -> 30 | M19: 31 | N19: 30 | O19: 31 | P19: 31 | Q19: 28 | R19: 31 | S19: 30 | T19: 31 | U19: 30 | V19: 31 | W19: 31 | X19: 30 | Y19: 31 | Z19: 30 | AA19: 31 | AB19: 31 | AC19: 28 | AD19: 31 | AE19: 30 | AF19: 31 | AG19: 30 | AH19: 31 | AI19: 31 | AJ19: 30 | AK19: 31 | AL19: 30 | AM19: 31 | AN19: 31 | AO19: 28 | AP19: 31 | AQ19: 30 | AR19: =AR5-AR4+1 -> 31 | AS19: 30 | AT19: 31 | AU19: 31 | AV19: 30 | AW19: 31 | AX19: 30 | AY19: 31 | AZ19: 31 | BA19: 182 | BB19: 184 | BC19: 181 | BD19: 184 | BE19: 181 | BF19: 184 | BG19: 181 | BH19: 184 | BI19: 182 | BJ19: 184 | BK19: 181 | BL19: 184 | BM19: 181 | BN19: 184 | BO19: 181 | BP19: 184 | BQ19: 182 | BR19: 184 | BS19: 181 | BT19: 184 | BU19: 181 | BV19: 184 | BW19: 181 | BX19: =BX5-BX4+1 -> 184 | BY19: 182 | BZ19: 184 | CA19: 181 | CB19: 184 | CC19: 181 | CD19: 184 | CE19: 181 | CF19: 184 | CG19: 182 | CH19: 184 | CI19: 181 | CJ19: 184 | CK19: 181 | CL19: 184 | CM19: 181 | CN19: 184 | CO19: 182 | CP19: 184 | CQ19: 181 | CR19: 184 | CS19: 181 | CT19: 184 | CU19: 181 | CV19: 184 | CW19: 182 | CX19: 184 | CY19: 181 | CZ19: 184 | DA19: 181 | DB19: 184 | DC19: 181 | DD19: =DD5-DD4+1 -> 184 | DE19: 182 | DF19: 184 | DG19: 181 | DH19: 184 | DI19: 181 | DJ19: 184 | DK19: 181 | DL19: 184 | DM19: 182 | DN19: 184 | DO19: 181 | DP19: 184 | DQ19: 181 | DR19: 184 | DS19: 181 | DT19: 184 | DU19: 182 | DV19: 184 | DW19: 181 | DX19: 184 | DY19: 181 | DZ19: 184 | EA19: 181 | EB19: 184 | EC19: 182 | ED19: 184
B20: Hours in Period | F20: Hours | L20: =L19*24 -> 720 | M20: =M19*24 -> 744 | N20: 720 | O20: 744 | P20: 744 | Q20: 672 | R20: 744 | S20: 720 | T20: 744 | U20: 720 | V20: 744 | W20: 744 | X20: 720 | Y20: 744 | Z20: 720 | AA20: 744 | AB20: 744 | AC20: 672 | AD20: 744 | AE20: 720 | AF20: 744 | AG20: 720 | AH20: 744 | AI20: 744 | AJ20: 720 | AK20: 744 | AL20: 720 | AM20: 744 | AN20: 744 | AO20: 672 | AP20: 744 | AQ20: 720 | AR20: 744 | AS20: 720 | AT20: 744 | AU20: 744 | AV20: 720 | AW20: 744 | AX20: 720 | AY20: 744 | AZ20: 744 | BA20: 4368 | BB20: 4416 | BC20: 4344 | BD20: 4416 | BE20: 4344 | BF20: 4416 | BG20: 4344 | BH20: 4416 | BI20: 4368 | BJ20: 4416 | BK20: 4344 | BL20: 4416 | BM20: 4344 | BN20: 4416 | BO20: 4344 | BP20: 4416 | BQ20: 4368 | BR20: 4416 | BS20: 4344 | BT20: 4416 | BU20: 4344 | BV20: 4416 | BW20: 4344 | BX20: 4416 | BY20: =BY19*24 -> 4368 | BZ20: 4416 | CA20: 4344 | CB20: 4416 | CC20: 4344 | CD20: 4416 | CE20: 4344 | CF20: 4416 | CG20: 4368 | CH20: 4416 | CI20: 4344 | CJ20: 4416 | CK20: 4344 | CL20: 4416 | CM20: 4344 | CN20: 4416 | CO20: 4368 | CP20: 4416 | CQ20: 4344 | CR20: 4416 | CS20: 4344 | CT20: 4416 | CU20: 4344 | CV20: 4416 | CW20: 4368 | CX20: 4416 | CY20: 4344 | CZ20: 4416 | DA20: 4344 | DB20: 4416 | DC20: 4344 | DD20: 4416 | DE20: 4368 | DF20: 4416 | DG20: 4344 | DH20: 4416 | DI20: 4344 | DJ20: 4416 | DK20: 4344 | DL20: =DL19*24 -> 4416 | DM20: 4368 | DN20: 4416 | DO20: 4344 | DP20: 4416 | DQ20: 4344 | DR20: 4416 | DS20: 4344 | DT20: 4416 | DU20: 4368 | DV20: 4416 | DW20: 4344 | DX20: 4416 | DY20: 4344 | DZ20: 4416 | EA20: 4344 | EB20: 4416 | EC20: 4368 | ED20: 4416
C22: Total MWh including On-site for Methane w/o Av | F22: MWh | L22: =L$20*L15 -> 0 | M22: 0 | N22: 0 | O22: 0 | P22: 0 | Q22: 0 | R22: 0 | S22: 0 | T22: 0 | U22: 0 | V22: 0 | W22: 0 | X22: 0 | Y22: 0 | Z22: 0 | AA22: 0 | AB22: 0 | AC22: 0 | AD22: 0 | AE22: 13510.8 | AF22: 13961.16 | AG22: 13510.8 | AH22: 13961.16 | AI22: 13961.16 | AJ22: 13510.8 | AK22: 13961.16 | AL22: 13510.8 | AM22: 13961.16 | AN22: 13961.16 | AO22: 12610.08 | AP22: 13961.16 | AQ22: 13510.8 | AR22: =AR$20*AR15 -> 13961.16 | AS22: 13510.8 | AT22: 13961.16 | AU22: 13961.16 | AV22: 13510.8 | AW22: 13961.16 | AX22: 13510.8 | AY22: 13961.16 | AZ22: 13961.16 | BA22: 81965.52 | BB22: 82866.24 | BC22: 81515.16 | BD22: 82866.24 | BE22: 81515.16 | BF22: 82866.24 | BG22: 81515.16 | BH22: 82866.24 | BI22: 81965.52 | BJ22: 82866.24 | BK22: 81515.16 | BL22: 82866.24 | BM22: 81515.16 | BN22: 82866.24 | BO22: 81515.16 | BP22: 82866.24 | BQ22: 81965.52 | BR22: 82866.24 | BS22: 81515.16 | BT22: 82866.24 | BU22: 81515.16 | BV22: 82866.24 | BW22: 81515.16 | BX22: =BX$20*BX15 -> 82866.24 | BY22: 81965.52 | BZ22: 82866.24 | CA22: 81515.16 | CB22: 82866.24 | CC22: 81515.16 | CD22: 82866.24 | CE22: 81515.16 | CF22: 82866.24 | CG22: 81965.52 | CH22: 82866.24 | CI22: 81515.16 | CJ22: 82866.24 | CK22: 81515.16 | CL22: 82866.24 | CM22: 81515.16 | CN22: 82866.24 | CO22: 81965.52 | CP22: 82866.24 | CQ22: 81515.16 | CR22: 82866.24 | CS22: 81515.16 | CT22: 82866.24 | CU22: 81515.16 | CV22: 0 | CW22: 0 | CX22: 0 | CY22: 0 | CZ22: 0 | DA22: 0 | DB22: 0 | DC22: 0 | DD22: =DD$20*DD15 -> 0 | DE22: 0 | DF22: 0 | DG22: 0 | DH22: 0 | DI22: 0 | DJ22: 0 | DK22: 0 | DL22: 0 | DM22: 0 | DN22: 0 | DO22: 0 | DP22: 0 | DQ22: 0 | DR22: 0 | DS22: 0 | DT22: 0 | DU22: 0 | DV22: 0 | DW22: 0 | DX22: 0 | DY22: 0 | DZ22: 0 | EA22: 0 | EB22: 0 | EC22: 0 | ED22: 0
C23: Total MWh including On-site for Methane w/o Av | F23: MWh | L23: =L$20*L16 -> 0 | M23: 0 | N23: 0 | O23: 0 | P23: 0 | Q23: 0 | R23: 0 | S23: 0 | T23: 0 | U23: 0 | V23: 0 | W23: 0 | X23: 0 | Y23: 0 | Z23: 0 | AA23: 0 | AB23: 0 | AC23: 0 | AD23: 0 | AE23: 0 | AF23: 0 | AG23: 0 | AH23: 0 | AI23: 0 | AJ23: 0 | AK23: 0 | AL23: 0 | AM23: 0 | AN23: 0 | AO23: 0 | AP23: 0 | AQ23: 0 | AR23: =AR$20*AR16 -> 0 | AS23: 0 | AT23: 0 | AU23: 0 | AV23: 0 | AW23: 0 | AX23: 0 | AY23: 0 | AZ23: 0 | BA23: 213110.352 | BB23: 215452.224 | BC23: 211939.416 | BD23: 215452.224 | BE23: 211939.416 | BF23: 215452.224 | BG23: 211939.416 | BH23: 215452.224 | BI23: 213110.352 | BJ23: 215452.224 | BK23: 211939.416 | BL23: 215452.224 | BM23: 211939.416 | BN23: 215452.224 | BO23: 211939.416 | BP23: 215452.224 | BQ23: 213110.352 | BR23: 215452.224 | BS23: 211939.416 | BT23: 215452.224 | BU23: 211939.416 | BV23: 215452.224 | BW23: 211939.416 | BX23: =BX$20*BX16 -> 215452.224 | BY23: 213110.352 | BZ23: 215452.224 | CA23: 211939.416 | CB23: 215452.224 | CC23: 211939.416 | CD23: 215452.224 | CE23: 211939.416 | CF23: 215452.224 | CG23: 213110.352 | CH23: 215452.224 | CI23: 211939.416 | CJ23: 215452.224 | CK23: 211939.416 | CL23: 215452.224 | CM23: 211939.416 | CN23: 215452.224 | CO23: 213110.352 | CP23: 215452.224 | CQ23: 211939.416 | CR23: 215452.224 | CS23: 211939.416 | CT23: 215452.224 | CU23: 211939.416 | CV23: 215452.224 | CW23: 213110.352 | CX23: 215452.224 | CY23: 0 | CZ23: 0 | DA23: 0 | DB23: 0 | DC23: 0 | DD23: =DD$20*DD16 -> 0 | DE23: 0 | DF23: 0 | DG23: 0 | DH23: 0 | DI23: 0 | DJ23: 0 | DK23: 0 | DL23: 0 | DM23: 0 | DN23: 0 | DO23: 0 | DP23: 0 | DQ23: 0 | DR23: 0 | DS23: 0 | DT23: 0 | DU23: 0 | DV23: 0 | DW23: 0 | DX23: 0 | DY23: 0 | DZ23: 0 | EA23: 0 | EB23: 0 | EC23: 0 | ED23: 0
D24: Total MWh for Methane Requirement | F24: MWh | L24: =SUM(L22:L23) -> 0 | M24: =SUM(M22:M23) -> 0 | N24: 0 | O24: 0 | P24: 0 | Q24: 0 | R24: 0 | S24: 0 | T24: 0 | U24: 0 | V24: 0 | W24: 0 | X24: 0 | Y24: 0 | Z24: 0 | AA24: 0 | AB24: 0 | AC24: 0 | AD24: 0 | AE24: 13510.8 | AF24: 13961.16 | AG24: 13510.8 | AH24: 13961.16 | AI24: 13961.16 | AJ24: 13510.8 | AK24: 13961.16 | AL24: 13510.8 | AM24: 13961.16 | AN24: 13961.16 | AO24: 12610.08 | AP24: 13961.16 | AQ24: 13510.8 | AR24: 13961.16 | AS24: 13510.8 | AT24: 13961.16 | AU24: 13961.16 | AV24: 13510.8 | AW24: 13961.16 | AX24: 13510.8 | AY24: 13961.16 | AZ24: 13961.16 | BA24: 295075.872 | BB24: 298318.464 | BC24: 293454.576 | BD24: 298318.464 | BE24: 293454.576 | BF24: 298318.464 | BG24: 293454.576 | BH24: 298318.464 | BI24: 295075.872 | BJ24: 298318.464 | BK24: 293454.576 | BL24: 298318.464 | BM24: 293454.576 | BN24: 298318.464 | BO24: 293454.576 | BP24: 298318.464 | BQ24: 295075.872 | BR24: 298318.464 | BS24: 293454.576 | BT24: 298318.464 | BU24: 293454.576 | BV24: 298318.464 | BW24: 293454.576 | BX24: 298318.464 | BY24: =SUM(BY22:BY23) -> 295075.872 | BZ24: 298318.464 | CA24: 293454.576 | CB24: 298318.464 | CC24: 293454.576 | CD24: 298318.464 | CE24: 293454.576 | CF24: 298318.464 | CG24: 295075.872 | CH24: 298318.464 | CI24: 293454.576 | CJ24: 298318.464 | CK24: 293454.576 | CL24: 298318.464 | CM24: 293454.576 | CN24: 298318.464 | CO24: 295075.872 | CP24: 298318.464 | CQ24: 293454.576 | CR24: 298318.464 | CS24: 293454.576 | CT24: 298318.464 | CU24: 293454.576 | CV24: 215452.224 | CW24: 213110.352 | CX24: 215452.224 | CY24: 0 | CZ24: 0 | DA24: 0 | DB24: 0 | DC24: 0 | DD24: 0 | DE24: 0 | DF24: 0 | DG24: 0 | DH24: 0 | DI24: 0 | DJ24: 0 | DK24: 0 | DL24: =SUM(DL22:DL23) -> 0 | DM24: 0 | DN24: 0 | DO24: 0 | DP24: 0 | DQ24: 0 | DR24: 0 | DS24: 0 | DT24: 0 | DU24: 0 | DV24: 0 | DW24: 0 | DX24: 0 | DY24: 0 | DZ24: 0 | EA24: 0 | EB24: 0 | EC24: 0 | ED24: 0
B26: Heat Rate | F26: MJ/MWH | G26: ='Operating Assumptions'!G48 -> 8300 | L26: =$G$26 -> 8300 | M26: =$G$26 -> 8300 | N26: 8300 | O26: 8300 | P26: 8300 | Q26: 8300 | R26: 8300 | S26: 8300 | T26: 8300 | U26: 8300 | V26: 8300 | W26: 8300 | X26: 8300 | Y26: 8300 | Z26: 8300 | AA26: 8300 | AB26: 8300 | AC26: 8300 | AD26: 8300 | AE26: 8300 | AF26: 8300 | AG26: 8300 | AH26: 8300 | AI26: 8300 | AJ26: 8300 | AK26: 8300 | AL26: 8300 | AM26: 8300 | AN26: 8300 | AO26: 8300 | AP26: 8300 | AQ26: 8300 | AR26: 8300 | AS26: 8300 | AT26: 8300 | AU26: 8300 | AV26: 8300 | AW26: 8300 | AX26: 8300 | AY26: 8300 | AZ26: 8300 | BA26: 8300 | BB26: 8300 | BC26: 8300 | BD26: 8300 | BE26: 8300 | BF26: 8300 | BG26: 8300 | BH26: 8300 | BI26: 8300 | BJ26: 8300 | BK26: 8300 | BL26: 8300 | BM26: 8300 | BN26: 8300 | BO26: 8300 | BP26: 8300 | BQ26: 8300 | BR26: 8300 | BS26: 8300 | BT26: 8300 | BU26: 8300 | BV26: 8300 | BW26: 8300 | BX26: 8300 | BY26: =$G$26 -> 8300 | BZ26: 8300 | CA26: 8300 | CB26: 8300 | CC26: 8300 | CD26: 8300 | CE26: 8300 | CF26: 8300 | CG26: 8300 | CH26: 8300 | CI26: 8300 | CJ26: 8300 | CK26: 8300 | CL26: 8300 | CM26: 8300 | CN26: 8300 | CO26: 8300 | CP26: 8300 | CQ26: 8300 | CR26: 8300 | CS26: 8300 | CT26: 8300 | CU26: 8300 | CV26: 8300 | CW26: 8300 | CX26: 8300 | CY26: 8300 | CZ26: 8300 | DA26: 8300 | DB26: 8300 | DC26: 8300 | DD26: 8300 | DE26: 8300 | DF26: 8300 | DG26: 8300 | DH26: 8300 | DI26: 8300 | DJ26: 8300 | DK26: 8300 | DL26: 8300 | DM26: 8300 | DN26: 8300 | DO26: 8300 | DP26: 8300 | DQ26: 8300 | DR26: 8300 | DS26: 8300 | DT26: 8300 | DU26: 8300 | DV26: 8300 | DW26: 8300 | DX26: 8300 | DY26: 8300 | DZ26: 8300 | EA26: 8300 | EB26: 8300 | EC26: 8300 | ED26: 8300
B28: Required MJ - Phase 1 | F28: MJ | L28: =L22*L$26 -> 0 | M28: =M22*M$26 -> 0 | N28: 0 | O28: 0 | P28: 0 | Q28: 0 | R28: 0 | S28: 0 | T28: 0 | U28: 0 | V28: 0 | W28: 0 | X28: 0 | Y28: 0 | Z28: 0 | AA28: 0 | AB28: 0 | AC28: 0 | AD28: 0 | AE28: 112139640 | AF28: 115877628 | AG28: 112139640 | AH28: 115877628 | AI28: 115877628 | AJ28: 112139640 | AK28: 115877628 | AL28: 112139640 | AM28: 115877628 | AN28: 115877628 | AO28: 104663664 | AP28: 115877628 | AQ28: 112139640 | AR28: 115877628 | AS28: 112139640 | AT28: 115877628 | AU28: 115877628 | AV28: 112139640 | AW28: 115877628 | AX28: 112139640 | AY28: 115877628 | AZ28: 115877628 | BA28: 680313816 | BB28: 687789792 | BC28: 676575828 | BD28: 687789792 | BE28: 676575828 | BF28: 687789792 | BG28: 676575828 | BH28: 687789792 | BI28: 680313816 | BJ28: 687789792 | BK28: 676575828 | BL28: 687789792 | BM28: 676575828 | BN28: 687789792 | BO28: 676575828 | BP28: 687789792 | BQ28: 680313816 | BR28: 687789792 | BS28: 676575828 | BT28: 687789792 | BU28: 676575828 | BV28: 687789792 | BW28: 676575828 | BX28: 687789792 | BY28: =BY22*BY$26 -> 680313816 | BZ28: 687789792 | CA28: 676575828 | CB28: 687789792 | CC28: 676575828 | CD28: 687789792 | CE28: 676575828 | CF28: 687789792 | CG28: 680313816 | CH28: 687789792 | CI28: 676575828 | CJ28: 687789792 | CK28: 676575828 | CL28: 687789792 | CM28: 676575828 | CN28: 687789792 | CO28: 680313816 | CP28: 687789792 | CQ28: 676575828 | CR28: 687789792 | CS28: 676575828 | CT28: 687789792 | CU28: 676575828 | CV28: 0 | CW28: 0 | CX28: 0 | CY28: 0 | CZ28: 0 | DA28: 0 | DB28: 0 | DC28: 0 | DD28: 0 | DE28: 0 | DF28: 0 | DG28: 0 | DH28: 0 | DI28: 0 | DJ28: 0 | DK28: 0 | DL28: 0 | DM28: 0 | DN28: 0 | DO28: 0 | DP28: 0 | DQ28: 0 | DR28: 0 | DS28: 0 | DT28: 0 | DU28: 0 | DV28: 0 | DW28: 0 | DX28: 0 | DY28: 0 | DZ28: 0 | EA28: 0 | EB28: 0 | EC28: 0 | ED28: 0
B29: Required MJ - Phase 2 | F29: MJ | L29: =L23*L$26 -> 0 | M29: 0 | N29: 0 | O29: 0 | P29: 0 | Q29: 0 | R29: 0 | S29: 0 | T29: 0 | U29: 0 | V29: 0 | W29: 0 | X29: 0 | Y29: 0 | Z29: 0 | AA29: 0 | AB29: 0 | AC29: 0 | AD29: 0 | AE29: 0 | AF29: 0 | AG29: 0 | AH29: 0 | AI29: 0 | AJ29: 0 | AK29: 0 | AL29: 0 | AM29: 0 | AN29: 0 | AO29: 0 | AP29: 0 | AQ29: 0 | AR29: 0 | AS29: 0 | AT29: 0 | AU29: 0 | AV29: 0 | AW29: 0 | AX29: 0 | AY29: 0 | AZ29: 0 | BA29: 1768815922 | BB29: 1788253459 | BC29: 1759097153 | BD29: 1788253459 | BE29: 1759097153 | BF29: 1788253459 | BG29: 1759097153 | BH29: 1788253459 | BI29: 1768815922 | BJ29: 1788253459 | BK29: 1759097153 | BL29: 1788253459 | BM29: 1759097153 | BN29: 1788253459 | BO29: 1759097153 | BP29: 1788253459 | BQ29: 1768815922 | BR29: 1788253459 | BS29: 1759097153 | BT29: 1788253459 | BU29: 1759097153 | BV29: 1788253459 | BW29: 1759097153 | BX29: 1788253459 | BY29: 1768815922 | BZ29: 1788253459 | CA29: 1759097153 | CB29: 1788253459 | CC29: 1759097153 | CD29: 1788253459 | CE29: 1759097153 | CF29: 1788253459 | CG29: 1768815922 | CH29: 1788253459 | CI29: 1759097153 | CJ29: 1788253459 | CK29: 1759097153 | CL29: 1788253459 | CM29: 1759097153 | CN29: 1788253459 | CO29: 1768815922 | CP29: 1788253459 | CQ29: 1759097153 | CR29: 1788253459 | CS29: 1759097153 | CT29: 1788253459 | CU29: 1759097153 | CV29: 1788253459 | CW29: 1768815922 | CX29: 1788253459 | CY29: 0 | CZ29: 0 | DA29: 0 | DB29: 0 | DC29: 0 | DD29: 0 | DE29: 0 | DF29: 0 | DG29: 0 | DH29: 0 | DI29: 0 | DJ29: 0 | DK29: 0 | DL29: 0 | DM29: 0 | DN29: 0 | DO29: 0 | DP29: 0 | DQ29: 0 | DR29: 0 | DS29: 0 | DT29: 0 | DU29: 0 | DV29: 0 | DW29: 0 | DX29: 0 | DY29: 0 | DZ29: 0 | EA29: 0 | EB29: 0 | EC29: 0 | ED29: 0
C30: Required MJ - Total | F30: MJ | L30: =SUM(L28:L29) -> 0 | M30: =SUM(M28:M29) -> 0 | N30: 0 | O30: 0 | P30: 0 | Q30: 0 | R30: 0 | S30: 0 | T30: 0 | U30: 0 | V30: 0 | W30: 0 | X30: 0 | Y30: 0 | Z30: 0 | AA30: 0 | AB30: 0 | AC30: 0 | AD30: 0 | AE30: 112139640 | AF30: 115877628 | AG30: 112139640 | AH30: 115877628 | AI30: 115877628 | AJ30: 112139640 | AK30: 115877628 | AL30: 112139640 | AM30: 115877628 | AN30: 115877628 | AO30: 104663664 | AP30: 115877628 | AQ30: 112139640 | AR30: 115877628 | AS30: 112139640 | AT30: 115877628 | AU30: 115877628 | AV30: 112139640 | AW30: 115877628 | AX30: 112139640 | AY30: 115877628 | AZ30: 115877628 | BA30: 2449129738 | BB30: 2476043251 | BC30: 2435672981 | BD30: 2476043251 | BE30: 2435672981 | BF30: 2476043251 | BG30: 2435672981 | BH30: 2476043251 | BI30: 2449129738 | BJ30: 2476043251 | BK30: 2435672981 | BL30: 2476043251 | BM30: 2435672981 | BN30: 2476043251 | BO30: 2435672981 | BP30: 2476043251 | BQ30: 2449129738 | BR30: 2476043251 | BS30: 2435672981 | BT30: 2476043251 | BU30: 2435672981 | BV30: 2476043251 | BW30: 2435672981 | BX30: 2476043251 | BY30: =SUM(BY28:BY29) -> 2449129738 | BZ30: 2476043251 | CA30: 2435672981 | CB30: 2476043251 | CC30: 2435672981 | CD30: 2476043251 | CE30: 2435672981 | CF30: 2476043251 | CG30: 2449129738 | CH30: 2476043251 | CI30: 2435672981 | CJ30: 2476043251 | CK30: 2435672981 | CL30: 2476043251 | CM30: 2435672981 | CN30: 2476043251 | CO30: 2449129738 | CP30: 2476043251 | CQ30: 2435672981 | CR30: 2476043251 | CS30: 2435672981 | CT30: 2476043251 | CU30: 2435672981 | CV30: 1788253459 | CW30: 1768815922 | CX30: 1788253459 | CY30: 0 | CZ30: 0 | DA30: 0 | DB30: 0 | DC30: 0 | DD30: 0 | DE30: 0 | DF30: 0 | DG30: 0 | DH30: 0 | DI30: 0 | DJ30: 0 | DK30: 0 | DL30: =SUM(DL28:DL29) -> 0 | DM30: 0 | DN30: 0 | DO30: 0 | DP30: 0 | DQ30: 0 | DR30: 0 | DS30: 0 | DT30: 0 | DU30: 0 | DV30: 0 | DW30: 0 | DX30: 0 | DY30: 0 | DZ30: 0 | EA30: 0 | EB30: 0 | EC30: 0 | ED30: 0
B32: Heat Content of Methane | F32: ='Operating Assumptions'!F56 -> MJ/m3 | G32: ='Operating Assumptions'!G56 -> 26 | L32: =$G$32 -> 26 | M32: =$G$32 -> 26 | N32: 26 | O32: 26 | P32: 26 | Q32: 26 | R32: 26 | S32: 26 | T32: 26 | U32: 26 | V32: 26 | W32: 26 | X32: 26 | Y32: 26 | Z32: 26 | AA32: 26 | AB32: 26 | AC32: 26 | AD32: 26 | AE32: 26 | AF32: 26 | AG32: 26 | AH32: 26 | AI32: 26 | AJ32: 26 | AK32: 26 | AL32: 26 | AM32: 26 | AN32: 26 | AO32: 26 | AP32: 26 | AQ32: 26 | AR32: 26 | AS32: 26 | AT32: 26 | AU32: 26 | AV32: 26 | AW32: 26 | AX32: 26 | AY32: 26 | AZ32: 26 | BA32: 26 | BB32: 26 | BC32: 26 | BD32: 26 | BE32: 26 | BF32: 26 | BG32: 26 | BH32: 26 | BI32: 26 | BJ32: 26 | BK32: 26 | BL32: 26 | BM32: 26 | BN32: 26 | BO32: 26 | BP32: 26 | BQ32: 26 | BR32: 26 | BS32: 26 | BT32: 26 | BU32: 26 | BV32: 26 | BW32: 26 | BX32: 26 | BY32: =$G$32 -> 26 | BZ32: 26 | CA32: 26 | CB32: 26 | CC32: 26 | CD32: 26 | CE32: 26 | CF32: 26 | CG32: 26 | CH32: 26 | CI32: 26 | CJ32: 26 | CK32: 26 | CL32: 26 | CM32: 26 | CN32: 26 | CO32: 26 | CP32: 26 | CQ32: 26 | CR32: 26 | CS32: 26 | CT32: 26 | CU32: 26 | CV32: 26 | CW32: 26 | CX32: 26 | CY32: 26 | CZ32: 26 | DA32: 26 | DB32: 26 | DC32: 26 | DD32: 26 | DE32: 26 | DF32: 26 | DG32: 26 | DH32: 26 | DI32: 26 | DJ32: 26 | DK32: 26 | DL32: 26 | DM32: 26 | DN32: 26 | DO32: 26 | DP32: 26 | DQ32: 26 | DR32: 26 | DS32: 26 | DT32: 26 | DU32: 26 | DV32: 26 | DW32: 26 | DX32: 26 | DY32: 26 | DZ32: 26 | EA32: 26 | EB32: 26 | EC32: 26 | ED32: 26
B34: Required Gas Input to Plant per period - Phase 1 | F34: m3 | L34: =L28/L$32 -> 0 | M34: =M28/M$32 -> 0 | N34: 0 | O34: 0 | P34: 0 | Q34: 0 | R34: 0 | S34: 0 | T34: 0 | U34: 0 | V34: 0 | W34: 0 | X34: 0 | Y34: 0 | Z34: 0 | AA34: 0 | AB34: 0 | AC34: 0 | AD34: 0 | AE34: 4313063.077 | AF34: 4456831.846 | AG34: 4313063.077 | AH34: 4456831.846 | AI34: 4456831.846 | AJ34: 4313063.077 | AK34: 4456831.846 | AL34: 4313063.077 | AM34: 4456831.846 | AN34: 4456831.846 | AO34: 4025525.538 | AP34: 4456831.846 | AQ34: 4313063.077 | AR34: 4456831.846 | AS34: 4313063.077 | AT34: 4456831.846 | AU34: 4456831.846 | AV34: 4313063.077 | AW34: 4456831.846 | AX34: 4313063.077 | AY34: 4456831.846 | AZ34: 4456831.846 | BA34: 26165916 | BB34: 26453453.54 | BC34: 26022147.23 | BD34: 26453453.54 | BE34: 26022147.23 | BF34: 26453453.54 | BG34: 26022147.23 | BH34: 26453453.54 | BI34: 26165916 | BJ34: 26453453.54 | BK34: 26022147.23 | BL34: 26453453.54 | BM34: 26022147.23 | BN34: 26453453.54 | BO34: 26022147.23 | BP34: 26453453.54 | BQ34: 26165916 | BR34: 26453453.54 | BS34: 26022147.23 | BT34: 26453453.54 | BU34: 26022147.23 | BV34: 26453453.54 | BW34: 26022147.23 | BX34: 26453453.54 | BY34: =BY28/BY$32 -> 26165916 | BZ34: 26453453.54 | CA34: 26022147.23 | CB34: 26453453.54 | CC34: 26022147.23 | CD34: 26453453.54 | CE34: 26022147.23 | CF34: 26453453.54 | CG34: 26165916 | CH34: 26453453.54 | CI34: 26022147.23 | CJ34: 26453453.54 | CK34: 26022147.23 | CL34: 26453453.54 | CM34: 26022147.23 | CN34: 26453453.54 | CO34: 26165916 | CP34: 26453453.54 | CQ34: 26022147.23 | CR34: 26453453.54 | CS34: 26022147.23 | CT34: 26453453.54 | CU34: 26022147.23 | CV34: 0 | CW34: 0 | CX34: 0 | CY34: 0 | CZ34: 0 | DA34: 0 | DB34: 0 | DC34: 0 | DD34: 0 | DE34: 0 | DF34: 0 | DG34: 0 | DH34: 0 | DI34: 0 | DJ34: 0 | DK34: 0 | DL34: 0 | DM34: 0 | DN34: 0 | DO34: 0 | DP34: 0 | DQ34: 0 | DR34: 0 | DS34: 0 | DT34: 0 | DU34: 0 | DV34: 0 | DW34: 0 | DX34: 0 | DY34: 0 | DZ34: 0 | EA34: 0 | EB34: 0 | EC34: 0 | ED34: 0
B35: Required Gas Input to Plant per period - Phase 2 | F35: m3 | L35: =L29/L$32 -> 0 | M35: =M29/M$32 -> 0 | N35: 0 | O35: 0 | P35: 0 | Q35: 0 | R35: 0 | S35: 0 | T35: 0 | U35: 0 | V35: 0 | W35: 0 | X35: 0 | Y35: 0 | Z35: 0 | AA35: 0 | AB35: 0 | AC35: 0 | AD35: 0 | AE35: 0 | AF35: 0 | AG35: 0 | AH35: 0 | AI35: 0 | AJ35: 0 | AK35: 0 | AL35: 0 | AM35: 0 | AN35: 0 | AO35: 0 | AP35: 0 | AQ35: 0 | AR35: 0 | AS35: 0 | AT35: 0 | AU35: 0 | AV35: 0 | AW35: 0 | AX35: 0 | AY35: 0 | AZ35: 0 | BA35: 68031381.6 | BB35: 68778979.2 | BC35: 67657582.8 | BD35: 68778979.2 | BE35: 67657582.8 | BF35: 68778979.2 | BG35: 67657582.8 | BH35: 68778979.2 | BI35: 68031381.6 | BJ35: 68778979.2 | BK35: 67657582.8 | BL35: 68778979.2 | BM35: 67657582.8 | BN35: 68778979.2 | BO35: 67657582.8 | BP35: 68778979.2 | BQ35: 68031381.6 | BR35: 68778979.2 | BS35: 67657582.8 | BT35: 68778979.2 | BU35: 67657582.8 | BV35: 68778979.2 | BW35: 67657582.8 | BX35: 68778979.2 | BY35: =BY29/BY$32 -> 68031381.6 | BZ35: 68778979.2 | CA35: 67657582.8 | CB35: 68778979.2 | CC35: 67657582.8 | CD35: 68778979.2 | CE35: 67657582.8 | CF35: 68778979.2 | CG35: 68031381.6 | CH35: 68778979.2 | CI35: 67657582.8 | CJ35: 68778979.2 | CK35: 67657582.8 | CL35: 68778979.2 | CM35: 67657582.8 | CN35: 68778979.2 | CO35: 68031381.6 | CP35: 68778979.2 | CQ35: 67657582.8 | CR35: 68778979.2 | CS35: 67657582.8 | CT35: 68778979.2 | CU35: 67657582.8 | CV35: 68778979.2 | CW35: 68031381.6 | CX35: 68778979.2 | CY35: 0 | CZ35: 0 | DA35: 0 | DB35: 0 | DC35: 0 | DD35: 0 | DE35: 0 | DF35: 0 | DG35: 0 | DH35: 0 | DI35: 0 | DJ35: 0 | DK35: 0 | DL35: 0 | DM35: 0 | DN35: 0 | DO35: 0 | DP35: 0 | DQ35: 0 | DR35: 0 | DS35: 0 | DT35: 0 | DU35: 0 | DV35: 0 | DW35: 0 | DX35: 0 | DY35: 0 | DZ35: 0 | EA35: 0 | EB35: 0 | EC35: 0 | ED35: 0
C36: Required Gas Input to Plant - Total | F36: m3 | L36: =SUM(L34:L35) -> 0 | M36: 0 | N36: 0 | O36: 0 | P36: 0 | Q36: 0 | R36: 0 | S36: 0 | T36: 0 | U36: 0 | V36: 0 | W36: 0 | X36: 0 | Y36: 0 | Z36: 0 | AA36: 0 | AB36: 0 | AC36: 0 | AD36: 0 | AE36: 4313063.077 | AF36: 4456831.846 | AG36: 4313063.077 | AH36: 4456831.846 | AI36: 4456831.846 | AJ36: 4313063.077 | AK36: 4456831.846 | AL36: 4313063.077 | AM36: 4456831.846 | AN36: 4456831.846 | AO36: 4025525.538 | AP36: 4456831.846 | AQ36: 4313063.077 | AR36: =SUM(AR34:AR35) -> 4456831.846 | AS36: 4313063.077 | AT36: 4456831.846 | AU36: 4456831.846 | AV36: 4313063.077 | AW36: 4456831.846 | AX36: 4313063.077 | AY36: 4456831.846 | AZ36: 4456831.846 | BA36: 94197297.6 | BB36: 95232432.74 | BC36: 93679730.03 | BD36: 95232432.74 | BE36: 93679730.03 | BF36: 95232432.74 | BG36: 93679730.03 | BH36: 95232432.74 | BI36: 94197297.6 | BJ36: 95232432.74 | BK36: 93679730.03 | BL36: 95232432.74 | BM36: 93679730.03 | BN36: 95232432.74 | BO36: 93679730.03 | BP36: 95232432.74 | BQ36: 94197297.6 | BR36: 95232432.74 | BS36: 93679730.03 | BT36: 95232432.74 | BU36: 93679730.03 | BV36: 95232432.74 | BW36: 93679730.03 | BX36: =SUM(BX34:BX35) -> 95232432.74 | BY36: 94197297.6 | BZ36: 95232432.74 | CA36: 93679730.03 | CB36: 95232432.74 | CC36: 93679730.03 | CD36: 95232432.74 | CE36: 93679730.03 | CF36: 95232432.74 | CG36: 94197297.6 | CH36: 95232432.74 | CI36: 93679730.03 | CJ36: 95232432.74 | CK36: 93679730.03 | CL36: 95232432.74 | CM36: 93679730.03 | CN36: 95232432.74 | CO36: 94197297.6 | CP36: 95232432.74 | CQ36: 93679730.03 | CR36: 95232432.74 | CS36: 93679730.03 | CT36: 95232432.74 | CU36: 93679730.03 | CV36: 68778979.2 | CW36: 68031381.6 | CX36: 68778979.2 | CY36: 0 | CZ36: 0 | DA36: 0 | DB36: 0 | DC36: 0 | DD36: =SUM(DD34:DD35) -> 0 | DE36: 0 | DF36: 0 | DG36: 0 | DH36: 0 | DI36: 0 | DJ36: 0 | DK36: 0 | DL36: =SUM(DL34:DL35) -> 0 | DM36: 0 | DN36: 0 | DO36: 0 | DP36: 0 | DQ36: 0 | DR36: 0 | DS36: 0 | DT36: 0 | DU36: 0 | DV36: 0 | DW36: 0 | DX36: 0 | DY36: 0 | DZ36: 0 | EA36: 0 | EB36: 0 | EC36: 0 | ED36: 0
B38: Number of Barges - Phase 1 | F38: # | G38: ='Operating Assumptions'!G60 -> 1 | L38: =$G$38*L8 -> 0 | M38: 0 | N38: 0 | O38: 0 | P38: 0 | Q38: 0 | R38: 0 | S38: 0 | T38: 0 | U38: 0 | V38: 0 | W38: 0 | X38: 0 | Y38: 0 | Z38: 0 | AA38: 0 | AB38: 0 | AC38: 0 | AD38: 0 | AE38: 1 | AF38: 1 | AG38: 1 | AH38: 1 | AI38: 1 | AJ38: 1 | AK38: 1 | AL38: 1 | AM38: 1 | AN38: 1 | AO38: 1 | AP38: 1 | AQ38: 1 | AR38: =$G$38*AR8 -> 1 | AS38: 1 | AT38: 1 | AU38: 1 | AV38: 1 | AW38: 1 | AX38: 1 | AY38: 1 | AZ38: 1 | BA38: 1 | BB38: 1 | BC38: 1 | BD38: 1 | BE38: 1 | BF38: 1 | BG38: 1 | BH38: 1 | BI38: 1 | BJ38: 1 | BK38: 1 | BL38: 1 | BM38: 1 | BN38: 1 | BO38: 1 | BP38: 1 | BQ38: 1 | BR38: 1 | BS38: 1 | BT38: 1 | BU38: 1 | BV38: 1 | BW38: 1 | BX38: =$G$38*BX8 -> 1 | BY38: 1 | BZ38: 1 | CA38: 1 | CB38: 1 | CC38: 1 | CD38: 1 | CE38: 1 | CF38: 1 | CG38: 1 | CH38: 1 | CI38: 1 | CJ38: 1 | CK38: 1 | CL38: 1 | CM38: 1 | CN38: 1 | CO38: 1 | CP38: 1 | CQ38: 1 | CR38: 1 | CS38: 1 | CT38: 1 | CU38: 1 | CV38: 0 | CW38: 0 | CX38: 0 | CY38: 0 | CZ38: 0 | DA38: 0 | DB38: 0 | DC38: 0 | DD38: =$G$38*DD8 -> 0 | DE38: 0 | DF38: 0 | DG38: 0 | DH38: 0 | DI38: 0 | DJ38: 0 | DK38: 0 | DL38: 0 | DM38: 0 | DN38: 0 | DO38: 0 | DP38: 0 | DQ38: 0 | DR38: 0 | DS38: 0 | DT38: 0 | DU38: 0 | DV38: 0 | DW38: 0 | DX38: 0 | DY38: 0 | DZ38: 0 | EA38: 0 | EB38: 0 | EC38: 0 | ED38: 0
B39: Number of Barges - Phase 2 | F39: # | G39: ='Operating Assumptions'!G61 -> 3 | L39: =$G$39*L10 -> 0 | M39: 0 | N39: 0 | O39: 0 | P39: 0 | Q39: 0 | R39: 0 | S39: 0 | T39: 0 | U39: 0 | V39: 0 | W39: 0 | X39: 0 | Y39: 0 | Z39: 0 | AA39: 0 | AB39: 0 | AC39: 0 | AD39: 0 | AE39: 0 | AF39: 0 | AG39: 0 | AH39: 0 | AI39: 0 | AJ39: 0 | AK39: 0 | AL39: 0 | AM39: 0 | AN39: 0 | AO39: 0 | AP39: 0 | AQ39: 0 | AR39: =$G$39*AR10 -> 0 | AS39: 0 | AT39: 0 | AU39: 0 | AV39: 0 | AW39: 0 | AX39: 0 | AY39: 0 | AZ39: 0 | BA39: 3 | BB39: 3 | BC39: 3 | BD39: 3 | BE39: 3 | BF39: 3 | BG39: 3 | BH39: 3 | BI39: 3 | BJ39: 3 | BK39: 3 | BL39: 3 | BM39: 3 | BN39: 3 | BO39: 3 | BP39: 3 | BQ39: 3 | BR39: 3 | BS39: 3 | BT39: 3 | BU39: 3 | BV39: 3 | BW39: 3 | BX39: =$G$39*BX10 -> 3 | BY39: 3 | BZ39: 3 | CA39: 3 | CB39: 3 | CC39: 3 | CD39: 3 | CE39: 3 | CF39: 3 | CG39: 3 | CH39: 3 | CI39: 3 | CJ39: 3 | CK39: 3 | CL39: 3 | CM39: 3 | CN39: 3 | CO39: 3 | CP39: 3 | CQ39: 3 | CR39: 3 | CS39: 3 | CT39: 3 | CU39: 3 | CV39: 3 | CW39: 3 | CX39: 3 | CY39: 0 | CZ39: 0 | DA39: 0 | DB39: 0 | DC39: 0 | DD39: =$G$39*DD10 -> 0 | DE39: 0 | DF39: 0 | DG39: 0 | DH39: 0 | DI39: 0 | DJ39: 0 | DK39: 0 | DL39: 0 | DM39: 0 | DN39: 0 | DO39: 0 | DP39: 0 | DQ39: 0 | DR39: 0 | DS39: 0 | DT39: 0 | DU39: 0 | DV39: 0 | DW39: 0 | DX39: 0 | DY39: 0 | DZ39: 0 | EA39: 0 | EB39: 0 | EC39: 0 | ED39: 0
C40: Total Barges | F40: # | L40: =SUM(L38:L39) -> 0 | M40: 0 | N40: 0 | O40: 0 | P40: 0 | Q40: 0 | R40: 0 | S40: 0 | T40: 0 | U40: 0 | V40: 0 | W40: 0 | X40: 0 | Y40: 0 | Z40: 0 | AA40: 0 | AB40: 0 | AC40: 0 | AD40: 0 | AE40: 1 | AF40: 1 | AG40: 1 | AH40: 1 | AI40: 1 | AJ40: 1 | AK40: 1 | AL40: 1 | AM40: 1 | AN40: 1 | AO40: 1 | AP40: 1 | AQ40: 1 | AR40: =SUM(AR38:AR39) -> 1 | AS40: 1 | AT40: 1 | AU40: 1 | AV40: 1 | AW40: 1 | AX40: 1 | AY40: 1 | AZ40: 1 | BA40: 4 | BB40: 4 | BC40: 4 | BD40: 4 | BE40: 4 | BF40: 4 | BG40: 4 | BH40: 4 | BI40: 4 | BJ40: 4 | BK40: 4 | BL40: 4 | BM40: 4 | BN40: 4 | BO40: 4 | BP40: 4 | BQ40: 4 | BR40: 4 | BS40: 4 | BT40: 4 | BU40: 4 | BV40: 4 | BW40: 4 | BX40: =SUM(BX38:BX39) -> 4 | BY40: 4 | BZ40: 4 | CA40: 4 | CB40: 4 | CC40: 4 | CD40: 4 | CE40: 4 | CF40: 4 | CG40: 4 | CH40: 4 | CI40: 4 | CJ40: 4 | CK40: 4 | CL40: 4 | CM40: 4 | CN40: 4 | CO40: 4 | CP40: 4 | CQ40: 4 | CR40: 4 | CS40: 4 | CT40: 4 | CU40: 4 | CV40: 3 | CW40: 3 | CX40: 3 | CY40: 0 | CZ40: 0 | DA40: 0 | DB40: 0 | DC40: 0 | DD40: =SUM(DD38:DD39) -> 0 | DE40: 0 | DF40: 0 | DG40: 0 | DH40: 0 | DI40: 0 | DJ40: 0 | DK40: 0 | DL40: =SUM(DL38:DL39) -> 0 | DM40: 0 | DN40: 0 | DO40: 0 | DP40: 0 | DQ40: 0 | DR40: 0 | DS40: 0 | DT40: 0 | DU40: 0 | DV40: 0 | DW40: 0 | DX40: 0 | DY40: 0 | DZ40: 0 | EA40: 0 | EB40: 0 | EC40: 0 | ED40: 0
B42: Required Capacity of Barge | F42: m3/period
C43: Capacity of Barges per period - Phase 1 | F43: m3/period | L43: =IF(L38,L34/L38) -> FALSE | M43: FALSE | N43: FALSE | O43: FALSE | P43: FALSE | Q43: FALSE | R43: FALSE | S43: FALSE | T43: FALSE | U43: FALSE | V43: FALSE | W43: FALSE | X43: FALSE | Y43: FALSE | Z43: FALSE | AA43: FALSE | AB43: FALSE | AC43: FALSE | AD43: FALSE | AE43: 4313063.077 | AF43: 4456831.846 | AG43: 4313063.077 | AH43: 4456831.846 | AI43: 4456831.846 | AJ43: 4313063.077 | AK43: 4456831.846 | AL43: 4313063.077 | AM43: 4456831.846 | AN43: 4456831.846 | AO43: 4025525.538 | AP43: 4456831.846 | AQ43: 4313063.077 | AR43: =IF(AR38,AR34/AR38) -> 4456831.846 | AS43: 4313063.077 | AT43: 4456831.846 | AU43: 4456831.846 | AV43: 4313063.077 | AW43: 4456831.846 | AX43: 4313063.077 | AY43: 4456831.846 | AZ43: 4456831.846 | BA43: 26165916 | BB43: 26453453.54 | BC43: 26022147.23 | BD43: 26453453.54 | BE43: 26022147.23 | BF43: 26453453.54 | BG43: 26022147.23 | BH43: 26453453.54 | BI43: 26165916 | BJ43: 26453453.54 | BK43: 26022147.23 | BL43: 26453453.54 | BM43: 26022147.23 | BN43: 26453453.54 | BO43: 26022147.23 | BP43: 26453453.54 | BQ43: 26165916 | BR43: 26453453.54 | BS43: 26022147.23 | BT43: 26453453.54 | BU43: 26022147.23 | BV43: 26453453.54 | BW43: 26022147.23 | BX43: =IF(BX38,BX34/BX38) -> 26453453.54 | BY43: 26165916 | BZ43: 26453453.54 | CA43: 26022147.23 | CB43: 26453453.54 | CC43: 26022147.23 | CD43: 26453453.54 | CE43: 26022147.23 | CF43: 26453453.54 | CG43: 26165916 | CH43: 26453453.54 | CI43: 26022147.23 | CJ43: 26453453.54 | CK43: 26022147.23 | CL43: 26453453.54 | CM43: 26022147.23 | CN43: 26453453.54 | CO43: 26165916 | CP43: 26453453.54 | CQ43: 26022147.23 | CR43: 26453453.54 | CS43: 26022147.23 | CT43: 26453453.54 | CU43: 26022147.23 | CV43: FALSE | CW43: FALSE | CX43: FALSE | CY43: FALSE | CZ43: FALSE | DA43: FALSE | DB43: FALSE | DC43: FALSE | DD43: =IF(DD38,DD34/DD38) -> FALSE | DE43: FALSE | DF43: FALSE | DG43: FALSE | DH43: FALSE | DI43: FALSE | DJ43: FALSE | DK43: FALSE | DL43: FALSE | DM43: FALSE | DN43: FALSE | DO43: FALSE | DP43: FALSE | DQ43: FALSE | DR43: FALSE | DS43: FALSE | DT43: FALSE | DU43: FALSE | DV43: FALSE | DW43: FALSE | DX43: FALSE | DY43: FALSE | DZ43: FALSE | EA43: FALSE | EB43: FALSE | EC43: FALSE | ED43: FALSE
C44: Capacity of Barges per period - Phase 2 | F44: m3/period | L44: =IF(L39,L35/L39) -> FALSE | M44: FALSE | N44: FALSE | O44: FALSE | P44: FALSE | Q44: FALSE | R44: FALSE | S44: FALSE | T44: FALSE | U44: FALSE | V44: FALSE | W44: FALSE | X44: FALSE | Y44: FALSE | Z44: FALSE | AA44: FALSE | AB44: FALSE | AC44: FALSE | AD44: FALSE | AE44: FALSE | AF44: FALSE | AG44: FALSE | AH44: FALSE | AI44: FALSE | AJ44: FALSE | AK44: FALSE | AL44: FALSE | AM44: FALSE | AN44: FALSE | AO44: FALSE | AP44: FALSE | AQ44: FALSE | AR44: =IF(AR39,AR35/AR39) -> FALSE | AS44: FALSE | AT44: FALSE | AU44: FALSE | AV44: FALSE | AW44: FALSE | AX44: FALSE | AY44: FALSE | AZ44: FALSE | BA44: 22677127.2 | BB44: 22926326.4 | BC44: 22552527.6 | BD44: 22926326.4 | BE44: 22552527.6 | BF44: 22926326.4 | BG44: 22552527.6 | BH44: 22926326.4 | BI44: 22677127.2 | BJ44: 22926326.4 | BK44: 22552527.6 | BL44: 22926326.4 | BM44: 22552527.6 | BN44: 22926326.4 | BO44: 22552527.6 | BP44: 22926326.4 | BQ44: 22677127.2 | BR44: 22926326.4 | BS44: 22552527.6 | BT44: 22926326.4 | BU44: 22552527.6 | BV44: 22926326.4 | BW44: 22552527.6 | BX44: =IF(BX39,BX35/BX39) -> 22926326.4 | BY44: 22677127.2 | BZ44: 22926326.4 | CA44: 22552527.6 | CB44: 22926326.4 | CC44: 22552527.6 | CD44: 22926326.4 | CE44: 22552527.6 | CF44: 22926326.4 | CG44: 22677127.2 | CH44: 22926326.4 | CI44: 22552527.6 | CJ44: 22926326.4 | CK44: 22552527.6 | CL44: 22926326.4 | CM44: 22552527.6 | CN44: 22926326.4 | CO44: 22677127.2 | CP44: 22926326.4 | CQ44: 22552527.6 | CR44: 22926326.4 | CS44: 22552527.6 | CT44: 22926326.4 | CU44: 22552527.6 | CV44: 22926326.4 | CW44: 22677127.2 | CX44: 22926326.4 | CY44: FALSE | CZ44: FALSE | DA44: FALSE | DB44: FALSE | DC44: FALSE | DD44: =IF(DD39,DD35/DD39) -> FALSE | DE44: FALSE | DF44: FALSE | DG44: FALSE | DH44: FALSE | DI44: FALSE | DJ44: FALSE | DK44: FALSE | DL44: FALSE | DM44: FALSE | DN44: FALSE | DO44: FALSE | DP44: FALSE | DQ44: FALSE | DR44: FALSE | DS44: FALSE | DT44: FALSE | DU44: FALSE | DV44: FALSE | DW44: FALSE | DX44: FALSE | DY44: FALSE | DZ44: FALSE | EA44: FALSE | EB44: FALSE | EC44: FALSE | ED44: FALSE
D45: Total Required Capacity of Barges | L45: =IF(L40,L36/L40) -> FALSE | M45: =IF(M40,M36/M40) -> FALSE | N45: FALSE | O45: FALSE | P45: FALSE | Q45: FALSE | R45: FALSE | S45: FALSE | T45: FALSE | U45: FALSE | V45: FALSE | W45: FALSE | X45: FALSE | Y45: FALSE | Z45: FALSE | AA45: FALSE | AB45: FALSE | AC45: FALSE | AD45: FALSE | AE45: 4313063.077 | AF45: 4456831.846 | AG45: 4313063.077 | AH45: 4456831.846 | AI45: 4456831.846 | AJ45: 4313063.077 | AK45: 4456831.846 | AL45: 4313063.077 | AM45: 4456831.846 | AN45: 4456831.846 | AO45: 4025525.538 | AP45: 4456831.846 | AQ45: 4313063.077 | AR45: 4456831.846 | AS45: 4313063.077 | AT45: 4456831.846 | AU45: 4456831.846 | AV45: 4313063.077 | AW45: 4456831.846 | AX45: 4313063.077 | AY45: 4456831.846 | AZ45: 4456831.846 | BA45: 23549324.4 | BB45: 23808108.18 | BC45: 23419932.51 | BD45: 23808108.18 | BE45: 23419932.51 | BF45: 23808108.18 | BG45: 23419932.51 | BH45: 23808108.18 | BI45: 23549324.4 | BJ45: 23808108.18 | BK45: 23419932.51 | BL45: 23808108.18 | BM45: 23419932.51 | BN45: 23808108.18 | BO45: 23419932.51 | BP45: 23808108.18 | BQ45: 23549324.4 | BR45: 23808108.18 | BS45: 23419932.51 | BT45: 23808108.18 | BU45: 23419932.51 | BV45: 23808108.18 | BW45: 23419932.51 | BX45: 23808108.18 | BY45: =IF(BY40,BY36/BY40) -> 23549324.4 | BZ45: 23808108.18 | CA45: 23419932.51 | CB45: 23808108.18 | CC45: 23419932.51 | CD45: 23808108.18 | CE45: 23419932.51 | CF45: 23808108.18 | CG45: 23549324.4 | CH45: 23808108.18 | CI45: 23419932.51 | CJ45: 23808108.18 | CK45: 23419932.51 | CL45: 23808108.18 | CM45: 23419932.51 | CN45: 23808108.18 | CO45: 23549324.4 | CP45: 23808108.18 | CQ45: 23419932.51 | CR45: 23808108.18 | CS45: 23419932.51 | CT45: 23808108.18 | CU45: 23419932.51 | CV45: 22926326.4 | CW45: 22677127.2 | CX45: 22926326.4 | CY45: FALSE | CZ45: FALSE | DA45: FALSE | DB45: FALSE | DC45: FALSE | DD45: FALSE | DE45: FALSE | DF45: FALSE | DG45: FALSE | DH45: FALSE | DI45: FALSE | DJ45: FALSE | DK45: FALSE | DL45: FALSE | DM45: FALSE | DN45: FALSE | DO45: FALSE | DP45: FALSE | DQ45: FALSE | DR45: FALSE | DS45: FALSE | DT45: FALSE | DU45: FALSE | DV45: FALSE | DW45: FALSE | DX45: FALSE | DY45: FALSE | DZ45: FALSE | EA45: FALSE | EB45: FALSE | EC45: FALSE | ED45: FALSE
B47: Hours in Period | F47: Hours | L47: =(L5-L4+1)*24 -> 720 | M47: 744 | N47: 720 | O47: 744 | P47: 744 | Q47: 672 | R47: 744 | S47: 720 | T47: 744 | U47: 720 | V47: 744 | W47: 744 | X47: 720 | Y47: 744 | Z47: 720 | AA47: 744 | AB47: 744 | AC47: 672 | AD47: 744 | AE47: 720 | AF47: 744 | AG47: 720 | AH47: 744 | AI47: 744 | AJ47: 720 | AK47: 744 | AL47: 720 | AM47: 744 | AN47: 744 | AO47: 672 | AP47: 744 | AQ47: 720 | AR47: =(AR5-AR4+1)*24 -> 744 | AS47: 720 | AT47: 744 | AU47: 744 | AV47: 720 | AW47: 744 | AX47: 720 | AY47: 744 | AZ47: 744 | BA47: 4368 | BB47: 4416 | BC47: 4344 | BD47: 4416 | BE47: 4344 | BF47: 4416 | BG47: 4344 | BH47: 4416 | BI47: 4368 | BJ47: 4416 | BK47: 4344 | BL47: 4416 | BM47: 4344 | BN47: 4416 | BO47: 4344 | BP47: 4416 | BQ47: 4368 | BR47: 4416 | BS47: 4344 | BT47: 4416 | BU47: 4344 | BV47: 4416 | BW47: 4344 | BX47: =(BX5-BX4+1)*24 -> 4416 | BY47: 4368 | BZ47: 4416 | CA47: 4344 | CB47: 4416 | CC47: 4344 | CD47: 4416 | CE47: 4344 | CF47: 4416 | CG47: 4368 | CH47: 4416 | CI47: 4344 | CJ47: 4416 | CK47: 4344 | CL47: 4416 | CM47: 4344 | CN47: 4416 | CO47: 4368 | CP47: 4416 | CQ47: 4344 | CR47: 4416 | CS47: 4344 | CT47: 4416 | CU47: 4344 | CV47: 4416 | CW47: 4368 | CX47: 4416 | CY47: 4344 | CZ47: 4416 | DA47: 4344 | DB47: 4416 | DC47: 4344 | DD47: =(DD5-DD4+1)*24 -> 4416 | DE47: 4368 | DF47: 4416 | DG47: 4344 | DH47: 4416 | DI47: 4344 | DJ47: 4416 | DK47: 4344 | DL47: 4416 | DM47: 4368 | DN47: 4416 | DO47: 4344 | DP47: 4416 | DQ47: 4344 | DR47: 4416 | DS47: 4344 | DT47: 4416 | DU47: 4368 | DV47: 4416 | DW47: 4344 | DX47: 4416 | DY47: 4344 | DZ47: 4416 | EA47: 4344 | EB47: 4416 | EC47: 4368 | ED47: 4416
B49: Required Capacity of Barge | F49: m3/hour
C50: Capacity of Barges per period - Phase 1 | F50: m3/hour | L50: =IF(L$47,L43/L$47) -> 0 | M50: =IF(M$47,M43/M$47) -> 0 | N50: 0 | O50: 0 | P50: 0 | Q50: 0 | R50: 0 | S50: 0 | T50: 0 | U50: 0 | V50: 0 | W50: 0 | X50: 0 | Y50: 0 | Z50: 0 | AA50: 0 | AB50: 0 | AC50: 0 | AD50: 0 | AE50: 5990.365385 | AF50: 5990.365385 | AG50: 5990.365385 | AH50: 5990.365385 | AI50: 5990.365385 | AJ50: 5990.365385 | AK50: 5990.365385 | AL50: 5990.365385 | AM50: 5990.365385 | AN50: 5990.365385 | AO50: 5990.365385 | AP50: 5990.365385 | AQ50: 5990.365385 | AR50: 5990.365385 | AS50: 5990.365385 | AT50: 5990.365385 | AU50: 5990.365385 | AV50: 5990.365385 | AW50: 5990.365385 | AX50: 5990.365385 | AY50: 5990.365385 | AZ50: 5990.365385 | BA50: 5990.365385 | BB50: 5990.365385 | BC50: 5990.365385 | BD50: 5990.365385 | BE50: 5990.365385 | BF50: 5990.365385 | BG50: 5990.365385 | BH50: 5990.365385 | BI50: 5990.365385 | BJ50: 5990.365385 | BK50: 5990.365385 | BL50: 5990.365385 | BM50: 5990.365385 | BN50: 5990.365385 | BO50: 5990.365385 | BP50: 5990.365385 | BQ50: 5990.365385 | BR50: 5990.365385 | BS50: 5990.365385 | BT50: 5990.365385 | BU50: 5990.365385 | BV50: 5990.365385 | BW50: 5990.365385 | BX50: 5990.365385 | BY50: =IF(BY$47,BY43/BY$47) -> 5990.365385 | BZ50: 5990.365385 | CA50: 5990.365385 | CB50: 5990.365385 | CC50: 5990.365385 | CD50: 5990.365385 | CE50: 5990.365385 | CF50: 5990.365385 | CG50: 5990.365385 | CH50: 5990.365385 | CI50: 5990.365385 | CJ50: 5990.365385 | CK50: 5990.365385 | CL50: 5990.365385 | CM50: 5990.365385 | CN50: 5990.365385 | CO50: 5990.365385 | CP50: 5990.365385 | CQ50: 5990.365385 | CR50: 5990.365385 | CS50: 5990.365385 | CT50: 5990.365385 | CU50: 5990.365385 | CV50: 0 | CW50: 0 | CX50: 0 | CY50: 0 | CZ50: 0 | DA50: 0 | DB50: 0 | DC50: 0 | DD50: 0 | DE50: 0 | DF50: 0 | DG50: 0 | DH50: 0 | DI50: 0 | DJ50: 0 | DK50: 0 | DL50: 0 | DM50: 0 | DN50: 0 | DO50: 0 | DP50: 0 | DQ50: 0 | DR50: 0 | DS50: 0 | DT50: 0 | DU50: 0 | DV50: 0 | DW50: 0 | DX50: 0 | DY50: 0 | DZ50: 0 | EA50: 0 | EB50: 0 | EC50: 0 | ED50: 0
C51: Capacity of Barges per period - Phase 2 | F51: m3/hour | L51: =IF(L$47,L44/L$47) -> 0 | M51: 0 | N51: 0 | O51: 0 | P51: 0 | Q51: 0 | R51: 0 | S51: 0 | T51: 0 | U51: 0 | V51: 0 | W51: 0 | X51: 0 | Y51: 0 | Z51: 0 | AA51: 0 | AB51: 0 | AC51: 0 | AD51: 0 | AE51: 0 | AF51: 0 | AG51: 0 | AH51: 0 | AI51: 0 | AJ51: 0 | AK51: 0 | AL51: 0 | AM51: 0 | AN51: 0 | AO51: 0 | AP51: 0 | AQ51: 0 | AR51: 0 | AS51: 0 | AT51: 0 | AU51: 0 | AV51: 0 | AW51: 0 | AX51: 0 | AY51: 0 | AZ51: 0 | BA51: 5191.65 | BB51: 5191.65 | BC51: 5191.65 | BD51: 5191.65 | BE51: 5191.65 | BF51: 5191.65 | BG51: 5191.65 | BH51: 5191.65 | BI51: 5191.65 | BJ51: 5191.65 | BK51: 5191.65 | BL51: 5191.65 | BM51: 5191.65 | BN51: 5191.65 | BO51: 5191.65 | BP51: 5191.65 | BQ51: 5191.65 | BR51: 5191.65 | BS51: 5191.65 | BT51: 5191.65 | BU51: 5191.65 | BV51: 5191.65 | BW51: 5191.65 | BX51: 5191.65 | BY51: 5191.65 | BZ51: 5191.65 | CA51: 5191.65 | CB51: 5191.65 | CC51: 5191.65 | CD51: 5191.65 | CE51: 5191.65 | CF51: 5191.65 | CG51: 5191.65 | CH51: 5191.65 | CI51: 5191.65 | CJ51: 5191.65 | CK51: 5191.65 | CL51: 5191.65 | CM51: 5191.65 | CN51: 5191.65 | CO51: 5191.65 | CP51: 5191.65 | CQ51: 5191.65 | CR51: 5191.65 | CS51: 5191.65 | CT51: 5191.65 | CU51: 5191.65 | CV51: 5191.65 | CW51: 5191.65 | CX51: 5191.65 | CY51: 0 | CZ51: 0 | DA51: 0 | DB51: 0 | DC51: 0 | DD51: 0 | DE51: 0 | DF51: 0 | DG51: 0 | DH51: 0 | DI51: 0 | DJ51: 0 | DK51: 0 | DL51: 0 | DM51: 0 | DN51: 0 | DO51: 0 | DP51: 0 | DQ51: 0 | DR51: 0 | DS51: 0 | DT51: 0 | DU51: 0 | DV51: 0 | DW51: 0 | DX51: 0 | DY51: 0 | DZ51: 0 | EA51: 0 | EB51: 0 | EC51: 0 | ED51: 0
C52: Capacity of Barges per period - Total | F52: m3/hour | L52: 0 | M52: 0 | N52: 0 | O52: 0 | P52: 0 | Q52: 0 | R52: 0 | S52: 0 | T52: 0 | U52: 0 | V52: 0 | W52: 0 | X52: 0 | Y52: 0 | Z52: 0 | AA52: 0 | AB52: 0 | AC52: 0 | AD52: 0 | AE52: 5990.365385 | AF52: 5990.365385 | AG52: 5990.365385 | AH52: 5990.365385 | AI52: 5990.365385 | AJ52: 5990.365385 | AK52: 5990.365385 | AL52: 5990.365385 | AM52: 5990.365385 | AN52: 5990.365385 | AO52: 5990.365385 | AP52: 5990.365385 | AQ52: 5990.365385 | AR52: 5990.365385 | AS52: 5990.365385 | AT52: 5990.365385 | AU52: 5990.365385 | AV52: 5990.365385 | AW52: 5990.365385 | AX52: 5990.365385 | AY52: 5990.365385 | AZ52: 5990.365385 | BA52: 5391.328846 | BB52: 5391.328846 | BC52: 5391.328846 | BD52: 5391.328846 | BE52: 5391.328846 | BF52: 5391.328846 | BG52: 5391.328846 | BH52: 5391.328846 | BI52: 5391.328846 | BJ52: 5391.328846 | BK52: 5391.328846 | BL52: 5391.328846 | BM52: 5391.328846 | BN52: 5391.328846 | BO52: 5391.328846 | BP52: 5391.328846 | BQ52: 5391.328846 | BR52: 5391.328846 | BS52: 5391.328846 | BT52: 5391.328846 | BU52: 5391.328846 | BV52: 5391.328846 | BW52: 5391.328846 | BX52: 5391.328846 | BY52: 5391.328846 | BZ52: 5391.328846 | CA52: 5391.328846 | CB52: 5391.328846 | CC52: 5391.328846 | CD52: 5391.328846 | CE52: 5391.328846 | CF52: 5391.328846 | CG52: 5391.328846 | CH52: 5391.328846 | CI52: 5391.328846 | CJ52: 5391.328846 | CK52: 5391.328846 | CL52: 5391.328846 | CM52: 5391.328846 | CN52: 5391.328846 | CO52: 5391.328846 | CP52: 5391.328846 | CQ52: 5391.328846 | CR52: 5391.328846 | CS52: 5391.328846 | CT52: 5391.328846 | CU52: 5391.328846 | CV52: 5191.65 | CW52: 5191.65 | CX52: 5191.65 | CY52: 0 | CZ52: 0 | DA52: 0 | DB52: 0 | DC52: 0 | DD52: 0 | DE52: 0 | DF52: 0 | DG52: 0 | DH52: 0 | DI52: 0 | DJ52: 0 | DK52: 0 | DL52: 0 | DM52: 0 | DN52: 0 | DO52: 0 | DP52: 0 | DQ52: 0 | DR52: 0 | DS52: 0 | DT52: 0 | DU52: 0 | DV52: 0 | DW52: 0 | DX52: 0 | DY52: 0 | DZ52: 0 | EA52: 0 | EB52: 0 | EC52: 0 | ED52: 0
B54: Actual Barge Capacity
C55: Capacity of Barges per period - Phase 1 | F55: m3/hour | G55: ='Operating Assumptions'!G63 -> 7200 | L55: =$G$55*L8 -> 0 | M55: 0 | N55: 0 | O55: 0 | P55: 0 | Q55: 0 | R55: 0 | S55: 0 | T55: 0 | U55: 0 | V55: 0 | W55: 0 | X55: 0 | Y55: 0 | Z55: 0 | AA55: 0 | AB55: 0 | AC55: 0 | AD55: 0 | AE55: 7200 | AF55: 7200 | AG55: 7200 | AH55: 7200 | AI55: 7200 | AJ55: 7200 | AK55: 7200 | AL55: 7200 | AM55: 7200 | AN55: 7200 | AO55: 7200 | AP55: 7200 | AQ55: 7200 | AR55: =$G$55*AR8 -> 7200 | AS55: 7200 | AT55: 7200 | AU55: 7200 | AV55: 7200 | AW55: 7200 | AX55: 7200 | AY55: 7200 | AZ55: 7200 | BA55: 7200 | BB55: 7200 | BC55: 7200 | BD55: 7200 | BE55: 7200 | BF55: 7200 | BG55: 7200 | BH55: 7200 | BI55: 7200 | BJ55: 7200 | BK55: 7200 | BL55: 7200 | BM55: 7200 | BN55: 7200 | BO55: 7200 | BP55: 7200 | BQ55: 7200 | BR55: 7200 | BS55: 7200 | BT55: 7200 | BU55: 7200 | BV55: 7200 | BW55: 7200 | BX55: =$G$55*BX8 -> 7200 | BY55: 7200 | BZ55: 7200 | CA55: 7200 | CB55: 7200 | CC55: 7200 | CD55: 7200 | CE55: 7200 | CF55: 7200 | CG55: 7200 | CH55: 7200 | CI55: 7200 | CJ55: 7200 | CK55: 7200 | CL55: 7200 | CM55: 7200 | CN55: 7200 | CO55: 7200 | CP55: 7200 | CQ55: 7200 | CR55: 7200 | CS55: 7200 | CT55: 7200 | CU55: 7200 | CV55: 0 | CW55: 0 | CX55: 0 | CY55: 0 | CZ55: 0 | DA55: 0 | DB55: 0 | DC55: 0 | DD55: =$G$55*DD8 -> 0 | DE55: 0 | DF55: 0 | DG55: 0 | DH55: 0 | DI55: 0 | DJ55: 0 | DK55: 0 | DL55: 0 | DM55: 0 | DN55: 0 | DO55: 0 | DP55: 0 | DQ55: 0 | DR55: 0 | DS55: 0 | DT55: 0 | DU55: 0 | DV55: 0 | DW55: 0 | DX55: 0 | DY55: 0 | DZ55: 0 | EA55: 0 | EB55: 0 | EC55: 0 | ED55: 0
C56: Capacity of Barges per period - Phase 2 | F56: m3/hour | G56: ='Operating Assumptions'!G64 -> 7200 | L56: =$G$56*L10 -> 0 | M56: 0 | N56: 0 | O56: 0 | P56: 0 | Q56: 0 | R56: 0 | S56: 0 | T56: 0 | U56: 0 | V56: 0 | W56: 0 | X56: 0 | Y56: 0 | Z56: 0 | AA56: 0 | AB56: 0 | AC56: 0 | AD56: 0 | AE56: 0 | AF56: 0 | AG56: 0 | AH56: 0 | AI56: 0 | AJ56: 0 | AK56: 0 | AL56: 0 | AM56: 0 | AN56: 0 | AO56: 0 | AP56: 0 | AQ56: 0 | AR56: =$G$56*AR10 -> 0 | AS56: 0 | AT56: 0 | AU56: 0 | AV56: 0 | AW56: 0 | AX56: 0 | AY56: 0 | AZ56: 0 | BA56: 7200 | BB56: 7200 | BC56: 7200 | BD56: 7200 | BE56: 7200 | BF56: 7200 | BG56: 7200 | BH56: 7200 | BI56: 7200 | BJ56: 7200 | BK56: 7200 | BL56: 7200 | BM56: 7200 | BN56: 7200 | BO56: 7200 | BP56: 7200 | BQ56: 7200 | BR56: 7200 | BS56: 7200 | BT56: 7200 | BU56: 7200 | BV56: 7200 | BW56: 7200 | BX56: =$G$56*BX10 -> 7200 | BY56: 7200 | BZ56: 7200 | CA56: 7200 | CB56: 7200 | CC56: 7200 | CD56: 7200 | CE56: 7200 | CF56: 7200 | CG56: 7200 | CH56: 7200 | CI56: 7200 | CJ56: 7200 | CK56: 7200 | CL56: 7200 | CM56: 7200 | CN56: 7200 | CO56: 7200 | CP56: 7200 | CQ56: 7200 | CR56: 7200 | CS56: 7200 | CT56: 7200 | CU56: 7200 | CV56: 7200 | CW56: 7200 | CX56: 7200 | CY56: 0 | CZ56: 0 | DA56: 0 | DB56: 0 | DC56: 0 | DD56: =$G$56*DD10 -> 0 | DE56: 0 | DF56: 0 | DG56: 0 | DH56: 0 | DI56: 0 | DJ56: 0 | DK56: 0 | DL56: 0 | DM56: 0 | DN56: 0 | DO56: 0 | DP56: 0 | DQ56: 0 | DR56: 0 | DS56: 0 | DT56: 0 | DU56: 0 | DV56: 0 | DW56: 0 | DX56: 0 | DY56: 0 | DZ56: 0 | EA56: 0 | EB56: 0 | EC56: 0 | ED56: 0
B58: Percent loss in Energy from Insufficient Capacity
C59: Phase 1 Loss Percent | F59: % | L59: =IF(L8,MAX(IF(L55,(L50-L55)/L55),0)) -> FALSE | M59: =IF(M8,MAX(IF(M55,(M50-M55)/M55),0)) -> FALSE | N59: FALSE | O59: FALSE | P59: FALSE | Q59: FALSE | R59: FALSE | S59: FALSE | T59: FALSE | U59: FALSE | V59: FALSE | W59: FALSE | X59: FALSE | Y59: FALSE | Z59: FALSE | AA59: FALSE | AB59: FALSE | AC59: FALSE | AD59: FALSE | AE59: 0 | AF59: 0 | AG59: 0 | AH59: 0 | AI59: 0 | AJ59: 0 | AK59: 0 | AL59: 0 | AM59: 0 | AN59: 0 | AO59: 0 | AP59: 0 | AQ59: 0 | AR59: 0 | AS59: 0 | AT59: 0 | AU59: 0 | AV59: 0 | AW59: 0 | AX59: 0 | AY59: 0 | AZ59: 0 | BA59: 0 | BB59: 0 | BC59: 0 | BD59: 0 | BE59: 0 | BF59: 0 | BG59: 0 | BH59: 0 | BI59: 0 | BJ59: 0 | BK59: 0 | BL59: 0 | BM59: 0 | BN59: 0 | BO59: 0 | BP59: 0 | BQ59: 0 | BR59: 0 | BS59: 0 | BT59: 0 | BU59: 0 | BV59: 0 | BW59: 0 | BX59: 0 | BY59: =IF(BY8,MAX(IF(BY55,(BY50-BY55)/BY55),0)) -> 0 | BZ59: 0 | CA59: 0 | CB59: 0 | CC59: 0 | CD59: 0 | CE59: 0 | CF59: 0 | CG59: 0 | CH59: 0 | CI59: 0 | CJ59: 0 | CK59: 0 | CL59: 0 | CM59: 0 | CN59: 0 | CO59: 0 | CP59: 0 | CQ59: 0 | CR59: 0 | CS59: 0 | CT59: 0 | CU59: 0 | CV59: FALSE | CW59: FALSE | CX59: FALSE | CY59: FALSE | CZ59: FALSE | DA59: FALSE | DB59: FALSE | DC59: FALSE | DD59: FALSE | DE59: FALSE | DF59: FALSE | DG59: FALSE | DH59: FALSE | DI59: FALSE | DJ59: FALSE | DK59: FALSE | DL59: FALSE | DM59: FALSE | DN59: FALSE | DO59: FALSE | DP59: FALSE | DQ59: FALSE | DR59: FALSE | DS59: FALSE | DT59: FALSE | DU59: FALSE | DV59: FALSE | DW59: FALSE | DX59: FALSE | DY59: FALSE | DZ59: FALSE | EA59: FALSE | EB59: FALSE | EC59: FALSE | ED59: FALSE
C60: Phase 2 Loss Percent | F60: % | L60: =IF(L10,MAX(IF(L56,(L51-L56)/L56),0)) -> FALSE | M60: =IF(M10,MAX(IF(M56,(M51-M56)/M56),0)) -> FALSE | N60: FALSE | O60: FALSE | P60: FALSE | Q60: FALSE | R60: FALSE | S60: FALSE | T60: FALSE | U60: FALSE | V60: FALSE | W60: FALSE | X60: FALSE | Y60: FALSE | Z60: FALSE | AA60: FALSE | AB60: FALSE | AC60: FALSE | AD60: FALSE | AE60: FALSE | AF60: FALSE | AG60: FALSE | AH60: FALSE | AI60: FALSE | AJ60: FALSE | AK60: FALSE | AL60: FALSE | AM60: FALSE | AN60: FALSE | AO60: FALSE | AP60: FALSE | AQ60: FALSE | AR60: FALSE | AS60: FALSE | AT60: FALSE | AU60: FALSE | AV60: FALSE | AW60: FALSE | AX60: FALSE | AY60: FALSE | AZ60: FALSE | BA60: 0 | BB60: 0 | BC60: 0 | BD60: 0 | BE60: 0 | BF60: 0 | BG60: 0 | BH60: 0 | BI60: 0 | BJ60: 0 | BK60: 0 | BL60: 0 | BM60: 0 | BN60: 0 | BO60: 0 | BP60: 0 | BQ60: 0 | BR60: 0 | BS60: 0 | BT60: 0 | BU60: 0 | BV60: 0 | BW60: 0 | BX60: 0 | BY60: =IF(BY10,MAX(IF(BY56,(BY51-BY56)/BY56),0)) -> 0 | BZ60: 0 | CA60: 0 | CB60: 0 | CC60: 0 | CD60: 0 | CE60: 0 | CF60: 0 | CG60: 0 | CH60: 0 | CI60: 0 | CJ60: 0 | CK60: 0 | CL60: 0 | CM60: 0 | CN60: 0 | CO60: 0 | CP60: 0 | CQ60: 0 | CR60: 0 | CS60: 0 | CT60: 0 | CU60: 0 | CV60: 0 | CW60: 0 | CX60: 0 | CY60: FALSE | CZ60: FALSE | DA60: FALSE | DB60: FALSE | DC60: FALSE | DD60: FALSE | DE60: FALSE | DF60: FALSE | DG60: FALSE | DH60: FALSE | DI60: FALSE | DJ60: FALSE | DK60: FALSE | DL60: FALSE | DM60: FALSE | DN60: FALSE | DO60: FALSE | DP60: FALSE | DQ60: FALSE | DR60: FALSE | DS60: FALSE | DT60: FALSE | DU60: FALSE | DV60: FALSE | DW60: FALSE | DX60: FALSE | DY60: FALSE | DZ60: FALSE | EA60: FALSE | EB60: FALSE | EC60: FALSE | ED60: FALSE
C62: Electricity Availability | F62: % | G62: ='Operating Assumptions'!G45 -> 0.95 | L62: =1-$G$62 -> 0.05 | M62: =1-$G$62 -> 0.05 | N62: 0.05 | O62: 0.05 | P62: 0.05 | Q62: 0.05 | R62: 0.05 | S62: 0.05 | T62: 0.05 | U62: 0.05 | V62: 0.05 | W62: 0.05 | X62: 0.05 | Y62: 0.05 | Z62: 0.05 | AA62: 0.05 | AB62: 0.05 | AC62: 0.05 | AD62: 0.05 | AE62: 0.05 | AF62: 0.05 | AG62: 0.05 | AH62: 0.05 | AI62: 0.05 | AJ62: 0.05 | AK62: 0.05 | AL62: 0.05 | AM62: 0.05 | AN62: 0.05 | AO62: 0.05 | AP62: 0.05 | AQ62: 0.05 | AR62: 0.05 | AS62: 0.05 | AT62: 0.05 | AU62: 0.05 | AV62: 0.05 | AW62: 0.05 | AX62: 0.05 | AY62: 0.05 | AZ62: 0.05 | BA62: 0.05 | BB62: 0.05 | BC62: 0.05 | BD62: 0.05 | BE62: 0.05 | BF62: 0.05 | BG62: 0.05 | BH62: 0.05 | BI62: 0.05 | BJ62: 0.05 | BK62: 0.05 | BL62: 0.05 | BM62: 0.05 | BN62: 0.05 | BO62: 0.05 | BP62: 0.05 | BQ62: 0.05 | BR62: 0.05 | BS62: 0.05 | BT62: 0.05 | BU62: 0.05 | BV62: 0.05 | BW62: 0.05 | BX62: 0.05 | BY62: =1-$G$62 -> 0.05 | BZ62: 0.05 | CA62: 0.05 | CB62: 0.05 | CC62: 0.05 | CD62: 0.05 | CE62: 0.05 | CF62: 0.05 | CG62: 0.05 | CH62: 0.05 | CI62: 0.05 | CJ62: 0.05 | CK62: 0.05 | CL62: 0.05 | CM62: 0.05 | CN62: 0.05 | CO62: 0.05 | CP62: 0.05 | CQ62: 0.05 | CR62: 0.05 | CS62: 0.05 | CT62: 0.05 | CU62: 0.05 | CV62: 0.05 | CW62: 0.05 | CX62: 0.05 | CY62: 0.05 | CZ62: 0.05 | DA62: 0.05 | DB62: 0.05 | DC62: 0.05 | DD62: 0.05 | DE62: 0.05 | DF62: 0.05 | DG62: 0.05 | DH62: 0.05 | DI62: 0.05 | DJ62: 0.05 | DK62: 0.05 | DL62: 0.05 | DM62: 0.05 | DN62: 0.05 | DO62: 0.05 | DP62: 0.05 | DQ62: 0.05 | DR62: 0.05 | DS62: 0.05 | DT62: 0.05 | DU62: 0.05 | DV62: 0.05 | DW62: 0.05 | DX62: 0.05 | DY62: 0.05 | DZ62: 0.05 | EA62: 0.05 | EB62: 0.05 | EC62: 0.05 | ED62: 0.05
C64: Loss to Availability of Barges | F64: % | G64: =Scenarios!I19 -> 0.98 | L64: =1-$G$64 -> 0.02 | M64: =1-$G$64 -> 0.02 | N64: 0.02 | O64: 0.02 | P64: 0.02 | Q64: 0.02 | R64: 0.02 | S64: 0.02 | T64: 0.02 | U64: 0.02 | V64: 0.02 | W64: 0.02 | X64: 0.02 | Y64: 0.02 | Z64: 0.02 | AA64: 0.02 | AB64: 0.02 | AC64: 0.02 | AD64: 0.02 | AE64: 0.02 | AF64: 0.02 | AG64: 0.02 | AH64: 0.02 | AI64: 0.02 | AJ64: 0.02 | AK64: 0.02 | AL64: 0.02 | AM64: 0.02 | AN64: 0.02 | AO64: 0.02 | AP64: 0.02 | AQ64: 0.02 | AR64: 0.02 | AS64: 0.02 | AT64: 0.02 | AU64: 0.02 | AV64: 0.02 | AW64: 0.02 | AX64: 0.02 | AY64: 0.02 | AZ64: 0.02 | BA64: 0.02 | BB64: 0.02 | BC64: 0.02 | BD64: 0.02 | BE64: 0.02 | BF64: 0.02 | BG64: 0.02 | BH64: 0.02 | BI64: 0.02 | BJ64: 0.02 | BK64: 0.02 | BL64: 0.02 | BM64: 0.02 | BN64: 0.02 | BO64: 0.02 | BP64: 0.02 | BQ64: 0.02 | BR64: 0.02 | BS64: 0.02 | BT64: 0.02 | BU64: 0.02 | BV64: 0.02 | BW64: 0.02 | BX64: 0.02 | BY64: =1-$G$64 -> 0.02 | BZ64: 0.02 | CA64: 0.02 | CB64: 0.02 | CC64: 0.02 | CD64: 0.02 | CE64: 0.02 | CF64: 0.02 | CG64: 0.02 | CH64: 0.02 | CI64: 0.02 | CJ64: 0.02 | CK64: 0.02 | CL64: 0.02 | CM64: 0.02 | CN64: 0.02 | CO64: 0.02 | CP64: 0.02 | CQ64: 0.02 | CR64: 0.02 | CS64: 0.02 | CT64: 0.02 | CU64: 0.02 | CV64: 0.02 | CW64: 0.02 | CX64: 0.02 | CY64: 0.02 | CZ64: 0.02 | DA64: 0.02 | DB64: 0.02 | DC64: 0.02 | DD64: 0.02 | DE64: 0.02 | DF64: 0.02 | DG64: 0.02 | DH64: 0.02 | DI64: 0.02 | DJ64: 0.02 | DK64: 0.02 | DL64: 0.02 | DM64: 0.02 | DN64: 0.02 | DO64: 0.02 | DP64: 0.02 | DQ64: 0.02 | DR64: 0.02 | DS64: 0.02 | DT64: 0.02 | DU64: 0.02 | DV64: 0.02 | DW64: 0.02 | DX64: 0.02 | DY64: 0.02 | DZ64: 0.02 | EA64: 0.02 | EB64: 0.02 | EC64: 0.02 | ED64: 0.02
C66: Net Availability - Phase 1 | F66: % | L66: =IF(L8,1-L59-L62-L64) -> FALSE | M66: =IF(M8,1-M59-M62-M64) -> FALSE | N66: FALSE | O66: FALSE | P66: FALSE | Q66: FALSE | R66: FALSE | S66: FALSE | T66: FALSE | U66: FALSE | V66: FALSE | W66: FALSE | X66: FALSE | Y66: FALSE | Z66: FALSE | AA66: FALSE | AB66: FALSE | AC66: FALSE | AD66: FALSE | AE66: 0.93 | AF66: 0.93 | AG66: 0.93 | AH66: 0.93 | AI66: 0.93 | AJ66: 0.93 | AK66: 0.93 | AL66: 0.93 | AM66: 0.93 | AN66: 0.93 | AO66: 0.93 | AP66: 0.93 | AQ66: 0.93 | AR66: 0.93 | AS66: 0.93 | AT66: 0.93 | AU66: 0.93 | AV66: 0.93 | AW66: 0.93 | AX66: 0.93 | AY66: 0.93 | AZ66: 0.93 | BA66: 0.93 | BB66: 0.93 | BC66: 0.93 | BD66: 0.93 | BE66: 0.93 | BF66: 0.93 | BG66: 0.93 | BH66: 0.93 | BI66: 0.93 | BJ66: 0.93 | BK66: 0.93 | BL66: 0.93 | BM66: 0.93 | BN66: 0.93 | BO66: 0.93 | BP66: 0.93 | BQ66: 0.93 | BR66: 0.93 | BS66: 0.93 | BT66: 0.93 | BU66: 0.93 | BV66: 0.93 | BW66: 0.93 | BX66: 0.93 | BY66: =IF(BY8,1-BY59-BY62-BY64) -> 0.93 | BZ66: 0.93 | CA66: 0.93 | CB66: 0.93 | CC66: 0.93 | CD66: 0.93 | CE66: 0.93 | CF66: 0.93 | CG66: 0.93 | CH66: 0.93 | CI66: 0.93 | CJ66: 0.93 | CK66: 0.93 | CL66: 0.93 | CM66: 0.93 | CN66: 0.93 | CO66: 0.93 | CP66: 0.93 | CQ66: 0.93 | CR66: 0.93 | CS66: 0.93 | CT66: 0.93 | CU66: 0.93 | CV66: FALSE | CW66: FALSE | CX66: FALSE | CY66: FALSE | CZ66: FALSE | DA66: FALSE | DB66: FALSE | DC66: FALSE | DD66: FALSE | DE66: FALSE | DF66: FALSE | DG66: FALSE | DH66: FALSE | DI66: FALSE | DJ66: FALSE | DK66: FALSE | DL66: FALSE | DM66: FALSE | DN66: FALSE | DO66: FALSE | DP66: FALSE | DQ66: FALSE | DR66: FALSE | DS66: FALSE | DT66: FALSE | DU66: FALSE | DV66: FALSE | DW66: FALSE | DX66: FALSE | DY66: FALSE | DZ66: FALSE | EA66: FALSE | EB66: FALSE | EC66: FALSE | ED66: FALSE
C67: Net Availability - Phase 2 | F67: % | L67: =IF(L10,1-L60-L62-L64) -> FALSE | M67: =IF(M10,1-M60-M62-M64) -> FALSE | N67: FALSE | O67: FALSE | P67: FALSE | Q67: FALSE | R67: FALSE | S67: FALSE | T67: FALSE | U67: FALSE | V67: FALSE | W67: FALSE | X67: FALSE | Y67: FALSE | Z67: FALSE | AA67: FALSE | AB67: FALSE | AC67: FALSE | AD67: FALSE | AE67: FALSE | AF67: FALSE | AG67: FALSE | AH67: FALSE | AI67: FALSE | AJ67: FALSE | AK67: FALSE | AL67: FALSE | AM67: FALSE | AN67: FALSE | AO67: FALSE | AP67: FALSE | AQ67: FALSE | AR67: FALSE | AS67: FALSE | AT67: FALSE | AU67: FALSE | AV67: FALSE | AW67: FALSE | AX67: FALSE | AY67: FALSE | AZ67: FALSE | BA67: 0.93 | BB67: 0.93 | BC67: 0.93 | BD67: 0.93 | BE67: 0.93 | BF67: 0.93 | BG67: 0.93 | BH67: 0.93 | BI67: 0.93 | BJ67: 0.93 | BK67: 0.93 | BL67: 0.93 | BM67: 0.93 | BN67: 0.93 | BO67: 0.93 | BP67: 0.93 | BQ67: 0.93 | BR67: 0.93 | BS67: 0.93 | BT67: 0.93 | BU67: 0.93 | BV67: 0.93 | BW67: 0.93 | BX67: 0.93 | BY67: =IF(BY10,1-BY60-BY62-BY64) -> 0.93 | BZ67: 0.93 | CA67: 0.93 | CB67: 0.93 | CC67: 0.93 | CD67: 0.93 | CE67: 0.93 | CF67: 0.93 | CG67: 0.93 | CH67: 0.93 | CI67: 0.93 | CJ67: 0.93 | CK67: 0.93 | CL67: 0.93 | CM67: 0.93 | CN67: 0.93 | CO67: 0.93 | CP67: 0.93 | CQ67: 0.93 | CR67: 0.93 | CS67: 0.93 | CT67: 0.93 | CU67: 0.93 | CV67: 0.93 | CW67: 0.93 | CX67: 0.93 | CY67: FALSE | CZ67: FALSE | DA67: FALSE | DB67: FALSE | DC67: FALSE | DD67: FALSE | DE67: FALSE | DF67: FALSE | DG67: FALSE | DH67: FALSE | DI67: FALSE | DJ67: FALSE | DK67: FALSE | DL67: FALSE | DM67: FALSE | DN67: FALSE | DO67: FALSE | DP67: FALSE | DQ67: FALSE | DR67: FALSE | DS67: FALSE | DT67: FALSE | DU67: FALSE | DV67: FALSE | DW67: FALSE | DX67: FALSE | DY67: FALSE | DZ67: FALSE | EA67: FALSE | EB67: FALSE | EC67: FALSE | ED67: FALSE
B69: Phase 1 Electricity Use at Site | F69: % | G69: ='Operating Assumptions'!G37 -> 0.2238209432 | L69: =$G$69*L15 -> 0 | M69: 0 | N69: 0 | O69: 0 | P69: 0 | Q69: 0 | R69: 0 | S69: 0 | T69: 0 | U69: 0 | V69: 0 | W69: 0 | X69: 0 | Y69: 0 | Z69: 0 | AA69: 0 | AB69: 0 | AC69: 0 | AD69: 0 | AE69: 4.2 | AF69: 4.2 | AG69: 4.2 | AH69: 4.2 | AI69: 4.2 | AJ69: 4.2 | AK69: 4.2 | AL69: 4.2 | AM69: 4.2 | AN69: 4.2 | AO69: 4.2 | AP69: 4.2 | AQ69: 4.2 | AR69: =$G$69*AR15 -> 4.2 | AS69: 4.2 | AT69: 4.2 | AU69: 4.2 | AV69: 4.2 | AW69: 4.2 | AX69: 4.2 | AY69: 4.2 | AZ69: 4.2 | BA69: 4.2 | BB69: 4.2 | BC69: 4.2 | BD69: 4.2 | BE69: 4.2 | BF69: 4.2 | BG69: 4.2 | BH69: 4.2 | BI69: 4.2 | BJ69: 4.2 | BK69: 4.2 | BL69: 4.2 | BM69: 4.2 | BN69: 4.2 | BO69: 4.2 | BP69: 4.2 | BQ69: 4.2 | BR69: 4.2 | BS69: 4.2 | BT69: 4.2 | BU69: 4.2 | BV69: 4.2 | BW69: 4.2 | BX69: =$G$69*BX15 -> 4.2 | BY69: 4.2 | BZ69: 4.2 | CA69: 4.2 | CB69: 4.2 | CC69: 4.2 | CD69: 4.2 | CE69: 4.2 | CF69: 4.2 | CG69: 4.2 | CH69: 4.2 | CI69: 4.2 | CJ69: 4.2 | CK69: 4.2 | CL69: 4.2 | CM69: 4.2 | CN69: 4.2 | CO69: 4.2 | CP69: 4.2 | CQ69: 4.2 | CR69: 4.2 | CS69: 4.2 | CT69: 4.2 | CU69: 4.2 | CV69: 0 | CW69: 0 | CX69: 0 | CY69: 0 | CZ69: 0 | DA69: 0 | DB69: 0 | DC69: 0 | DD69: =$G$69*DD15 -> 0 | DE69: 0 | DF69: 0 | DG69: 0 | DH69: 0 | DI69: 0 | DJ69: 0 | DK69: 0 | DL69: 0 | DM69: 0 | DN69: 0 | DO69: 0 | DP69: 0 | DQ69: 0 | DR69: 0 | DS69: 0 | DT69: 0 | DU69: 0 | DV69: 0 | DW69: 0 | DX69: 0 | DY69: 0 | DZ69: 0 | EA69: 0 | EB69: 0 | EC69: 0 | ED69: 0
B70: Phase 2 Electricity Use at Site | F70: % | G70: ='Operating Assumptions'!G38 -> 0.1742195987 | L70: =$G$70*L16 -> 0 | M70: 0 | N70: 0 | O70: 0 | P70: 0 | Q70: 0 | R70: 0 | S70: 0 | T70: 0 | U70: 0 | V70: 0 | W70: 0 | X70: 0 | Y70: 0 | Z70: 0 | AA70: 0 | AB70: 0 | AC70: 0 | AD70: 0 | AE70: 0 | AF70: 0 | AG70: 0 | AH70: 0 | AI70: 0 | AJ70: 0 | AK70: 0 | AL70: 0 | AM70: 0 | AN70: 0 | AO70: 0 | AP70: 0 | AQ70: 0 | AR70: =$G$70*AR16 -> 0 | AS70: 0 | AT70: 0 | AU70: 0 | AV70: 0 | AW70: 0 | AX70: 0 | AY70: 0 | AZ70: 0 | BA70: 8.5 | BB70: 8.5 | BC70: 8.5 | BD70: 8.5 | BE70: 8.5 | BF70: 8.5 | BG70: 8.5 | BH70: 8.5 | BI70: 8.5 | BJ70: 8.5 | BK70: 8.5 | BL70: 8.5 | BM70: 8.5 | BN70: 8.5 | BO70: 8.5 | BP70: 8.5 | BQ70: 8.5 | BR70: 8.5 | BS70: 8.5 | BT70: 8.5 | BU70: 8.5 | BV70: 8.5 | BW70: 8.5 | BX70: =$G$70*BX16 -> 8.5 | BY70: 8.5 | BZ70: 8.5 | CA70: 8.5 | CB70: 8.5 | CC70: 8.5 | CD70: 8.5 | CE70: 8.5 | CF70: 8.5 | CG70: 8.5 | CH70: 8.5 | CI70: 8.5 | CJ70: 8.5 | CK70: 8.5 | CL70: 8.5 | CM70: 8.5 | CN70: 8.5 | CO70: 8.5 | CP70: 8.5 | CQ70: 8.5 | CR70: 8.5 | CS70: 8.5 | CT70: 8.5 | CU70: 8.5 | CV70: 8.5 | CW70: 8.5 | CX70: 8.5 | CY70: 0 | CZ70: 0 | DA70: 0 | DB70: 0 | DC70: 0 | DD70: =$G$70*DD16 -> 0 | DE70: 0 | DF70: 0 | DG70: 0 | DH70: 0 | DI70: 0 | DJ70: 0 | DK70: 0 | DL70: 0 | DM70: 0 | DN70: 0 | DO70: 0 | DP70: 0 | DQ70: 0 | DR70: 0 | DS70: 0 | DT70: 0 | DU70: 0 | DV70: 0 | DW70: 0 | DX70: 0 | DY70: 0 | DZ70: 0 | EA70: 0 | EB70: 0 | EC70: 0 | ED70: 0
C71: Total Electricity Use at Site | L71: =SUM(L69:L70) -> 0 | M71: 0 | N71: 0 | O71: 0 | P71: 0 | Q71: 0 | R71: 0 | S71: 0 | T71: 0 | U71: 0 | V71: 0 | W71: 0 | X71: 0 | Y71: 0 | Z71: 0 | AA71: 0 | AB71: 0 | AC71: 0 | AD71: 0 | AE71: 4.2 | AF71: 4.2 | AG71: 4.2 | AH71: 4.2 | AI71: 4.2 | AJ71: 4.2 | AK71: 4.2 | AL71: 4.2 | AM71: 4.2 | AN71: 4.2 | AO71: 4.2 | AP71: 4.2 | AQ71: 4.2 | AR71: =SUM(AR69:AR70) -> 4.2 | AS71: 4.2 | AT71: 4.2 | AU71: 4.2 | AV71: 4.2 | AW71: 4.2 | AX71: 4.2 | AY71: 4.2 | AZ71: 4.2 | BA71: 12.7 | BB71: 12.7 | BC71: 12.7 | BD71: 12.7 | BE71: 12.7 | BF71: 12.7 | BG71: 12.7 | BH71: 12.7 | BI71: 12.7 | BJ71: 12.7 | BK71: 12.7 | BL71: 12.7 | BM71: 12.7 | BN71: 12.7 | BO71: 12.7 | BP71: 12.7 | BQ71: 12.7 | BR71: 12.7 | BS71: 12.7 | BT71: 12.7 | BU71: 12.7 | BV71: 12.7 | BW71: 12.7 | BX71: =SUM(BX69:BX70) -> 12.7 | BY71: 12.7 | BZ71: 12.7 | CA71: 12.7 | CB71: 12.7 | CC71: 12.7 | CD71: 12.7 | CE71: 12.7 | CF71: 12.7 | CG71: 12.7 | CH71: 12.7 | CI71: 12.7 | CJ71: 12.7 | CK71: 12.7 | CL71: 12.7 | CM71: 12.7 | CN71: 12.7 | CO71: 12.7 | CP71: 12.7 | CQ71: 12.7 | CR71: 12.7 | CS71: 12.7 | CT71: 12.7 | CU71: 12.7 | CV71: 8.5 | CW71: 8.5 | CX71: 8.5 | CY71: 0 | CZ71: 0 | DA71: 0 | DB71: 0 | DC71: 0 | DD71: =SUM(DD69:DD70) -> 0 | DE71: 0 | DF71: 0 | DG71: 0 | DH71: 0 | DI71: 0 | DJ71: 0 | DK71: 0 | DL71: 0 | DM71: 0 | DN71: 0 | DO71: 0 | DP71: 0 | DQ71: 0 | DR71: 0 | DS71: 0 | DT71: 0 | DU71: 0 | DV71: 0 | DW71: 0 | DX71: 0 | DY71: 0 | DZ71: 0 | EA71: 0 | EB71: 0 | EC71: 0 | ED71: 0
B73: Phase 1 Net Capacity | F73: MW | L73: =L15-L69 -> 0 | M73: 0 | N73: 0 | O73: 0 | P73: 0 | Q73: 0 | R73: 0 | S73: 0 | T73: 0 | U73: 0 | V73: 0 | W73: 0 | X73: 0 | Y73: 0 | Z73: 0 | AA73: 0 | AB73: 0 | AC73: 0 | AD73: 0 | AE73: 14.565 | AF73: 14.565 | AG73: 14.565 | AH73: 14.565 | AI73: 14.565 | AJ73: 14.565 | AK73: 14.565 | AL73: 14.565 | AM73: 14.565 | AN73: 14.565 | AO73: 14.565 | AP73: 14.565 | AQ73: 14.565 | AR73: =AR15-AR69 -> 14.565 | AS73: 14.565 | AT73: 14.565 | AU73: 14.565 | AV73: 14.565 | AW73: 14.565 | AX73: 14.565 | AY73: 14.565 | AZ73: 14.565 | BA73: 14.565 | BB73: 14.565 | BC73: 14.565 | BD73: 14.565 | BE73: 14.565 | BF73: 14.565 | BG73: 14.565 | BH73: 14.565 | BI73: 14.565 | BJ73: 14.565 | BK73: 14.565 | BL73: 14.565 | BM73: 14.565 | BN73: 14.565 | BO73: 14.565 | BP73: 14.565 | BQ73: 14.565 | BR73: 14.565 | BS73: 14.565 | BT73: 14.565 | BU73: 14.565 | BV73: 14.565 | BW73: 14.565 | BX73: =BX15-BX69 -> 14.565 | BY73: 14.565 | BZ73: 14.565 | CA73: 14.565 | CB73: 14.565 | CC73: 14.565 | CD73: 14.565 | CE73: 14.565 | CF73: 14.565 | CG73: 14.565 | CH73: 14.565 | CI73: 14.565 | CJ73: 14.565 | CK73: 14.565 | CL73: 14.565 | CM73: 14.565 | CN73: 14.565 | CO73: 14.565 | CP73: 14.565 | CQ73: 14.565 | CR73: 14.565 | CS73: 14.565 | CT73: 14.565 | CU73: 14.565 | CV73: 0 | CW73: 0 | CX73: 0 | CY73: 0 | CZ73: 0 | DA73: 0 | DB73: 0 | DC73: 0 | DD73: =DD15-DD69 -> 0 | DE73: 0 | DF73: 0 | DG73: 0 | DH73: 0 | DI73: 0 | DJ73: 0 | DK73: 0 | DL73: 0 | DM73: 0 | DN73: 0 | DO73: 0 | DP73: 0 | DQ73: 0 | DR73: 0 | DS73: 0 | DT73: 0 | DU73: 0 | DV73: 0 | DW73: 0 | DX73: 0 | DY73: 0 | DZ73: 0 | EA73: 0 | EB73: 0 | EC73: 0 | ED73: 0
B74: Phase 2 Net Capacity | F74: MW | L74: =L16-L70 -> 0 | M74: 0 | N74: 0 | O74: 0 | P74: 0 | Q74: 0 | R74: 0 | S74: 0 | T74: 0 | U74: 0 | V74: 0 | W74: 0 | X74: 0 | Y74: 0 | Z74: 0 | AA74: 0 | AB74: 0 | AC74: 0 | AD74: 0 | AE74: 0 | AF74: 0 | AG74: 0 | AH74: 0 | AI74: 0 | AJ74: 0 | AK74: 0 | AL74: 0 | AM74: 0 | AN74: 0 | AO74: 0 | AP74: 0 | AQ74: 0 | AR74: =AR16-AR70 -> 0 | AS74: 0 | AT74: 0 | AU74: 0 | AV74: 0 | AW74: 0 | AX74: 0 | AY74: 0 | AZ74: 0 | BA74: 40.289 | BB74: 40.289 | BC74: 40.289 | BD74: 40.289 | BE74: 40.289 | BF74: 40.289 | BG74: 40.289 | BH74: 40.289 | BI74: 40.289 | BJ74: 40.289 | BK74: 40.289 | BL74: 40.289 | BM74: 40.289 | BN74: 40.289 | BO74: 40.289 | BP74: 40.289 | BQ74: 40.289 | BR74: 40.289 | BS74: 40.289 | BT74: 40.289 | BU74: 40.289 | BV74: 40.289 | BW74: 40.289 | BX74: =BX16-BX70 -> 40.289 | BY74: 40.289 | BZ74: 40.289 | CA74: 40.289 | CB74: 40.289 | CC74: 40.289 | CD74: 40.289 | CE74: 40.289 | CF74: 40.289 | CG74: 40.289 | CH74: 40.289 | CI74: 40.289 | CJ74: 40.289 | CK74: 40.289 | CL74: 40.289 | CM74: 40.289 | CN74: 40.289 | CO74: 40.289 | CP74: 40.289 | CQ74: 40.289 | CR74: 40.289 | CS74: 40.289 | CT74: 40.289 | CU74: 40.289 | CV74: 40.289 | CW74: 40.289 | CX74: 40.289 | CY74: 0 | CZ74: 0 | DA74: 0 | DB74: 0 | DC74: 0 | DD74: =DD16-DD70 -> 0 | DE74: 0 | DF74: 0 | DG74: 0 | DH74: 0 | DI74: 0 | DJ74: 0 | DK74: 0 | DL74: 0 | DM74: 0 | DN74: 0 | DO74: 0 | DP74: 0 | DQ74: 0 | DR74: 0 | DS74: 0 | DT74: 0 | DU74: 0 | DV74: 0 | DW74: 0 | DX74: 0 | DY74: 0 | DZ74: 0 | EA74: 0 | EB74: 0 | EC74: 0 | ED74: 0
C75: Total Net Capacity | F75: MW | L75: =SUM(L73:L74) -> 0 | M75: 0 | N75: 0 | O75: 0 | P75: 0 | Q75: 0 | R75: 0 | S75: 0 | T75: 0 | U75: 0 | V75: 0 | W75: 0 | X75: 0 | Y75: 0 | Z75: 0 | AA75: 0 | AB75: 0 | AC75: 0 | AD75: 0 | AE75: 14.565 | AF75: 14.565 | AG75: 14.565 | AH75: 14.565 | AI75: 14.565 | AJ75: 14.565 | AK75: 14.565 | AL75: 14.565 | AM75: 14.565 | AN75: 14.565 | AO75: 14.565 | AP75: 14.565 | AQ75: 14.565 | AR75: =SUM(AR73:AR74) -> 14.565 | AS75: 14.565 | AT75: 14.565 | AU75: 14.565 | AV75: 14.565 | AW75: 14.565 | AX75: 14.565 | AY75: 14.565 | AZ75: 14.565 | BA75: 54.854 | BB75: 54.854 | BC75: 54.854 | BD75: 54.854 | BE75: 54.854 | BF75: 54.854 | BG75: 54.854 | BH75: 54.854 | BI75: 54.854 | BJ75: 54.854 | BK75: 54.854 | BL75: 54.854 | BM75: 54.854 | BN75: 54.854 | BO75: 54.854 | BP75: 54.854 | BQ75: 54.854 | BR75: 54.854 | BS75: 54.854 | BT75: 54.854 | BU75: 54.854 | BV75: 54.854 | BW75: 54.854 | BX75: =SUM(BX73:BX74) -> 54.854 | BY75: 54.854 | BZ75: 54.854 | CA75: 54.854 | CB75: 54.854 | CC75: 54.854 | CD75: 54.854 | CE75: 54.854 | CF75: 54.854 | CG75: 54.854 | CH75: 54.854 | CI75: 54.854 | CJ75: 54.854 | CK75: 54.854 | CL75: 54.854 | CM75: 54.854 | CN75: 54.854 | CO75: 54.854 | CP75: 54.854 | CQ75: 54.854 | CR75: 54.854 | CS75: 54.854 | CT75: 54.854 | CU75: 54.854 | CV75: 40.289 | CW75: 40.289 | CX75: 40.289 | CY75: 0 | CZ75: 0 | DA75: 0 | DB75: 0 | DC75: 0 | DD75: =SUM(DD73:DD74) -> 0 | DE75: 0 | DF75: 0 | DG75: 0 | DH75: 0 | DI75: 0 | DJ75: 0 | DK75: 0 | DL75: 0 | DM75: 0 | DN75: 0 | DO75: 0 | DP75: 0 | DQ75: 0 | DR75: 0 | DS75: 0 | DT75: 0 | DU75: 0 | DV75: 0 | DW75: 0 | DX75: 0 | DY75: 0 | DZ75: 0 | EA75: 0 | EB75: 0 | EC75: 0 | ED75: 0
G77: =G175 -> 2019 | H77: =H175 -> 2021
C78: Electricity Production After Gas Unavailabiltiy - 1 | F78: MWH | G78: =SUMIF($6:$6,G$77,78:78) -> 118658.142 | H78: 118658.142 | L78: =L73*L$20*L66 -> 0 | M78: =M73*M$20*M66 -> 0 | N78: 0 | O78: 0 | P78: 0 | Q78: 0 | R78: 0 | S78: 0 | T78: 0 | U78: 0 | V78: 0 | W78: 0 | X78: 0 | Y78: 0 | Z78: 0 | AA78: 0 | AB78: 0 | AC78: 0 | AD78: 0 | AE78: 9752.724 | AF78: 10077.8148 | AG78: 9752.724 | AH78: 10077.8148 | AI78: 10077.8148 | AJ78: 9752.724 | AK78: 10077.8148 | AL78: 9752.724 | AM78: 10077.8148 | AN78: 10077.8148 | AO78: 9102.5424 | AP78: 10077.8148 | AQ78: 9752.724 | AR78: 10077.8148 | AS78: 9752.724 | AT78: 10077.8148 | AU78: 10077.8148 | AV78: 9752.724 | AW78: 10077.8148 | AX78: 9752.724 | AY78: 10077.8148 | AZ78: 10077.8148 | BA78: 59166.5256 | BB78: 59816.7072 | BC78: 58841.4348 | BD78: 59816.7072 | BE78: 58841.4348 | BF78: 59816.7072 | BG78: 58841.4348 | BH78: 59816.7072 | BI78: 59166.5256 | BJ78: 59816.7072 | BK78: 58841.4348 | BL78: 59816.7072 | BM78: 58841.4348 | BN78: 59816.7072 | BO78: 58841.4348 | BP78: 59816.7072 | BQ78: 59166.5256 | BR78: 59816.7072 | BS78: 58841.4348 | BT78: 59816.7072 | BU78: 58841.4348 | BV78: 59816.7072 | BW78: 58841.4348 | BX78: 59816.7072 | BY78: =BY73*BY$20*BY66 -> 59166.5256 | BZ78: 59816.7072 | CA78: 58841.4348 | CB78: 59816.7072 | CC78: 58841.4348 | CD78: 59816.7072 | CE78: 58841.4348 | CF78: 59816.7072 | CG78: 59166.5256 | CH78: 59816.7072 | CI78: 58841.4348 | CJ78: 59816.7072 | CK78: 58841.4348 | CL78: 59816.7072 | CM78: 58841.4348 | CN78: 59816.7072 | CO78: 59166.5256 | CP78: 59816.7072 | CQ78: 58841.4348 | CR78: 59816.7072 | CS78: 58841.4348 | CT78: 59816.7072 | CU78: 58841.4348 | CV78: 0 | CW78: 0 | CX78: 0 | CY78: 0 | CZ78: 0 | DA78: 0 | DB78: 0 | DC78: 0 | DD78: 0 | DE78: 0 | DF78: 0 | DG78: 0 | DH78: 0 | DI78: 0 | DJ78: 0 | DK78: 0 | DL78: 0 | DM78: 0 | DN78: 0 | DO78: 0 | DP78: 0 | DQ78: 0 | DR78: 0 | DS78: 0 | DT78: 0 | DU78: 0 | DV78: 0 | DW78: 0 | DX78: 0 | DY78: 0 | DZ78: 0 | EA78: 0 | EB78: 0 | EC78: 0 | ED78: 0
C79: Electricity Production After Gas Unavailabiltiy - 2 | F79: MWH | G79: 0 | H79: 328226.4252 | L79: =L74*L$20*L67 -> 0 | M79: =M74*M$20*M67 -> 0 | N79: 0 | O79: 0 | P79: 0 | Q79: 0 | R79: 0 | S79: 0 | T79: 0 | U79: 0 | V79: 0 | W79: 0 | X79: 0 | Y79: 0 | Z79: 0 | AA79: 0 | AB79: 0 | AC79: 0 | AD79: 0 | AE79: 0 | AF79: 0 | AG79: 0 | AH79: 0 | AI79: 0 | AJ79: 0 | AK79: 0 | AL79: 0 | AM79: 0 | AN79: 0 | AO79: 0 | AP79: 0 | AQ79: 0 | AR79: 0 | AS79: 0 | AT79: 0 | AU79: 0 | AV79: 0 | AW79: 0 | AX79: 0 | AY79: 0 | AZ79: 0 | BA79: 163663.5874 | BB79: 165462.0883 | BC79: 162764.3369 | BD79: 165462.0883 | BE79: 162764.3369 | BF79: 165462.0883 | BG79: 162764.3369 | BH79: 165462.0883 | BI79: 163663.5874 | BJ79: 165462.0883 | BK79: 162764.3369 | BL79: 165462.0883 | BM79: 162764.3369 | BN79: 165462.0883 | BO79: 162764.3369 | BP79: 165462.0883 | BQ79: 163663.5874 | BR79: 165462.0883 | BS79: 162764.3369 | BT79: 165462.0883 | BU79: 162764.3369 | BV79: 165462.0883 | BW79: 162764.3369 | BX79: 165462.0883 | BY79: =BY74*BY$20*BY67 -> 163663.5874 | BZ79: 165462.0883 | CA79: 162764.3369 | CB79: 165462.0883 | CC79: 162764.3369 | CD79: 165462.0883 | CE79: 162764.3369 | CF79: 165462.0883 | CG79: 163663.5874 | CH79: 165462.0883 | CI79: 162764.3369 | CJ79: 165462.0883 | CK79: 162764.3369 | CL79: 165462.0883 | CM79: 162764.3369 | CN79: 165462.0883 | CO79: 163663.5874 | CP79: 165462.0883 | CQ79: 162764.3369 | CR79: 165462.0883 | CS79: 162764.3369 | CT79: 165462.0883 | CU79: 162764.3369 | CV79: 165462.0883 | CW79: 163663.5874 | CX79: 165462.0883 | CY79: 0 | CZ79: 0 | DA79: 0 | DB79: 0 | DC79: 0 | DD79: 0 | DE79: 0 | DF79: 0 | DG79: 0 | DH79: 0 | DI79: 0 | DJ79: 0 | DK79: 0 | DL79: 0 | DM79: 0 | DN79: 0 | DO79: 0 | DP79: 0 | DQ79: 0 | DR79: 0 | DS79: 0 | DT79: 0 | DU79: 0 | DV79: 0 | DW79: 0 | DX79: 0 | DY79: 0 | DZ79: 0 | EA79: 0 | EB79: 0 | EC79: 0 | ED79: 0
D80: Electricity Production After Gas Unavailabiltiy | F80: =F79 -> MWH | G80: 118658.142 | H80: 446884.5672 | L80: =L78+L79 -> 0 | M80: =M78+M79 -> 0 | N80: 0 | O80: 0 | P80: 0 | Q80: 0 | R80: 0 | S80: 0 | T80: 0 | U80: 0 | V80: 0 | W80: 0 | X80: 0 | Y80: 0 | Z80: 0 | AA80: 0 | AB80: 0 | AC80: 0 | AD80: 0 | AE80: 9752.724 | AF80: 10077.8148 | AG80: 9752.724 | AH80: 10077.8148 | AI80: 10077.8148 | AJ80: 9752.724 | AK80: 10077.8148 | AL80: 9752.724 | AM80: 10077.8148 | AN80: 10077.8148 | AO80: 9102.5424 | AP80: 10077.8148 | AQ80: 9752.724 | AR80: 10077.8148 | AS80: 9752.724 | AT80: 10077.8148 | AU80: 10077.8148 | AV80: 9752.724 | AW80: 10077.8148 | AX80: 9752.724 | AY80: 10077.8148 | AZ80: 10077.8148 | BA80: 222830.113 | BB80: 225278.7955 | BC80: 221605.7717 | BD80: 225278.7955 | BE80: 221605.7717 | BF80: 225278.7955 | BG80: 221605.7717 | BH80: 225278.7955 | BI80: 222830.113 | BJ80: 225278.7955 | BK80: 221605.7717 | BL80: 225278.7955 | BM80: 221605.7717 | BN80: 225278.7955 | BO80: 221605.7717 | BP80: 225278.7955 | BQ80: 222830.113 | BR80: 225278.7955 | BS80: 221605.7717 | BT80: 225278.7955 | BU80: 221605.7717 | BV80: 225278.7955 | BW80: 221605.7717 | BX80: 225278.7955 | BY80: =BY78+BY79 -> 222830.113 | BZ80: 225278.7955 | CA80: 221605.7717 | CB80: 225278.7955 | CC80: 221605.7717 | CD80: 225278.7955 | CE80: 221605.7717 | CF80: 225278.7955 | CG80: 222830.113 | CH80: 225278.7955 | CI80: 221605.7717 | CJ80: 225278.7955 | CK80: 221605.7717 | CL80: 225278.7955 | CM80: 221605.7717 | CN80: 225278.7955 | CO80: 222830.113 | CP80: 225278.7955 | CQ80: 221605.7717 | CR80: 225278.7955 | CS80: 221605.7717 | CT80: 225278.7955 | CU80: 221605.7717 | CV80: 165462.0883 | CW80: 163663.5874 | CX80: 165462.0883 | CY80: 0 | CZ80: 0 | DA80: 0 | DB80: 0 | DC80: 0 | DD80: 0 | DE80: 0 | DF80: 0 | DG80: 0 | DH80: 0 | DI80: 0 | DJ80: 0 | DK80: 0 | DL80: 0 | DM80: 0 | DN80: 0 | DO80: 0 | DP80: 0 | DQ80: 0 | DR80: 0 | DS80: 0 | DT80: 0 | DU80: 0 | DV80: 0 | DW80: 0 | DX80: 0 | DY80: 0 | DZ80: 0 | EA80: 0 | EB80: 0 | EC80: 0 | ED80: 0
A82: General Macro Economic Indicies
